Workbook

Sheet README
A1: Checked rows (x) in Column A indicate revisions from USEPA Version 6.0 Workbook
A2: x | B2: This spreadsheet is a DTSC-modified version of the Johnson & Ettinger Model (JE Model) Spreadsheet, USEPA Version 6.0 (2017)*
A3: x | B3: DTSC Version Date: October 2024
A4: x | B4: The California Department of Toxic Substances Control (DTSC) has released this version of JE Model spreadsheet for practitioners working on vapor-forming chemical (VFC) release sites in California. The DTSC recommends a multiple-lines-of-evidence (LOE) approach to evaluate the vapor intrusion (VI) pathway (DTSC, 2011; USEPA, 2015; CalEPA, 2023). Mathematical modeling, such as the appropriate application of the JE Model, should not be the sole LOE to assess the VI pathway but may be used in conjunction with other LOEs when interpreting investigation data, assessing potential health risk, and making risk management decisions. This DTSC Excel spreadsheet is based on the 2017 USEPA JE Model workbook. The DTSC version of the JE Model spreadsheet provides modifications to correct errors identified in the USEPA workbook and to allow for the use of DTSC-recommended toxicity factors and building parameters for model input values. Additionally, the DTSC-modified JE Model spreadsheet includes a refined algorithm to calculate vapor transport across the capillary fringe. It is recommended that model users review the USEPA Documentation on Implementation of JE Model (USEPA, 2017) which provides information regarding the use of the JE Model workbook. A User's Guide on DTSC-modified JE Model has also been developed to provide additional information on the changes DTSC made in the 2017 USEPA workbook. Disclaimer: This DTSC-modified JE Model spreadsheet and accompanying User's Guide are not regulation or policy. The spreadsheet equations, model parameter values, instructions, and User's Guide describe an approach for using the JE Model as one of the lines of evidence for evaluating the vapor intrusion pathway, but not to the exclusion of alternate methodologies. These materials do not supersede or implement laws or regulations, and are not binding on DTSC staff or on stakeholders and other members of the public.
B5: Questions? Please refer to the EPA VI webpage and the J&E user’s guide, available at https://www.epa.gov/vaporintrusion/epa-spreadsheet-modeling-subsurface-vapor-intrusion
A6: x | B6: *USEPA Version 6.0 has been further modified by California Department of Toxic Substances Control (DTSC) in this workbook; see 'Key Changes in DTSC-Modified JE Model Workbook' section below.
A7: Intentionally Blank
A8: x | B8: Contact Information - Send comments and questions to the following email:
A9: x | B9: DTSC_JEModel@dtsc.ca.gov
A10: x | B10: California Department of Toxic Substances Control (DTSC)
A11: Intentionally Blank
B12: To run this workbook, MACROS MUST BE ENABLED. If you have had the workbook open for an extended time, you may notice that the macros (resetting to defaults, toggling between scenarios) no longer function. In this case, save your work, close, and reopen the workbook. This is a known issue with Excel.
A13: Intentionally Blank
B14: Note: The J&E model does not replace the EPA VISLs. For initial site screening, please refer to the VISL spreadsheet tool:
B15: https://www.epa.gov/vaporintrusion/vapor-intrusion-screening-levels-visls
A16: Intentionally Blank
B17: Instructions for spreadsheet use:
B18: 1. The MODEL tab in the spreadsheet contains the model input and output. For multiple chemicals separate input and output sheets are provided. The other folders contain the look-up information used in the model.
A19: x | B19: 2. The top portion of the MODEL sheet contains the input parameters. User's should enter site specific parameter values whenever possible! Select USEPA or CA DTSC recommended values using button on MODEL tab cell H8.
B20: 3. The solid-line and bold-line outlined boxes, with yellow fill, are cells for which you must provide site-specific information. The text entry cells all have drop down lists and are shown in bold-line outlined boxes. The numeric entry cells all allow direct entry of numeric values. If inconsistent values are entered, an error message appears in the “Comment” field of the spreadsheet.
B21: 4. The dotted-line outlined boxes are cells for which the spreadsheet provides defaults. These default values should be changed if there are site-specific measurements that support the change. If values are entered that are outside the typical range of values, a warning message appears in the “Comment” field of the spreadsheet. Whenever possible, enter site specific data, to ensure the accuracy of the model predictions.
B22: 5. All other cells are locked to prevent accidentally writing over defaults, ranges, or warning messages.
B23: 6. The bottom portion of the spreadsheet contains all intermediate fate and transport calculations, as well as the predicted attenuation factor, indoor air concentration, and risk estimates.
B24: 7. A preview pane is displayed at the top of the model spreadsheet, with the predicted indoor air concentration and attenuation factors from the user specific parameters and defaults.
B25: 8. The reported ranges, throughout the spreadsheet, are based on minimum and maximum values of Qsoil/Qbuilding, as reported in the literature.
A26: x | B26: 9. Please read the USEPA User’s Guide (2017) and the DTSC User's Guide (2024) for more information.
A27: Intentionally Blank
B28: Spreadsheets in this workbook
B29: README – instructions and quick workbook overview
B30: Data Entry and Analysis Spreadsheets:
B31: MODEL: Main data entry and output sheet
B32: MEASURED_SOIL_GAS_CONC: Data entry for site specific soil gas concentrations (optional)
B33: MULTI_CHEM_INPUT: Data entry for evaluating multiple chemicals at once. Note that all building and site parameters must first be entered on the main “model” tab. This sheet is only for entering measured chemical concentrations.
B34: MULTI_CHEM_OUTPUT: Output from the MULTI_CHEM_INPUT page
B35: Converter: Data Entry Tool for Conversion from English to Metric Distance Measurements
A36: Intentionally Blank
B37: Supporting Spreadsheets: These spreadsheets contain the reference information used to populate defaults and ranges on the model tab. These should not be modified and are locked; if you want to change values, please do this on the model tab.
B38: SOIL_DATA: Table of soil properties
B39: CHEM_DATA: Table of physchem data
B40: BLDG_DATA: Table of Building Properties
B41: SOIL_CV_DATA: Table of Coefficients of Variation for Soil Properties
B42: Parameters Summary: Chemical Properties table from EPA RSLs
A43: x | B43: ToxSummary: Toxicity data from USEPA Regional Screening Levels (RSLs) (May 2024)
A44: x | B44: CalEPA_Tox_Criteria: Toxicity data from DTSC Human Health Risk assessment (HHRA) Note 10 (February 2019)
B45: Reference Sources: Reference List for Default Values, Ranges, and CV values
B46: Version Notes: Listing of changes and updates to model
A47: x | B47: Hidden worksheets for internal calculations (Target IA Intermediate, SV Conc Profile, VG Calcs, PICK_LISTS)
A48: Intentionally Blank
B49: Spreadsheet features included in this version
B50: 1. All the model spreadsheets have been combined into a single interface.
B51: 2. Chemical lists and toxicity data were updated to coincide with the May 2024 RSLs and CA-DTSC HERO HHRA Note 10 (2019).
B52: 3. Incremental risks as well as risk-based screening levels are provided in the output.
B53: 4. Default parameters updated to address recent research and policy.
B54: 5. Results based on default parameters are provided for comparison to results based on site-specific parameters.
B55: 6. The parametric analysis described in Johnson (2002), “Identification of Critical Parameters for the Johnson and Ettinger (1991) Vapor Intrusion Model,” has been incorporated into this spreadsheet.
B56: 7. Significant changes have been made in this version regarding Qsoil and Qsoil/Qbuilding. Please read the section on Qsoil in the user’s guide.
B57: 8. Uncertainty: where available, CVs are reported for default parameters. The spreadsheet also calculates a potential range for attenuation factors, indoor air concentrations, and risk based of the range of Qsoil/Qbuilding values described in the literature.
B58: 9. Concentration profile. A plot of concentration versus depth is included in the model output.
B59: 10. The concentrations for multiple chemicals can be input for a specific sample on the Multi_Chem_Input sheet. All other input parameters must be entered on the Model sheet.
A60: Intentionally Blank
B61: Passwords:
B62: To unlock individual worksheets: "J&E"
B63: To unlock the macros: "BETA"
A64: Intentionally Blank
A65: x | B65: Key Changes in DTSC-Modified JE Model Workbook:
A66: x | B66: Added button to automatically select CalEPA or USEPA default toxicity values and building parameters. The selection affects both toxicty values and building parameters to reflect values recommended by the different agencies. These values may be manually adjusted by user to values different from the defaults if desired.
A67: x | B67: Added tables for CalEPA default toxicity factors consistent with California Toxicity Criteria Rule and building parameters recommended in DTSC 2011 Vapor Intrusion Guidance.
A68: x | B68: Fixed TCE risk calculation for commercial worker. Previous version included mutagenic mode of action factor (MMOAF) for commercial worker, but the MMOAF is only applicable for residential risk calculations.
A69: x | B69: Added option to use default CalEPA-recommended building factors (see BLDG_DATA worksheet for details).
A70: x | B70: Debugged soil gas concentration profile plotting function (vapor concentration change due to capillary fringe shown for groundwater source scenario). Moved the plot from "MODEL" to "MEASURED_SOIL_GAS_CONC." tab for side-by-side comparison.
A71: x | B71: Minor edits to building factor ranges to be consistent with default input values.
A72: x | B72: Added button to evaluate capillary fringe using USEPA default approach or base on van Genuchten moisture retention model.
A73: x | B73: Updated Reference Sources Workhseet.
A74: Intentionally Blank
A75: x | B75: References:
A76: x | B76: California Environmental Protection Agency (CalEPA), 2023. Supplemental Guidance: Screening and Evaluating Vapor Intrusion. Final Draft.
A77: x | B77: DTSC, 2011. Final Guidance for the Evaluation and Mitigation of Subsurface Vapor Intrusion to Indoor Air (Vapor Intrusion Guidance).
A78: x | B78: USEPA, 2015. Technical Guide for Assessing and Mitigating the Vapor Intrusion Pathway from Subsurface Vapor Sources to Indoor Air. Office of Solid Waste and Emergency Response (OSWER). Publication 9200.2-154.
A79: x | B79: USEPA, 2017. Documentation of EPA’s Implementation of the Johnson and Ettinger Model to Evaluate Site-Specific Vapor Intrusion into Buildings. Office of Superfund Remediation and Technology Innovation.
A80: x | B80: DTSC, 2024. User's Guide: DTSC Implementation of the Johnson and Ettinger Model to Evaluate Vapor Intrusion into Buildings.
A81: Intentionally Blank
A82: x | B82: Accessibility features based on "Seven Steps to Creating an Accessible Excel Worksheet' by Department of Rehabilitation (DOR, revised 2016)
A83: x | B83: Add Alternative Text to images and objects (i.e., buttons and toggles)
A84: x | B84: Add Alternative Text to tables and specify column headers (Step 2)
A85: x | B85: Label blank rows with "Intentionally Blank" or output cell location (background color applied to text so it's invisible to common readers)
A86: x | B86: List the cell(s) containing formula/equations that are not visble
A87: x | B87: Label the last row of the worksheet "End of Worksheet*" and include hyperlinks to relevant worksheets in the Excel workbook below
A88: x | B88: Set the color contrast ratios for red text to #EE0000 (white background) and #D00000 (light green background and "README' tab)
A89: x | B89: Add ScreenTips to all hyperlinks
A90: x | B90: Waiver for modules and macros that were developed by USEPA to perform automated calculations, data analyses, and QA/QC (e.g., warning flags and error messages)
A91: End of Worksheet
A92: Go to "MODEL" tab
A93: Go to “MEASURED_SOIL_GAS_CONC.” tab
A94: Go to “MULTI_CHEM_INPUT” tab
A95: Go to “MULTI_CHEM_OUTPUT” tab
A96: Go to "Converter" tab
A97: Go to "BLDG_DATA" tab
A98: Go to "CHEM_DATA" tab
A99: Go to "EXPOSURE_DATA" tab
A100: Go to "SOIL_DATA" tab
A101: Go to "ParamterSummary" tab
A102: Go to "ToxSummary" tab
A103: Go to "CalEPA_Tox_Criteria" tab
A104: Go to "SOIL_CV_DATA" tab
A105: Go to "Reference Sources" tab
A106: Go to "Version Notes" tab

Sheet MODEL
A1: Preview | E1: Unit | F1: Value | G1: Range | H1: Default | I1: Default Range | K1: =IF(LEN(IFERROR(alpha_range, "uhoh"))<10,"Warning: Some versions of excel do not support the CONCATENATE function, so the range values will appear broken. To fix, either upgrade your version of Excel (preferred) or replace all occurences of 'CONCATENATE' with 'CONCAT.'","") ->  | M1: Intentionally blank (Columns M to Z) | N1: Intentionally blank (Columns M to Z) | O1: Intentionally blank (Columns M to Z) | P1: Intentionally blank (Columns M to Z) | Q1: Intentionally blank (Columns M to Z) | R1: Intentionally blank (Columns M to Z) | S1: Intentionally blank (Columns M to Z) | T1: Intentionally blank (Columns M to Z) | U1: Intentionally blank (Columns M to Z) | V1: Intentionally blank (Columns M to Z) | W1: Intentionally blank (Columns M to Z) | X1: Intentionally blank (Columns M to Z) | Y1: Intentionally blank (Columns M to Z) | Z1: Intentionally blank (Columns M to Z)
B2: =IF(Source="Groundwater", "Groundwater to indoor air attenuation coefficient","Soil gas to indoor air attenuation coefficient") -> Groundwater to indoor air attenuation coefficient | E2: (-) | F2: =alpha -> 0.000366203784 | G2: =IF(Q2<R2,CONCATENATE(TEXT(Q2,"0.0E+00")," - ",TEXT(R2,"0.0E+00")),CONCATENATE(TEXT(R2,"0.0E+00")," - ",TEXT(Q2,"0.0E+00"))) -> 8.5E-05 - 4.1E-04 | H2: =alpha_default -> 0.000366203784 | I2: =IF(S2<T2,CONCATENATE(TEXT(S2,"0.0E+00")," - ",TEXT(T2,"0.0E+00")),CONCATENATE(TEXT(T2,"0.0E+00")," - ",TEXT(S2,"0.0E+00"))) -> 8.5E-05 - 4.1E-04 | Q2: =MAX(0,ROUND(alpha_min,20)) -> 8.548031733e-05 | R2: =ROUND(alpha_max,20) -> 0.000413669857 | S2: =MAX(ROUND(alpha_min_default,20),0) -> 8.548031733e-05 | T2: =ROUND(alpha_max_default,20) -> 0.000413669857
B3: Predicted indoor air concentration due to vapor intrusion | E3: (ug/m3) | F3: =Cia -> 0.1176684285 | G3: =IF(Q3<R3,CONCATENATE(TEXT(Q3,"0.0E+00")," - ",TEXT(R3,"0.0E+00")),CONCATENATE(TEXT(R3,"0.0E+00")," - ",TEXT(Q3,"0.0E+00"))) -> 2.7E-02 - 1.3E-01 | H3: =Cia_default -> 0.1176684285 | I3: =IF(S3<T3,CONCATENATE(TEXT(S3,"0.0E+00")," - ",TEXT(T3,"0.0E+00")),CONCATENATE(TEXT(T3,"0.0E+00")," - ",TEXT(S3,"0.0E+00"))) -> 2.7E-02 - 1.3E-01 | Q3: =Cia_min -> 0.02746649556 | R3: =Cia_max -> 0.1329202049 | S3: =Cia_min_default -> 0.02746649556 | T3: =Cia_max_default -> 0.1329202049
C4: =WarnFlag ->  | E4: (ppbv) | F4: =cia_ppbv -> 0.02190554655 | G4: =IF(Q4<R4,CONCATENATE(TEXT(Q4,"0.0E+00")," - ",TEXT(R4,"0.0E+00")),CONCATENATE(TEXT(R4,"0.0E+00")," - ",TEXT(Q4,"0.0E+00"))) -> 5.1E-03 - 2.5E-02 | H4: =cia_ppbv_default -> 0.02190554655 | I4: =IF(Q4<R4,CONCATENATE(TEXT(Q4,"0.0E+00")," - ",TEXT(R4,"0.0E+00")),CONCATENATE(TEXT(R4,"0.0E+00")," - ",TEXT(Q4,"0.0E+00"))) -> 5.1E-03 - 2.5E-02 | Q4: =Cs*alpha_min*24.46/INDEX(CHEM_DATA!$C$6:$C$472, MATCH(Chem, Chem_Search, 0)) -> 0.005113254293 | R4: =Cs*alpha_max*24.46/INDEX(CHEM_DATA!$C$6:$C$472, MATCH(Chem, Chem_Search, 0)) -> 0.02474486804 | S4: =Cs*alpha_min_default*24.46/INDEX(CHEM_DATA!$C$6:$C$472, MATCH(Chem, Chem_Search, 0)) -> 0.005113254293 | T4: =Cs*alpha_max_default*24.46/INDEX(CHEM_DATA!$C$6:$C$472, MATCH(Chem, Chem_Search, 0)) -> 0.02474486804
A5: Intentionally Blank | AA5: US EPA VAPOR INTRUSION ASSESSMENT MODEL (VIA_MODEL.xlsm)
A6: Intentionally Blank | I6: 1
A7: Model Input | D7: Site Name/Run Number: | F7: DTSC J&E Case | AA7: Site Name:
A8: Note: -Yellow highlighted cells indicate parameters that typically are changed or must be inputted by the user. -Dotted outline cells indicate default values that may be changed with justification. -Toxicity values are taken from Regional Screening Level (RSL) tables and/or California Toxicity Criteria Rule (see DTSC Human Health Risk Assessment Note 10). The RSL tables are updated semi-annually and may not reflect the most current toxicity information. | AA8: Note: -Yellow highlighted cells indicate parameters that typically are changed or must be inputted by the user. -Dotted outline cells indicate default values that may be changed with justification. -Toxicity values are taken from Regional Screening Level tables. These tables are updated semi-annually and may not reflect the most current toxicity information.
A9: Source Characteristics: | D9: Units | E9: Symbol | F9: Value | G9: Default | H9: Potential Span | I9: CV | J9: Flag | K9: Comment | AA9: Source Characteristics: | AD9: Units | AE9: Symbol | AF9: Value | AG9: Default | AH9: Range | AI9: CV | AJ9: Flag | AK9: Comment
B10: Source medium | E10: Source | F10: Groundwater | AB10: Source medium | AE10: Source | AF10: Groundwater
B11: =IF(Source="Groundwater","Groundwater concentration","Soil gas concentration") -> Groundwater concentration | D11: =IF(Source="Groundwater","(ug/L)","(ug/m3)") -> (ug/L) | E11: Cmedium | F11: 1 | H11: NA | J11: =IF(Source="Groundwater",IF(Cmedium>1000*INDEX(CHEM_DATA!$I$6:$I$472, MATCH(Chem,Chem_Search,0)),"ERROR",""),"") ->  | K11: =IF(ISNUMBER(Cmedium),IF(Source="Groundwater",IF(Cmedium>1000*INDEX(CHEM_DATA!$I$6:$I$472, MATCH(Chem,Chem_Search, 0)),"Value exceeds aqueous solubility limit.",""),""),"Please enter a value for Cmedium") ->  | AB11: Soil gas concentration | AD11: =IF(Source="Groundwater","(ug/L)","(ug/m3)") -> (ug/L) | AE11: Cmedium | AF11: 1 | AH11: NA | AI11: =IF(Source="Groundwater",1,0.5) -> 1 | AJ11: =IF(Source="Groundwater",IF(Cmedium>1000*INDEX(CHEM_DATA!$I$6:$I$472, MATCH(Chem,Chem_Search,0)),"ERROR",""),"") ->  | AK11: =IF(ISNUMBER(Cmedium),IF(Source="Groundwater",IF(Cmedium>1000*INDEX(CHEM_DATA!$I$6:$I$472, MATCH(Chem,Chem_Search, 0)),"Value exceeds aqueous solubility limit.",""),""),"Please enter a value for Cmedium") -> 
B12: =IF(Source="Groundwater","Depth below grade to water table","Depth below grade to soil gas sample") -> Depth below grade to water table | D12: (m) | E12: Ls | F12: 5 | H12: Vary - 50 | I12: NA | J12: =IF(Source="Sub-slab Soil Gas",(IF(AND(Ls>=Lb,Ls<=Lb+1)=TRUE,"","WARNING")),(IF(Source="Groundwater",IF(Ls<MAX(Lb+hcz,Lb+1),"WARNING",""),IF(Ls<Lb+1,"WARNING","")))) ->  | K12: =IF(ISNUMBER(Ls), IF(Source="Sub-slab Soil Gas",(IF(AND(Ls>=Lb,Ls<=Lb+1)=TRUE,"","Ls should be between Lb and Lb + 1m.")),(IF(Source="Groundwater",IF(Ls<MAX(Lb+hcz,Lb+1),"Ls must be >= MAX( Lb + hcz , Lb + 1 m )",""),IF(Ls<Lb+1,"Ls should be >= Lb +1 m","")))),"Please enter a value for Ls") ->  | AB12: Depth below grade to soil gas sample | AD12: (m) | AE12: Ls | AF12: 5 | AH12: Vary - 50 | AI12: 0.27 | AJ12: =IF(Source="Sub-slab Soil Gas",(IF(AND(Ls>=Lb,Ls<=Lb+1)=TRUE,"","WARNING")),(IF(Source="Groundwater",IF(Ls<MAX(Lb+hcz,Lb+1),"WARNING",""),IF(Ls<Lb+1,"WARNING","")))) ->  | AK12: =IF(ISNUMBER(Ls), IF(Source="Sub-slab Soil Gas",(IF(AND(Ls>=Lb,Ls<=Lb+1)=TRUE,"","Ls should be between Lb and Lb + 1m.")),(IF(Source="Groundwater",IF(Ls<MAX(Lb+hcz,Lb+1),"Ls must be >= MAX( Lb + hcz , Lb + 1 m )",""),IF(Ls<Lb+1,"Ls should be >= Lb +1 m","")))),"Please enter a value for Ls") -> 
B13: =IF(Source="Groundwater","Average groundwater temperature","Average vadose zone temperature") -> Average groundwater temperature | D13: (oC) | E13: Ts | F13: 20 | G13: 24 | H13: =IF(Source="Groundwater","3 - 25","3-30") -> 3 - 25 | J13: =IF(Source="Groundwater",(IF(OR(Ts>25,Ts<3)=TRUE,"WARNING","")),IF(OR(Ts>30,Ts<3)=TRUE,"WARNING","")) ->  | AB13: Average vadose zone temperature | AD13: (oC) | AE13: Ts | AF13: 24 | AH13: =IF(Source="Groundwater","3 - 25","3-30") -> 3 - 25 | AI13: =IF(Source="Groundwater",0.2,0.5) -> 0.2 | AJ13: =IF(Source="Groundwater",(IF(OR(Ts>25,Ts<3)=TRUE,"WARNING","")),IF(OR(Ts>30,Ts<3)=TRUE,"WARNING","")) -> 
C14: Calc: Source vapor concentration | D14: (ug/m3) | E14: Cs | F14: =IF(Source="Groundwater",Cmedium*1000*Hs,Cmedium) -> 321.3195321 | AC14: Calc: Source vapor concentration | AD14: (ug/m3) | AE14: Cs | AF14: =IF(Source="Groundwater",Cmedium*1000*Hs,Cmedium) -> 321.3195321
C15: Calc: % of pure component saturated vapor concentration | D15: (%) | E15: %Sat | F15: =Cs/INDEX(CHEM_DATA!$G:$G,MATCH(Chem,CHEM_DATA!$A:$A,0)) -> 6.588639831e-07 | AC15: Calc: % of pure component saturated vapor concentration | AD15: (%) | AE15: %Sat | AF15: =Cs/INDEX(CHEM_DATA!$G$6:$G$472,MATCH(Chem,CHEM_DATA!$A:$A,0)) -> 1.034336147e-06
A16: Chemical: | D16: Units | E16: Symbol | F16: Value | G16: Default | H16: Potential Span | I16: CV | J16: Flag | K16: Comment | AA16: Chemical: | AD16: Units | AE16: Symbol | AF16: Value | AG16: Default | AH16: Range | AI16: CV | AJ16: Flag | AK16: Comment
B17: Chemical Name | E17: Chem | F17: Trichloroethylene | AB17: Chemical Name | AE17: Chem | AF17: Trichloroethylene
C18: CAS No. | E18: CAS | F18: =INDEX(CHEM_DATA!$B:$B, MATCH(Chem, CHEM_DATA!$A:$A,0)) -> 79-01-6 | AC18: CAS No. | AE18: CAS | AF18: =INDEX(CHEM_DATA!$B:$B, MATCH(Chem, CHEM_DATA!$A:$A,0)) -> 79-01-6
A19: Toxicity Factors | D19: Toxicity/Building Parameter Source: | E19: =IF($F$19=1, "USEPA", "CA-DTSC") -> USEPA | F19: 1 | AA19: Toxicity Factors
B20: Unit risk factor | D20: (ug/m3)-1 | E20: IUR | F20: =IF($F$19=1, VLOOKUP(CAS,CHEM_DATA!$B:$AC,25,FALSE), VLOOKUP(CAS,CHEM_DATA!$B:$AM,34,FALSE)) -> 4.1e-06 | G20: =IF($F$19=1, VLOOKUP(CAS,CHEM_DATA!$B:$AC,25,FALSE), VLOOKUP(CAS,CHEM_DATA!$B:$AM,34,FALSE)) -> 4.1e-06 | H20: NA | I20: NA | J20: =IF(URF<>G20,"WARNING","") ->  | K20: =IF(G20="Not Available","No IUR available for this compound.",IF(URF<>G20,"Value is different from default value; please justify.","")) ->  | AB20: Unit risk factor | AD20: (ug/m3)-1 | AE20: IUR | AF20: =IF($F$19=1, VLOOKUP(CAS,CHEM_DATA!$B:$AC,25,FALSE), VLOOKUP(CAS,CHEM_DATA!$B:$AM,34,FALSE)) -> 4.1e-06 | AG20: =VLOOKUP(CAS,CHEM_DATA!$B:$AC,25,FALSE) -> 4.1e-06 | AH20: NA | AI20: NA | AJ20: =IF(URF<>AG20,"WARNING","") ->  | AK20: =IF(AG20="Not Available","No IUR available for this compound.",IF(URF<>AG20,"Value is different from default value; please justify.","")) -> 
B21: Mutagenic compound | E21: Mut | F21: =IF($F$19=1, VLOOKUP(CAS,CHEM_DATA!$B:$AD,29,FALSE), VLOOKUP(CAS,CHEM_DATA!$B:$AM,38,FALSE)) -> Yes | G21: NA | H21: NA | I21: NA | AB21: Mutagenic compound | AE21: Mut | AF21: =IF($F$19=1, VLOOKUP(CAS,CHEM_DATA!$B:$AD,29,FALSE), VLOOKUP(CAS,CHEM_DATA!$B:$AM,38,FALSE)) -> Yes | AG21: NA | AH21: NA | AI21: NA
B22: Reference concentration | D22: (mg/m3) | E22: RfC | F22: =IF($F$19=1, VLOOKUP(CAS,CHEM_DATA!$B:$AC,27,FALSE), VLOOKUP(CAS,CHEM_DATA!$B:$AM,36,FALSE)) -> 0.002 | G22: =IF($F$19=1, VLOOKUP(CAS,CHEM_DATA!$B:$AC,27,FALSE), VLOOKUP(CAS,CHEM_DATA!$B:$AM,36,FALSE)) -> 0.002 | H22: NA | I22: NA | J22: =IF(RfC<>G22,"WARNING","") ->  | K22: =IF(G22="Not Available","No RfC available for this compound.", IF(RfC<>G22,"Value is different from default value; please justify.","")) ->  | AB22: Reference concentration | AD22: (ug/m3) | AE22: RfC | AF22: =IF($F$19=1, VLOOKUP(CAS,CHEM_DATA!$B:$AC,27,FALSE), VLOOKUP(CAS,CHEM_DATA!$B:$AM,36,FALSE)) -> 0.002 | AG22: =VLOOKUP(CAS,CHEM_DATA!$B:$AC,27,FALSE) -> 0.002 | AH22: NA | AI22: NA | AJ22: =IF(RfC<>AG22,"WARNING","") ->  | AK22: =IF(AG22="Not Available","No RfC available for this compound.", IF(RfC<>AG22,"Value is different from default value; please justify.","")) -> 
A23: Chemical Properties: | D23: Units | E23: Symbol | F23: Value | G23: Default | H23: Potential Span | I23: CV | J23: Flag | K23: Comment | AA23: Chemical Properties: | AD23: Units | AE23: Symbol | AF23: Value | AG23: Default | AH23: Range | AI23: CV | AJ23: Flag | AK23: Comment
B24: Pure component water solubility | D24: (mg/L) | E24: S | F24: =INDEX(CHEM_DATA!$I:$I, MATCH(Chem, CHEM_DATA!$A:$A, 0)) -> 1280 | G24: =INDEX(CHEM_DATA!$I$6:$I$472, MATCH(Chem, CHEM_DATA!$A$6:$A$472, 0)) -> 1280 | H24: NA | I24: NA | J24: =IF(S<>G24,"WARNING","") ->  | K24: =IF(S<>G24,"Value is different from default value; please justify.","") ->  | AB24: Pure component water solubility | AD24: (mg/L) | AE24: S | AF24: =INDEX(CHEM_DATA!$I:$I, MATCH(Chem, CHEM_DATA!$A:$A, 0)) -> 1280 | AG24: =INDEX(CHEM_DATA!$I:$I, MATCH(Chem, CHEM_DATA!$A:$A, 0)) -> 1280 | AH24: NA | AI24: NA | AJ24: =IF(S<>AG24,"WARNING","") ->  | AK24: =IF(S<>AG24,"Value is different from default value; please justify.","") -> 
B25: Henry's Law Constant @ 25oC | D25: (atm-m3/mol) | E25: Hc | F25: =INDEX(CHEM_DATA!$K:$K, MATCH(Chem, CHEM_DATA!$A:$A, 0)) -> 0.00985 | G25: =INDEX(CHEM_DATA!$K:$K, MATCH(Chem, CHEM_DATA!$A:$A, 0)) -> 0.00985 | H25: NA | I25: NA | J25: =IF(Hc<>G25,"WARNING","") ->  | K25: =IF(Hc<>G25,"Value is different from default value; please justify.","") ->  | AB25: Henry's Law Constant @ 25oC | AD25: (atm-m3/mol) | AE25: Hc | AF25: =INDEX(CHEM_DATA!$K:$K, MATCH(Chem, CHEM_DATA!$A:$A, 0)) -> 0.00985 | AG25: =INDEX(CHEM_DATA!$K:$K, MATCH(Chem, CHEM_DATA!$A:$A, 0)) -> 0.00985 | AH25: NA | AI25: NA | AJ25: =IF(Hc<>AG25,"WARNING","") ->  | AK25: =IF(Hc<>AG25,"Value is different from default value; please justify.","") -> 
C26: Calc: Henry's Law Constant @ 25oC | D26: (dimensionless) | E26: Hr | F26: =Hc/(0.000082057*(298)) -> 0.4028137913 | G26: =G25/(0.000082057*(298)) -> 0.4028137913 | AC26: Calc: Henry's Law Constant @ 25oC | AD26: (dimensionless) | AE26: Hr | AF26: =Hc/(0.000082057*(298)) -> 0.4028137913 | AG26: =AG25/(0.000082057*(298)) -> 0.4028137913 | AI26: NA
C27: Calc: Henry's Law Constant @ system temperature | D27: (dimensionless) | E27: Hs | F27: =IFERROR(EXP(-(VLOOKUP(Chem,Chemical_Data,22,FALSE)*((1-(Ts+273)/VLOOKUP(Chem,Chemical_Data,20,FALSE))/(1-VLOOKUP(Chem,Chemical_Data,18,FALSE)/VLOOKUP(Chem,Chemical_Data,20,FALSE)))^(IF(VLOOKUP(Chem,Chemical_Data,18,FALSE)/VLOOKUP(Chem,Chemical_Data,20,FALSE)<0.57,0.3,IF(VLOOKUP(Chem,Chemical_Data,18,FALSE)/VLOOKUP(Chem,Chemical_Data,20,FALSE)>0.71,0.41,0.74*(VLOOKUP(Chem,Chemical_Data,18,FALSE)/VLOOKUP(Chem,Chemical_Data,20,FALSE))-0.116)))/1.9872)*(1/(Ts+273)-1/298))*Hc/(0.000082057*(Ts+273)),Hr) -> 0.3213195321 | G27: =IFERROR(EXP(-(VLOOKUP(Chem,Chemical_Data,22,FALSE)*((1-(Ts_default+273)/VLOOKUP(Chem,Chemical_Data,20,FALSE))/(1-VLOOKUP(Chem,Chemical_Data,18,FALSE)/VLOOKUP(Chem,Chemical_Data,20,FALSE)))^(IF(VLOOKUP(Chem,Chemical_Data,18,FALSE)/VLOOKUP(Chem,Chemical_Data,20,FALSE)<0.57,0.3,IF(VLOOKUP(Chem,Chemical_Data,18,FALSE)/VLOOKUP(Chem,Chemical_Data,20,FALSE)>0.71,0.41,0.74*(VLOOKUP(Chem,Chemical_Data,18,FALSE)/VLOOKUP(Chem,Chemical_Data,20,FALSE))-0.116)))/1.9872)*(1/(Ts_default+273)-1/298))*Hc/(0.000082057*(Ts+273)),Hr_default) -> 0.3906236778 | J27: =IFERROR(IF(EXP(-(VLOOKUP(Chem,Chemical_Data,22,FALSE)*((1-(Ts+273)/VLOOKUP(Chem,Chemical_Data,20,FALSE))/(1-VLOOKUP(Chem,Chemical_Data,18,FALSE)/VLOOKUP(Chem,Chemical_Data,20,FALSE)))^(IF(VLOOKUP(Chem,Chemical_Data,18,FALSE)/VLOOKUP(Chem,Chemical_Data,20,FALSE)<0.57,0.3,IF(VLOOKUP(Chem,Chemical_Data,18,FALSE)/VLOOKUP(Chem,Chemical_Data,20,FALSE)>0.71,0.41,0.74*(VLOOKUP(Chem,Chemical_Data,18,FALSE)/VLOOKUP(Chem,Chemical_Data,20,FALSE))-0.116)))/1.9872)*(1/(Ts+273)-1/298))*Hc/(0.000082057*(Ts+273))>0,"",""),"WARNING") ->  | K27: =IFERROR(IF(EXP(-(VLOOKUP(Chem,Chemical_Data,22,FALSE)*((1-(Ts+273)/VLOOKUP(Chem,Chemical_Data,20,FALSE))/(1-VLOOKUP(Chem,Chemical_Data,18,FALSE)/VLOOKUP(Chem,Chemical_Data,20,FALSE)))^(IF(VLOOKUP(Chem,Chemical_Data,18,FALSE)/VLOOKUP(Chem,Chemical_Data,20,FALSE)<0.57,0.3,IF(VLOOKUP(Chem,Chemical_Data,18,FALSE)/VLOOKUP(Chem,Chemical_Data,20,FALSE)>0.71,0.41,0.74*(VLOOKUP(Chem,Chemical_Data,18,FALSE)/VLOOKUP(Chem,Chemical_Data,20,FALSE))-0.116)))/1.9872)*(1/(Ts+273)-1/298))*Hc/(0.000082057*(Ts+273))>0,"",""),"HLC conversion to system temperature not available for this compound.") ->  | AC27: Calc: Henry's Law Constant @ system temperature | AD27: (dimensionless) | AE27: Hs | AF27: =IFERROR(EXP(-(VLOOKUP(Chem,Chemical_Data,22,FALSE)*((1-(Ts+273)/VLOOKUP(Chem,Chemical_Data,20,FALSE))/(1-VLOOKUP(Chem,Chemical_Data,18,FALSE)/VLOOKUP(Chem,Chemical_Data,20,FALSE)))^(IF(VLOOKUP(Chem,Chemical_Data,18,FALSE)/VLOOKUP(Chem,Chemical_Data,20,FALSE)<0.57,0.3,IF(VLOOKUP(Chem,Chemical_Data,18,FALSE)/VLOOKUP(Chem,Chemical_Data,20,FALSE)>0.71,0.41,0.74*(VLOOKUP(Chem,Chemical_Data,18,FALSE)/VLOOKUP(Chem,Chemical_Data,20,FALSE))-0.116)))/1.9872)*(1/(Ts+273)-1/298))*Hc/(0.000082057*(Ts+273)),Hr) -> 0.3213195321 | AG27: =IFERROR(EXP(-(VLOOKUP(Chem,Chemical_Data,22,FALSE)*((1-(Ts+273)/VLOOKUP(Chem,Chemical_Data,20,FALSE))/(1-VLOOKUP(Chem,Chemical_Data,18,FALSE)/VLOOKUP(Chem,Chemical_Data,20,FALSE)))^(IF(VLOOKUP(Chem,Chemical_Data,18,FALSE)/VLOOKUP(Chem,Chemical_Data,20,FALSE)<0.57,0.3,IF(VLOOKUP(Chem,Chemical_Data,18,FALSE)/VLOOKUP(Chem,Chemical_Data,20,FALSE)>0.71,0.41,0.74*(VLOOKUP(Chem,Chemical_Data,18,FALSE)/VLOOKUP(Chem,Chemical_Data,20,FALSE))-0.116)))/1.9872)*(1/(Ts_default+273)-1/298))*AG25/(0.000082057*(Ts+273)),AG26) -> 0.3905116755 | AJ27: =IFERROR(IF(EXP(-(VLOOKUP(Chem,Chemical_Data,22,FALSE)*((1-(Ts+273)/VLOOKUP(Chem,Chemical_Data,20,FALSE))/(1-VLOOKUP(Chem,Chemical_Data,18,FALSE)/VLOOKUP(Chem,Chemical_Data,20,FALSE)))^(IF(VLOOKUP(Chem,Chemical_Data,18,FALSE)/VLOOKUP(Chem,Chemical_Data,20,FALSE)<0.57,0.3,IF(VLOOKUP(Chem,Chemical_Data,18,FALSE)/VLOOKUP(Chem,Chemical_Data,20,FALSE)>0.71,0.41,0.74*(VLOOKUP(Chem,Chemical_Data,18,FALSE)/VLOOKUP(Chem,Chemical_Data,20,FALSE))-0.116)))/1.9872)*(1/(Ts+273)-1/298))*Hc/(0.000082057*(Ts+273))>0,"",""),"WARNING") ->  | AK27: =IFERROR(IF(EXP(-(VLOOKUP(Chem,Chemical_Data,22,FALSE)*((1-(Ts+273)/VLOOKUP(Chem,Chemical_Data,20,FALSE))/(1-VLOOKUP(Chem,Chemical_Data,18,FALSE)/VLOOKUP(Chem,Chemical_Data,20,FALSE)))^(IF(VLOOKUP(Chem,Chemical_Data,18,FALSE)/VLOOKUP(Chem,Chemical_Data,20,FALSE)<0.57,0.3,IF(VLOOKUP(Chem,Chemical_Data,18,FALSE)/VLOOKUP(Chem,Chemical_Data,20,FALSE)>0.71,0.41,0.74*(VLOOKUP(Chem,Chemical_Data,18,FALSE)/VLOOKUP(Chem,Chemical_Data,20,FALSE))-0.116)))/1.9872)*(1/(Ts+273)-1/298))*Hc/(0.000082057*(Ts+273))>0,"",""),"HLC conversion to system temperature not available for this compound.") -> 
B28: Diffusivity in air | D28: (cm2/s) | E28: Dair | F28: =INDEX(Diff_Air_List,MATCH(Chem,Chem_Search,0)) -> 0.0686618 | G28: =INDEX(Diff_Air_List,MATCH(Chem,Chem_Search,0)) -> 0.0686618 | H28: NA | I28: NA | J28: =IF(Dair<>G28,"WARNING","") ->  | K28: =IF(Dair<>G28,"Value is different from default value; please justify.","") ->  | AB28: Diffusivity in air | AD28: (cm2/s) | AE28: Dair | AF28: =INDEX(Diff_Air_List,MATCH(Chem,Chem_Search,0)) -> 0.0686618 | AG28: =INDEX(Diff_Air_List,MATCH(Chem,Chem_Search,0)) -> 0.0686618 | AH28: NA | AI28: NA | AJ28: =IF(Dair<>AG28,"WARNING","") ->  | AK28: =IF(Dair<>AG28,"Value is different from default value; please justify.","") -> 
B29: Diffusivity in water | D29: (cm2/s) | E29: Dwater | F29: =INDEX(Diff_Water_List,MATCH(Chem,Chem_Search,0)) -> 1.02e-05 | G29: =INDEX(Diff_Water_List,MATCH(Chem,Chem_Search,0)) -> 1.02e-05 | H29: NA | I29: NA | J29: =IF(Dwater<>G29,"WARNING","") ->  | K29: =IF(Dwater<>G29,"Value is different from default value; please justify.","") ->  | AB29: Diffusivity in water | AD29: (cm2/s) | AE29: Dwater | AF29: =INDEX(Diff_Water_List,MATCH(Chem,Chem_Search,0)) -> 1.02e-05 | AG29: =INDEX(Diff_Water_List,MATCH(Chem,Chem_Search,0)) -> 1.02e-05 | AH29: NA | AI29: NA | AJ29: =IF(Dwater<>AG29,"WARNING","") ->  | AK29: =IF(Dwater<>AG29,"Value is different from default value; please justify.","") -> 
A30: Building Characteristics: | AA30: Building Characteristics:
G31: 1
G32: =IF(G31=2,"WARNING: DEFAULT RATIO FOR Qsoil/Qbuilding not used. Please enter site specific data for Qs and Qb.","") ->  | AK32: =VLOOKUP(AF37,BLDG_DATA!B10:J14,9,FALSE) -> 0.003
F33: 0.9144
D35: Units | E35: Symbol | F35: Value | G35: Default | H35: Potential Span | I35: CV | J35: Flag | K35: Comment | AD35: Units | AE35: Symbol | AF35: Value for Ratio | AG35: Value for Set | AH35: Default | AI35: Range | AJ35: CV | AK35: Flag | AL35: Comment
B36: Building setting | E36: Bldg_Setting | F36: Residential | G36: =Bldg_Setting -> Residential | AB36: Building setting | AE36: Bldg_Setting | AF36: Residential | AG36: Residential | AH36: =Bldg_Setting -> Residential
B37: Foundation type | E37: Found_Type | F37: Slab-on-grade | G37: =Found_Type -> Slab-on-grade | AB37: Foundation type | AE37: Found_Type | AF37: Slab-on-grade | AG37: Basement w/ slab | AH37: =Found_Type -> Slab-on-grade
C38: Depth below grade to base of foundation | D38: (m) | E38: Lb | F38: =IF($F$19=1, IF(Bldg_Setting="Residential",VLOOKUP(Found_Type,BLDG_DATA!$B$10:$J$14,2,FALSE),VLOOKUP(Found_Type,BLDG_DATA!$B$5:$J$9,2,FALSE)), IF(Bldg_Setting="Residential",VLOOKUP(Found_Type,BLDG_DATA!$B$25:$J$29,2,FALSE),VLOOKUP(Found_Type,BLDG_DATA!$B$20:$J$24,2,FALSE)) ) -> 0.1 | G38: =IF($F$19=1, IF(Bldg_Setting="Residential",VLOOKUP(Found_Type,BLDG_DATA!$B$10:$J$14,2,FALSE),VLOOKUP(Found_Type,BLDG_DATA!$B$5:$J$9,2,FALSE)), IF(Bldg_Setting="Residential",VLOOKUP(Found_Type,BLDG_DATA!$B$25:$J$29,2,FALSE),VLOOKUP(Found_Type,BLDG_DATA!$B$20:$J$24,2,FALSE)) ) -> 0.1 | H38: 0.1 - 2.44 | I38: NA | J38: =IF(Source="Sub-slab Soil Gas",IF(AND(Ls>=Lb,Ls<Lb+1)=TRUE,"","WARNING"), IF(OR(Lb>2.44,Lb<0.1)=TRUE,"WARNING",IF(Lb<>G38, "WARNING", ""))) ->  | K38: =IF(Source="Sub-slab Soil Gas",IF(AND(Ls>=Lb,Ls<Lb+1)=TRUE,"","Value is outside of reasonable range [Lb =<Ls <(Lb+ 1m)]."),IF(OR(Lb>2.44,Lb<0.1)=TRUE,"Value is outside of reasonable range (0.1 - 2.44 m).",IF(Lb<>G38," Value is different from default value; please justify.",""))) ->  | AC38: Depth below grade to base of foundation | AD38: (m) | AE38: Lb | AF38: =IF($F$19=1, IF(Bldg_Setting="Residential",VLOOKUP(Found_Type,BLDG_DATA!$B$10:$J$14,2,FALSE),VLOOKUP(Found_Type,BLDG_DATA!$B$5:$J$9,2,FALSE)), IF(Bldg_Setting="Residential",VLOOKUP(Found_Type,BLDG_DATA!$B$25:$J$29,2,FALSE),VLOOKUP(Found_Type,BLDG_DATA!$B$20:$J$24,2,FALSE)) ) -> 0.1 | AG38: =IF($F$19=1, IF(Bldg_Setting="Residential",VLOOKUP(Found_Type,BLDG_DATA!$B$10:$J$14,2,FALSE),VLOOKUP(Found_Type,BLDG_DATA!$B$5:$J$9,2,FALSE)), IF(Bldg_Setting="Residential",VLOOKUP(Found_Type,BLDG_DATA!$B$25:$J$29,2,FALSE),VLOOKUP(Found_Type,BLDG_DATA!$B$20:$J$24,2,FALSE)) ) -> 0.1 | AH38: =IF(Bldg_Setting="Residential",VLOOKUP(Found_Type,BLDG_DATA!$B$10:$J$14,2,FALSE),VLOOKUP(Found_Type,BLDG_DATA!$B$5:$J$9,2,FALSE)) -> 0.1 | AI38: 0.1 - 2.44 | AJ38: NA | AK38: =IF(Source="Sub-slab Soil Gas",IF(AND(Ls>=Lb,Ls<Lb+1)=TRUE,"","WARNING"), IF(OR(Lb>2.44,Lb<0.1)=TRUE,"WARNING",IF(Lb<>AH38, "WARNING", ""))) ->  | AL38: =IF(Source="Sub-slab Soil Gas",IF(AND(Ls>=Lb,Ls<Lb+1)=TRUE,"","Value is outside of reasonable range [Lb =<Ls <(Lb+ 1m)]."),IF(OR(Lb>2.44,Lb<0.1)=TRUE,"Value is outside of reasonable range (0.1 - 2.44 m).",IF(Lb<>G38," Value is different from default value; please justify.",""))) -> 
C39: Foundation thickness | D39: (m) | E39: Lf | F39: =IF($F$19=1, IF(Bldg_Setting="Residential",VLOOKUP(Found_Type,BLDG_DATA!$B$10:$J$14,3,FALSE),VLOOKUP(Found_Type,BLDG_DATA!$B$5:$J$9,3,FALSE)), IF(Bldg_Setting="Residential",VLOOKUP(Found_Type,BLDG_DATA!$B$25:$J$29,3,FALSE),VLOOKUP(Found_Type,BLDG_DATA!$B$20:$J$24,3,FALSE)) ) -> 0.1 | G39: =IF($F$19=1, IF(Bldg_Setting="Residential",VLOOKUP(Found_Type,BLDG_DATA!$B$10:$J$14,3,FALSE),VLOOKUP(Found_Type,BLDG_DATA!$B$5:$J$9,3,FALSE)), IF(Bldg_Setting="Residential",VLOOKUP(Found_Type,BLDG_DATA!$B$25:$J$29,3,FALSE),VLOOKUP(Found_Type,BLDG_DATA!$B$20:$J$24,3,FALSE)) ) -> 0.1 | H39: =IF(Found_Type="Basement w/ dirt floor","NA","0.1 - 0.25") -> 0.1 - 0.25 | I39: NA | J39: =IF(OR(Found_Type="Basement w/ dirt floor", Found_Type="Closed crawl space w/ dirt floor"),IF(Lf<>0,"ERROR",""),(IF(OR(Lf>0.25,Lf<0.1)=TRUE,"WARNING",IF(Lf<>G39, "WARNING", "")))) ->  | K39: =IF(OR(Found_Type="Basement w/ dirt floor", Found_Type="Closed crawl space w/ dirt floor"), IF(Lf<>0,"Lf should be 0.0 for dirt floors.",""),(IF(OR(Lf>0.25,Lf<0.1)=TRUE,"Value is outside of reasonable range (0.1 - 0.25 m).",IF(Lf<>G39, "Value is different from default value; please justify.", "")))) ->  | AC39: Foundation thickness | AD39: (m) | AE39: Lf | AF39: =IF($F$19=1, IF(Bldg_Setting="Residential",VLOOKUP(Found_Type,BLDG_DATA!$B$10:$J$14,3,FALSE),VLOOKUP(Found_Type,BLDG_DATA!$B$5:$J$9,3,FALSE)), IF(Bldg_Setting="Residential",VLOOKUP(Found_Type,BLDG_DATA!$B$25:$J$29,3,FALSE),VLOOKUP(Found_Type,BLDG_DATA!$B$20:$J$24,3,FALSE)) ) -> 0.1 | AG39: =IF($F$19=1, IF(Bldg_Setting="Residential",VLOOKUP(Found_Type,BLDG_DATA!$B$10:$J$14,3,FALSE),VLOOKUP(Found_Type,BLDG_DATA!$B$5:$J$9,3,FALSE)), IF(Bldg_Setting="Residential",VLOOKUP(Found_Type,BLDG_DATA!$B$25:$J$29,3,FALSE),VLOOKUP(Found_Type,BLDG_DATA!$B$20:$J$24,3,FALSE)) ) -> 0.1 | AH39: =IF(Bldg_Setting="Residential",VLOOKUP(Found_Type,BLDG_DATA!$B$10:$J$14,3,FALSE),VLOOKUP(Found_Type,BLDG_DATA!$B$5:$J$9,3,FALSE)) -> 0.1 | AI39: =IF(Found_Type="Basement w/ dirt floor","NA","0.1 - 0.15") -> 0.1 - 0.15 | AJ39: NA | AK39: =IF(OR(Found_Type="Basement w/ dirt floor", Found_Type="Closed crawl space w/ dirt floor"),IF(Lf<>0,"ERROR",""),(IF(OR(Lf>0.25,Lf<0.1)=TRUE,"WARNING",IF(Lf<>AH39, "WARNING", "")))) ->  | AL39: =IF(OR(Found_Type="Basement w/ dirt floor", Found_Type="Closed crawl space w/ dirt floor"), IF(Lf<>0,"Lf should be 0.0 for dirt floors.",""),(IF(OR(Lf>0.25,Lf<0.1)=TRUE,"Value is outside of reasonable range (0.1 - 0.25 m).",IF(Lf<>AH39, "Value is different from default value; please justify.", "")))) -> 
C40: Fraction of foundation area with cracks | D40: (-) | E40: eta | F40: =IF($F$19=1, IF(Bldg_Setting="Residential",VLOOKUP(Found_Type,BLDG_DATA!$B$10:$J$14,4,FALSE),VLOOKUP(Found_Type,BLDG_DATA!$B$5:$J$9,4,FALSE)), IF(Bldg_Setting="Residential",VLOOKUP(Found_Type,BLDG_DATA!$B$25:$J$29,4,FALSE),VLOOKUP(Found_Type,BLDG_DATA!$B$20:$J$24,4,FALSE)) ) -> 0.001 | G40: =IF($F$19=1, IF(Bldg_Setting="Residential",VLOOKUP(Found_Type,BLDG_DATA!$B$10:$J$14,4,FALSE),VLOOKUP(Found_Type,BLDG_DATA!$B$5:$J$9,4,FALSE)), IF(Bldg_Setting="Residential",VLOOKUP(Found_Type,BLDG_DATA!$B$25:$J$29,4,FALSE),VLOOKUP(Found_Type,BLDG_DATA!$B$20:$J$24,4,FALSE)) ) -> 0.001 | H40: =IF($F$19=1, INDEX(BLDG_DATA!$L$10:$L$14,MATCH(Found_Type,BLDG_DATA!$B$10:$B$14,)), INDEX(BLDG_DATA!$L$25:$L$29,MATCH(Found_Type,BLDG_DATA!$B$25:$B$29,)) ) -> 0.00019-0.0019 | I40: 1 | J40: =IF($F$19=1, IF(AND(OR(eta>0.001,eta<0.0001),Found_Type="Basement w/ slab"),"WARNING",IF(AND(OR(eta>0.0019,eta<0.00019),Found_Type="Slab-on-grade"),"WARNING",IF(eta<>$G$40,"WARNING",""))), IF(AND(OR(eta>0.005,eta<0.0001),Found_Type="Basement w/ slab"),"WARNING",IF(AND(OR(eta>0.005,eta<0.00019),Found_Type="Slab-on-grade"),"WARNING",IF(eta<>$G$40,"WARNING","")))) ->  | K40: =IF($F$19=1, IF(AND(OR(eta>0.001,eta<0.0001),Found_Type="Basement w/ slab"),"Value is outside of reasonable range (0.001 - 0.0001).",IF(AND(OR(eta>0.0019,eta<0.00019),Found_Type="Slab-on-grade"),"Value is outside of reasonable range (0.0019-0.00019).",IF(eta<>$G$40," Value is different from default value; please justify.",""))), IF(AND(OR(eta>0.005,eta<0.0001),Found_Type="Basement w/ slab"),"Value is outside of reasonable range (0.005 - 0.0001).",IF(AND(OR(eta>0.005,eta<0.00019),Found_Type="Slab-on-grade"),"Value is outside of reasonable range (0.005-0.00019).",IF(eta<>$G$40," Value is different from default value; please justify.","")))) ->  | AC40: Fraction of foundation area with cracks | AD40: (-) | AE40: eta | AF40: =IF($F$19=1, IF(Bldg_Setting="Residential",VLOOKUP(Found_Type,BLDG_DATA!$B$10:$J$14,4,FALSE),VLOOKUP(Found_Type,BLDG_DATA!$B$5:$J$9,4,FALSE)), IF(Bldg_Setting="Residential",VLOOKUP(Found_Type,BLDG_DATA!$B$25:$J$29,4,FALSE),VLOOKUP(Found_Type,BLDG_DATA!$B$20:$J$24,4,FALSE)) ) -> 0.001 | AG40: =IF($F$19=1, IF(Bldg_Setting="Residential",VLOOKUP(Found_Type,BLDG_DATA!$B$10:$J$14,4,FALSE),VLOOKUP(Found_Type,BLDG_DATA!$B$5:$J$9,4,FALSE)), IF(Bldg_Setting="Residential",VLOOKUP(Found_Type,BLDG_DATA!$B$25:$J$29,4,FALSE),VLOOKUP(Found_Type,BLDG_DATA!$B$20:$J$24,4,FALSE)) ) -> 0.001 | AH40: =IF(Bldg_Setting="Residential",VLOOKUP(Found_Type,BLDG_DATA!$B$10:$J$14,4,FALSE),VLOOKUP(Found_Type,BLDG_DATA!$B$5:$J$9,4,FALSE)) -> 0.001 | AI40: =INDEX(BLDG_DATA!$L$10:$L$14,MATCH(Found_Type,BLDG_DATA!$B$10:$B$14,)) -> 0.00019-0.0019 | AJ40: 1 | AK40: =IF(AND(OR(eta>0.001, eta<0.0001),Found_Type="Basement w/ slab"),"WARNING",IF(AND(OR(eta>0.0019,eta<0.00019),Found_Type="Slab-on-grade"),"WARNING",IF(eta<>$G$40,"WARNING",""))) ->  | AL40: =IF(AND(OR(eta>0.001, eta<0.0001),Found_Type="Basement w/ slab"),"Value is outside of reasonable range (0.01 - 0.0001).",IF(AND(OR(eta>0.0019,eta<0.00019),Found_Type="Slab-on-grade"),"Value is outside of reasonable range (0.0019-0.00019).",IF(eta<>$G$40," Value is different from default value; please justify.",""))) -> 
C41: Enclosed space floor area | D41: (m2) | E41: Abf | F41: =IF($F$19=1, IF(Bldg_Setting="Residential",VLOOKUP(Found_Type,BLDG_DATA!$B$10:$J$14,5,FALSE),VLOOKUP(Found_Type,BLDG_DATA!$B$5:$J$9,5,FALSE)), IF(Bldg_Setting="Residential",VLOOKUP(Found_Type,BLDG_DATA!$B$25:$J$29,5,FALSE),VLOOKUP(Found_Type,BLDG_DATA!$B$20:$J$24,5,FALSE)) ) -> 150 | G41: =IF($F$19=1, IF(Bldg_Setting="Residential",VLOOKUP(Found_Type,BLDG_DATA!$B$10:$J$14,5,FALSE),VLOOKUP(Found_Type,BLDG_DATA!$B$5:$J$9,5,FALSE)), IF(Bldg_Setting="Residential",VLOOKUP(Found_Type,BLDG_DATA!$B$25:$J$29,5,FALSE),VLOOKUP(Found_Type,BLDG_DATA!$B$20:$J$24,5,FALSE)) ) -> 150 | H41: =IF(F19=1, IF(Bldg_Setting="Residential",INDEX(BLDG_DATA!$M$10:$M$14,MATCH(Found_Type,BLDG_DATA!$B$10:$B$14,)),INDEX(BLDG_DATA!$M$5:$M$9,MATCH(Found_Type,BLDG_DATA!$B$10:$B$14,))), IF(Bldg_Setting="Residential",INDEX(BLDG_DATA!$M$25:$M$29,MATCH(Found_Type,BLDG_DATA!$B$25:$B$29,)),INDEX(BLDG_DATA!$M$20:$M$24,MATCH(Found_Type,BLDG_DATA!$B$25:$B$29,))) ) -> 80 - 200 | I41: NA | J41: =IF(Bldg_Setting="Residential",IF(OR(Abf>200,Abf<80)=TRUE,"WARNING",IF(Abf<>G41,"WARNING","")),IF(OR(Abf>1500,Abf<80)=TRUE,"WARNING",IF(Abf<>G41,"WARNING",""))) ->  | K41: =IF(Bldg_Setting="Residential",IF(OR(Abf>200,Abf<80)=TRUE,"Value is outside of reasonable range (80 - 200 m2).",IF(Abf<>G41,"Value is different from default value; please justify.","")),IF(OR(Abf>1500,Abf<80)=TRUE,"Value is outside of reasonable range (80 - 200 m2).",IF(Abf<>G41,"Value is different from default value; please justify.",""))) ->  | AC41: Enclosed space floor area | AD41: (m2) | AE41: Abf | AF41: =IF($F$19=1, IF(Bldg_Setting="Residential",VLOOKUP(Found_Type,BLDG_DATA!$B$10:$J$14,5,FALSE),VLOOKUP(Found_Type,BLDG_DATA!$B$5:$J$9,5,FALSE)), IF(Bldg_Setting="Residential",VLOOKUP(Found_Type,BLDG_DATA!$B$25:$J$29,5,FALSE),VLOOKUP(Found_Type,BLDG_DATA!$B$20:$J$24,5,FALSE)) ) -> 150 | AG41: =IF($F$19=1, IF(Bldg_Setting="Residential",VLOOKUP(Found_Type,BLDG_DATA!$B$10:$J$14,5,FALSE),VLOOKUP(Found_Type,BLDG_DATA!$B$5:$J$9,5,FALSE)), IF(Bldg_Setting="Residential",VLOOKUP(Found_Type,BLDG_DATA!$B$25:$J$29,5,FALSE),VLOOKUP(Found_Type,BLDG_DATA!$B$20:$J$24,5,FALSE)) ) -> 150 | AH41: =IF(Bldg_Setting="Residential",VLOOKUP(Found_Type,BLDG_DATA!$B$10:$J$14,5,FALSE),VLOOKUP(Found_Type,BLDG_DATA!$B$5:$J$9,5,FALSE)) -> 150 | AI41: =IF(Bldg_Setting="Residential",INDEX(BLDG_DATA!$M$10:$M$14,MATCH(Found_Type,BLDG_DATA!$B$10:$B$14,)),INDEX(BLDG_DATA!$M$5:$M$9,MATCH(Found_Type,BLDG_DATA!$B$10:$B$14,))) -> 80 - 200 | AJ41: NA | AK41: =IF(Bldg_Setting="Residential",IF(OR(Abf>200,Abf<80)=TRUE,"WARNING",IF(Abf<>AH41,"WARNING","")),IF(OR(Abf>1000,Abf<80)=TRUE,"WARNING",IF(Abf<>AH41,"WARNING",""))) ->  | AL41: =IF(Bldg_Setting="Residential",IF(OR(Abf>200,Abf<80)=TRUE,"Value is outside of reasonable range (80 - 200 m2).",IF(Abf<>AH41,"Value is different from default value; please justify.","")),IF(OR(Abf>1000,Abf<80)=TRUE,"Value is outside of reasonable range (80 - 200 m2).",IF(Abf<>AH41,"Value is different from default value; please justify.",""))) -> 
C42: Enclosed space mixing height | D42: (m) | E42: Hb | F42: =IF($F$19=1, IF(Bldg_Setting="Residential",VLOOKUP(Found_Type,BLDG_DATA!$B$10:$J$14,6,FALSE),VLOOKUP(Found_Type,BLDG_DATA!$B$5:$J$9,6,FALSE)), IF(Bldg_Setting="Residential",VLOOKUP(Found_Type,BLDG_DATA!$B$25:$J$29,6,FALSE),VLOOKUP(Found_Type,BLDG_DATA!$B$20:$J$24,6,FALSE)) ) -> 2.44 | G42: =IF($F$19=1, IF(Bldg_Setting="Residential",VLOOKUP(Found_Type,BLDG_DATA!$B$10:$J$14,6,FALSE),VLOOKUP(Found_Type,BLDG_DATA!$B$5:$J$9,6,FALSE)), IF(Bldg_Setting="Residential",VLOOKUP(Found_Type,BLDG_DATA!$B$25:$J$29,6,FALSE),VLOOKUP(Found_Type,BLDG_DATA!$B$20:$J$24,6,FALSE)) ) -> 2.44 | H42: =IF($F$19=1, INDEX(BLDG_DATA!$N$10:$N$14,MATCH(Found_Type,BLDG_DATA!$B$10:$B$14,)), INDEX(BLDG_DATA!$N$25:$N$29,MATCH(Found_Type,BLDG_DATA!$B$25:$B$29,)) ) -> 2.13 - 3.05 | I42: NA | J42: =IF($F$19=1, IF(AND(OR(Found_Type="Closed crawl space w/dirt floor", Found_Type="Closed crawl space w/ slab"), OR(Hb>1.3, Hb<0.5)), "WARNING", IF(AND(OR(Hb>3.05,Hb<2.13),Found_Type="Slab-on-grade"),"WARNING", IF(AND(OR(Found_Type="Basement w/ dirt floor", Found_Type="basement w/ slab"),OR(Hb>4.88,Hb<2.44)=TRUE),"WARNING",IF(Hb<>G42,"WARNING", "")))), IF(AND(OR(Found_Type="Closed crawl space w/dirt floor", Found_Type="Closed crawl space w/ slab"), OR(Hb>3.75, Hb<2.9)), "WARNING", IF(AND(OR(Hb>3.05,Hb<2.13),Found_Type="Slab-on-grade"),"WARNING", IF(AND(OR(Found_Type="Basement w/ dirt floor", Found_Type="basement w/ slab"),OR(Hb>4.88,Hb<2.44)=TRUE),"WARNING",IF(Hb<>G42,"WARNING", "")))) ) ->  | K42: =IF($F$19=1, IF(AND(OR(Found_Type="Closed crawl space w/dirt floor",Found_Type="Closed crawl space w/ slab"),OR(Hb>1.3,Hb<0.5)),"Value is outside of reasonable range (0.5 to 1.30 m).",IF(AND(OR(Hb>3.05,Hb<2.13),Found_Type="Slab-on-grade"),"Value is outside of reasonable range (2.13 – 3.05 m).",IF(AND(OR(Found_Type="Basement w/ dirt floor",Found_Type="basement w/ slab"),OR(Hb>4.88,Hb<2.44)=TRUE),"Value is outside of reasonable range (2.44 - 4.88 m).",IF(Hb<>G42,"Value is different from default value; please justify.","")))), IF(AND(OR(Found_Type="Closed crawl space w/dirt floor",Found_Type="Closed crawl space w/ slab"),OR(Hb>3.75,Hb<2.74)),"Value is outside of reasonable range (2.74 to 3.75 m).",IF(AND(OR(Hb>3.05,Hb<2.13),Found_Type="Slab-on-grade"),"Value is outside of reasonable range (2.13 – 3.05 m).",IF(AND(OR(Found_Type="Basement w/ dirt floor",Found_Type="basement w/ slab"),OR(Hb>4.88,Hb<2.44)=TRUE),"Value is outside of reasonable range (2.44 - 4.88 m).",IF(Hb<>G42,"Value is different from default value; please justify.","")))) ) ->  | AC42: Enclosed space mixing height | AD42: (m) | AE42: Hb | AF42: =IF($F$19=1, IF(Bldg_Setting="Residential",VLOOKUP(Found_Type,BLDG_DATA!$B$10:$J$14,6,FALSE),VLOOKUP(Found_Type,BLDG_DATA!$B$5:$J$9,6,FALSE)), IF(Bldg_Setting="Residential",VLOOKUP(Found_Type,BLDG_DATA!$B$25:$J$29,6,FALSE),VLOOKUP(Found_Type,BLDG_DATA!$B$20:$J$24,6,FALSE)) ) -> 2.44 | AG42: =IF($F$19=1, IF(Bldg_Setting="Residential",VLOOKUP(Found_Type,BLDG_DATA!$B$10:$J$14,6,FALSE),VLOOKUP(Found_Type,BLDG_DATA!$B$5:$J$9,6,FALSE)), IF(Bldg_Setting="Residential",VLOOKUP(Found_Type,BLDG_DATA!$B$25:$J$29,6,FALSE),VLOOKUP(Found_Type,BLDG_DATA!$B$20:$J$24,6,FALSE)) ) -> 2.44 | AH42: =IF(Bldg_Setting="Residential",VLOOKUP(Found_Type,BLDG_DATA!$B$10:$J$14,6,FALSE),VLOOKUP(Found_Type,BLDG_DATA!$B$5:$J$9,6,FALSE)) -> 2.44 | AI42: =INDEX(BLDG_DATA!$N$10:$N$14,MATCH(Found_Type,BLDG_DATA!$B$10:$B$14,)) -> 2.13 - 3.05 | AJ42: NA | AK42: =IF(AND(OR(Found_Type="Closed crawl space w/dirt floor", Found_Type="Closed crawl space w/ slab"), OR(Hb>1.3, Hb<0.5)), "WARNING", IF(AND(OR(Hb>3.05,Hb<2.13),Found_Type="Slab-on-grade"),"WARNING", IF(AND(OR(Found_Type="Basement w/ dirt floor", Found_Type="basement w/ slab"),OR(Hb>4.88,Hb<2.44)=TRUE),"WARNING",IF(Hb<>AH42,"WARNING", "")))) ->  | AL42: =IF(AND(OR(Found_Type="Closed crawl space w/dirt floor", Found_Type="Closed crawl space w/ slab"), OR(Hb>1.3, Hb<0.5)), "Value is outside of reasonable range (0.5 to 1.30 m).", IF(AND(OR(Hb>3.05,Hb<2.13),Found_Type="Slab-on-grade"),"Value is outside of reasonable range (2.13 – 3.05 m).", IF(AND(OR(Found_Type="Basement w/ dirt floor", Found_Type="basement w/ slab"),OR(Hb>4.88,Hb<2.44)=TRUE),"Value is outside of reasonable range (2.44 - 4.88 m).",IF(Hb<>AH42,"Value is different from default value; please justify.", "")))) -> 
C43: Indoor air exchange rate | D43: (1 / hr) | E43: ach | F43: =IF($F$19=1, IF(Bldg_Setting="Residential",VLOOKUP(Found_Type,BLDG_DATA!$B$10:$J$14,7,FALSE),VLOOKUP(Found_Type,BLDG_DATA!$B$5:$J$9,7,FALSE)), IF(Bldg_Setting="Residential",VLOOKUP(Found_Type,BLDG_DATA!$B$25:$J$29,7,FALSE),VLOOKUP(Found_Type,BLDG_DATA!$B$20:$J$24,7,FALSE)) ) -> 0.45 | G43: =IF($F$19=1, IF(Bldg_Setting="Residential",VLOOKUP(Found_Type,BLDG_DATA!$B$10:$J$14,7,FALSE),VLOOKUP(Found_Type,BLDG_DATA!$B$5:$J$9,7,FALSE)), IF(Bldg_Setting="Residential",VLOOKUP(Found_Type,BLDG_DATA!$B$25:$J$29,7,FALSE),VLOOKUP(Found_Type,BLDG_DATA!$B$20:$J$24,7,FALSE)) ) -> 0.45 | H43: =IF(Bldg_Setting="Residential","0.15-1.26","0.3-4.1") -> 0.15-1.26 | I43: NA | J43: =IF(Bldg_Setting="Residential",IF(OR(ach>1.26,ach<0.15,ach<>G43)=TRUE,"WARNING",""),IF(OR(ach>4.1,ach<0.3,ach<>G43)=TRUE,"WARNING","")) ->  | K43: =IF(Bldg_Setting="Residential",IF(OR(ach>1.26,ach<0.15)=TRUE,"Value is outside of reasonable range (0.15 - 1.26).",IF(ach<>G43,"Value is different from default value; please justify.","")),IF(OR(ach>4.1,ach<0.3)=TRUE,"Value is outside of reasonable range (0.3 - 4.1).",IF(ach<>G43,"Value is different from default value; please justify.",""))) ->  | AC43: Indoor air exchange rate | AD43: (1/hr) | AE43: ach | AF43: =IF($F$19=1, IF(Bldg_Setting="Residential",VLOOKUP(Found_Type,BLDG_DATA!$B$10:$J$14,7,FALSE),VLOOKUP(Found_Type,BLDG_DATA!$B$5:$J$9,7,FALSE)), IF(Bldg_Setting="Residential",VLOOKUP(Found_Type,BLDG_DATA!$B$25:$J$29,7,FALSE),VLOOKUP(Found_Type,BLDG_DATA!$B$20:$J$24,7,FALSE)) ) -> 0.45 | AG43: =IF($F$19=1, IF(Bldg_Setting="Residential",VLOOKUP(Found_Type,BLDG_DATA!$B$10:$J$14,7,FALSE),VLOOKUP(Found_Type,BLDG_DATA!$B$5:$J$9,7,FALSE)), IF(Bldg_Setting="Residential",VLOOKUP(Found_Type,BLDG_DATA!$B$25:$J$29,7,FALSE),VLOOKUP(Found_Type,BLDG_DATA!$B$20:$J$24,7,FALSE)) ) -> 0.45 | AH43: =IF(Bldg_Setting="Residential",VLOOKUP(Found_Type,BLDG_DATA!$B$10:$J$14,7,FALSE),VLOOKUP(Found_Type,BLDG_DATA!$B$5:$J$9,7,FALSE)) -> 0.45 | AI43: 0.1 - 1.5 | AJ43: 1 | AK43: =IF(Bldg_Setting="Residential",IF(OR(ach>1.26,ach<0.15,ach<>AH43)=TRUE,"WARNING",""),IF(OR(ach>4.1,ach<0.3,ach<>AH43)=TRUE,"WARNING","")) ->  | AL43: =IF(Bldg_Setting="Residential",IF(OR(ach>1.26,ach<0.15)=TRUE,"Value is outside of reasonable range (0.15 - 1.26).",IF(ach<>AH43,"Value is different from default value; please justify.","")),IF(OR(ach>4.1,ach<0.3)=TRUE,"Value is outside of reasonable range (0.3 - 4.1).",IF(ach<>AH43,"Value is different from default value; please justify.",""))) -> 
C44: Qsoil/Qbuilding | D44: (-) | E44: Qsoil_Qb | F44: =IF($F$19=1,IF(Bldg_Setting="Residential",VLOOKUP(Found_Type,BLDG_DATA!$B$10:$J$14,9,FALSE),VLOOKUP(Found_Type,BLDG_DATA!$B$5:$J$9,9,FALSE)),IF(Bldg_Setting="Residential",VLOOKUP(Found_Type,BLDG_DATA!$B$25:$J$29,9,FALSE),VLOOKUP(Found_Type,BLDG_DATA!$B$20:$J$24,9,FALSE))) -> 0.003 | G44: =IF($F$19=1,IF(Bldg_Setting="Residential",VLOOKUP(Found_Type,BLDG_DATA!$B$10:$J$14,9,FALSE),VLOOKUP(Found_Type,BLDG_DATA!$B$5:$J$9,9,FALSE)),IF(Bldg_Setting="Residential",VLOOKUP(Found_Type,BLDG_DATA!$B$25:$J$29,9,FALSE),VLOOKUP(Found_Type,BLDG_DATA!$B$20:$J$24,9,FALSE))) -> 0.003 | H44: 0.0001 - 0.05 | I44: 1.24 | J44: =IF(OR(Found_Type="Basement w/ dirt floor", Found_Type="Closed crawl space w/ dirt floor")=TRUE, "",IF(OR(Qsoil_Qb>0.05,Qsoil_Qb<0.0001, Qsoil_Qb<>G44)=TRUE,"WARNING","")) ->  | K44: =IF(OR(Found_Type="Basement w/ dirt floor", Found_Type="Closed crawl space w/ dirt floor")=TRUE, "",IF(OR(Qsoil_Qb>0.05,Qsoil_Qb<0.0001)=TRUE,"Value is outside of reasonable range (0.0001 - 0.05).",IF(AND(Qsoil_Qb<>G44),"Value is different from default value; please justify.",""))) ->  | AC44: Qsoil/Qbuilding | AD44: (-) | AE44: Qsoil_Qb | AF44: =IF($F$19=1, IF(Bldg_Setting="Residential",VLOOKUP(Found_Type,BLDG_DATA!$B$10:$J$14,9,FALSE),VLOOKUP(Found_Type,BLDG_DATA!$B$5:$J$9,9,FALSE)), IF(Bldg_Setting="Residential",VLOOKUP(Found_Type,BLDG_DATA!$B$25:$J$29,9,FALSE),VLOOKUP(Found_Type,BLDG_DATA!$B$20:$J$24,9,FALSE)) ) -> 0.003 | AG44: =AG46/AG45 -> 0.003 | AH44: =IF(ach=G43, IF(Bldg_Setting="Residential",VLOOKUP(Found_Type,BLDG_DATA!B10:J14,9,FALSE),VLOOKUP(Found_Type, BLDG_DATA!B5:J9,9,FALSE)),( IF(Bldg_Setting="Residential",VLOOKUP(Found_Type,BLDG_DATA!B10:J14,9,FALSE),VLOOKUP(Found_Type, BLDG_DATA!B5:J9,9,FALSE)))*(0.45/ach)) -> 0.003 | AI44: 0.0001 - 0.05 | AJ44: 1.24 | AK44: =IF(OR(Found_Type="Basement w/ dirt floor", Found_Type="Closed crawl space w/ dirt floor")=TRUE, "",IF(OR(Qsoil_Qb>0.05,Qsoil_Qb<0.0001, Qsoil_Qb<>AH44)=TRUE,"WARNING","")) ->  | AL44: =IF(OR(Found_Type="Basement w/ dirt floor", Found_Type="Closed crawl space w/ dirt floor")=TRUE, "",IF(OR(Qsoil_Qb>0.05,Qsoil_Qb<0.0001)=TRUE,"Value is outside of reasonable range (0.0001 - 0.05).",IF(Qsoil_Qb<>AH44,"Value is different from default value; please justify.",""))) -> 
C45: Calc: Building ventilation rate | D45: (m3/hr) | E45: Qb | F45: =Abf*Hb*ach -> 164.7 | G45: =G41*G42*G43 -> 164.7 | H45: NA | I45: 0.3 | AC45: Calc: Building ventilation rate | AD45: (m3/hr) | AE45: Qb | AF45: =Abf*Hb*ach -> 164.7 | AG45: =IF(AG36="Residential",VLOOKUP(AG37,BLDG_DATA!B10:O14,8,FALSE),VLOOKUP(AG37,BLDG_DATA!B5:K9,8,FALSE)) -> 247.05 | AH45: =AH41*AH42*AH43 -> 164.7 | AI45: NA | AJ45: 0.3
C46: Calc: Average vapor flow rate into building | D46: (m3/hr) | E46: Qsoil | F46: =IF(OR(Found_Type="Basement w/ dirt floor", Found_Type="Closed crawl space w/ dirt floor"), "NA",Qsoil_Qb*Qb) -> 0.4941 | G46: =IF(OR(Found_Type="Basement w/ dirt floor",Found_Type="Closed crawl space w/ dirt floor"),"NA",G44*G45) -> 0.4941 | H46: NA | I46: NA | P46: Qsoil_Qbldg | Q46: Qsoil | AC46: Calc: Average vapor flow rate into building | AD46: (m3/hr) | AE46: Qsoil | AF46: =IF(OR(Found_Type="Basement w/ dirt floor", Found_Type="Closed crawl space w/ dirt floor"), "NA",Qsoil_Qb*Qb) -> 0.4941 | AG46: =IF(AG36="Residential",VLOOKUP(AG37,BLDG_DATA!B10:K14,10,FALSE),VLOOKUP(AG37,BLDG_DATA!B5:K9,10,FALSE)) -> 0.74115 | AH46: =IF(OR(Found_Type="Basement w/ dirt floor",Found_Type="Closed crawl space w/ dirt floor"),"NA",AH44*AH45) -> 0.4941 | AI46: NA | AJ46: NA
A47: Intentionally Blank | O47: min | P47: =IF(0.0001<Qsoil_Qb,0.0001,Qsoil_Qb) -> 0.0001 | Q47: =0.0001*Qb -> 0.01647
A48: Intentionally Blank | O48: max | P48: =IF(0.05>Qsoil_Qb,0.05,Qsoil_Qb) -> 0.05 | Q48: =0.05*Qb -> 8.235 | AA48: US EPA VAPOR INTRUSION ASSESSMENT MODEL (VIA_MODEL.xlsm)
A49: Intentionally Blank
A50: Model Input | D50: Site Name/Run Number: | F50: =Name_and_run -> DTSC J&E Case | AA50: Model Input | AD50: Site Name/Run Number:
B51: ="Chemical Name:"&" "&$F$17&" CAS No. "&CAS -> Chemical Name: Trichloroethylene CAS No. 79-01-6 | AB51: Chemical Name: Bis(2-chloroethyl)ether CAS No. 111-44-4
B52: =IF(Source="Groundwater","Depth below grade to water table:","Depth below grade to soil gas sample:")&" "&TEXT(Ls,"0.00")&" meters" -> Depth below grade to water table: 5.00 meters | AB52: Depth below grade to soil gas sample: 5.00 meters
A53: Vadose zone characteristics: | D53: Units | E53: Symbol | F53: Value | G53: Default | H53: Potential Span | I53: CV | J53: Flag | K53: Comment | AA53: Vadose zone characteristics: | AD53: Units | AE53: Symbol | AF53: Value | AG53: Default | AH53: Range | AI53: CV | AJ53: Flag | AK53: Comment
A54: Stratum A (Top of soil profile): | AA54: Stratum A (Top of soil profile):
B55: Stratum A SCS soil type | E55: SCS_A | F55: Sand | AB55: Stratum A SCS soil type | AE55: SCS_A | AF55: Sand
B56: Stratum A thickness (from surface) | D56: (m) | E56: hSA | F56: 5 | J56: =IF(AND(Source="Groundwater",src_soil="Stratum A")=TRUE,IF(hSA<Lb+hcz,"ERROR",""),IF(hSA<Lb,"ERROR","")) ->  | K56: =IF(AND(Source="Groundwater",src_soil="Stratum A")=TRUE,IF(hSA<Lb+hcz,"hSA must be >= Lb + hcz.",""),IF(hSA<Lb,"hSA must be >= Lb","")) ->  | AB56: Stratum A thickness (from surface) | AD56: (m) | AE56: hSA | AF56: 5 | AJ56: =IF(AND(Source="Groundwater",src_soil="Stratum A")=TRUE,IF(hSA<Lb+hcz,"ERROR",""),IF(hSA<Lb,"ERROR","")) ->  | AK56: =IF(AND(Source="Groundwater",src_soil="Stratum A")=TRUE,IF(hSA<Lb+hcz,"hSA must be >= Lb + hcz.",""),IF(hSA<Lb,"hSA must be >= Lb","")) -> 
C57: Stratum A total porosity | D57: (-) | E57: nSA | F57: =IF(INDEX(Total_Porosity,MATCH(SCS_A,Soil_Type2,0))=0,"",(INDEX(Total_Porosity,MATCH(SCS_A,Soil_Type2,0)))) -> 0.375 | G57: =IF(INDEX(Total_Porosity,MATCH(SCS_A,Soil_Type2,0))=0,"",(INDEX(Total_Porosity,MATCH(SCS_A,Soil_Type2,0)))) -> 0.375 | H57: NA | I57: =INDEX(SOIL_CV_DATA!$C:$C,MATCH(SCS_A,SOIL_CV_DATA!$A:$A,0)) -> 0.2 | J57: =IF(nSA<>G57,"WARNING","") ->  | K57: =IF(nSA<>G57,"Value is different from default value; please justify.","") ->  | AC57: Stratum A total porosity | AD57: (-) | AE57: nSA | AF57: =IF(INDEX(Total_Porosity,MATCH(SCS_A,Soil_Type2,0))=0,"",(INDEX(Total_Porosity,MATCH(SCS_A,Soil_Type2,0)))) -> 0.375 | AG57: =IF(INDEX(Total_Porosity,MATCH(SCS_A,Soil_Type2,0))=0,"",(INDEX(Total_Porosity,MATCH(SCS_A,Soil_Type2,0)))) -> 0.375 | AH57: NA | AI57: =INDEX(SOIL_CV_DATA!$C:$C,MATCH(SCS_A,SOIL_CV_DATA!$A:$A,0)) -> 0.2 | AJ57: =IF(nSA<>AG57,"WARNING","") ->  | AK57: =IF(nSA<>AG57,"Value is different from default value; please justify.","") -> 
C58: Stratum A water-filled porosity | D58: (-) | E58: nwSA | F58: =IF(INDEX(Water_Porosity,MATCH(SCS_A,Soil_Type2,0))=0,"",(INDEX(Water_Porosity,MATCH(SCS_A,Soil_Type2,0)))) -> 0.054 | G58: =IF(INDEX(Water_Porosity,MATCH(SCS_A,Soil_Type2,0))=0,"",(INDEX(Water_Porosity,MATCH(SCS_A,Soil_Type2,0)))) -> 0.054 | H58: =INDEX(SOIL_DATA!$N:$N,MATCH(SCS_A,SOIL_DATA!$A:$A,0)) -> 0.053 - 0.055 | I58: =INDEX(SOIL_CV_DATA!$D:$D,MATCH(SCS_A,SOIL_CV_DATA!$A:$A,0)) -> 0.25 | J58: =IF(nwSA<>G58,"WARNING","") ->  | K58: =IF(nwSA<>G58,"Value is different from default value; please justify.","") ->  | AC58: Stratum A water-filled porosity | AD58: (-) | AE58: nwSA | AF58: =IF(INDEX(Water_Porosity,MATCH(SCS_A,Soil_Type2,0))=0,"",(INDEX(Water_Porosity,MATCH(SCS_A,Soil_Type2,0)))) -> 0.054 | AG58: =IF(INDEX(Water_Porosity,MATCH(SCS_A,Soil_Type2,0))=0,"",(INDEX(Water_Porosity,MATCH(SCS_A,Soil_Type2,0)))) -> 0.054 | AH58: =INDEX(SOIL_DATA!$N:$N,MATCH(SCS_A,SOIL_DATA!$A:$A,0)) -> 0.053 - 0.055 | AI58: =INDEX(SOIL_CV_DATA!$D:$D,MATCH(SCS_A,SOIL_CV_DATA!$A:$A,0)) -> 0.25 | AJ58: =IF(nwSA<>AG58,"WARNING","") ->  | AK58: =IF(nwSA<>AG58,"Value is different from default value; please justify.","") -> 
C59: Stratum A bulk density | D59: (g/cm3) | E59: rhoSA | F59: =IF(INDEX(Bulk_Density,MATCH(SCS_A,Soil_Type2,0))=0,"",(INDEX(Bulk_Density,MATCH(SCS_A,Soil_Type2,0)))) -> 1.66 | G59: =IF(INDEX(Bulk_Density,MATCH(SCS_A,Soil_Type2,0))=0,"",(INDEX(Bulk_Density,MATCH(SCS_A,Soil_Type2,0)))) -> 1.66 | H59: NA | I59: =INDEX(SOIL_CV_DATA!$E:$E,MATCH(SCS_A,SOIL_CV_DATA!$A:$A,0)) -> 0.05 | J59: =IF(rhoSA<>G59,"WARNING","") ->  | K59: =IF(rhoSA<>G59,"Value is different from default value; please justify.","") ->  | AC59: Stratum A bulk density | AD59: (g/cm3) | AE59: rhoSA | AF59: =IF(INDEX(Bulk_Density,MATCH(SCS_A,Soil_Type2,0))=0,"",(INDEX(Bulk_Density,MATCH(SCS_A,Soil_Type2,0)))) -> 1.66 | AG59: =IF(INDEX(Bulk_Density,MATCH(SCS_A,Soil_Type2,0))=0,"",(INDEX(Bulk_Density,MATCH(SCS_A,Soil_Type2,0)))) -> 1.66 | AH59: NA | AI59: =INDEX(SOIL_CV_DATA!$E:$E,MATCH(SCS_A,SOIL_CV_DATA!$A:$A,0)) -> 0.05 | AJ59: =IF(rhoSA<>AG59,"WARNING","") ->  | AK59: =IF(rhoSA<>AG59,"Value is different from default value; please justify.","") -> 
A60: Stratum B (Soil layer below Stratum A): | AA60: Stratum B (Soil layer below Stratum A):
B61: Stratum B SCS soil type | E61: SCS_B | F61: Not Present | AB61: Stratum B SCS soil type | AE61: SCS_B | AF61: Not Present
B62: Stratum B thickness | D62: (m) | E62: hSB | F62: 0 | J62: =IF(AND(SCS_B="Not Present",hSB<>"")=TRUE,"ERROR",(IF(hSA+hSB>Ls,"ERROR",(IF(AND(Source="Groundwater",src_soil="Stratum B")=TRUE,IF((hSB+hSA)<hcz,"ERROR",IF(AND(Source="Groundwater",src_soil="Stratum B",hSB<hcz),"WARNING","")),""))))) ->  | K62: =IF(AND(SCS_B="Not Present",hSB<>"")=TRUE,"Stratum thickness must be BLANK if not present.",(IF(hSA+hSB>Ls,"hSB must be <= Ls - hSA.",(IF(AND(Source="Groundwater",src_soil="Stratum B")=TRUE,IF((hSB+hSA)<hcz,"hSB+hSA must be >= hcz.",IF(AND(Source="Groundwater",src_soil="Stratum B",hSB<hcz),"hSB < hcz; hcz may be overestimated.","")),""))))) ->  | AB62: Stratum B thickness | AD62: (m) | AE62: hSB | AF62: 0 | AJ62: =IF(AND(SCS_B="Not Present",hSB<>"")=TRUE,"ERROR",(IF(hSA+hSB>Ls,"ERROR",(IF(AND(Source="Groundwater",src_soil="Stratum B")=TRUE,IF((hSB+hSA)<hcz,"ERROR",IF(AND(Source="Groundwater",src_soil="Stratum B",hSB<hcz),"WARNING","")),""))))) ->  | AK62: =IF(AND(SCS_B="Not Present",hSB<>"")=TRUE,"Stratum thickness must be BLANK if not present.",(IF(hSA+hSB>Ls,"hSB must be <= Ls - hSA.",(IF(AND(Source="Groundwater",src_soil="Stratum B")=TRUE,IF((hSB+hSA)<hcz,"hSB+hSA must be >= hcz.",IF(AND(Source="Groundwater",src_soil="Stratum B",hSB<hcz),"hSB < hcz; hcz may be overestimated.","")),""))))) -> 
C63: Stratum B total porosity | D63: (-) | E63: nSB | F63: =IF(INDEX(Total_Porosity,MATCH(SCS_B,Soil_Type2,0))=0,"",(INDEX(Total_Porosity,MATCH(SCS_B,Soil_Type2,0)))) ->  | G63: =IF(INDEX(Total_Porosity,MATCH(SCS_B,Soil_Type2,0))=0,"",(INDEX(Total_Porosity,MATCH(SCS_B,Soil_Type2,0)))) ->  | H63: NA | I63: =IF(SCS_B="Not Present","NA",INDEX(SOIL_CV_DATA!$C:$C,MATCH(SCS_B,SOIL_CV_DATA!$A:$A,0))) -> NA | J63: =IF(nSB<>G63,"WARNING","") ->  | K63: =IF(nSB<>G63,"Value is different from default value; please justify.","") ->  | AC63: Stratum B total porosity | AD63: (-) | AE63: nSB | AF63: =IF(INDEX(Total_Porosity,MATCH(SCS_B,Soil_Type2,0))=0,"",(INDEX(Total_Porosity,MATCH(SCS_B,Soil_Type2,0)))) ->  | AG63: =IF(INDEX(Total_Porosity,MATCH(SCS_B,Soil_Type2,0))=0,"",(INDEX(Total_Porosity,MATCH(SCS_B,Soil_Type2,0)))) ->  | AH63: NA | AI63: =IF(SCS_B="Not Present","NA",INDEX(SOIL_CV_DATA!$C:$C,MATCH(SCS_B,SOIL_CV_DATA!$A:$A,0))) -> NA | AJ63: =IF(nSB<>AG63,"WARNING","") ->  | AK63: =IF(nSB<>AG63,"Value is different from default value; please justify.","") -> 
C64: Stratum B water-filled porosity | D64: (-) | E64: nwSB | F64: =IF(INDEX(Water_Porosity,MATCH(SCS_B,Soil_Type2,0))=0,"",(INDEX(Water_Porosity,MATCH(SCS_B,Soil_Type2,0)))) ->  | G64: =IF(INDEX(Water_Porosity,MATCH(SCS_B,Soil_Type2,0))=0,"",(INDEX(Water_Porosity,MATCH(SCS_B,Soil_Type2,0)))) ->  | H64: =IF(SCS_B="Not Present","NA",INDEX(SOIL_DATA!$N:$N,MATCH(SCS_B,SOIL_DATA!$A:$A,0))) -> NA | I64: =IF(SCS_B="Not Present","NA",INDEX(SOIL_CV_DATA!$D:$D,MATCH(SCS_B,SOIL_CV_DATA!$A:$A,0))) -> NA | J64: =IF(nwSB<>G64,"WARNING","") ->  | K64: =IF(nwSB<>G64,"Value is different from default value; please justify.","") ->  | AC64: Stratum B water-filled porosity | AD64: (-) | AE64: nwSB | AF64: =IF(INDEX(Water_Porosity,MATCH(SCS_B,Soil_Type2,0))=0,"",(INDEX(Water_Porosity,MATCH(SCS_B,Soil_Type2,0)))) ->  | AG64: =IF(INDEX(Water_Porosity,MATCH(SCS_B,Soil_Type2,0))=0,"",(INDEX(Water_Porosity,MATCH(SCS_B,Soil_Type2,0)))) ->  | AH64: =IF(SCS_B="Not Present","NA",INDEX(SOIL_DATA!$N:$N,MATCH(SCS_B,SOIL_DATA!$A:$A,0))) -> NA | AI64: =IF(SCS_B="Not Present","NA",INDEX(SOIL_CV_DATA!$D:$D,MATCH(SCS_B,SOIL_CV_DATA!$A:$A,0))) -> NA | AJ64: =IF(nwSB<>AG64,"WARNING","") ->  | AK64: =IF(nwSB<>AG64,"Value is different from default value; please justify.","") -> 
C65: Stratum B bulk density | D65: (g/cm3) | E65: rhoSB | F65: =IF(INDEX(Bulk_Density,MATCH(SCS_B,Soil_Type2,0))=0,"",(INDEX(Bulk_Density,MATCH(SCS_B,Soil_Type2,0)))) ->  | G65: =IF(INDEX(Bulk_Density,MATCH(SCS_B,Soil_Type2,0))=0,"",(INDEX(Bulk_Density,MATCH(SCS_B,Soil_Type2,0)))) ->  | H65: NA | I65: =IF(SCS_B="Not Present","NA",INDEX(SOIL_CV_DATA!$E:$E,MATCH(SCS_B,SOIL_CV_DATA!$A:$A,0))) -> NA | J65: =IF(rhoSB<>G65,"WARNING","") ->  | K65: =IF(rhoSB<>G65,"Value is different from default value; please justify.","") ->  | AC65: Stratum B bulk density | AD65: (g/cm3) | AE65: rhoSB | AF65: =IF(INDEX(Bulk_Density,MATCH(SCS_B,Soil_Type2,0))=0,"",(INDEX(Bulk_Density,MATCH(SCS_B,Soil_Type2,0)))) ->  | AG65: =IF(INDEX(Bulk_Density,MATCH(SCS_B,Soil_Type2,0))=0,"",(INDEX(Bulk_Density,MATCH(SCS_B,Soil_Type2,0)))) ->  | AH65: NA | AI65: =IF(SCS_B="Not Present","NA",INDEX(SOIL_CV_DATA!$E:$E,MATCH(SCS_B,SOIL_CV_DATA!$A:$A,0))) -> NA | AJ65: =IF(rhoSB<>AG65,"WARNING","") ->  | AK65: =IF(rhoSB<>AG65,"Value is different from default value; please justify.","") -> 
A66: Stratum C (Soil layer below Stratum B): | AA66: Stratum C (Soil layer below Stratum B):
B67: Stratum C SCS soil type | E67: SCS_C | F67: Not Present | J67: =IF(AND(SCS_B="Not Present",SCS_C<>"Not Present")=TRUE,"ERROR","") ->  | K67: =IF(AND(SCS_B="Not Present",SCS_C<>"Not Present")=TRUE,"Select a soil type for Stratum B.","") ->  | AB67: Stratum C SCS soil type | AE67: SCS_C | AF67: Not Present | AJ67: =IF(AND(SCS_B="Not Present",SCS_C<>"Not Present")=TRUE,"ERROR","") ->  | AK67: =IF(AND(SCS_B="Not Present",SCS_C<>"Not Present")=TRUE,"Select a soil type for Stratum B.","") -> 
B68: Stratum C thickness | D68: (m) | E68: hSC | F68: 0 | J68: =IF(AND(SCS_C="Not Present",hSC<>"")=TRUE,"ERROR",(IF(hSA+hSB+hSC>Ls,"ERROR",(IF(AND(Source="Groundwater",src_soil="Stratum C")=TRUE,IF(hSC<hcz,"ERROR",""),""))))) ->  | K68: =IF(AND(SCS_C="Not Present",hSC<>"")=TRUE,"Stratum thickness must be BLANK if not present.",(IF(hSA+hSB+hSC>Ls,"hSC must be <= Ls - hSA - hSB.",(IF(AND(Source="Groundwater",src_soil="Stratum C")=TRUE,IF(hSC<hcz,"hSC must be >= hcz.",""),""))))) ->  | AB68: Stratum C thickness | AD68: (m) | AE68: hSC | AF68: 0 | AJ68: =IF(AND(SCS_C="Not Present",hSC<>"")=TRUE,"ERROR",(IF(hSA+hSB+hSC>Ls,"ERROR",(IF(AND(Source="Groundwater",src_soil="Stratum C")=TRUE,IF(hSC<hcz,"ERROR",""),""))))) ->  | AK68: =IF(AND(SCS_C="Not Present",hSC<>"")=TRUE,"Stratum thickness must be BLANK if not present.",(IF(hSA+hSB+hSC>Ls,"hSC must be <= Ls - hSA - hSB.",(IF(AND(Source="Groundwater",src_soil="Stratum C")=TRUE,IF(hSC<hcz,"hSC must be >= hcz.",""),""))))) -> 
C69: Stratum C total porosity | D69: (-) | E69: nSC | F69: =IF(INDEX(Total_Porosity,MATCH(SCS_C,Soil_Type2,0))=0,"",(INDEX(Total_Porosity,MATCH(SCS_C,Soil_Type2,0)))) ->  | G69: =IF(INDEX(Total_Porosity,MATCH(SCS_C,Soil_Type2,0))=0,"",(INDEX(Total_Porosity,MATCH(SCS_C,Soil_Type2,0)))) ->  | H69: NA | I69: =IF(SCS_C="Not Present","NA",INDEX(SOIL_CV_DATA!$C:$C,MATCH(SCS_C,SOIL_CV_DATA!$A:$A,0))) -> NA | J69: =IF(nSC<>G69,"WARNING","") ->  | K69: =IF(nSC<>G69,"Value is different from default value; please justify.","") ->  | AC69: Stratum C total porosity | AD69: (-) | AE69: nSC | AF69: =IF(INDEX(Total_Porosity,MATCH(SCS_C,Soil_Type2,0))=0,"",(INDEX(Total_Porosity,MATCH(SCS_C,Soil_Type2,0)))) ->  | AG69: =IF(INDEX(Total_Porosity,MATCH(SCS_C,Soil_Type2,0))=0,"",(INDEX(Total_Porosity,MATCH(SCS_C,Soil_Type2,0)))) ->  | AH69: NA | AI69: =IF(SCS_C="Not Present","NA",INDEX(SOIL_CV_DATA!$C:$C,MATCH(SCS_C,SOIL_CV_DATA!$A:$A,0))) -> NA | AJ69: =IF(nSC<>AG69,"WARNING","") ->  | AK69: =IF(nSC<>AG69,"Value is different from default value; please justify.","") -> 
C70: Stratum C water-filled porosity | D70: (-) | E70: nwSC | F70: =IF(INDEX(Water_Porosity,MATCH(SCS_C,Soil_Type2,0))=0,"",(INDEX(Water_Porosity,MATCH(SCS_C,Soil_Type2,0)))) ->  | G70: =IF(INDEX(Water_Porosity,MATCH(SCS_C,Soil_Type2,0))=0,"",(INDEX(Water_Porosity,MATCH(SCS_C,Soil_Type2,0)))) ->  | H70: =IF(SCS_C="Not Present","NA",INDEX(SOIL_DATA!$N:$N,MATCH(SCS_C,SOIL_DATA!$A:$A,0))) -> NA | I70: =IF(SCS_C="Not Present","NA",INDEX(SOIL_CV_DATA!$D:$D,MATCH(SCS_C,SOIL_CV_DATA!$A:$A,0))) -> NA | J70: =IF(nwSC<>G70,"WARNING","") ->  | K70: =IF(nwSC<>G70,"Value is different from default value; please justify.","") ->  | AC70: Stratum C water-filled porosity | AD70: (-) | AE70: nwSC | AF70: =IF(INDEX(Water_Porosity,MATCH(SCS_C,Soil_Type2,0))=0,"",(INDEX(Water_Porosity,MATCH(SCS_C,Soil_Type2,0)))) ->  | AG70: =IF(INDEX(Water_Porosity,MATCH(SCS_C,Soil_Type2,0))=0,"",(INDEX(Water_Porosity,MATCH(SCS_C,Soil_Type2,0)))) ->  | AH70: =IF(SCS_C="Not Present","NA",INDEX(SOIL_DATA!$N:$N,MATCH(SCS_C,SOIL_DATA!$A:$A,0))) -> NA | AI70: =IF(SCS_C="Not Present","NA",INDEX(SOIL_CV_DATA!$D:$D,MATCH(SCS_C,SOIL_CV_DATA!$A:$A,0))) -> NA | AJ70: =IF(nwSC<>AG70,"WARNING","") ->  | AK70: =IF(nwSC<>AG70,"Value is different from default value; please justify.","") -> 
C71: Stratum C bulk density | D71: (g/cm3) | E71: rhoSC | F71: =IF(INDEX(Bulk_Density,MATCH(SCS_C,Soil_Type2,0))=0,"",(INDEX(Bulk_Density,MATCH(SCS_C,Soil_Type2,0)))) ->  | G71: =IF(INDEX(Bulk_Density,MATCH(SCS_C,Soil_Type2,0))=0,"",(INDEX(Bulk_Density,MATCH(SCS_C,Soil_Type2,0)))) ->  | H71: NA | I71: =IF(SCS_C="Not Present","NA",INDEX(SOIL_CV_DATA!$E:$E,MATCH(SCS_C,SOIL_CV_DATA!$A:$A,0))) -> NA | J71: =IF(rhoSC<>G71,"WARNING","") ->  | K71: =IF(rhoSC<>G71,"Value is different from default value; please justify.","") ->  | AC71: Stratum C bulk density | AD71: (g/cm3) | AE71: rhoSC | AF71: =IF(INDEX(Bulk_Density,MATCH(SCS_C,Soil_Type2,0))=0,"",(INDEX(Bulk_Density,MATCH(SCS_C,Soil_Type2,0)))) ->  | AG71: =IF(INDEX(Bulk_Density,MATCH(SCS_C,Soil_Type2,0))=0,"",(INDEX(Bulk_Density,MATCH(SCS_C,Soil_Type2,0)))) ->  | AH71: NA | AI71: =IF(SCS_C="Not Present","NA",INDEX(SOIL_CV_DATA!$E:$E,MATCH(SCS_C,SOIL_CV_DATA!$A:$A,0))) -> NA | AJ71: =IF(rhoSC<>AG71,"WARNING","") ->  | AK71: =IF(rhoSC<>AG71,"Value is different from default value; please justify.","") -> 
A72: =IF(Source="Groundwater","Stratum directly above the water table","Stratum containing soil gas sample") -> Stratum directly above the water table | J72: =IF(hSA+hSB+hSC<Ls,"ERROR","") ->  | K72: =IF(hSA+hSB+hSC<Ls,CONCATENATE("Sum of strata thicknesses must equal Ls (",IF(Source="Groundwater","Depth below grade to water table","Depth below grade to soil gas sample"),")"),"") ->  | AA72: Stratum containing soil gas sample | AJ72: =IF(hSA+hSB+hSC<Ls,"ERROR","") ->  | AK72: =IF(hSA+hSB+hSC<Ls,CONCATENATE("Sum of strata thicknesses must equal Ls (",IF(Source="Groundwater","Depth below grade to water table","Depth below grade to soil gas sample"),")"),"") -> 
C73: Stratum A, B, or C | E73: src_soil | F73: =IF(AND(SCS_B="Not Present",SCS_C="Not Present")=TRUE,"Stratum A",IF(AND(SCS_B<>"Not Present",SCS_C="Not Present")=TRUE,"Stratum B","Stratum C")) -> Stratum A | AC73: Stratum A, B, or C | AE73: src_soil | AF73: =IF(AND(SCS_B="Not Present",SCS_C="Not Present")=TRUE,"Stratum A",IF(AND(SCS_B<>"Not Present",SCS_C="Not Present")=TRUE,"Stratum B","Stratum C")) -> Stratum A
C74: =IF(Source="Groundwater","Height of capillary fringe","") -> Height of capillary fringe | D74: =IF(Source="Groundwater","(m)","") -> (m) | E74: =IF(Source="Groundwater","hcz","") -> hcz | F74: =IF(Source="Groundwater",((IF(src_soil="Stratum A",IF(INDEX(Capillary_height,MATCH(SCS_A,Soil_Type2,0))=0,"",(INDEX(Capillary_height,MATCH(SCS_A,Soil_Type2,0)))),IF(src_soil="Stratum B",IF(INDEX(Capillary_height,MATCH(SCS_B,Soil_Type2,0))=0,"",(INDEX(Capillary_height,MATCH(SCS_B,Soil_Type2,0)))),IF(INDEX(Capillary_height,MATCH(SCS_C,Soil_Type2,0))=0,"",(INDEX(Capillary_height,MATCH(SCS_C,Soil_Type2,0)))))))/100),"") -> 0.1704545455 | G74: =IF(Source="Groundwater",((IF(src_soil="Stratum A",IF(INDEX(Capillary_height,MATCH(SCS_A,Soil_Type2,0))=0,"",(INDEX(Capillary_height,MATCH(SCS_A,Soil_Type2,0)))),IF(src_soil="Stratum B",IF(INDEX(Capillary_height,MATCH(SCS_B,Soil_Type2,0))=0,"",(INDEX(Capillary_height,MATCH(SCS_B,Soil_Type2,0)))),IF(INDEX(Capillary_height,MATCH(SCS_C,Soil_Type2,0))=0,"",(INDEX(Capillary_height,MATCH(SCS_C,Soil_Type2,0)))))))/100),"") -> 0.1704545455 | H74: NA | I74: NA | J74: =IF(hcz<>G74,"WARNING","") ->  | K74: =IF(hcz<>G74,"Value is different from default value; please justify.","") ->  | AF74: =IF(Source="Groundwater",((IF(src_soil="Stratum A",IF(INDEX(Capillary_height,MATCH(SCS_A,Soil_Type2,0))=0,"",(INDEX(Capillary_height,MATCH(SCS_A,Soil_Type2,0)))),IF(src_soil="Stratum B",IF(INDEX(Capillary_height,MATCH(SCS_B,Soil_Type2,0))=0,"",(INDEX(Capillary_height,MATCH(SCS_B,Soil_Type2,0)))),IF(INDEX(Capillary_height,MATCH(SCS_C,Soil_Type2,0))=0,"",(INDEX(Capillary_height,MATCH(SCS_C,Soil_Type2,0)))))))/100),"") -> 0.1704545455 | AG74: =IF(Source="Groundwater",((IF(src_soil="Stratum A",IF(INDEX(Capillary_height,MATCH(SCS_A,Soil_Type2,0))=0,"",(INDEX(Capillary_height,MATCH(SCS_A,Soil_Type2,0)))),IF(src_soil="Stratum B",IF(INDEX(Capillary_height,MATCH(SCS_B,Soil_Type2,0))=0,"",(INDEX(Capillary_height,MATCH(SCS_B,Soil_Type2,0)))),IF(INDEX(Capillary_height,MATCH(SCS_C,Soil_Type2,0))=0,"",(INDEX(Capillary_height,MATCH(SCS_C,Soil_Type2,0)))))))/100),"") -> 0.1704545455 | AH74: NA | AI74: NA | AJ74: =IF(hcz<>AG74,"WARNING","") ->  | AK74: =IF(hcz<>AG74,"Value is different from default value; please justify.","") -> 
C75: =IF(Source="Groundwater","Capillary zone total porosity","") -> Capillary zone total porosity | D75: =IF(Source="Groundwater","(-)","") -> (-) | E75: =IF(Source="Groundwater","ncz","") -> ncz | F75: =IF(Source="Groundwater",(IF(src_soil="Stratum A",IF(INDEX(Total_Porosity,MATCH(SCS_A,Soil_Type2,0))=0,"",(INDEX(Total_Porosity,MATCH(SCS_A,Soil_Type2,0)))),IF(src_soil="Stratum B",IF(INDEX(Total_Porosity,MATCH(SCS_B,Soil_Type2,0))=0,"",(INDEX(Total_Porosity,MATCH(SCS_B,Soil_Type2,0)))),IF(INDEX(Total_Porosity,MATCH(SCS_C,Soil_Type2,0))=0,"",(INDEX(Total_Porosity,MATCH(SCS_C,Soil_Type2,0))))))),"") -> 0.375 | G75: =IF(Source="Groundwater",(IF(src_soil="Stratum A",IF(INDEX(Total_Porosity,MATCH(SCS_A,Soil_Type2,0))=0,"",(INDEX(Total_Porosity,MATCH(SCS_A,Soil_Type2,0)))),IF(src_soil="Stratum B",IF(INDEX(Total_Porosity,MATCH(SCS_B,Soil_Type2,0))=0,"",(INDEX(Total_Porosity,MATCH(SCS_B,Soil_Type2,0)))),IF(INDEX(Total_Porosity,MATCH(SCS_C,Soil_Type2,0))=0,"",(INDEX(Total_Porosity,MATCH(SCS_C,Soil_Type2,0))))))),"") -> 0.375 | H75: NA | I75: =IF(Source="Groundwater",IF(src_soil="Stratum A",I57,IF(src_soil="Stratum B",I63,I69)),"") -> 0.2 | J75: =IF(ncz<>G75,"WARNING","") ->  | K75: =IF(ncz<>G75,"Value is different from default value; please justify.","") ->  | AF75: =IF(Source="Groundwater",(IF(src_soil="Stratum A",IF(INDEX(Total_Porosity,MATCH(SCS_A,Soil_Type2,0))=0,"",(INDEX(Total_Porosity,MATCH(SCS_A,Soil_Type2,0)))),IF(src_soil="Stratum B",IF(INDEX(Total_Porosity,MATCH(SCS_B,Soil_Type2,0))=0,"",(INDEX(Total_Porosity,MATCH(SCS_B,Soil_Type2,0)))),IF(INDEX(Total_Porosity,MATCH(SCS_C,Soil_Type2,0))=0,"",(INDEX(Total_Porosity,MATCH(SCS_C,Soil_Type2,0))))))),"") -> 0.375 | AG75: =IF(Source="Groundwater",(IF(src_soil="Stratum A",IF(INDEX(Total_Porosity,MATCH(SCS_A,Soil_Type2,0))=0,"",(INDEX(Total_Porosity,MATCH(SCS_A,Soil_Type2,0)))),IF(src_soil="Stratum B",IF(INDEX(Total_Porosity,MATCH(SCS_B,Soil_Type2,0))=0,"",(INDEX(Total_Porosity,MATCH(SCS_B,Soil_Type2,0)))),IF(INDEX(Total_Porosity,MATCH(SCS_C,Soil_Type2,0))=0,"",(INDEX(Total_Porosity,MATCH(SCS_C,Soil_Type2,0))))))),"") -> 0.375 | AH75: NA | AI75: =IF(Source="Groundwater",IF(src_soil="Stratum A",AI57,IF(src_soil="Stratum B",AI63,AI69)),"") -> 0.2 | AJ75: =IF(ncz<>AG75,"WARNING","") ->  | AK75: =IF(ncz<>AG75,"Value is different from default value; please justify.","") -> 
C76: =IF(Source="Groundwater","Capillary zone water filled porosity","") -> Capillary zone water filled porosity | D76: =IF(Source="Groundwater","(-)","") -> (-) | E76: =IF(Source="Groundwater","nwcz","") -> nwcz | F76: =IF(Source="Groundwater",(IF(src_soil="Stratum A",IF(INDEX(Capillary_Water_Porosity_List,MATCH(SCS_A,Soil_Type2,0))=0,"",(INDEX(Capillary_Water_Porosity_List,MATCH(SCS_A,Soil_Type2,0)))),IF(src_soil="Stratum B",IF(INDEX(Capillary_Water_Porosity_List,MATCH(SCS_B,Soil_Type2,0))=0,"",(INDEX(Capillary_Water_Porosity_List,MATCH(SCS_B,Soil_Type2,0)))),IF(INDEX(Capillary_Water_Porosity_List,MATCH(SCS_C,Soil_Type2,0))=0,"",(INDEX(Capillary_Water_Porosity_List,MATCH(SCS_C,Soil_Type2,0))))))),"") -> 0.2532581126 | G76: =IF(Source="Groundwater",(IF(src_soil="Stratum A",IF(INDEX(Capillary_Water_Porosity_List,MATCH(SCS_A,Soil_Type2,0))=0,"",(INDEX(Capillary_Water_Porosity_List,MATCH(SCS_A,Soil_Type2,0)))),IF(src_soil="Stratum B",IF(INDEX(Capillary_Water_Porosity_List,MATCH(SCS_B,Soil_Type2,0))=0,"",(INDEX(Capillary_Water_Porosity_List,MATCH(SCS_B,Soil_Type2,0)))),IF(INDEX(Capillary_Water_Porosity_List,MATCH(SCS_C,Soil_Type2,0))=0,"",(INDEX(Capillary_Water_Porosity_List,MATCH(SCS_C,Soil_Type2,0))))))),"") -> 0.2532581126 | H76: NA | I76: =IF(Source="Groundwater",IF(src_soil="Stratum A",INDEX(Soil_CV_Cap_WF_Porosity,MATCH(SCS_A,Soil_CV_Name,0)),IF(src_soil="Stratum B",INDEX(Soil_CV_Cap_WF_Porosity,MATCH(SCS_B,Soil_CV_Name,0)),INDEX(Soil_CV_Cap_WF_Porosity,MATCH(SCS_C,Soil_CV_Name,0)))),"") -> 0.1395348837 | J76: =IF(nwcz<>G76,"WARNING","") ->  | K76: =IF(nwcz<>G76,"Value is different from default value; please justify.","") ->  | AF76: =IF(Source="Groundwater",(IF(src_soil="Stratum A",IF(INDEX(Capillary_Water_Porosity_List,MATCH(SCS_A,Soil_Type2,0))=0,"",(INDEX(Capillary_Water_Porosity_List,MATCH(SCS_A,Soil_Type2,0)))),IF(src_soil="Stratum B",IF(INDEX(Capillary_Water_Porosity_List,MATCH(SCS_B,Soil_Type2,0))=0,"",(INDEX(Capillary_Water_Porosity_List,MATCH(SCS_B,Soil_Type2,0)))),IF(INDEX(Capillary_Water_Porosity_List,MATCH(SCS_C,Soil_Type2,0))=0,"",(INDEX(Capillary_Water_Porosity_List,MATCH(SCS_C,Soil_Type2,0))))))),"") -> 0.2532581126 | AG76: =IF(Source="Groundwater",(IF(src_soil="Stratum A",IF(INDEX(Capillary_Water_Porosity_List,MATCH(SCS_A,Soil_Type2,0))=0,"",(INDEX(Capillary_Water_Porosity_List,MATCH(SCS_A,Soil_Type2,0)))),IF(src_soil="Stratum B",IF(INDEX(Capillary_Water_Porosity_List,MATCH(SCS_B,Soil_Type2,0))=0,"",(INDEX(Capillary_Water_Porosity_List,MATCH(SCS_B,Soil_Type2,0)))),IF(INDEX(Capillary_Water_Porosity_List,MATCH(SCS_C,Soil_Type2,0))=0,"",(INDEX(Capillary_Water_Porosity_List,MATCH(SCS_C,Soil_Type2,0))))))),"") -> 0.2532581126 | AH76: NA | AI76: =IF(Source="Groundwater",IF(src_soil="Stratum A",INDEX(Soil_CV_Cap_WF_Porosity,MATCH(SCS_A,Soil_CV_Name,0)),IF(src_soil="Stratum B",INDEX(Soil_CV_Cap_WF_Porosity,MATCH(SCS_B,Soil_CV_Name,0)),INDEX(Soil_CV_Cap_WF_Porosity,MATCH(SCS_C,Soil_CV_Name,0)))),"") -> 0.1395348837 | AJ76: =IF(nwcz<>AG76,"WARNING","") ->  | AK76: =IF(nwcz<>AG76,"Value is different from default value; please justify.","") -> 
A77: Exposure Parameters: | D77: Units | E77: Symbol | F77: Value | G77: Default | H77: Potential Span | I77: CV | J77: Flag | K77: Comment | AA77: Exposure Parameters: | AD77: Units | AE77: Symbol | AF77: Value | AG77: Default | AH77: Range | AI77: CV | AJ77: Flag | AK77: Comment
B78: Target risk for carcinogens | D78: (-) | E78: Target_CR | F78: 1e-06 | G78: 1e-06 | H78: NA | I78: NA | J78: =IF(Target_CR<>G78,"WARNING","") ->  | K78: =IF(Target_CR<>G78,"Value is different from default value; please justify.","") ->  | AB78: Target risk for carcinogens | AD78: (-) | AE78: Target_CR | AF78: 1e-06 | AG78: 1e-06 | AH78: NA | AI78: NA | AJ78: =IF(Target_CR<>AG78,"WARNING","") ->  | AK78: =IF(Target_CR<>AG78,"Value is different from default value; please justify.","") -> 
B79: Target hazard quotient for non-carcinogens | D79: (-) | E79: Target_HQ | F79: 1 | G79: 1 | H79: NA | I79: NA | J79: =IF(Target_HQ<>G79,"WARNING","") ->  | K79: =IF(Target_HQ<>G79,"Value is different from default value; please justify.","") ->  | AB79: Target hazard quotient for non-carcinogens | AD79: (-) | AE79: Target_HQ | AF79: 1 | AG79: 1 | AH79: NA | AI79: NA | AJ79: =IF(Target_HQ<>AG79,"WARNING","") ->  | AK79: =IF(Target_HQ<>AG79,"Value is different from default value; please justify.","") -> 
B80: Exposure Scenario | E80: Scenario | F80: =Bldg_Setting -> Residential | G80: =Scenario -> Residential | AB80: Exposure Scenario | AE80: Scenario | AF80: =Bldg_Setting -> Residential | AG80: =Scenario -> Residential
B81: Averaging time for carcinogens | D81: (yrs) | E81: ATc | F81: =IF(Scenario="Residential",VLOOKUP($E$81,EXPOSURE_DATA!$C$2:$E$6,2,FALSE),VLOOKUP($E$81,EXPOSURE_DATA!$C$2:$E$6,3,FALSE)) -> 70 | G81: =IF(Scenario="Residential",VLOOKUP($E$81,EXPOSURE_DATA!$C$2:$E$6,2,FALSE),VLOOKUP($E$81,EXPOSURE_DATA!$C$2:$E$6,3,FALSE)) -> 70 | H81: NA | I81: NA | J81: =IF(ATc<>G81,"WARNING","") ->  | K81: =IF(ATc<>G81,"Value is different from default value; please justify.","") ->  | AB81: Averaging time for carcinogens | AD81: (yrs) | AE81: ATc | AF81: =IF(Scenario="Residential",VLOOKUP($E$81,EXPOSURE_DATA!$C$2:$E$6,2,FALSE),VLOOKUP($E$81,EXPOSURE_DATA!$C$2:$E$6,3,FALSE)) -> 70 | AG81: =IF(Scenario="Residential",VLOOKUP($E$81,EXPOSURE_DATA!$C$2:$E$6,2,FALSE),VLOOKUP($E$81,EXPOSURE_DATA!$C$2:$E$6,3,FALSE)) -> 70 | AH81: NA | AI81: NA | AJ81: =IF(ATc<>AG81,"WARNING","") ->  | AK81: =IF(ATc<>AG81,"Value is different from default value; please justify.","") -> 
B82: Averaging time for non-carcinogens | D82: (yrs) | E82: ATnc | F82: =IF(Scenario="Residential",VLOOKUP($E$82,EXPOSURE_DATA!$C$2:$E$6,2,FALSE),VLOOKUP($E$82,EXPOSURE_DATA!$C$2:$E$6,3,FALSE)) -> 26 | G82: =IF(Scenario="Residential",VLOOKUP($E$82,EXPOSURE_DATA!$C$2:$E$6,2,FALSE),VLOOKUP($E$82,EXPOSURE_DATA!$C$2:$E$6,3,FALSE)) -> 26 | H82: NA | I82: NA | J82: =IF(ATnc<>G82,"WARNING","") ->  | K82: =IF(ATnc<>G82,"Value is different from default value; please justify.","") ->  | AB82: Averaging time for non-carcinogens | AD82: (yrs) | AE82: ATnc | AF82: =IF(Scenario="Residential",VLOOKUP($E$82,EXPOSURE_DATA!$C$2:$E$6,2,FALSE),VLOOKUP($E$82,EXPOSURE_DATA!$C$2:$E$6,3,FALSE)) -> 26 | AG82: =IF(Scenario="Residential",VLOOKUP($E$82,EXPOSURE_DATA!$C$2:$E$6,2,FALSE),VLOOKUP($E$82,EXPOSURE_DATA!$C$2:$E$6,3,FALSE)) -> 26 | AH82: NA | AI82: NA | AJ82: =IF(ATnc<>AG82,"WARNING","") ->  | AK82: =IF(ATnc<>AG82,"Value is different from default value; please justify.","") -> 
B83: Exposure duration | D83: (yrs) | E83: ED | F83: =IF(Scenario="Residential",VLOOKUP($E$83,EXPOSURE_DATA!$C$2:$E$6,2,FALSE),VLOOKUP($E$83,EXPOSURE_DATA!$C$2:$E$6,3,FALSE)) -> 26 | G83: =IF(Scenario="Residential",VLOOKUP($E$83,EXPOSURE_DATA!$C$2:$E$6,2,FALSE),VLOOKUP($E$83,EXPOSURE_DATA!$C$2:$E$6,3,FALSE)) -> 26 | H83: NA | I83: NA | J83: =IF(ED<>G83,"WARNING","") ->  | K83: =IF(ED<>G83,"Value is different from default value; please justify.","") ->  | AB83: Exposure duration | AD83: (yrs) | AE83: ED | AF83: =IF(Scenario="Residential",VLOOKUP($E$83,EXPOSURE_DATA!$C$2:$E$6,2,FALSE),VLOOKUP($E$83,EXPOSURE_DATA!$C$2:$E$6,3,FALSE)) -> 26 | AG83: =IF(Scenario="Residential",VLOOKUP($E$83,EXPOSURE_DATA!$C$2:$E$6,2,FALSE),VLOOKUP($E$83,EXPOSURE_DATA!$C$2:$E$6,3,FALSE)) -> 26 | AH83: NA | AI83: NA | AJ83: =IF(ED<>AG83,"WARNING","") ->  | AK83: =IF(ED<>AG83,"Value is different from default value; please justify.","") -> 
B84: Exposure frequency | D84: (days/yr) | E84: EF | F84: =IF(Scenario="Residential",VLOOKUP($E$84,EXPOSURE_DATA!$C$2:$E$6,2,FALSE),VLOOKUP($E$84,EXPOSURE_DATA!$C$2:$E$6,3,FALSE)) -> 350 | G84: =IF(Scenario="Residential",VLOOKUP($E$84,EXPOSURE_DATA!$C$2:$E$6,2,FALSE),VLOOKUP($E$84,EXPOSURE_DATA!$C$2:$E$6,3,FALSE)) -> 350 | H84: NA | I84: NA | J84: =IF(EF<>G84,"WARNING","") ->  | K84: =IF(EF<>G84,"Value is different from default value; please justify.","") ->  | AB84: Exposure frequency | AD84: (days/yr) | AE84: EF | AF84: =IF(Scenario="Residential",VLOOKUP($E$84,EXPOSURE_DATA!$C$2:$E$6,2,FALSE),VLOOKUP($E$84,EXPOSURE_DATA!$C$2:$E$6,3,FALSE)) -> 350 | AG84: =IF(Scenario="Residential",VLOOKUP($E$84,EXPOSURE_DATA!$C$2:$E$6,2,FALSE),VLOOKUP($E$84,EXPOSURE_DATA!$C$2:$E$6,3,FALSE)) -> 350 | AH84: NA | AI84: NA | AJ84: =IF(EF<>AG84,"WARNING","") ->  | AK84: =IF(EF<>AG84,"Value is different from default value; please justify.","") -> 
B85: Exposure time | D85: (hrs/24 hrs) | E85: ET | F85: =IF(Scenario="Residential",VLOOKUP($E$85,EXPOSURE_DATA!$C$2:$E$6,2,FALSE),VLOOKUP($E$85,EXPOSURE_DATA!$C$2:$E$6,3,FALSE)) -> 24 | G85: =IF(Scenario="Residential",VLOOKUP($E$85,EXPOSURE_DATA!$C$2:$E$6,2,FALSE),VLOOKUP($E$85,EXPOSURE_DATA!$C$2:$E$6,3,FALSE)) -> 24 | H85: NA | I85: NA | J85: =IF(ET<>G85,"WARNING","") ->  | K85: =IF(ET<>G85,"Value is different from default value; please justify.","") ->  | AB85: Exposure time | AD85: (hrs/24 hrs) | AE85: ET | AF85: =IF(Scenario="Residential",VLOOKUP($E$85,EXPOSURE_DATA!$C$2:$E$6,2,FALSE),VLOOKUP($E$85,EXPOSURE_DATA!$C$2:$E$6,3,FALSE)) -> 24 | AG85: =IF(Scenario="Residential",VLOOKUP($E$85,EXPOSURE_DATA!$C$2:$E$6,2,FALSE),VLOOKUP($E$85,EXPOSURE_DATA!$C$2:$E$6,3,FALSE)) -> 24 | AH85: NA | AI85: NA | AJ85: =IF(ET<>AG85,"WARNING","") ->  | AK85: =IF(ET<>AG85,"Value is different from default value; please justify.","") -> 
B86: Mutagenic mode-of-action factor | D86: (yrs) | E86: MMOAF | F86: =EXPOSURE_DATA!$D$7 -> 72 | G86: =EXPOSURE_DATA!$D$7 -> 72 | H86: NA | I86: NA | J86: =IF(MUT="No", "NOTE", "") ->  | K86: =IF(MUT="No", "MMOAF not relevant for non-mutagenic compounds", "MMOAF used in place of ED in risk calculations for residential exposure scenario") -> MMOAF used in place of ED in risk calculations for residential exposure scenario | AB86: Mutagenic mode-of-action factor | AD86: (yrs) | AE86: MMOAF | AF86: =EXPOSURE_DATA!$D$7 -> 72 | AG86: =EXPOSURE_DATA!$D$7 -> 72 | AH86: NA | AI86: NA | AJ86: =IF(MUT="No", "NOTE", "") ->  | AK86: =IF(MUT="No", "MMOAF not relevant for non-mutagenic compounds", "MMOAF used in place of ED in risk calculations") -> MMOAF used in place of ED in risk calculations
A87: Intentionally Blank | AG87: Total Coefficient of Variation (CV) | AI87: =SQRT(SUMSQ(AI10:AI14,AI17:AI22,AI24:AI29,AJ36:AJ46,AI54:AI76,AI78:AI86)) -> 2.214716683 | AJ87: =IF(OR(AI24,AI25,AI28,AI29)="NA","WARNING", "") -> WARNING | AK87: =IF(OR(AI24,AI25,AI28,AI29)="NA","Chemical property CV values not available for this chemical.", "") -> Chemical property CV values not available for this chemical.
A88: Intentionally Blank | AA88: =$A$5 -> Intentionally Blank
A89: Intentionally Blank | J89: Range is based on the reasonable range of Qsoil/Qbuilding values, as reported in the literature.
A90: Model Output | D90: Site Name/Run Number: | F90: =Name_and_run -> DTSC J&E Case | P90: Input Min | Q90: Input Max | R90: Default Min | S90: Default Max | AA90: Model Output | AD90: Site Name/Run Number:
B91: ="Chemical Name:"&" "&$F$17&" CAS No. "&CAS -> Chemical Name: Trichloroethylene CAS No. 79-01-6 | AB91: ="Chemical Name:"&" "&$F$17&" CAS No. "&CAS -> Chemical Name: Trichloroethylene CAS No. 79-01-6
A92: Source to Indoor Air Attenuation Factor | E92: Units | F92: Symbol | G92: Value | H92: Range | I92: Default | J92: Default Range | K92: Flag | L92: Comment | AB92: Source to Indoor Air Attenuation Factor | AF92: Units | AG92: Symbol | AH92: Value | AI92: Default | AK92: Flag | AL92: Comment
B93: =IF(Source="Groundwater", "Groundwater to indoor air attenuation coefficient","Soil gas to indoor air attenuation coefficient") -> Groundwater to indoor air attenuation coefficient | E93: (-) | F93: alpha | G93: =IF(Source="Sub-slab Soil Gas",Qsoil_Qb,(IF(OR(Found_Type="Basement w/ dirt floor",Found_Type="Closed crawl space w/ dirt floor")=TRUE,A_Param/(1+A_Param),A_Param/(1+A_Param*EXP(-B_Param)+(A_Param/C_Param)*(1-EXP(-B_Param)))))) -> 0.000366203784 | H93: =IF(P93<Q93,CONCATENATE(TEXT(P93,"0.0E+00")," - ",TEXT(Q93,"0.0E+00")),CONCATENATE(TEXT(Q93,"0.0E+00")," - ",TEXT(P93,"0.0E+00"))) -> 8.5E-05 - 4.1E-04 | I93: =IF(Source="Sub-slab Soil Gas", Qsoil_Qb, IF(OR(Found_Type="Basement w/ dirt floor", Found_Type="Closed crawl space w/ dirt floor")=TRUE,A_Param_default/(1+A_Param_default),A_Param_default/(1+A_Param_default*EXP(-B_Param_Default)+(A_Param_default/C_Param_Default)*(1-EXP(-B_Param_Default))))) -> 0.000366203784 | J93: =IF(R93<S93,CONCATENATE(TEXT(R93,"0.0E+00")," - ",TEXT(S93,"0.0E+00")),CONCATENATE(TEXT(S93,"0.0E+00")," - ",TEXT(R93,"0.0E+00"))) -> 8.5E-05 - 4.1E-04 | K93: =IF(COUNTIF($J$11:$J$85,"ERROR")>0,"ERROR","") ->  | L93: =IF(COUNTIF($J$10:$J$85,"ERROR")>0,"Invalid result. Please correct errors.","") ->  | P93: =IF(Source="Sub-slab Soil Gas",Qsoil_Qb_min,(IF(OR(Found_Type="Basement w/ dirt floor",Found_Type="Closed crawl space w/ dirt floor")=TRUE,A_Param/(1+A_Param),A_Param/(1+A_Param*EXP(-B_param_min)+(A_Param/C_param_min)*(1-EXP(-B_param_min)))))) -> 8.548031733e-05 | Q93: =IF(Source="Sub-slab Soil Gas",Qsoil_Qb_max,(IF(OR(Found_Type="Basement w/ dirt floor",Found_Type="Closed crawl space w/ dirt floor")=TRUE,A_Param/(1+A_Param),A_Param/(1+A_Param*EXP(-B_param_max)+(A_Param/C_param_max)*(1-EXP(-B_param_max)))))) -> 0.000413669857 | R93: =IF(Source="Sub-slab Soil Gas",Qsoil_Qb_min,(IF(OR(Found_Type="Basement w/ dirt floor",Found_Type="Closed crawl space w/ dirt floor")=TRUE,A_Param_default/(1+A_Param_default),A_Param_default/(1+A_Param_default*EXP(-B_param_min_default)+(A_Param_default/C_param_min_default)*(1-EXP(-B_param_min_default)))))) -> 8.548031733e-05 | S93: =IF(Source="Sub-slab Soil Gas",Qsoil_Qb_max,(IF(OR(Found_Type="Basement w/ dirt floor",Found_Type="Closed crawl space w/ dirt floor")=TRUE,A_Param_default/(1+A_Param_default),A_Param_default/(1+A_Param_default*EXP(-B_param_max_default)+(A_Param_default/C_param_max_default)*(1-EXP(-B_param_max_default)))))) -> 0.000413669857 | AC93: =IF(Source="Groundwater", "Groundwater to indoor air attenuation coefficient","Soil gas to indoor air attenuation coefficient") -> Groundwater to indoor air attenuation coefficient | AF93: (-) | AG93: alpha | AH93: =IF(Source="Sub-slab Soil Gas",Qsoil_Qb,(IF(OR(Found_Type="Basement w/ dirt floor",Found_Type="Closed crawl space w/ dirt floor")=TRUE,A_Param/(1+A_Param),A_Param/(1+A_Param*EXP(-B_Param)+(A_Param/C_Param)*(1-EXP(-B_Param)))))) -> 0.000366203784 | AI93: =IF(Source="Sub-slab Soil Gas", Qsoil_Qb, IF(OR(Found_Type="Basement w/ dirt floor", Found_Type="Closed crawl space w/ dirt floor")=TRUE,AH111/(1+AH111),AH111/(1+AH111*EXP(-AH112)+(AH111/AH113)*(1-EXP(-AH112))))) -> 0.0003660609912 | AK93: =IF(COUNTIF($J$11:$J$85,"ERROR")>0,"ERROR","") ->  | AL93: =IF(COUNTIF($J$10:$J$85,"ERROR")>0,"Invalid result. Please correct errors.","") -> 
A94: Intentionally Blank | K94: =IF(COUNTIF($J$10:$J$85,"WARNING")>0,"WARNING","") ->  | L94: =IF(COUNTIF($J$11:$J$85,"WARNING")>0,"Please review warning messages","") ->  | AK94: =IF(COUNTIF($J$10:$J$85,"WARNING")>0,"WARNING","") ->  | AL94: =IF(COUNTIF($J$11:$J$85,"WARNING")>0,"Please review warning messages","") -> 
A95: Predicted Indoor Air Concentration | E95: Units | F95: Symbol | G95: Value | H95: Range | I95: Default | J95: Default Range | K95: Flag | L95: Comment | AB95: Predicted Indoor Air Concentration
B96: Indoor air concentration due to vapor intrusion | E96: (ug/m3) | F96: Cia | G96: =Cs*alpha -> 0.1176684285 | H96: =IF(P96<Q96,CONCATENATE(TEXT(P96,"0.0E+00")," - ",TEXT(Q96,"0.0E+00")),CONCATENATE(TEXT(Q96,"0.0E+00")," - ",TEXT(P96,"0.0E+00"))) -> 2.7E-02 - 1.3E-01 | I96: =Cs*alpha_default -> 0.1176684285 | J96: =IF(R96<S96,CONCATENATE(TEXT(R96,"0.0E+00")," - ",TEXT(S96,"0.0E+00")),CONCATENATE(TEXT(S96,"0.0E+00")," - ",TEXT(R96,"0.0E+00"))) -> 2.7E-02 - 1.3E-01 | K96: =IF(COUNTIF($J$10:$J$85,"ERROR")>0,"ERROR",IF(INDEX(CHEM_DATA!$AE:$AE, MATCH(Chem, Chem_Search,0))="Yes","WARNING","")) ->  | L96: =IF(COUNTIF($J$10:$J$85,"ERROR")>0,"Invalid result. Please correct errors.", IF(INDEX(CHEM_DATA!$AE:$AE, MATCH(Chem, Chem_Search,0))="Yes", "May be overestimated; biodegradation not considered","")) ->  | P96: =Cs*alpha_min -> 0.02746649556 | Q96: =Cs*alpha_max -> 0.1329202049 | R96: =Cs*alpha_min_default -> 0.02746649556 | S96: =Cs*alpha_max_default -> 0.1329202049 | AC96: Indoor air concentration due to vapor intrusion | AF96: (ug/m3) | AG96: Cia | AH96: =Cs*alpha -> 0.1176684285 | AI96: =Cs*AI93 -> 0.1176225464 | AK96: =IF(COUNTIF($J$10:$J$85,"ERROR")>0,"ERROR",IF(INDEX(CHEM_DATA!$AE:$AE, MATCH(Chem, Chem_Search,0))="Yes","WARNING","")) ->  | AL96: =IF(COUNTIF($J$10:$J$85,"ERROR")>0,"Invalid result. Please correct errors.", IF(INDEX(CHEM_DATA!$AE:$AE, MATCH(Chem, Chem_Search,0))="Yes", "May be overestimated; biodegradation not considered","")) -> 
E97: (ppbv) | G97: =Cs*alpha*24.46/INDEX(CHEM_DATA!$C$6:$C$472, MATCH(Chem, Chem_Search, 0)) -> 0.02190554655 | H97: =IF(P97<Q97,CONCATENATE(TEXT(P97,"0.0E+00")," - ",TEXT(Q97,"0.0E+00")),CONCATENATE(TEXT(Q97,"0.0E+00")," - ",TEXT(P97,"0.0E+00"))) -> 5.1E-03 - 2.5E-02 | I97: =Cs*alpha_default*24.46/INDEX(CHEM_DATA!$C$6:$C$472, MATCH(Chem, Chem_Search, 0)) -> 0.02190554655 | J97: =IF(R97<S97,CONCATENATE(TEXT(R97,"0.0E+00")," - ",TEXT(S97,"0.0E+00")),CONCATENATE(TEXT(S97,"0.0E+00")," - ",TEXT(R97,"0.0E+00"))) -> 5.1E-03 - 2.5E-02 | K97: =IF(COUNTIF($J$11:$J$85,"WARNING")>0,"WARNING","") ->  | L97: =IF(COUNTIF($J$10:$J$85,"WARNING")>0,"Please review warning messages", "") ->  | P97: =Cs*alpha_min*24.46/INDEX(CHEM_DATA!$C$6:$C$472, MATCH(Chem, Chem_Search, 0)) -> 0.005113254293 | Q97: =Cs*alpha_max*24.46/INDEX(CHEM_DATA!$C$6:$C$472, MATCH(Chem, Chem_Search, 0)) -> 0.02474486804 | R97: =Cs*alpha_min_default*24.46/INDEX(CHEM_DATA!$C$6:$C$472, MATCH(Chem, Chem_Search, 0)) -> 0.005113254293 | S97: =Cs*alpha_max_default*24.46/INDEX(CHEM_DATA!$C$6:$C$472, MATCH(Chem, Chem_Search, 0)) -> 0.02474486804 | AF97: (ppbv) | AH97: =Cs*alpha*24.46/INDEX(CHEM_DATA!$C$6:$C$472, MATCH(Chem, Chem_Search, 0)) -> 0.02190554655 | AI97: =Cs*AI93*24.46/INDEX(CHEM_DATA!$C$6:$C$472, MATCH(Chem, Chem_Search, 0)) -> 0.02189700499 | AK97: =IF(COUNTIF($J$11:$J$85,"WARNING")>0,"WARNING","") ->  | AL97: =IF(COUNTIF($J$10:$J$85,"WARNING")>0,"Please review warning messages", "") -> 
A98: Intentionally Blank
A99: Predicted Vapor Conc. Beneath Foundation | E99: Units | F99: Symbol | G99: Value | H99: Range | I99: Default | J99: Default Range | K99: Flag | L99: Comment | AB99: Predicted Vapor Concentration Beneath the Foundation
B100: Subslab vapor concentration | E100: (ug/m3) | F100: Css | G100: =IF(OR(Found_Type="Basement w/ dirt floor", Found_Type="Closed crawl space w/ dirt floor")=TRUE, "NA",Cia*Qb/Qsoil) -> 39.2228095 | H100: =IF(P100<Q100,CONCATENATE(TEXT(P100,"0.0E+00")," - ",TEXT(Q100,"0.0E+00")),CONCATENATE(TEXT(Q100,"0.0E+00")," - ",TEXT(P100,"0.0E+00"))) -> 2.7E+00 - 2.7E+02 | I100: =IF(OR(Found_Type="Basement w/ dirt floor", Found_Type="Closed crawl space w/ dirt floor")=TRUE,"NA",Cia_default*Qb_default/Qsoil_default) -> 39.2228095 | J100: =IF(R100<S100,CONCATENATE(TEXT(R100,"0.0E+00")," - ",TEXT(S100,"0.0E+00")),CONCATENATE(TEXT(S100,"0.0E+00")," - ",TEXT(R100,"0.0E+00"))) -> 2.7E+02 - 1.3E+03 | P100: =IF(OR(Found_Type="Basement w/ dirt floor",Found_Type="Closed crawl space w/ dirt floor")=TRUE,"NA",Cia_min*(1/Qsoil_Qb_min)) -> 274.6649556 | Q100: =IF(OR(Found_Type="Basement w/ dirt floor", Found_Type="Closed crawl space w/ dirt floor")=TRUE, "NA",Cia_max*(1/Qsoil_Qb_max)) -> 2.658404097 | R100: =IF(OR(Found_Type="Basement w/ dirt floor",Found_Type="Closed crawl space w/ dirt floor")=TRUE,"NA",Cia_min_default*(1/Qsoil_Qb_min)) -> 274.6649556 | S100: =IF(OR(Found_Type="Basement w/ dirt floor",Found_Type="Closed crawl space w/ dirt floor")=TRUE,"NA",Cia_max_default*(1/Qsoil_Qb_min)) -> 1329.202049 | AC100: Subslab vapor concentration | AF100: (ug/m3) | AG100: Css | AH100: =IF(OR(Found_Type="Basement w/ dirt floor", Found_Type="Closed crawl space w/ dirt floor")=TRUE, "NA",Cia*Qb/Qsoil) -> 39.2228095 | AI100: =IF(OR(Found_Type="Basement w/ dirt floor", Found_Type="Closed crawl space w/ dirt floor")=TRUE,"NA",Cs*AI93/AH44) -> 39.20751547
E101: (ppbv) | G101: =IF(Found_Type="Basement w/ dirt floor","NA",G100*24.46/(INDEX(CHEM_DATA!$C6:$C472,MATCH(Chem,Chem_Search,0)))) -> 7.301848851 | H101: =IF(P101<Q101,CONCATENATE(TEXT(P101,"0.0E+00")," - ",TEXT(Q101,"0.0E+00")),CONCATENATE(TEXT(Q101,"0.0E+00")," - ",TEXT(P101,"0.0E+00"))) -> 4.9E-01 - 5.1E+01 | I101: =IF(Found_Type="Basement w/ dirt floor","NA",I100*24.46/(INDEX(CHEM_DATA!$C6:$C472,MATCH(Chem,Chem_Search,0)))) -> 7.301848851 | J101: =IF(R101<S101,CONCATENATE(TEXT(R101,"0.0E+00")," - ",TEXT(S101,"0.0E+00")),CONCATENATE(TEXT(S101,"0.0E+00")," - ",TEXT(R101,"0.0E+00"))) -> 5.1E+01 - 2.5E+02 | P101: =IF(Found_Type="Basement w/ dirt floor","NA",P100*24.46/(INDEX(CHEM_DATA!$C6:$C472,MATCH(Chem,Chem_Search,0)))) -> 51.13254293 | Q101: =IF(Found_Type="Basement w/ dirt floor","NA",Q100*24.46/(INDEX(CHEM_DATA!$C6:$C472,MATCH(Chem,Chem_Search,0)))) -> 0.4948973607 | R101: =IF(Found_Type="Basement w/ dirt floor","NA",R100*24.46/(INDEX(CHEM_DATA!$C6:$C472,MATCH(Chem,Chem_Search,0)))) -> 51.13254293 | S101: =IF(Found_Type="Basement w/ dirt floor","NA",S100*24.46/(INDEX(CHEM_DATA!$C6:$C472,MATCH(Chem,Chem_Search,0)))) -> 247.4486804 | AF101: (ppbv) | AH101: =IF(Found_Type="Basement w/ dirt floor","NA",AH100*24.46/(INDEX(CHEM_DATA!$C6:$C472,MATCH(Chem,Chem_Search,0)))) -> 7.301848851 | AI101: =IF(Found_Type="Basement w/ dirt floor","NA",AI100*24.46/(INDEX(CHEM_DATA!$C6:$C472,MATCH(Chem,Chem_Search,0)))) -> 7.299001662
A102: Intentionally Blank
A103: Diffusive Transport Upward Through Vadose Zone | E103: Units | F103: Symbol | G103: Value | H103: Range | I103: Default | J103: Default Range | K103: Flag | L103: Comment | AB103: Diffusive Transport Upward Through Vadose Zone
B104: Effective diffusion coefficient through Stratum A | E104: (cm2/sec) | F104: DeffA | G104: =IF(AND($I$6=2,F10="Groundwater"), 'VG Calcs'!D16, (Dair*(nSA-nwSA)^3.33+Dwater*(nwSA^3.33)/Hs)/(nSA^2) ) -> 0.01109979448 | H104: - | I104: =(Dair*(nSA-nwSA)^3.33+Dwater*(nwSA^3.33)/Hs)/(nSA^2) -> 0.01109979448 | J104: - | AC104: Effective diffusion coefficient through Stratum A | AF104: (cm2/sec) | AG104: DeffA | AH104: =(Dair*(nSA-nwSA)^3.33+Dwater*(nwSA^3.33)/Hs)/(nSA^2) -> 0.01109979448 | AI104: =(AG28*(AG57-AG58)^3.33+AG29*(AG58^3.33)/AG27)/(AG57^2) -> 0.01109979208
B105: Effective diffusion coefficient through Stratum B | E105: (cm2/sec) | F105: DeffB | G105: =IF(AND($I$6=2,F10="Groundwater"), 'VG Calcs'!I16, IF(SCS_B="Not Present","",(Dair*(nSB-nwSB)^3.33+Dwater*(nwSB^3.33)/Hs)/(nSB^2)) ) ->  | H105: - | I105: =IF(SCS_B="Not Present","",(Dair*(nSB-nwSB)^3.33+Dwater*(nwSB^3.33)/Hs)/(nSB^2)) ->  | J105: - | AC105: Effective diffusion coefficient through Stratum B | AF105: (cm2/sec) | AG105: DeffB | AH105: =IF(SCS_B="Not Present","",(Dair*(nSB-nwSB)^3.33+Dwater*(nwSB^3.33)/Hs)/(nSB^2)) ->  | AI105: =IF(SCS_B="Not Present","",(AG28*(AG63-AG64)^3.33+AG29*(AG64^3.33)/AG27)/(AG63^2)) -> 
B106: Effective diffusion coefficient through Stratum C | E106: (cm2/sec) | F106: DeffC | G106: =IF(AND($I$6=2,F10="Groundwater"), 'VG Calcs'!N16, IF(SCS_C="Not Present","",(Dair*(nSC-nwSC)^3.33+Dwater*(nwSC^3.33)/Hs)/(nSC^2)) ) ->  | H106: - | I106: =IF(SCS_C="Not Present","",(Dair*(nSC-nwSC)^3.33+Dwater*(nwSC^3.33)/Hs)/(nSC^2)) ->  | J106: - | AC106: Effective diffusion coefficient through Stratum C | AF106: (cm2/sec) | AG106: DeffC | AH106: =IF(SCS_C="Not Present","",(Dair*(nSC-nwSC)^3.33+Dwater*(nwSC^3.33)/Hs)/(nSC^2)) ->  | AI106: =IF(SCS_C="Not Present","",(AG28*(AG69-AG70)^3.33+AG29*(AG70^3.33)/AG27)/(AG69^2)) -> 
B107: =IF(Source="Groundwater","Effective diffusion coefficient through capillary zone","") -> Effective diffusion coefficient through capillary zone | E107: =IF(Source="Groundwater","(cm2/sec)","") -> (cm2/sec) | F107: =IF(Source="Groundwater","DeffCZ","") -> DeffCZ | G107: =IF(AND($I$6=2,F10="Groundwater"), 'VG Calcs'!S16, IF(Source="Groundwater",IF(src_soil="Not Applicable","",(Dair*(ncz-nwcz)^3.33+Dwater*(nwcz^3.33)/Hs)/ncz^2),"") ) -> 0.0004420422215 | H107: - | I107: =IF(Source="Groundwater",IF(src_soil="Not Applicable","",(Dair*(ncz-nwcz)^3.33+Dwater*(nwcz^3.33)/Hs)/ncz^2),"") -> 0.0004420422215 | J107: - | AC107: =IF(Source="Groundwater","Effective diffusion coefficient through capillary zone","") -> Effective diffusion coefficient through capillary zone | AF107: =IF(Source="Groundwater","(cm2/sec)","") -> (cm2/sec) | AG107: =IF(Source="Groundwater","DeffCZ","") -> DeffCZ | AH107: =IF(Source="Groundwater",IF(src_soil="Not Applicable","",(Dair*(ncz-nwcz)^3.33+Dwater*(nwcz^3.33)/Hs)/ncz^2),"") -> 0.0004420422215 | AI107: =IF(Source="Groundwater",IF(src_soil="Not Applicable","",(AG28*(AG75-AG76)^3.33+AG29*(AG76^3.33)/AG27)/AG75^2),"") -> 0.0004416292793
B108: Effective diffusion coefficient through unsaturated zone | E108: (cm2/sec) | F108: DeffT | G108: =IF(Source="Groundwater",IF(src_soil="Stratum A",(hSA-Lb)/((hSA-Lb-hcz)/DeffA+hcz/DeffCZ),IF(src_soil="Stratum B",IF(SCS_B="Not Present","",(hSA-Lb+hSB)/((hSA-Lb)/DeffA+(hSB-hcz)/DeffB+hcz/DeffCZ)),IF(src_soil="Stratum C",IF(SCS_C="Not Present","",(hSA-Lb+hSB+hSC)/((hSA-Lb)/DeffA+hSB/DeffB+(hSC-hcz)/DeffC+hcz/DeffCZ)),))),IF(src_soil="Stratum A",DeffA,IF(src_soil="Stratum B",(hSA-Lb+hSB)/((hSA-Lb)/DeffA+hSB/DeffB),(hSA-Lb+hSB+hSC)/((hSA-Lb)/DeffA+hSB/DeffB+hSC/DeffC)))) -> 0.006036713082 | H108: - | I108: =IF(Source="Groundwater",IF(src_soil="Stratum A",(hSA-Lb_default)/((hSA-Lb_default-hcz_default)/DeffA_default+hcz_default/DeffCZ_default),IF(src_soil="Stratum B",IF(SCS_B="Not Present","",(hSA-Lb_default+hSB)/((hSA-Lb_default)/DeffA_default+(hSB-hcz_default)/DeffB_default+hcz_default/DeffCZ_default)),IF(src_soil="Stratum C",IF(SCS_C="Not Present","",(hSA-Lb_default+hSB+hSC)/((hSA-Lb_default)/DeffA_default+hSB/DeffB_default+(hSC_default-hcz_default)/DeffC_default+hcz_default/DeffCZ_default)),))),IF(src_soil="Stratum A",DeffA_default,IF(src_soil="Stratum B",(hSA-Lb_default+hSB)/((hSA-Lb_default)/DeffA_default+hSB/DeffB_default),(hSA-Lb_default+hSB+hSC)/((hSA-Lb_default)/DeffA_default+hSB/DeffB_default+hSC/DeffC_default)))) -> 0.006036713082 | J108: - | AC108: Effective diffusion coefficient through unsaturated zone | AF108: (cm2/sec) | AG108: DeffT | AH108: =IF(Source="Groundwater",IF(src_soil="Stratum A",(hSA-Lb)/((hSA-Lb-hcz)/DeffA+hcz/DeffCZ),IF(src_soil="Stratum B",IF(SCS_B="Not Present","",(hSA-Lb+hSB)/((hSA-Lb)/DeffA+(hSB-hcz)/DeffB+hcz/DeffCZ)),IF(src_soil="Stratum C",IF(SCS_C="Not Present","",(hSA-Lb+hSB+hSC)/((hSA-Lb)/DeffA+hSB/DeffB+(hSC-hcz)/DeffC+hcz/DeffCZ)),))),IF(src_soil="Stratum A",DeffA,IF(src_soil="Stratum B",(hSA-Lb+hSB)/((hSA-Lb)/DeffA+hSB/DeffB),(hSA-Lb+hSB+hSC)/((hSA-Lb)/DeffA+hSB/DeffB+hSC/DeffC)))) -> 0.006036713082 | AI108: =IF(Source="Groundwater",IF(src_soil="Stratum A",(hSA-AH38)/((hSA-AH38-AG74)/AI104+AG74/AI107),IF(src_soil="Stratum B",IF(SCS_B="Not Present","",(hSA-AH38+hSB)/((hSA-AH38)/AI104+(hSB-AG74)/AI105+AG74/AI107)),IF(src_soil="Stratum C",IF(SCS_C="Not Present","",(hSA-AH38+hSB+hSC)/((hSA-AH38)/AI104+hSB/AI105+(hSC-AG74)/AI106+AG74/AI107)),))),IF(src_soil="Stratum A",AI104,IF(src_soil="Stratum B",(hSA-AH38+hSB)/((hSA-AH38)/AI104+hSB/AI105),(hSA-AH38+hSB+hSC)/((hSA-AH38)/AI104+hSB/AI105+hSC/AI106)))) -> 0.006034032066
A109: Intentionally Blank
A110: Critical Parameters | F110: Symbol | G110: Value | H110: Range | I110: Default | J110: Default Range | K110: Flag | AA110: Critical Parameters
B111: a for diffusive transport from source to building with dirt floor foundation | E111: (-) | F111: A_Param | G111: =DeffT*(Abf+4*Lb*SQRT(Abf))*0.36/(Qb*(Ls-Lb)) -> 0.0004171208635 | H111: - | I111: =DeffT_default*(Abf_default+4*Lb_default*SQRT(Abf_default))*0.36/(Qb_default*(Ls-Lb_default)) -> 0.0004171208635 | AB111: a for diffusive transport from source to building with dirt floor foundation | AE111: (-) | AF111: A_Param | AG111: =DeffT*(Abf+4*Lb*SQRT(Abf))*0.36/(Qb*(Ls-Lb)) -> 0.0004171208635 | AH111: =AI108*(AH41+4*AH38*SQRT(AH41))*0.36/(AH45*(Ls-AH38)) -> 0.0004169356124
B112: Pe (Peclet Number) for transport through the foundation (advection / diffusion) | E112: (-) | F112: B_Param | G112: =Qsoil_Qb*Qb*Lf/(DeffA*eta*(Abf+4*Lb*SQRT(Abf))*0.36) -> 79.8268255 | H112: =IF(O112<P112,CONCATENATE(TEXT(O112,"0.0E+00")," - ",TEXT(P112,"0.0E+00")),CONCATENATE(TEXT(P112,"0.0E+00")," - ",TEXT(O112,"0.0E+00"))) -> 2.7E+00 - 1.3E+03 | I112: =Qsoil_Qb_default*Qb_default*Lf_default/(DeffA_default*eta_default*(Abf_default+4*Lb_default*SQRT(Abf_default))*0.36) -> 79.8268255 | J112: =IF(Q112<R112,CONCATENATE(TEXT(Q112,"0.0E+00")," - ",TEXT(R112,"0.0E+00")),CONCATENATE(TEXT(R112,"0.0E+00")," - ",TEXT(Q112,"0.0E+00"))) -> 2.7E+00 - 1.3E+03 | O112: =Qsoil_Qb_min*Qb*Lf/(DeffA*eta*(Abf+4*Lb*SQRT(Abf))*0.36) -> 2.660894183 | P112: =Qsoil_Qb_max*Qb*Lf/(DeffA*eta*(Abf+4*Lb*SQRT(Abf))*0.36) -> 1330.447092 | Q112: =Qsoil_Qb_min*Qb_default*Lf_default/(DeffA_default*eta_default*(Abf_default+4*Lb_default*SQRT(Abf_default))*0.36) -> 2.660894183 | R112: =Qsoil_Qb_max*Qb_default*Lf_default/(DeffA_default*eta_default*(Abf_default+4*Lb_default*SQRT(Abf_default))*0.36) -> 1330.447092 | AB112: Pe (Peclet Number) for transport through the foundation (advection / diffusion) | AE112: (-) | AF112: B_Param | AG112: =Qsoil_Qb*Qb*Lf/(DeffA*eta*(Abf+4*Lb*SQRT(Abf))*0.36) -> 79.8268255 | AH112: =AH44*AH45*AH39/(AI104*AH40*(AH41+4*AH38*SQRT(AH41))*0.36) -> 79.82684278
B113: a for convective transport from subslab to building | E113: (-) | F113: C_Param | G113: =Qsoil_Qb -> 0.003 | H113: =IF(O113<P113,CONCATENATE(TEXT(O113,"0.0E+00")," - ",TEXT(P113,"0.0E+00")),CONCATENATE(TEXT(P113,"0.0E+00")," - ",TEXT(O113,"0.0E+00"))) -> 1.0E-04 - 5.0E-02 | I113: =Qsoil_Qb_default -> 0.003 | J113: =IF(Q113<R113,CONCATENATE(TEXT(Q113,"0.0E+00")," - ",TEXT(R113,"0.0E+00")),CONCATENATE(TEXT(R113,"0.0E+00")," - ",TEXT(Q113,"0.0E+00"))) -> 1.0E-04 - 5.0E-02 | O113: =Qsoil_Qb_min -> 0.0001 | P113: =Qsoil_Qb_max -> 0.05 | Q113: =Qsoil_Qb_min -> 0.0001 | R113: =Qsoil_Qb_max -> 0.05 | AB113: a for convective transport from subslab to building | AE113: (-) | AF113: C_Param | AG113: =Qsoil_Qb -> 0.003 | AH113: =AH44 -> 0.003
A114: Intentionally Blank
A115: Interpretation | AA115: Interpretation | AF115: Concentration versus Depth Profile
A116: Intentionally Blank
B117: =IF(B_Param<0.1,"Diffusion is the dominant mechanism across the foundation.",IF(B_Param>3,"Advection is the dominant mechanism across the foundation.","Both diffusion and advection contribute to transport across the foundation.")) -> Advection is the dominant mechanism across the foundation. | AB117: =IF(B_Param<0.1,"Diffusion is the dominant mechanism across the foundation.",IF(B_Param>3,"Advection is the dominant mechanism across the foundation.","Both diffusion and advection contribute to transport across the foundation.")) -> Advection is the dominant mechanism across the foundation.
B118: =IF(B_Param>3,IF((A_Param/C_Param)<0.1,"Diffusion through soil is the overall rate limiting process.",IF((A_Param/C_Param)>10,"Advection through the foundation is the overall rate-limiting process.","Diffusion through soil and advection through foundation both control intrusion.")),"") -> Diffusion through soil and advection through foundation both control intrusion. | AB118: =IF(B_Param>3,IF((A_Param/C_Param)<0.1,"Diffusion through soil is the overall rate limiting process.",IF((A_Param/C_Param)>10,"Advection through the foundation is the overall rate-limiting process.","Diffusion through soil and advection through foundation both control intrusion.")),"") -> Diffusion through soil and advection through foundation both control intrusion.
A119: Formula in cell B119 | B119: =IF(B_Param<0.1,IF((A_Param*B_Param/C_Param)<0.1,"Diffusion through soil is the overall rate limiting process.",IF((A_Param*B_Param/C_Param)>(10*(1+A_Param)),"Diffusion through the foundation is the overall rate-limiting process.","Diffusion through soil and diffusion through foundation both control intrusion.")),"") ->  | AB119: =IF(B_Param<0.1,IF((A_Param*B_Param/C_Param)<0.1,"Diffusion through soil is the overall rate limiting process.",IF((A_Param*B_Param/C_Param)>(10*(1+A_Param)),"Diffusion through the foundation is the overall rate-limiting process.","Diffusion through soil and diffusion through foundation both control intrusion.")),"") -> 
A120: Intentionally Blank
A121: Intentionally Blank
A122: Critical Parameters | AA122: Critical Parameters
A123: Intentionally Blank | K123: =IF(MAX(MEASURED_SOIL_GAS_CONC.!$A$5:$A$30)>Ls,"Maximum measured soil gas below modeled depth.","") -> 
B124: =IF(B_Param>3,IF((A_Param/C_Param)<0.1,"Hb, Ls, DeffT, ach",IF((A_Param/C_Param)>10,"Qsoil_Qb","Hb, Ls, DeffT, ach, Qsoil_Qb")),"") -> Hb, Ls, DeffT, ach, Qsoil_Qb | AB124: =IF(B_Param>3,IF((A_Param/C_Param)<0.1,"Hb, Ls, DeffT, ach",IF((A_Param/C_Param)>10,"Qsoil_Qb","Hb, Ls, DeffT, ach, Qsoil_Qb")),"") -> Hb, Ls, DeffT, ach, Qsoil_Qb
A125: Formula in cell B125 | B125: =IF(B_Param<0.1,IF((A_Param*B_Param/C_Param)<0.1,"Hb, Ls, DeffT, ach",IF((A_Param*B_Param/C_Param)>(10*(1+A_Param)),"Hb, Lf, DeffA, ach, eta","Alpha sentive to all parameters.")),"") ->  | AB125: =IF(B_Param<0.1,IF((A_Param*B_Param/C_Param)<0.1,"Hb, Ls, DeffT, ach",IF((A_Param*B_Param/C_Param)>(10*(1+A_Param)),"Hb, Lf, DeffA, ach, eta","Alpha sentive to all parameters.")),"") -> 
A126: Intentionally Blank
A127: Intentionally Blank
A128: Non-Critical Parameters | AA128: Non-Critical Parameters
A129: Intentionally Blank
B130: =IF(B_Param>3,IF((A_Param/C_Param)<0.1,"Qsoil_Qb, Lf, DeffA, eta",IF((A_Param/C_Param)>10,"Lf, DeffA, DeffT, eta, Ls, ach","Lf, DeffA, eta")),"") -> Lf, DeffA, eta | AB130: =IF(B_Param>3,IF((A_Param/C_Param)<0.1,"Qsoil_Qb, Lf, DeffA, eta",IF((A_Param/C_Param)>10,"Lf, DeffA, DeffT, eta, Ls, ach","Lf, DeffA, eta")),"") -> Lf, DeffA, eta
A131: Formula in cell B131 | B131: =IF(B_Param<0.1,IF((A_Param*B_Param/C_Param)<0.1,"Qsoil_Qb, Lf, DeffA, eta",IF((A_Param*B_Param/C_Param)>(10*(1+A_Param)),"Qsoil_Qb, Ls, DeffT","Alpha sentive to all parameters.")),"") ->  | AB131: =IF(B_Param<0.1,IF((A_Param*B_Param/C_Param)<0.1,"Qsoil_Qb, Lf, DeffA, eta",IF((A_Param*B_Param/C_Param)>(10*(1+A_Param)),"Qsoil_Qb, Ls, DeffT","Alpha sentive to all parameters.")),"") -> 
A132: Intentionally Blank
A133: Intentionally Blank
A134: Formula in cell C134 | C134: =IF(OR(COUNTIF($J$10:$J$85,"WARNING")>0,COUNTIF($J$10:$J$85,"ERROR")>0),"Please check WARNING or ERROR flags","") ->  | AB134: =IF(OR(COUNTIF($J$10:$J$85,"WARNING")>0,COUNTIF($J$10:$J$85,"ERROR")>0),"Please check WARNING or ERROR flags","") -> 
A135: Intentionally Blank
A136: Intentionally Blank
A137: Intentionally Blank
A138: Intentionally Blank
A139: Intentionally Blank | AB139: US EPA VAPOR INTRUSION ASSESSMENT MODEL (VIA_MODEL.xlsm)
A140: Intentionally Blank
A141: =$A$90 -> Model Output | D141: Site Name/Run Number: | F141: =Name_and_run -> DTSC J&E Case | AB141: Model Output | AE141: Site Name/Run Number:
B142: ="Chemical Name:"&" "&$F$17&" CAS No. "&CAS -> Chemical Name: Trichloroethylene CAS No. 79-01-6 | AC142: Chemical Name: Bis(2-chloroethyl)ether CAS No. 111-44-4
A143: Risk Calculations | E143: Units | F143: Symbol | G143: Value | H143: Range | I143: Default | J143: Range | K143: Flag | L143: Comment | AB143: Risk Calculations | AF143: Units | AG143: Symbol | AH143: Value | AI143: Default | AK143: Flag | AL143: Comment
A144: Intentionally Blank
A145: Risk-Based Target Screening Levels | D145: =CONCATENATE("Scenario: ",Scenario) -> Scenario: Residential | AB145: Risk-Based Target Screening Levels
B146: Target risk for carcinogens | E146: (-) | F146: Target_CR | G146: =Target_CR -> 1e-06 | H146: - | I146: =Target_CR_default -> 1e-06 | J146: - | AC146: Target risk for carcinogens | AF146: (-) | AG146: Target_CR | AH146: =Target_CR -> 1e-06 | AI146: =Target_CR_default -> 1e-06
B147: Target hazard quotient for noncarcinogens | E147: (-) | F147: Target_HQ | G147: =Target_HQ -> 1 | H147: - | I147: =Target_HQ_default -> 1 | J147: - | AC147: Target hazard quotient for noncarcinogens | AF147: (-) | AG147: Target_HQ | AH147: =Target_HQ -> 1 | AI147: =Target_HQ_default -> 1
B148: Target indoor air concentration | E148: (ug/m3) | F148: Target_IA | G148: =IF(AND(URF="Not Available",RfC="Not Available"),"No tox data available", IF(URF="Not Available",Target_IA_nc, IF(RfC="Not Available", Target_IA_c, MIN(Target_IA_c,Target_IA_nc)))) -> 0.4783171623 | H148: - | I148: =IF(AND(URF_default="Not Available",RfC_default="Not Available"),"No tox data available", IF(URF_default="Not Available",Target_IA_nc_default, IF(RfC_default="Not Available", Target_IA_c_default, MIN(Target_IA_c_default,Target_IA_nc_default)))) -> 0.4783171623 | J148: - | K148: =IF(Target_IA="No tox data available","",IF(Chem="Vinyl chloride","Target indoor air concentration based on cancer risk (unit risk factor)",IF(Chem="Trichloroethylene","Target indoor air concentration based on both cancer risk and non-cancer toxicity",IF(URF=0,"Target indoor air concentration based on non-cancer toxicity (reference concentration)",IF(RfC=0,"Target indoor air concentration based on cancer risk (unit risk factor)",IF((Target_CR*ATc*365/(URF*ED*EF*ET/24))<(Target_HQ*1000*RfC*ATnc*365/(ED*EF*ET/24)),"Target indoor air concentration based on cancer risk (unit risk factor)","Target indoor air concentration based on non-cancer toxicity (reference concentration)")))))) -> Target indoor air concentration based on both cancer risk and non-cancer toxicity | AC148: Target indoor air concentration | AF148: (ug/m3) | AG148: Target_IA | AH148: =IF(AND(URF="Not Available",RfC="Not Available"),"No tox data available", IF(URF="Not Available",Target_IA_nc, IF(RfC="Not Available", Target_IA_c, MIN(Target_IA_c,Target_IA_nc)))) -> 0.4783171623 | AI148: =IF(AND(URF_default="Not Available",RfC_default="Not Available"),"No tox data available", IF(URF_default="Not Available",Target_IA_nc_default, IF(RfC_default="Not Available", Target_IA_c_default, MIN(Target_IA_c_default,Target_IA_nc_default)))) -> 0.4783171623 | AL148: =IF(Target_IA="No tox data available","",IF(Chem="Vinyl chloride (chloroethene)","Target indoor air concentration based on cancer risk (unit risk factor)",IF(Chem="Trichloroethylene","Target indoor air concentration based on both cancer risk and non-cancer toxicity",IF(URF=0,"Target indoor air concentration based on non-cancer toxicity (reference concentration)",IF(RfC=0,"Target indoor air concentration based on cancer risk (unit risk factor)",IF((Target_CR*ATc*365/(URF*ED*EF*ET/24))<(Target_HQ*RfC*ATnc*365/(ED*EF*ET/24)),"Target indoor air concentration based on cancer risk (unit risk factor)","Target indoor air concentration based on non-cancer toxicity (reference concentration)")))))) -> Target indoor air concentration based on both cancer risk and non-cancer toxicity
E149: (ppbv) | G149: =IF(AND(URF="Not Available",RfC="Not Available"),"No tox data available",G148*24.46/INDEX(CHEM_DATA!$C6:$C472, MATCH(Chem,Chem_Search, 0))) -> 0.08904511599 | H149: - | I149: =IF(Target_IA_default="No tox data available","NA",Target_IA_default*24.46/INDEX(CHEM_DATA!$C6:$C472, MATCH(Chem,Chem_Search, 0))) -> 0.08904511599 | J149: - | AF149: (ppbv) | AH149: =IF(AND(URF="Not Available",RfC="Not Available"),"No tox data available",AH148*24.46/INDEX(CHEM_DATA!$C6:$C472, MATCH(Chem,Chem_Search, 0))) -> 0.08904511599 | AI149: =IF(Target_IA_default="No tox data available","NA",Target_IA_default*24.46/INDEX(CHEM_DATA!$C6:$C472, MATCH(Chem,Chem_Search, 0))) -> 0.08904511599
B150: =IF(Source="Groundwater","Target groundwater concentration","Target soil gas concentration") -> Target groundwater concentration | E150: =IF(Source="Groundwater","(ug/L)","(ug/m3)") -> (ug/L) | F150: =IF(Source="Groundwater","Target_GW","Target_SV") -> Target_GW | G150: =IF(Target_IA="No tox data available","No tox data available",IF(Source="Groundwater",Target_IA/(Hs*1000*alpha),Target_IA/alpha)) -> 4.064957511 | H150: =IF(P150<Q150,CONCATENATE(TEXT(P150,"0.0E+00")," - ",TEXT(Q150,"0.0E+00")),CONCATENATE(TEXT(Q150,"0.0E+00")," - ",TEXT(P150,"0.0E+00"))) -> 3.6E+00 - 1.7E+01 | I150: =IF(Target_IA_default="No tox data available","No tox data available",IF(Source="Groundwater",Target_IA_default/(Hs_default*1000*alpha_default),Target_IA_default/alpha_default)) -> 3.343755946 | J150: =IF(R150<S150,CONCATENATE(TEXT(R150,"0.0E+00")," - ",TEXT(S150,"0.0E+00")),CONCATENATE(TEXT(S150,"0.0E+00")," - ",TEXT(R150,"0.0E+00"))) -> 3.6E+00 - 1.7E+01 | P150: =IF(Target_IA="No tox data available","NA",IF(Source="Groundwater",Target_IA/(Hs*1000*alpha_min),Target_IA/alpha_min)) -> 17.41456828 | Q150: =IF(Target_IA="No tox data available","NA",IF(Source="Groundwater",Target_IA/(Hs*1000*alpha_max),Target_IA/alpha_max)) -> 3.598528627 | R150: =IF(Target_IA="No tox data available","NA",IF(Source="Groundwater",Target_IA_default/(Hs*1000*alpha_min_default),Target_IA_default/alpha_min_default)) -> 17.41456828 | S150: =IF(Target_IA="No tox data available","NA",IF(Source="Groundwater",Target_IA_default/(Hs*1000*alpha_max_default),Target_IA_default/alpha_max_default)) -> 3.598528627 | AC150: =IF(Source="Groundwater","Target groundwater concentration","Target soil gas concentration") -> Target groundwater concentration | AF150: =IF(Source="Groundwater","(ug/L)","(ug/m3)") -> (ug/L) | AG150: =IF(Source="Groundwater","Target_GW","Target_SV") -> Target_GW | AH150: =IF(Target_IA="No tox data available","No tox data available",IF(Source="Groundwater",Target_IA/(Hs*1000*alpha),Target_IA/alpha)) -> 4.064957511 | AI150: =IF(Target_IA_default="No tox data available","No tox data available",IF(Source="Groundwater",Target_IA_default/(Hs_default*1000*alpha_default),Target_IA_default/alpha_default)) -> 3.343755946
A151: Intentionally Blank
A152: Incremental Risk Estimates | AB152: Incremental Risk Estimates
B153: Incremental cancer risk from vapor intrusion | E153: (-) | F153: Cancer_Risk | G153: =IF(URF="Not Available","No IUR",IF(Chem<>"Trichloroethylene", Cia*(IF(AND(Chem="Vinyl Chloride",Scenario="Residential"),URF,0)+URF*IF(MUT="Yes",MMOAF,ED)*EF*ET/(ATc*365*24)), IF(Scenario="Residential",Cia*URF*(0.756*ED+0.244*MMOAF)*EF*ET/(ATc*365*24), Cia*URF*ED*EF*ET/(ATc*365*24)))) -> 2.460050314e-07 | H153: =IF(P153<Q153,CONCATENATE(TEXT(P153,"0.0E+00")," - ",TEXT(Q153,"0.0E+00")),CONCATENATE(TEXT(Q153,"0.0E+00")," - ",TEXT(P153,"0.0E+00"))) -> 5.7E-08 - 2.8E-07 | I153: =IF(URF_default="Not Available","No IUR",IF(Chem<>"Trichloroethylene", Cia_default*(IF(AND(Chem="Vinyl Chloride",Scenario="Residential"),URF_default,0)+URF_default*IF(MUT="Yes",MMOAF_default,ED_default)*EF_default*ET_default/(Atc_default*365*24)), IF(Scenario="Residential",Cia_default*URF_default*(0.756*ED_default+0.244*MMOAF_default)*EF_default*ET_default/(Atc_default*365*24), Cia_default*URF_default*ED_default*EF_default*ET_default/(Atc_default*365*24)))) -> 2.460050314e-07 | J153: =IF(R153<S153,CONCATENATE(TEXT(R153,"0.0E+00")," - ",TEXT(S153,"0.0E+00")),CONCATENATE(TEXT(S153,"0.0E+00")," - ",TEXT(R153,"0.0E+00"))) -> 5.7E-08 - 2.8E-07 | K153: =IF(COUNTIF($J$10:$J$85,"ERROR")>0,"ERROR",IF(INDEX(CHEM_DATA!$AE:$AE, MATCH(Chem, Chem_Search, 0))="Yes","WARNING","")) ->  | L153: =IF(COUNTIF($J$10:$J$85,"ERROR")>0,"Invalid result. Please correct errors.","Note: biodegradation not included in this model, may over estimate indoor air concentrations.") -> Note: biodegradation not included in this model, may over estimate indoor air concentrations. | P153: =IF(URF="Not Available","",IF(Chem<>"Trichloroethylene", Cia_min*(IF(AND(Chem="Vinyl Chloride",Scenario="Residential"),URF,0)+URF*IF(MUT="Yes",MMOAF,ED)*EF*ET/(ATc*365*24)), IF(Scenario="Residential",Cia_min*URF*(0.756*ED+0.244*MMOAF)*EF*ET/(ATc*365*24), Cia_min*URF*ED*EF*ET/(ATc*365*24)))) -> 5.742318639e-08 | Q153: =IF(URF="Not Available","",IF(Chem<>"Trichloroethylene", Cia_max*(IF(AND(Chem="Vinyl Chloride",Scenario="Residential"),URF,0)+URF*IF(MUT="Yes",MMOAF,ED)*EF*ET/(ATc*365*24)), IF(Scenario="Residential",Cia_max*URF*(0.756*ED+0.244*MMOAF)*EF*ET/(ATc*365*24), Cia_max*URF*ED*EF*ET/(ATc*365*24)))) -> 2.778913561e-07 | R153: =IF(URF_default="Not Available","No IUR",IF(Chem<>"Trichloroethylene", Cia_min_default*(IF(AND(Chem="Vinyl Chloride",Scenario="Residential"),URF_default,0)+URF_default*IF(MUT="Yes",MMOAF_default,ED_default)*EF_default*ET_default/(Atc_default*365*24)), IF(Scenario="Residential",Cia_min_default*URF_default*(0.756*ED_default+0.244*MMOAF_default)*EF_default*ET_default/(Atc_default*365*24), Cia_min_default*URF_default*ED_default*EF_default*ET_default/(Atc_default*365*24)))) -> 5.742318639e-08 | S153: =IF(URF_default="Not Available","No IUR",IF(Chem<>"Trichloroethylene", Cia_max_default*(IF(AND(Chem="Vinyl Chloride",Scenario="Residential"),URF_default,0)+URF_default*IF(MUT="Yes",MMOAF_default,ED_default)*EF_default*ET_default/(Atc_default*365*24)), IF(Scenario="Residential",Cia_max_default*URF_default*(0.756*ED_default+0.244*MMOAF_default)*EF_default*ET_default/(Atc_default*365*24), Cia_max_default*URF_default*ED_default*EF_default*ET_default/(Atc_default*365*24)))) -> 2.778913561e-07 | AC153: Incremental cancer risk from vapor intrusion | AF153: (-) | AG153: Cancer_Risk | AH153: =IF(URF="Not Available","No IUR",IF(Chem<>"Trichloroethylene", Cia*(IF(AND(Chem="Vinyl Chloride",Scenario="Residential"),URF,0)+URF*IF(MUT="Yes",MMOAF,ED)*EF*ET/(ATc*365*24)), IF(Scenario="Residential",Cia*URF*(0.756*ED+0.244*MMOAF)*EF*ET/(ATc*365*24), Cia*URF*ED*EF*ET/(ATc*365*24)))) -> 2.460050314e-07 | AI153: =IF(URF_default="Not Available","No IUR",IF(Chem<>"Trichloroethylene", Cia_default*(IF(AND(Chem="Vinyl Chloride",Scenario="Residential"),URF_default,0)+URF_default*IF(MUT="Yes",MMOAF_default,ED_default)*EF_default*ET_default/(Atc_default*365*24)), IF(Scenario="Residential",Cia_default*URF_default*(0.756*ED_default+0.244*MMOAF_default)*EF_default*ET_default/(Atc_default*365*24), Cia_default*URF_default*ED_default*EF_default*ET_default/(Atc_default*365*24)))) -> 2.460050314e-07 | AJ153: =IF(COUNTIF($J$10:$J$85,"ERROR")>0,"Invalid result. Please correct errors.","Note: biodegradation not included in this model, may over estimate indoor air concentrations.") -> Note: biodegradation not included in this model, may over estimate indoor air concentrations.
B154: Hazard quotient from vapor intrusion | E154: (-) | F154: HQ | G154: =IF(RfC="Not Available","No RfC Available",Cia*EF*ED*ET/(RfC*ATnc*365*24*1000)) -> 0.05641636984 | H154: =IF(P154<Q154,CONCATENATE(TEXT(P154,"0.0E+00")," - ",TEXT(Q154,"0.0E+00")),CONCATENATE(TEXT(Q154,"0.0E+00")," - ",TEXT(P154,"0.0E+00"))) -> 1.3E-02 - 6.4E-02 | I154: =IF(RfC_default="Not Available","No RfC Available",Cia_default*EF_default*ED_default*ET_default/(RfC_default*ATnc_default*365*24*1000)) -> 0.05641636984 | J154: =IF(R154<S154,CONCATENATE(TEXT(R154,"0.0E+00")," - ",TEXT(S154,"0.0E+00")),CONCATENATE(TEXT(S154,"0.0E+00")," - ",TEXT(R154,"0.0E+00"))) -> 1.3E-02 - 6.4E-02 | K154: =IF(COUNTIF($J$10:$J$85,"ERROR")>0,"ERROR",IF(INDEX(CHEM_DATA!$AE:$AE, MATCH(Chem, Chem_Search, 0))="Yes","WARNING","")) ->  | L154: =IF(COUNTIF($J$10:$J$85,"ERROR")>0,"Invalid result. Please correct errors.","Note: biodegradation not included in this model, may over estimate indoor air concentrations.") -> Note: biodegradation not included in this model, may over estimate indoor air concentrations. | P154: =IF(RfC="Not Available","No RfC Available",Cia_min*EF*ED*ET/(RfC*ATnc*365*24*1000)) -> 0.01316886774 | Q154: =IF(RfC="Not Available","No RfC Available",Cia_max*EF*ED*ET/(RfC*ATnc*365*24*1000)) -> 0.06372886535 | R154: =IF(RfC_default="Not Available","No RfC Available",Cia_min_default*EF_default*ED_default*ET_default/(RfC_default*ATnc_default*365*24*1000)) -> 0.01316886774 | S154: =IF(RfC_default="Not Available","No RfC Available",Cia_max_default*EF_default*ED_default*ET_default/(RfC_default*ATnc_default*365*24*1000)) -> 0.06372886535 | AC154: Hazard quotient from vapor intrusion | AF154: (-) | AG154: HQ | AH154: =IF(RfC="Not Available","No RfC Available",Cia*EF*ED*ET/(RfC*ATnc*365*24*1000)) -> 0.05641636984 | AI154: =IF(RfC_default="Not Available","No RfC Available",Cia_default*EF_default*ED_default*ET_default/(RfC_default*ATnc_default*365*24*1000)) -> 0.05641636984 | AJ154: =IF(COUNTIF($J$10:$J$85,"ERROR")>0,"ERROR",IF(INDEX(CHEM_DATA!$AE:$AE, MATCH(Chem, Chem_Search, 0))="Yes","WARNING","")) ->  | AK154: =IF(COUNTIF($J$10:$J$85,"ERROR")>0,"Invalid result. Please correct errors.","Note: biodegradation not included in this model, may over estimate indoor air concentrations.") -> Note: biodegradation not included in this model, may over estimate indoor air concentrations.
A155: End of Worksheet
A156: Go to "README" tab
A157: Go to “MEASURED_SOIL_GAS_CONC.” tab
A158: Go to “MULTI_CHEM_INPUT” tab
A159: Go to “MULTI_CHEM_OUTPUT” tab
A160: Go to "Converter" tab
AK204: =IF(COUNTIF($J$10:$J$85,"ERROR")>0,"ERROR","") -> 
AK205: =IF(COUNTIF($J$10:$J$85,"ERROR")>0,"ERROR","") -> 
BA251: =IF('SV Conc Profile'!#REF!="","",IF(AND('SV Conc Profile'!#REF!+0.5>hSA,'SV Conc Profile'!#REF!/hSA<1),hSA,IF('SV Conc Profile'!#REF!+0.5>hSA,"",'SV Conc Profile'!#REF!+0.5))) ->  | BB251: =IF(BA251="","",IF(hSA=Ls,Cs-(Emission_Rate*(hSA-BA251)/(Abf*'SV Conc Profile'!$D$6/10000)),'SV Conc Profile'!#REF!-(Emission_Rate*(hSA-BA251)/(Abf*'SV Conc Profile'!$D$6/10000)))) ->  | BC251: =IF('SV Conc Profile'!#REF!="","",IF(AND('SV Conc Profile'!#REF!+0.05>(hSA+hSB),'SV Conc Profile'!#REF!/(hSA+hSB)<1),hSA+hSB,IF('SV Conc Profile'!#REF!+0.5>(hSA+hSB),"",'SV Conc Profile'!#REF!+0.5))) ->  | BD251: =IF(BC251="","",IF(hSA+hSB=Ls,Cs-(Emission_Rate*(hSA+hSB-BC251)/(Abf*'SV Conc Profile'!$E$6/10000)),'SV Conc Profile'!#REF!-(Emission_Rate*(hSA+hSB-BC251)/(Abf*'SV Conc Profile'!$E$6/10000)))) ->  | BE251: =IF('SV Conc Profile'!#REF!="","",IF(AND('SV Conc Profile'!#REF!+0.5>(hSA+hSB+hSC),'SV Conc Profile'!#REF!/(hSA+hSB+hSC)<1),hSA+hSB+hSC,IF('SV Conc Profile'!#REF!+0.5>(hSA+hSB+hSC),"",'SV Conc Profile'!#REF!+0.5))) ->  | BF251: =IF(BE251="","",Cs-(Emission_Rate*(Ls-BE251)/(Abf*'SV Conc Profile'!$F$6/10000))) -> 
BA252: =IF(BA251="","",IF(AND(BA251+0.5>hSA,BA251/hSA<1),hSA,IF(BA251+0.5>hSA,"",BA251+0.5))) ->  | BB252: =IF(BA252="","",IF(hSA=Ls,Cs-(Emission_Rate*(hSA-BA252)/(Abf*'SV Conc Profile'!$D$6/10000)),'SV Conc Profile'!#REF!-(Emission_Rate*(hSA-BA252)/(Abf*'SV Conc Profile'!$D$6/10000)))) ->  | BC252: =IF(BC251="","",IF(AND(BC251+0.05>(hSA+hSB),BC251/(hSA+hSB)<1),hSA+hSB,IF(BC251+0.5>(hSA+hSB),"",BC251+0.5))) ->  | BD252: =IF(BC252="","",IF(hSA+hSB=Ls,Cs-(Emission_Rate*(hSA+hSB-BC252)/(Abf*'SV Conc Profile'!$E$6/10000)),'SV Conc Profile'!#REF!-(Emission_Rate*(hSA+hSB-BC252)/(Abf*'SV Conc Profile'!$E$6/10000)))) ->  | BE252: =IF(BE251="","",IF(AND(BE251+0.5>(hSA+hSB+hSC),BE251/(hSA+hSB+hSC)<1),hSA+hSB+hSC,IF(BE251+0.5>(hSA+hSB+hSC),"",BE251+0.5))) ->  | BF252: =IF(BE252="","",Cs-(Emission_Rate*(Ls-BE252)/(Abf*'SV Conc Profile'!$F$6/10000))) -> 
BA253: =IF(BA252="","",IF(AND(BA252+0.5>hSA,BA252/hSA<1),hSA,IF(BA252+0.5>hSA,"",BA252+0.5))) ->  | BB253: =IF(BA253="","",IF(hSA=Ls,Cs-(Emission_Rate*(hSA-BA253)/(Abf*'SV Conc Profile'!$D$6/10000)),'SV Conc Profile'!#REF!-(Emission_Rate*(hSA-BA253)/(Abf*'SV Conc Profile'!$D$6/10000)))) ->  | BC253: =IF(BC252="","",IF(AND(BC252+0.05>(hSA+hSB),BC252/(hSA+hSB)<1),hSA+hSB,IF(BC252+0.5>(hSA+hSB),"",BC252+0.5))) ->  | BD253: =IF(BC253="","",IF(hSA+hSB=Ls,Cs-(Emission_Rate*(hSA+hSB-BC253)/(Abf*'SV Conc Profile'!$E$6/10000)),'SV Conc Profile'!#REF!-(Emission_Rate*(hSA+hSB-BC253)/(Abf*'SV Conc Profile'!$E$6/10000)))) ->  | BE253: =IF(BE252="","",IF(AND(BE252+0.5>(hSA+hSB+hSC),BE252/(hSA+hSB+hSC)<1),hSA+hSB+hSC,IF(BE252+0.5>(hSA+hSB+hSC),"",BE252+0.5))) ->  | BF253: =IF(BE253="","",Cs-(Emission_Rate*(Ls-BE253)/(Abf*'SV Conc Profile'!$F$6/10000))) -> 
BA254: =IF(BA253="","",IF(AND(BA253+0.5>hSA,BA253/hSA<1),hSA,IF(BA253+0.5>hSA,"",BA253+0.5))) ->  | BB254: =IF(BA254="","",IF(hSA=Ls,Cs-(Emission_Rate*(hSA-BA254)/(Abf*'SV Conc Profile'!$D$6/10000)),'SV Conc Profile'!#REF!-(Emission_Rate*(hSA-BA254)/(Abf*'SV Conc Profile'!$D$6/10000)))) ->  | BC254: =IF(BC253="","",IF(AND(BC253+0.05>(hSA+hSB),BC253/(hSA+hSB)<1),hSA+hSB,IF(BC253+0.5>(hSA+hSB),"",BC253+0.5))) ->  | BD254: =IF(BC254="","",IF(hSA+hSB=Ls,Cs-(Emission_Rate*(hSA+hSB-BC254)/(Abf*'SV Conc Profile'!$E$6/10000)),'SV Conc Profile'!#REF!-(Emission_Rate*(hSA+hSB-BC254)/(Abf*'SV Conc Profile'!$E$6/10000)))) ->  | BE254: =IF(BE253="","",IF(AND(BE253+0.5>(hSA+hSB+hSC),BE253/(hSA+hSB+hSC)<1),hSA+hSB+hSC,IF(BE253+0.5>(hSA+hSB+hSC),"",BE253+0.5))) ->  | BF254: =IF(BE254="","",Cs-(Emission_Rate*(Ls-BE254)/(Abf*'SV Conc Profile'!$F$6/10000))) -> 
BA255: =IF(BA254="","",IF(AND(BA254+0.5>hSA,BA254/hSA<1),hSA,IF(BA254+0.5>hSA,"",BA254+0.5))) ->  | BB255: =IF(BA255="","",IF(hSA=Ls,Cs-(Emission_Rate*(hSA-BA255)/(Abf*'SV Conc Profile'!$D$6/10000)),'SV Conc Profile'!#REF!-(Emission_Rate*(hSA-BA255)/(Abf*'SV Conc Profile'!$D$6/10000)))) ->  | BC255: =IF(BC254="","",IF(AND(BC254+0.05>(hSA+hSB),BC254/(hSA+hSB)<1),hSA+hSB,IF(BC254+0.5>(hSA+hSB),"",BC254+0.5))) ->  | BD255: =IF(BC255="","",IF(hSA+hSB=Ls,Cs-(Emission_Rate*(hSA+hSB-BC255)/(Abf*'SV Conc Profile'!$E$6/10000)),'SV Conc Profile'!#REF!-(Emission_Rate*(hSA+hSB-BC255)/(Abf*'SV Conc Profile'!$E$6/10000)))) ->  | BE255: =IF(BE254="","",IF(AND(BE254+0.5>(hSA+hSB+hSC),BE254/(hSA+hSB+hSC)<1),hSA+hSB+hSC,IF(BE254+0.5>(hSA+hSB+hSC),"",BE254+0.5))) ->  | BF255: =IF(BE255="","",Cs-(Emission_Rate*(Ls-BE255)/(Abf*'SV Conc Profile'!$F$6/10000))) -> 
BA256: =IF(BA255="","",IF(AND(BA255+0.5>hSA,BA255/hSA<1),hSA,IF(BA255+0.5>hSA,"",BA255+0.5))) ->  | BB256: =IF(BA256="","",IF(hSA=Ls,Cs-(Emission_Rate*(hSA-BA256)/(Abf*'SV Conc Profile'!$D$6/10000)),'SV Conc Profile'!#REF!-(Emission_Rate*(hSA-BA256)/(Abf*'SV Conc Profile'!$D$6/10000)))) ->  | BC256: =IF(BC255="","",IF(AND(BC255+0.05>(hSA+hSB),BC255/(hSA+hSB)<1),hSA+hSB,IF(BC255+0.5>(hSA+hSB),"",BC255+0.5))) ->  | BD256: =IF(BC256="","",IF(hSA+hSB=Ls,Cs-(Emission_Rate*(hSA+hSB-BC256)/(Abf*'SV Conc Profile'!$E$6/10000)),'SV Conc Profile'!#REF!-(Emission_Rate*(hSA+hSB-BC256)/(Abf*'SV Conc Profile'!$E$6/10000)))) ->  | BE256: =IF(BE255="","",IF(AND(BE255+0.5>(hSA+hSB+hSC),BE255/(hSA+hSB+hSC)<1),hSA+hSB+hSC,IF(BE255+0.5>(hSA+hSB+hSC),"",BE255+0.5))) ->  | BF256: =IF(BE256="","",Cs-(Emission_Rate*(Ls-BE256)/(Abf*'SV Conc Profile'!$F$6/10000))) -> 
BA257: =IF(BA256="","",IF(AND(BA256+0.5>hSA,BA256/hSA<1),hSA,IF(BA256+0.5>hSA,"",BA256+0.5))) ->  | BB257: =IF(BA257="","",IF(hSA=Ls,Cs-(Emission_Rate*(hSA-BA257)/(Abf*'SV Conc Profile'!$D$6/10000)),'SV Conc Profile'!#REF!-(Emission_Rate*(hSA-BA257)/(Abf*'SV Conc Profile'!$D$6/10000)))) ->  | BC257: =IF(BC256="","",IF(AND(BC256+0.05>(hSA+hSB),BC256/(hSA+hSB)<1),hSA+hSB,IF(BC256+0.5>(hSA+hSB),"",BC256+0.5))) ->  | BD257: =IF(BC257="","",IF(hSA+hSB=Ls,Cs-(Emission_Rate*(hSA+hSB-BC257)/(Abf*'SV Conc Profile'!$E$6/10000)),'SV Conc Profile'!#REF!-(Emission_Rate*(hSA+hSB-BC257)/(Abf*'SV Conc Profile'!$E$6/10000)))) ->  | BE257: =IF(BE256="","",IF(AND(BE256+0.5>(hSA+hSB+hSC),BE256/(hSA+hSB+hSC)<1),hSA+hSB+hSC,IF(BE256+0.5>(hSA+hSB+hSC),"",BE256+0.5))) ->  | BF257: =IF(BE257="","",Cs-(Emission_Rate*(Ls-BE257)/(Abf*'SV Conc Profile'!$F$6/10000))) -> 
BB258: =IF(BA258="","",IF(hSA=Ls,Cs-(Emission_Rate*(hSA-BA258)/(Abf*'SV Conc Profile'!$D$6/10000)),'SV Conc Profile'!#REF!-(Emission_Rate*(hSA-BA258)/(Abf*'SV Conc Profile'!$D$6/10000)))) ->  | BD258: =IF(BC258="","",IF(hSA+hSB=Ls,Cs-(Emission_Rate*(hSA+hSB-BC258)/(Abf*'SV Conc Profile'!$E$6/10000)),'SV Conc Profile'!#REF!-(Emission_Rate*(hSA+hSB-BC258)/(Abf*'SV Conc Profile'!$E$6/10000)))) ->  | BF258: =IF(BE258="","",Cs-(Emission_Rate*(Ls-BE258)/(Abf*'SV Conc Profile'!$F$6/10000))) -> 
BB259: =IF(BA259="","",IF(hSA=Ls,Cs-(Emission_Rate*(hSA-BA259)/(Abf*'SV Conc Profile'!$D$6/10000)),'SV Conc Profile'!#REF!-(Emission_Rate*(hSA-BA259)/(Abf*'SV Conc Profile'!$D$6/10000)))) ->  | BD259: =IF(BC259="","",IF(hSA+hSB=Ls,Cs-(Emission_Rate*(hSA+hSB-BC259)/(Abf*'SV Conc Profile'!$E$6/10000)),'SV Conc Profile'!#REF!-(Emission_Rate*(hSA+hSB-BC259)/(Abf*'SV Conc Profile'!$E$6/10000)))) ->  | BF259: =IF(BE259="","",Cs-(Emission_Rate*(Ls-BE259)/(Abf*'SV Conc Profile'!$F$6/10000))) -> 
BB260: =IF(BA260="","",IF(hSA=Ls,Cs-(Emission_Rate*(hSA-BA260)/(Abf*'SV Conc Profile'!$D$6/10000)),'SV Conc Profile'!#REF!-(Emission_Rate*(hSA-BA260)/(Abf*'SV Conc Profile'!$D$6/10000)))) ->  | BD260: =IF(BC260="","",IF(hSA+hSB=Ls,Cs-(Emission_Rate*(hSA+hSB-BC260)/(Abf*'SV Conc Profile'!$E$6/10000)),'SV Conc Profile'!#REF!-(Emission_Rate*(hSA+hSB-BC260)/(Abf*'SV Conc Profile'!$E$6/10000)))) ->  | BF260: =IF(BE260="","",Cs-(Emission_Rate*(Ls-BE260)/(Abf*'SV Conc Profile'!$F$6/10000))) -> 
BB261: =IF(BA261="","",IF(hSA=Ls,Cs-(Emission_Rate*(hSA-BA261)/(Abf*'SV Conc Profile'!$D$6/10000)),'SV Conc Profile'!#REF!-(Emission_Rate*(hSA-BA261)/(Abf*'SV Conc Profile'!$D$6/10000)))) ->  | BD261: =IF(BC261="","",IF(hSA+hSB=Ls,Cs-(Emission_Rate*(hSA+hSB-BC261)/(Abf*'SV Conc Profile'!$E$6/10000)),'SV Conc Profile'!#REF!-(Emission_Rate*(hSA+hSB-BC261)/(Abf*'SV Conc Profile'!$E$6/10000)))) ->  | BF261: =IF(BE261="","",Cs-(Emission_Rate*(Ls-BE261)/(Abf*'SV Conc Profile'!$F$6/10000))) -> 
BB262: =IF(BA262="","",IF(hSA=Ls,Cs-(Emission_Rate*(hSA-BA262)/(Abf*'SV Conc Profile'!$D$6/10000)),'SV Conc Profile'!#REF!-(Emission_Rate*(hSA-BA262)/(Abf*'SV Conc Profile'!$D$6/10000)))) ->  | BD262: =IF(BC262="","",IF(hSA+hSB=Ls,Cs-(Emission_Rate*(hSA+hSB-BC262)/(Abf*'SV Conc Profile'!$E$6/10000)),'SV Conc Profile'!#REF!-(Emission_Rate*(hSA+hSB-BC262)/(Abf*'SV Conc Profile'!$E$6/10000)))) ->  | BF262: =IF(BE262="","",Cs-(Emission_Rate*(Ls-BE262)/(Abf*'SV Conc Profile'!$F$6/10000))) -> 
BB263: =IF(BA263="","",IF(hSA=Ls,Cs-(Emission_Rate*(hSA-BA263)/(Abf*'SV Conc Profile'!$D$6/10000)),'SV Conc Profile'!#REF!-(Emission_Rate*(hSA-BA263)/(Abf*'SV Conc Profile'!$D$6/10000)))) ->  | BD263: =IF(BC263="","",IF(hSA+hSB=Ls,Cs-(Emission_Rate*(hSA+hSB-BC263)/(Abf*'SV Conc Profile'!$E$6/10000)),'SV Conc Profile'!#REF!-(Emission_Rate*(hSA+hSB-BC263)/(Abf*'SV Conc Profile'!$E$6/10000)))) ->  | BF263: =IF(BE263="","",Cs-(Emission_Rate*(Ls-BE263)/(Abf*'SV Conc Profile'!$F$6/10000))) -> 
BB264: =IF(BA264="","",IF(hSA=Ls,Cs-(Emission_Rate*(hSA-BA264)/(Abf*'SV Conc Profile'!$D$6/10000)),'SV Conc Profile'!#REF!-(Emission_Rate*(hSA-BA264)/(Abf*'SV Conc Profile'!$D$6/10000)))) ->  | BD264: =IF(BC264="","",IF(hSA+hSB=Ls,Cs-(Emission_Rate*(hSA+hSB-BC264)/(Abf*'SV Conc Profile'!$E$6/10000)),'SV Conc Profile'!#REF!-(Emission_Rate*(hSA+hSB-BC264)/(Abf*'SV Conc Profile'!$E$6/10000)))) ->  | BF264: =IF(BE264="","",Cs-(Emission_Rate*(Ls-BE264)/(Abf*'SV Conc Profile'!$F$6/10000))) -> 
BB265: =IF(BA265="","",IF(hSA=Ls,Cs-(Emission_Rate*(hSA-BA265)/(Abf*'SV Conc Profile'!$D$6/10000)),'SV Conc Profile'!#REF!-(Emission_Rate*(hSA-BA265)/(Abf*'SV Conc Profile'!$D$6/10000)))) ->  | BD265: =IF(BC265="","",IF(hSA+hSB=Ls,Cs-(Emission_Rate*(hSA+hSB-BC265)/(Abf*'SV Conc Profile'!$E$6/10000)),'SV Conc Profile'!#REF!-(Emission_Rate*(hSA+hSB-BC265)/(Abf*'SV Conc Profile'!$E$6/10000)))) ->  | BF265: =IF(BE265="","",Cs-(Emission_Rate*(Ls-BE265)/(Abf*'SV Conc Profile'!$F$6/10000))) -> 
BB266: =IF(BA266="","",IF(hSA=Ls,Cs-(Emission_Rate*(hSA-BA266)/(Abf*'SV Conc Profile'!$D$6/10000)),'SV Conc Profile'!#REF!-(Emission_Rate*(hSA-BA266)/(Abf*'SV Conc Profile'!$D$6/10000)))) ->  | BD266: =IF(BC266="","",IF(hSA+hSB=Ls,Cs-(Emission_Rate*(hSA+hSB-BC266)/(Abf*'SV Conc Profile'!$E$6/10000)),'SV Conc Profile'!#REF!-(Emission_Rate*(hSA+hSB-BC266)/(Abf*'SV Conc Profile'!$E$6/10000)))) ->  | BF266: =IF(BE266="","",Cs-(Emission_Rate*(Ls-BE266)/(Abf*'SV Conc Profile'!$F$6/10000))) -> 
BB267: =IF(BA267="","",IF(hSA=Ls,Cs-(Emission_Rate*(hSA-BA267)/(Abf*'SV Conc Profile'!$D$6/10000)),'SV Conc Profile'!#REF!-(Emission_Rate*(hSA-BA267)/(Abf*'SV Conc Profile'!$D$6/10000)))) ->  | BD267: =IF(BC267="","",IF(hSA+hSB=Ls,Cs-(Emission_Rate*(hSA+hSB-BC267)/(Abf*'SV Conc Profile'!$E$6/10000)),'SV Conc Profile'!#REF!-(Emission_Rate*(hSA+hSB-BC267)/(Abf*'SV Conc Profile'!$E$6/10000)))) ->  | BF267: =IF(BE267="","",Cs-(Emission_Rate*(Ls-BE267)/(Abf*'SV Conc Profile'!$F$6/10000))) -> 
BB268: =IF(BA268="","",IF(hSA=Ls,Cs-(Emission_Rate*(hSA-BA268)/(Abf*'SV Conc Profile'!$D$6/10000)),'SV Conc Profile'!#REF!-(Emission_Rate*(hSA-BA268)/(Abf*'SV Conc Profile'!$D$6/10000)))) ->  | BD268: =IF(BC268="","",IF(hSA+hSB=Ls,Cs-(Emission_Rate*(hSA+hSB-BC268)/(Abf*'SV Conc Profile'!$E$6/10000)),'SV Conc Profile'!#REF!-(Emission_Rate*(hSA+hSB-BC268)/(Abf*'SV Conc Profile'!$E$6/10000)))) ->  | BF268: =IF(BE268="","",Cs-(Emission_Rate*(Ls-BE268)/(Abf*'SV Conc Profile'!$F$6/10000))) -> 
BB269: =IF(BA269="","",IF(hSA=Ls,Cs-(Emission_Rate*(hSA-BA269)/(Abf*'SV Conc Profile'!$D$6/10000)),'SV Conc Profile'!#REF!-(Emission_Rate*(hSA-BA269)/(Abf*'SV Conc Profile'!$D$6/10000)))) ->  | BD269: =IF(BC269="","",IF(hSA+hSB=Ls,Cs-(Emission_Rate*(hSA+hSB-BC269)/(Abf*'SV Conc Profile'!$E$6/10000)),'SV Conc Profile'!#REF!-(Emission_Rate*(hSA+hSB-BC269)/(Abf*'SV Conc Profile'!$E$6/10000)))) ->  | BF269: =IF(BE269="","",Cs-(Emission_Rate*(Ls-BE269)/(Abf*'SV Conc Profile'!$F$6/10000))) -> 
BB270: =IF(BA270="","",IF(hSA=Ls,Cs-(Emission_Rate*(hSA-BA270)/(Abf*'SV Conc Profile'!$D$6/10000)),'SV Conc Profile'!#REF!-(Emission_Rate*(hSA-BA270)/(Abf*'SV Conc Profile'!$D$6/10000)))) ->  | BD270: =IF(BC270="","",IF(hSA+hSB=Ls,Cs-(Emission_Rate*(hSA+hSB-BC270)/(Abf*'SV Conc Profile'!$E$6/10000)),'SV Conc Profile'!#REF!-(Emission_Rate*(hSA+hSB-BC270)/(Abf*'SV Conc Profile'!$E$6/10000)))) ->  | BF270: =IF(BE270="","",Cs-(Emission_Rate*(Ls-BE270)/(Abf*'SV Conc Profile'!$F$6/10000))) -> 
BB271: =IF(BA271="","",IF(hSA=Ls,Cs-(Emission_Rate*(hSA-BA271)/(Abf*'SV Conc Profile'!$D$6/10000)),'SV Conc Profile'!#REF!-(Emission_Rate*(hSA-BA271)/(Abf*'SV Conc Profile'!$D$6/10000)))) ->  | BD271: =IF(BC271="","",IF(hSA+hSB=Ls,Cs-(Emission_Rate*(hSA+hSB-BC271)/(Abf*'SV Conc Profile'!$E$6/10000)),'SV Conc Profile'!#REF!-(Emission_Rate*(hSA+hSB-BC271)/(Abf*'SV Conc Profile'!$E$6/10000)))) ->  | BF271: =IF(BE271="","",Cs-(Emission_Rate*(Ls-BE271)/(Abf*'SV Conc Profile'!$F$6/10000))) -> 
BB272: =IF(BA272="","",IF(hSA=Ls,Cs-(Emission_Rate*(hSA-BA272)/(Abf*'SV Conc Profile'!$D$6/10000)),'SV Conc Profile'!#REF!-(Emission_Rate*(hSA-BA272)/(Abf*'SV Conc Profile'!$D$6/10000)))) ->  | BD272: =IF(BC272="","",IF(hSA+hSB=Ls,Cs-(Emission_Rate*(hSA+hSB-BC272)/(Abf*'SV Conc Profile'!$E$6/10000)),'SV Conc Profile'!#REF!-(Emission_Rate*(hSA+hSB-BC272)/(Abf*'SV Conc Profile'!$E$6/10000)))) ->  | BF272: =IF(BE272="","",Cs-(Emission_Rate*(Ls-BE272)/(Abf*'SV Conc Profile'!$F$6/10000))) -> 
BB273: =IF(BA273="","",IF(hSA=Ls,Cs-(Emission_Rate*(hSA-BA273)/(Abf*'SV Conc Profile'!$D$6/10000)),'SV Conc Profile'!#REF!-(Emission_Rate*(hSA-BA273)/(Abf*'SV Conc Profile'!$D$6/10000)))) ->  | BD273: =IF(BC273="","",IF(hSA+hSB=Ls,Cs-(Emission_Rate*(hSA+hSB-BC273)/(Abf*'SV Conc Profile'!$E$6/10000)),'SV Conc Profile'!#REF!-(Emission_Rate*(hSA+hSB-BC273)/(Abf*'SV Conc Profile'!$E$6/10000)))) ->  | BF273: =IF(BE273="","",Cs-(Emission_Rate*(Ls-BE273)/(Abf*'SV Conc Profile'!$F$6/10000))) -> 
BB274: =IF(BA274="","",IF(hSA=Ls,Cs-(Emission_Rate*(hSA-BA274)/(Abf*'SV Conc Profile'!$D$6/10000)),'SV Conc Profile'!#REF!-(Emission_Rate*(hSA-BA274)/(Abf*'SV Conc Profile'!$D$6/10000)))) ->  | BD274: =IF(BC274="","",IF(hSA+hSB=Ls,Cs-(Emission_Rate*(hSA+hSB-BC274)/(Abf*'SV Conc Profile'!$E$6/10000)),'SV Conc Profile'!#REF!-(Emission_Rate*(hSA+hSB-BC274)/(Abf*'SV Conc Profile'!$E$6/10000)))) ->  | BF274: =IF(BE274="","",Cs-(Emission_Rate*(Ls-BE274)/(Abf*'SV Conc Profile'!$F$6/10000))) -> 
BB275: =IF(BA275="","",IF(hSA=Ls,Cs-(Emission_Rate*(hSA-BA275)/(Abf*'SV Conc Profile'!$D$6/10000)),'SV Conc Profile'!#REF!-(Emission_Rate*(hSA-BA275)/(Abf*'SV Conc Profile'!$D$6/10000)))) ->  | BD275: =IF(BC275="","",IF(hSA+hSB=Ls,Cs-(Emission_Rate*(hSA+hSB-BC275)/(Abf*'SV Conc Profile'!$E$6/10000)),'SV Conc Profile'!#REF!-(Emission_Rate*(hSA+hSB-BC275)/(Abf*'SV Conc Profile'!$E$6/10000)))) ->  | BF275: =IF(BE275="","",Cs-(Emission_Rate*(Ls-BE275)/(Abf*'SV Conc Profile'!$F$6/10000))) -> 
BB276: =IF(BA276="","",IF(hSA=Ls,Cs-(Emission_Rate*(hSA-BA276)/(Abf*'SV Conc Profile'!$D$6/10000)),'SV Conc Profile'!#REF!-(Emission_Rate*(hSA-BA276)/(Abf*'SV Conc Profile'!$D$6/10000)))) ->  | BD276: =IF(BC276="","",IF(hSA+hSB=Ls,Cs-(Emission_Rate*(hSA+hSB-BC276)/(Abf*'SV Conc Profile'!$E$6/10000)),'SV Conc Profile'!#REF!-(Emission_Rate*(hSA+hSB-BC276)/(Abf*'SV Conc Profile'!$E$6/10000)))) ->  | BF276: =IF(BE276="","",Cs-(Emission_Rate*(Ls-BE276)/(Abf*'SV Conc Profile'!$F$6/10000))) -> 
BB277: =IF(BA277="","",IF(hSA=Ls,Cs-(Emission_Rate*(hSA-BA277)/(Abf*'SV Conc Profile'!$D$6/10000)),'SV Conc Profile'!#REF!-(Emission_Rate*(hSA-BA277)/(Abf*'SV Conc Profile'!$D$6/10000)))) ->  | BD277: =IF(BC277="","",IF(hSA+hSB=Ls,Cs-(Emission_Rate*(hSA+hSB-BC277)/(Abf*'SV Conc Profile'!$E$6/10000)),'SV Conc Profile'!#REF!-(Emission_Rate*(hSA+hSB-BC277)/(Abf*'SV Conc Profile'!$E$6/10000)))) ->  | BF277: =IF(BE277="","",Cs-(Emission_Rate*(Ls-BE277)/(Abf*'SV Conc Profile'!$F$6/10000))) -> 
BB278: =IF(BA278="","",IF(hSA=Ls,Cs-(Emission_Rate*(hSA-BA278)/(Abf*'SV Conc Profile'!$D$6/10000)),'SV Conc Profile'!#REF!-(Emission_Rate*(hSA-BA278)/(Abf*'SV Conc Profile'!$D$6/10000)))) ->  | BD278: =IF(BC278="","",IF(hSA+hSB=Ls,Cs-(Emission_Rate*(hSA+hSB-BC278)/(Abf*'SV Conc Profile'!$E$6/10000)),'SV Conc Profile'!#REF!-(Emission_Rate*(hSA+hSB-BC278)/(Abf*'SV Conc Profile'!$E$6/10000)))) ->  | BF278: =IF(BE278="","",Cs-(Emission_Rate*(Ls-BE278)/(Abf*'SV Conc Profile'!$F$6/10000))) -> 
BB279: =IF(BA279="","",IF(hSA=Ls,Cs-(Emission_Rate*(hSA-BA279)/(Abf*'SV Conc Profile'!$D$6/10000)),'SV Conc Profile'!#REF!-(Emission_Rate*(hSA-BA279)/(Abf*'SV Conc Profile'!$D$6/10000)))) ->  | BD279: =IF(BC279="","",IF(hSA+hSB=Ls,Cs-(Emission_Rate*(hSA+hSB-BC279)/(Abf*'SV Conc Profile'!$E$6/10000)),'SV Conc Profile'!#REF!-(Emission_Rate*(hSA+hSB-BC279)/(Abf*'SV Conc Profile'!$E$6/10000)))) ->  | BF279: =IF(BE279="","",Cs-(Emission_Rate*(Ls-BE279)/(Abf*'SV Conc Profile'!$F$6/10000))) -> 
BB280: =IF(BA280="","",IF(hSA=Ls,Cs-(Emission_Rate*(hSA-BA280)/(Abf*'SV Conc Profile'!$D$6/10000)),'SV Conc Profile'!#REF!-(Emission_Rate*(hSA-BA280)/(Abf*'SV Conc Profile'!$D$6/10000)))) ->  | BD280: =IF(BC280="","",IF(hSA+hSB=Ls,Cs-(Emission_Rate*(hSA+hSB-BC280)/(Abf*'SV Conc Profile'!$E$6/10000)),'SV Conc Profile'!#REF!-(Emission_Rate*(hSA+hSB-BC280)/(Abf*'SV Conc Profile'!$E$6/10000)))) ->  | BF280: =IF(BE280="","",Cs-(Emission_Rate*(Ls-BE280)/(Abf*'SV Conc Profile'!$F$6/10000))) -> 
BB281: =IF(BA281="","",IF(hSA=Ls,Cs-(Emission_Rate*(hSA-BA281)/(Abf*'SV Conc Profile'!$D$6/10000)),'SV Conc Profile'!#REF!-(Emission_Rate*(hSA-BA281)/(Abf*'SV Conc Profile'!$D$6/10000)))) ->  | BD281: =IF(BC281="","",IF(hSA+hSB=Ls,Cs-(Emission_Rate*(hSA+hSB-BC281)/(Abf*'SV Conc Profile'!$E$6/10000)),'SV Conc Profile'!#REF!-(Emission_Rate*(hSA+hSB-BC281)/(Abf*'SV Conc Profile'!$E$6/10000)))) ->  | BF281: =IF(BE281="","",Cs-(Emission_Rate*(Ls-BE281)/(Abf*'SV Conc Profile'!$F$6/10000))) -> 
BB282: =IF(BA282="","",IF(hSA=Ls,Cs-(Emission_Rate*(hSA-BA282)/(Abf*'SV Conc Profile'!$D$6/10000)),'SV Conc Profile'!#REF!-(Emission_Rate*(hSA-BA282)/(Abf*'SV Conc Profile'!$D$6/10000)))) ->  | BD282: =IF(BC282="","",IF(hSA+hSB=Ls,Cs-(Emission_Rate*(hSA+hSB-BC282)/(Abf*'SV Conc Profile'!$E$6/10000)),'SV Conc Profile'!#REF!-(Emission_Rate*(hSA+hSB-BC282)/(Abf*'SV Conc Profile'!$E$6/10000)))) ->  | BF282: =IF(BE282="","",Cs-(Emission_Rate*(Ls-BE282)/(Abf*'SV Conc Profile'!$F$6/10000))) -> 
BB283: =IF(BA283="","",IF(hSA=Ls,Cs-(Emission_Rate*(hSA-BA283)/(Abf*'SV Conc Profile'!$D$6/10000)),'SV Conc Profile'!#REF!-(Emission_Rate*(hSA-BA283)/(Abf*'SV Conc Profile'!$D$6/10000)))) ->  | BD283: =IF(BC283="","",IF(hSA+hSB=Ls,Cs-(Emission_Rate*(hSA+hSB-BC283)/(Abf*'SV Conc Profile'!$E$6/10000)),'SV Conc Profile'!#REF!-(Emission_Rate*(hSA+hSB-BC283)/(Abf*'SV Conc Profile'!$E$6/10000)))) ->  | BF283: =IF(BE283="","",Cs-(Emission_Rate*(Ls-BE283)/(Abf*'SV Conc Profile'!$F$6/10000))) -> 
BB284: =IF(BA284="","",IF(hSA=Ls,Cs-(Emission_Rate*(hSA-BA284)/(Abf*'SV Conc Profile'!$D$6/10000)),'SV Conc Profile'!#REF!-(Emission_Rate*(hSA-BA284)/(Abf*'SV Conc Profile'!$D$6/10000)))) ->  | BD284: =IF(BC284="","",IF(hSA+hSB=Ls,Cs-(Emission_Rate*(hSA+hSB-BC284)/(Abf*'SV Conc Profile'!$E$6/10000)),'SV Conc Profile'!#REF!-(Emission_Rate*(hSA+hSB-BC284)/(Abf*'SV Conc Profile'!$E$6/10000)))) ->  | BF284: =IF(BE284="","",Cs-(Emission_Rate*(Ls-BE284)/(Abf*'SV Conc Profile'!$F$6/10000))) -> 
BB285: =IF(BA285="","",IF(hSA=Ls,Cs-(Emission_Rate*(hSA-BA285)/(Abf*'SV Conc Profile'!$D$6/10000)),'SV Conc Profile'!#REF!-(Emission_Rate*(hSA-BA285)/(Abf*'SV Conc Profile'!$D$6/10000)))) ->  | BD285: =IF(BC285="","",IF(hSA+hSB=Ls,Cs-(Emission_Rate*(hSA+hSB-BC285)/(Abf*'SV Conc Profile'!$E$6/10000)),'SV Conc Profile'!#REF!-(Emission_Rate*(hSA+hSB-BC285)/(Abf*'SV Conc Profile'!$E$6/10000)))) ->  | BF285: =IF(BE285="","",Cs-(Emission_Rate*(Ls-BE285)/(Abf*'SV Conc Profile'!$F$6/10000))) -> 
BB286: =IF(BA286="","",IF(hSA=Ls,Cs-(Emission_Rate*(hSA-BA286)/(Abf*'SV Conc Profile'!$D$6/10000)),'SV Conc Profile'!#REF!-(Emission_Rate*(hSA-BA286)/(Abf*'SV Conc Profile'!$D$6/10000)))) ->  | BD286: =IF(BC286="","",IF(hSA+hSB=Ls,Cs-(Emission_Rate*(hSA+hSB-BC286)/(Abf*'SV Conc Profile'!$E$6/10000)),'SV Conc Profile'!#REF!-(Emission_Rate*(hSA+hSB-BC286)/(Abf*'SV Conc Profile'!$E$6/10000)))) ->  | BF286: =IF(BE286="","",Cs-(Emission_Rate*(Ls-BE286)/(Abf*'SV Conc Profile'!$F$6/10000))) -> 
BB287: =IF(BA287="","",IF(hSA=Ls,Cs-(Emission_Rate*(hSA-BA287)/(Abf*'SV Conc Profile'!$D$6/10000)),'SV Conc Profile'!#REF!-(Emission_Rate*(hSA-BA287)/(Abf*'SV Conc Profile'!$D$6/10000)))) ->  | BD287: =IF(BC287="","",IF(hSA+hSB=Ls,Cs-(Emission_Rate*(hSA+hSB-BC287)/(Abf*'SV Conc Profile'!$E$6/10000)),'SV Conc Profile'!#REF!-(Emission_Rate*(hSA+hSB-BC287)/(Abf*'SV Conc Profile'!$E$6/10000)))) ->  | BF287: =IF(BE287="","",Cs-(Emission_Rate*(Ls-BE287)/(Abf*'SV Conc Profile'!$F$6/10000))) -> 
BB288: =IF(BA288="","",IF(hSA=Ls,Cs-(Emission_Rate*(hSA-BA288)/(Abf*'SV Conc Profile'!$D$6/10000)),'SV Conc Profile'!#REF!-(Emission_Rate*(hSA-BA288)/(Abf*'SV Conc Profile'!$D$6/10000)))) ->  | BD288: =IF(BC288="","",IF(hSA+hSB=Ls,Cs-(Emission_Rate*(hSA+hSB-BC288)/(Abf*'SV Conc Profile'!$E$6/10000)),'SV Conc Profile'!#REF!-(Emission_Rate*(hSA+hSB-BC288)/(Abf*'SV Conc Profile'!$E$6/10000)))) ->  | BF288: =IF(BE288="","",Cs-(Emission_Rate*(Ls-BE288)/(Abf*'SV Conc Profile'!$F$6/10000))) -> 
BA289: =IF(BA288="","",IF(AND(BA288+0.5>hSA,BA288/hSA<1),hSA,IF(BA288+0.5>hSA,"",BA288+0.5))) ->  | BB289: =IF(BA289="","",IF(hSA=Ls,Cs-(Emission_Rate*(hSA-BA289)/(Abf*'SV Conc Profile'!$D$6/10000)),'SV Conc Profile'!#REF!-(Emission_Rate*(hSA-BA289)/(Abf*'SV Conc Profile'!$D$6/10000)))) ->  | BC289: =IF(BC288="","",IF(AND(BC288+0.05>(hSA+hSB),BC288/(hSA+hSB)<1),hSA+hSB,IF(BC288+0.5>(hSA+hSB),"",BC288+0.5))) ->  | BD289: =IF(BC289="","",IF(hSA+hSB=Ls,Cs-(Emission_Rate*(hSA+hSB-BC289)/(Abf*'SV Conc Profile'!$E$6/10000)),'SV Conc Profile'!#REF!-(Emission_Rate*(hSA+hSB-BC289)/(Abf*'SV Conc Profile'!$E$6/10000)))) ->  | BE289: =IF(BE288="","",IF(AND(BE288+0.5>(hSA+hSB+hSC),BE288/(hSA+hSB+hSC)<1),hSA+hSB+hSC,IF(BE288+0.5>(hSA+hSB+hSC),"",BE288+0.5))) ->  | BF289: =IF(BE289="","",Cs-(Emission_Rate*(Ls-BE289)/(Abf*'SV Conc Profile'!$F$6/10000))) -> 
... 34 more rows

Sheet MEASURED_SOIL_GAS_CONC.
A1: Input Measured Soil Gas Concentrations
A2: Note: If site-specific data on soil gas concentrations by depth are available, enter those concentrations in the cells below. These data will be plotted on the Concentration versus Depth Profile shown on this worksheet. Up to 25 concentrations may be entered by the user.
A3: Intentionally Blank
A4: Depth (m) | B4: Measured Soil Gas Concentation (ug/m3)
A5: 1.5 | B5: 80
A6: 3.5 | B6: 120
A7: 5 | B7: 250
A31: End of Worksheet
A32: Go to "README" tab
A33: Go to "MODEL" tab

Sheet MULTI_CHEM_INPUT
A1: Input Chemical Concentrations for Multiple Chemicals
A2: Note: All other inputs must be entered in model sheet. For multi-chemical mode, all inputs except concentration must be the same for all chemicals. Model calculations will be completed and added to MULTI_CHEM_OUTPUT sheet for those chemicals with a concentration entered.
C3: =IF(MODEL!$F$19=1,"USEPA toxicity values used","CalEPA toxicity values used.") -> USEPA toxicity values used
A4: Intentionally Blank
A5: Intentionally Blank
A6: Chemical List | B6: CASRN | C6: Concentration (µg/L) or (µg/m3)
A7: Acenaphthene | B7: 83-32-9
A8: Acetaldehyde | B8: 75-07-0
A9: Acetone | B9: 67-64-1
A10: Acetonitrile | B10: 75-05-8
A11: Acetophenone | B11: 98-86-2
A12: Acrolein | B12: 107-02-8
A13: Acrylic Acid | B13: 79-10-7
A14: Acrylonitrile | B14: 107-13-1
A15: Aldrin | B15: 309-00-2
A16: Allyl Alcohol | B16: 107-18-6
A17: Allyl Chloride | B17: 107-05-1
A18: Ammonia | B18: 7664-41-7
A19: Amyl Alcohol, tert- | B19: 75-85-4
A20: Anthracene | B20: 120-12-7
A21: Aroclor 1016 | B21: 12674-11-2
A22: Aroclor 1221 | B22: 11104-28-2
A23: Aroclor 1232 | B23: 11141-16-5
A24: Aroclor 1242 | B24: 53469-21-9
A25: Aroclor 1248 | B25: 12672-29-6
A26: Aroclor 1254 | B26: 11097-69-1
A27: Aroclor 1260 | B27: 11096-82-5
A28: Aroclor 5460 | B28: 11126-42-4
A29: Azobenzene | B29: 103-33-3
A30: Benfluralin | B30: 1861-40-1
A31: Benz[a]anthracene | B31: 56-55-3
A32: Benzaldehyde | B32: 100-52-7
A33: Benzene | B33: 71-43-2 | C33: 10
A34: Benzenethiol | B34: 108-98-5
A35: Benzotrichloride | B35: 98-07-7
A36: Benzyl Chloride | B36: 100-44-7
A37: Biphenyl, 1,1'- | B37: 92-52-4
A38: Bis(2-chloro-1-methylethyl) ether | B38: 108-60-1
A39: Bis(2-chloroethyl)ether | B39: 111-44-4
A40: Bis(chloromethyl)ether | B40: 542-88-1
A41: Boron Trichloride | B41: 10294-34-5
A42: Boron Trifluoride | B42: 7637-07-2
A43: Bromo-2-chloroethane, 1- | B43: 107-04-0
A44: Bromobenzene | B44: 108-86-1
A45: Bromochloromethane | B45: 74-97-5
A46: Bromodichloromethane | B46: 75-27-4
A47: Bromoform | B47: 75-25-2
A48: Bromomethane | B48: 74-83-9
A49: Bromophos | B49: 2104-96-3
A50: Bromoxynil Octanoate | B50: 1689-99-2
A51: Butadiene, 1,3- | B51: 106-99-0
A52: Butanol, N- | B52: 71-36-3
A53: Butyl alcohol, sec- | B53: 78-92-2
A54: Butylate | B54: 2008-41-5
A55: Butylbenzene, n- | B55: 104-51-8
A56: Butylbenzene, sec- | B56: 135-98-8
A57: Butylbenzene, tert- | B57: 98-06-6
A58: Bromo-3-fluorobenzene, 1- | B58: 1073-06-9
A59: Bromo-4-fluorobenzene, 1- | B59: 460-00-4
A60: Bromopropane, 1- | B60: 106-94-5
A61: Difluoropropane, 2,2- | B61: 420-45-1
A62: Diphenyl Ether | B62: 101-84-8
A63: Heptanal, n- | B63: 111-71-7
A64: Methyl-2-Pentanol, 4- | B64: 108-11-2
A65: Carbon Disulfide | B65: 75-15-0
A66: Carbon Tetrachloride | B66: 56-23-5
A67: Carbonyl Sulfide | B67: 463-58-1
A68: Chloral Hydrate | B68: 302-17-0
A69: Chlordane | B69: 12789-03-6
A70: Chlorine | B70: 7782-50-5
A71: Chlorine Dioxide | B71: 10049-04-4
A72: Chloro-1,1-difluoroethane, 1- | B72: 75-68-3
A73: Chloro-1,3-butadiene, 2- | B73: 126-99-8
A74: Chloroacetaldehyde, 2- | B74: 107-20-0
A75: Chlorobenzene | B75: 108-90-7
A76: Chlorobenzotrifluoride, 4- | B76: 98-56-6
A77: Chlorobutane, 1- | B77: 109-69-3
A78: Chlorodifluoromethane | B78: 75-45-6
A79: Chloroethanol, 2- | B79: 107-07-3
A80: Chloroform | B80: 67-66-3
A81: Chloromethane | B81: 74-87-3
A82: Chloromethyl Methyl Ether | B82: 107-30-2
A83: Chloronaphthalene, Beta- | B83: 91-58-7
A84: Chlorophenol, 2- | B84: 95-57-8
A85: Chloropicrin | B85: 76-06-2
A86: Chlorotoluene, o- | B86: 95-49-8
A87: Chlorotoluene, p- | B87: 106-43-4
A88: Coke Oven Emissions | B88: 8007-45-2
A89: Crotonaldehyde, trans- | B89: 123-73-9
A90: Cumene | B90: 98-82-8
A91: Cyanide (CN-) | B91: 57-12-5
A92: Cyanogen | B92: 460-19-5
A93: Cyanogen Bromide | B93: 506-68-3
A94: Cyanogen Chloride | B94: 506-77-4
A95: Cyclohexane | B95: 110-82-7
A96: Cyclohexanone | B96: 108-94-1
A97: Cyclohexene | B97: 110-83-8
A98: Cyclohexylamine | B98: 108-91-8
A99: DDE, p,p'- | B99: 72-55-9
A100: Dibenzofuran | B100: 132-64-9
A101: Dibenzothiophene | B101: 132-65-0
A102: Dibromo-3-chloropropane, 1,2- | B102: 96-12-8
A103: Dibromobenzene, 1,3- | B103: 108-36-1
A104: Dibromobenzene, 1,4- | B104: 106-37-6
A105: Dibromochloromethane | B105: 124-48-1
A106: Dibromoethane, 1,2- | B106: 106-93-4
A107: Dibromomethane (Methylene Bromide) | B107: 74-95-3
A108: Dichloro-2-butene, 1,4- | B108: 764-41-0
A109: Dichloro-2-butene, cis-1,4- | B109: 1476-11-5
A110: Dichloro-2-butene, trans-1,4- | B110: 110-57-6
A111: Dichlorobenzene, 1,2- | B111: 95-50-1
A112: Dichlorobenzene, 1,4- | B112: 106-46-7
A113: Dichlorodifluoromethane | B113: 75-71-8
A114: Dichloroethane, 1,1- | B114: 75-34-3
A115: Dichloroethane, 1,2- | B115: 107-06-2
A116: Dichloroethylene, 1,1- | B116: 75-35-4
A117: Dichloroethylene, 1,2-cis- | B117: 156-59-2
A118: Dichloroethylene, 1,2-trans- | B118: 156-60-5
A119: Dichloropropane, 1,2- | B119: 78-87-5
A120: Dichloropropane, 1,3- | B120: 142-28-9
A121: Dichloropropene, 1,3- | B121: 542-75-6
A122: Dicyclopentadiene | B122: 77-73-6
A123: Diethylformamide | B123: 617-84-5
A124: Difluoroethane, 1,1- | B124: 75-37-6
A125: Dihydrosafrole | B125: 94-58-6
A126: Diisopropyl Ether | B126: 108-20-3
A127: Diisopropyl Methylphosphonate | B127: 1445-75-6
A128: Dimethylaniline, N,N- | B128: 121-69-7
A129: Dimethylformamide | B129: 68-12-2
A130: Dimethylhydrazine, 1,1- | B130: 57-14-7
A131: Dimethylhydrazine, 1,2- | B131: 540-73-8
A132: Dimethylterephthalate | B132: 120-61-6
A133: Dimethylvinylchloride | B133: 513-37-1
A134: Dioxane, 1,4- | B134: 123-91-1
A135: Dithiane, 1,4- | B135: 505-29-3
A136: Endosulfan | B136: 115-29-7
A137: Epichlorohydrin | B137: 106-89-8
A138: Epoxybutane, 1,2- | B138: 106-88-7
A139: EPTC | B139: 759-94-4
A140: Ethoxyethanol Acetate, 2- | B140: 111-15-9
A141: Ethoxyethanol, 2- | B141: 110-80-5
A142: Ethyl Acetate | B142: 141-78-6
A143: Ethyl Acrylate | B143: 140-88-5
A144: Ethyl Chloride (Chloroethane) | B144: 75-00-3
A145: Ethyl Ether | B145: 60-29-7
A146: Ethyl Methacrylate | B146: 97-63-2
A147: Ethylbenzene | B147: 100-41-4
A148: Ethylene Diamine | B148: 107-15-3
A149: Ethylene Oxide | B149: 75-21-8
A150: Ethyleneimine | B150: 151-56-4
A151: Fluorene | B151: 86-73-7
A152: Formaldehyde | B152: 50-00-0
A153: Formic Acid | B153: 64-18-6
A154: Furan | B154: 110-00-9
A155: Furfural | B155: 98-01-1
A156: Glycidyl | B156: 765-34-4
A157: Guanidine | B157: 113-00-8
A158: Heptachlor | B158: 76-44-8
A159: Heptachlor Epoxide | B159: 1024-57-3
A160: Heptachlorobiphenyl, 2,3,3',4,4',5,5'- (PCB 189) | B160: 39635-31-9
A161: Hexabromobenzene | B161: 87-82-1
A162: Hexachlorobenzene | B162: 118-74-1
A163: Hexachlorobiphenyl, 2,3,3',4,4',5- (PCB 156) | B163: 38380-08-4
A164: Hexachlorobiphenyl, 2,3,3',4,4',5'- (PCB 157) | B164: 69782-90-7
A165: Hexachlorobiphenyl, 2,3',4,4',5,5'- (PCB 167) | B165: 52663-72-6
A166: Hexachlorobiphenyl, 3,3',4,4',5,5'- (PCB 169) | B166: 32774-16-6
A167: Hexachlorobutadiene | B167: 87-68-3
A168: Hexachlorocyclopentadiene | B168: 77-47-4
A169: Hexachloroethane | B169: 67-72-1
A170: Hexamethylene Diisocyanate, 1,6- | B170: 822-06-0
A171: Hexane, N- | B171: 110-54-3
A172: Hexanone, 2- | B172: 591-78-6
A173: Hydrazine | B173: 302-01-2
A174: Hydrogen Chloride | B174: 7647-01-0
A175: Hydrogen Cyanide | B175: 74-90-8
A176: Hydrogen Fluoride | B176: 7664-39-3
A177: Hydrogen Sulfide | B177: 7783-06-4
A178: Isobutyl Alcohol | B178: 78-83-1
A179: Isopropalin | B179: 33820-53-0
A180: Isopropanol | B180: 67-63-0
A181: Lewisite | B181: 541-25-3
A182: Mercury (elemental) | B182: 7439-97-6
A183: Merphos | B183: 150-50-5
A184: Methacrylonitrile | B184: 126-98-7
A185: Methanol | B185: 67-56-1
A186: Methoxyethanol Acetate, 2- | B186: 110-49-6
A187: Methoxyethanol, 2- | B187: 109-86-4
A188: Methyl Acetate | B188: 79-20-9
A189: Methyl Acrylate | B189: 96-33-3
A190: Methyl Ethyl Ketone (2-Butanone) | B190: 78-93-3
A191: Methyl Hydrazine | B191: 60-34-4
A192: Methyl Isobutyl Ketone (4-methyl-2-pentanone) | B192: 108-10-1
A193: Methyl Isocyanate | B193: 624-83-9
A194: Methyl Methacrylate | B194: 80-62-6
A195: Methyl Styrene (Mixed Isomers) | B195: 25013-15-4
A196: Methyl tert-Butyl Ether (MTBE) | B196: 1634-04-4
A197: Methylene Chloride | B197: 75-09-2
A198: Methylnaphthalene, 1- | B198: 90-12-0
A199: Methylnaphthalene, 2- | B199: 91-57-6
A200: Methylstyrene, Alpha- | B200: 98-83-9
... 93 more rows

Sheet MULTI_CHEM_OUTPUT
A1: Table of Inputs and Outputs for Multiple Chemicals
A2: Note: Parameters other than the chemical concentration must be entered in the MODEL sheet and must be the same for all chemicals. Warnings and errors are displayed in only on the MODEL sheet.
E3: =IF(MODEL!$F$19=1,"USEPA toxicity values used","CalEPA toxicity values used.") -> USEPA toxicity values used
A5: Source Characteristics: | D5: Units | E5: Symbol
B6: Source medium | E6: Source
B7: =IF(Source="Groundwater","Groundwater concentration","Soil gas concentration") -> Groundwater concentration | D7: =IF(Source="Groundwater","(ug/L)","(ug/m3)") -> (ug/L) | E7: Cmedium
B8: =IF(Source="Groundwater","Depth below grade to water table","Depth below grade to soil gas sample") -> Depth below grade to water table | D8: (m) | E8: Ls
B9: =IF(Source="Groundwater","Average groundwater temperature","Average vadose zone temperature") -> Average groundwater temperature | D9: (oC) | E9: Ts
C10: Calc: Source vapor concentration | D10: (ug/m3) | E10: Cs
C11: Calc: % of pure component saturated vapor concentration | D11: (%) | E11: %Sat
A12: Chemical: | D12: Units | E12: Symbol
B13: Chemical Name | E13: Chem
C14: CAS No. | E14: CAS
A15: Toxicity Factors
B16: Unit risk factor | D16: (ug/m3)-1 | E16: IUR
B17: Mutagenic compound | E17: Mut
B18: Reference concentration | D18: (mg/m3) | E18: RfC
A19: Chemical Properties: | D19: Units | E19: Symbol
B20: Pure component water solubility | D20: (mg/L) | E20: S
B21: Henry's Law Constant @ 25oC | D21: (atm-m3/mol) | E21: Hc
C22: Calc: Henry's Law Constant @ 25oC | D22: (dimensionless) | E22: Hr
C23: Calc: Henry's Law Constant @ system temperature | D23: (dimensionless) | E23: Hs
B24: Diffusivity in air | D24: (cm2/s) | E24: Dair
B25: Diffusivity in water | D25: (cm2/s) | E25: Dwater
A26: Building Characteristics: | D26: Units | E26: Symbol
B27: Building setting | E27: Bldg_Setting
B28: Foundation type | E28: Found_Type
C29: Depth below grade to base of foundation | D29: (m) | E29: Lb
C30: Foundation thickness | D30: (m) | E30: Lf
C31: Fraction of foundation area with cracks | D31: (-) | E31: eta
C32: Enclosed space floor area | D32: (m2) | E32: Ab
C33: Enclosed space mixing height | D33: (m) | E33: Hb
C34: Indoor air exchange rate | D34: (1/hr) | E34: ach
C35: Qsoil/Qbuilding | D35: (-) | E35: Qsoil_Qb
C36: Calc: Building ventilation rate | D36: (m3/hr) | E36: Qb
C37: Calc: Average vapor flow rate into building | D37: (m3/hr) | E37: Qsoil
A38: Intentionally Blank
A39: Vadose zone characteristics: | D39: Units | E39: Symbol
A40: Stratum A (Top of soil profile):
B41: Stratum A SCS soil type | E41: SCS_A
B42: Stratum A thickness (from surface) | D42: (m) | E42: hSA
C43: Stratum A total porosity | D43: (-) | E43: nSA
C44: Stratum A water-filled porosity | D44: (-) | E44: nwSA
C45: Stratum A bulk density | D45: (g/cm3) | E45: rhoSA
A46: Stratum B (Soil layer below Stratum A):
B47: Stratum B SCS soil type | E47: SCS_B
B48: Stratum B thickness | D48: (m) | E48: hSB
C49: Stratum B total porosity | D49: (-) | E49: nSB
C50: Stratum B water-filled porosity | D50: (-) | E50: nwSB
C51: Stratum B bulk density | D51: (g/cm3) | E51: rhoSB
A52: Stratum C (Soil layer below Stratum B):
B53: Stratum C SCS soil type | E53: SCS_C
B54: Stratum C thickness | D54: (m) | E54: hSC
C55: Stratum C total porosity | D55: (-) | E55: nSC
C56: Stratum C water-filled porosity | D56: (-) | E56: nwSC
C57: Stratum C bulk density | D57: (g/cm3) | E57: rhoSC
A58: =IF(Source="Groundwater","Stratum directly above the water table","Stratum containing soil gas sample") -> Stratum directly above the water table
C59: Stratum A, B, or C | E59: src_soil
C60: =IF(Source="Groundwater","Height of capillary fringe","") -> Height of capillary fringe | D60: =IF(Source="Groundwater","(m)","") -> (m) | E60: =IF(Source="Groundwater","hcz","") -> hcz
C61: =IF(Source="Groundwater","Capillary zone total porosity","") -> Capillary zone total porosity | D61: =IF(Source="Groundwater","(-)","") -> (-) | E61: =IF(Source="Groundwater","ncz","") -> ncz
C62: =IF(Source="Groundwater","Capillary zone water filled porosity","") -> Capillary zone water filled porosity | D62: =IF(Source="Groundwater","(-)","") -> (-) | E62: =IF(Source="Groundwater","nwcz","") -> nwcz
A63: Exposure Parameters: | D63: Units | E63: Symbol
B64: Target risk for carcinogens | D64: (-) | E64: Target_CR
B65: Target hazard quotient for non-carcinogens | D65: (-) | E65: Target_HQ
B66: Exposure Scenario | E66: Scenario
B67: Averaging time for carcinogens | D67: (yrs) | E67: ATc
B68: Averaging time for non-carcinogens | D68: (yrs) | E68: ATnc
B69: Exposure duration | D69: (yrs) | E69: ED
B70: Exposure frequency | D70: (days/yr) | E70: EF
B71: Exposure time | D71: (hrs/24 hrs) | E71: ET
B72: Mutagenic mode-of-action factor | D72: (yrs) | E72: MMOAF
A73: Intentionally Blank
A74: Source to Indoor Air Attenuation Factor | D74: Units | E74: Symbol
A75: =IF(Source="Groundwater", "Groundwater to indoor air attenuation coefficient","Soil gas to indoor air attenuation coefficient") -> Groundwater to indoor air attenuation coefficient | D75: (-) | E75: alpha
E76: Range
A77: Predicted Indoor Air Concentration
A78: Indoor air concentration due to vapor intrusion | D78: (ug/m3) | E78: Cia
E79: Range
D80: (ppbv) | E80: Cia
E81: Range
A82: Predicted Vapor Concentration Beneath the Foundation
A83: Subslab vapor concentration | D83: (ug/m3) | E83: Css
E84: Range
D85: (ppbv) | E85: Css
E86: Range
A87: Diffusive Transport Upward Through Vadose Zone
A88: Effective diffusion coefficient through Stratum A | D88: (cm2/sec) | E88: DeffA
A89: Effective diffusion coefficient through Stratum B | D89: (cm2/sec) | E89: DeffB
A90: Effective diffusion coefficient through Stratum C | D90: (cm2/sec) | E90: DeffC
A91: =IF(Source="Groundwater","Effective diffusion coefficient through capillary zone","") -> Effective diffusion coefficient through capillary zone | D91: =IF(Source="Groundwater","(cm2/sec)","") -> (cm2/sec) | E91: =IF(Source="Groundwater","DeffCZ","") -> DeffCZ
A92: Effective diffusion coefficient through unsaturated zone | D92: (cm2/sec) | E92: DeffT
A93: Intentionally Blank
A94: Critical Parameters
A95: a for diffusive transport from source to building with dirt floor foundation | D95: (-) | E95: A_Param
A96: Pe (Peclet Number) for transport through the foundation (advection / diffusion) | D96: (-) | E96: B_Param
A97: a for convective transport from subslab to building | D97: (-) | E97: C_Param
A98: Intentionally Blank
A99: Interpretation
A100: Intentionally Blank
A101: output cells starting column F
A102: output cells starting column F
A103: Formula in column B | B103: =IF(B_Param<0.1,IF((A_Param*B_Param/C_Param)<0.1,"Diffusion through soil is the overall rate limiting process.",IF((A_Param*B_Param/C_Param)>(10*(1+A_Param)),"Diffusion through the foundation is the overall rate-limiting process.","Diffusion through soil and diffusion through foundation both control intrusion.")),"") -> 
A104: Intentionally Blank
A105: Intentionally Blank
A106: Critical Parameters
A107: Intentionally Blank
A108: output cells starting column F
A109: Formula in column B | B109: =IF(B_Param<0.1,IF((A_Param*B_Param/C_Param)<0.1,"Hb, Ls, DeffT, ach",IF((A_Param*B_Param/C_Param)>(10*(1+A_Param)),"Hb, Lf, DeffA, ach, eta","Alpha sentive to all parameters.")),"") -> 
A110: Intentionally Blank
A111: Intentionally Blank
A112: Non-Critical Parameters
A113: Intentionally Blank
A114: output cells starting column F
A115: Formula in column B | B115: =IF(B_Param<0.1,IF((A_Param*B_Param/C_Param)<0.1,"Qsoil_Qb, Lf, DeffA, eta",IF((A_Param*B_Param/C_Param)>(10*(1+A_Param)),"Qsoil_Qb, Ls, DeffT","Alpha sentive to all parameters.")),"") -> 
A116: Intentionally Blank
A117: Intentionally Blank
A118: Intentionally Blank
A119: Risk Calculations | D119: Units | E119: Symbol
A120: Intentionally Blank
A121: Risk-Based Target Screening Levels
A122: Target risk for carcinogens | D122: (-) | E122: Target_CR
A123: Target hazard quotient for noncarcinogens | D123: (-) | E123: Target_HQ
A124: Target indoor air concentration | D124: (ug/m3) | E124: Target_IA
D125: (ppbv) | E125: Target_IA
A126: =IF(Source="Groundwater","Target groundwater concentration","Target soil gas concentration") -> Target groundwater concentration | D126: =IF(Source="Groundwater","(ug/L)","(ug/m3)") -> (ug/L) | E126: =IF(Source="Groundwater","Target_GW","Target_SV") -> Target_GW
A127: Incremental Risk Estimates
A128: Incremental cancer risk from vapor intrusion | D128: (-) | E128: Cancer_Risk
E129: Range
A130: Hazard quotient from vapor intrusion | D130: (-) | E130: HQ
E131: Range
A132: End of Worksheet
A133: Go to "README" tab
A134: Go to "MODEL" tab
A135: Go to “MULTI_CHEM_INPUT” tab

Sheet Converter
A1: Unit Converter
A2: Intentionally Blank
A3: Intentionally Blank
C4: Column1 | D4: Old Unit | E4: Value in English Units | F4: Converted Value | G4: New Unit
C5: =MODEL!B12 -> Depth below grade to water table | D5: (ft) | F5: =IF(E5=0, "", E5*0.3048) ->  | G5: =MODEL!D12 -> (m)
C6: Average vadose zone or groundwater temperature | D6: (°F) | F6: =IF(E6=0, "", (E6-32)*(5/9)) ->  | G6: (°C)
C7: =MODEL!C38 -> Depth below grade to base of foundation | D7: (ft) | F7: =IF(E7=0, "", E7*0.3048) ->  | G7: =MODEL!D38 -> (m)
C8: =MODEL!C39 -> Foundation thickness | D8: (ft) | F8: =IF(E8=0, "", E8*0.3048) ->  | G8: =MODEL!D39 -> (m)
C9: =MODEL!C41 -> Enclosed space floor area | D9: (ft2) | F9: =IF(E9=0, "", E9*0.3048^2) ->  | G9: =MODEL!D41 -> (m2)
C10: =MODEL!C42 -> Enclosed space mixing height | D10: (ft) | G10: =MODEL!D42 -> (m)
C11: =MODEL!B56 -> Stratum A thickness (from surface) | D11: (ft) | F11: =IF(E11=0, "", E11*0.3048) ->  | G11: =MODEL!D56 -> (m)
C12: =MODEL!B62 -> Stratum B thickness | D12: (ft) | G12: =MODEL!D62 -> (m)
C13: =MODEL!B68 -> Stratum C thickness | D13: (ft) | G13: =MODEL!D68 -> (m)
A14: Intentionally Blank
A15: Intentionally Blank
A16: Intentionally Blank
A17: Intentionally Blank
A18: Intentionally Blank
A19: Intentionally Blank
A20: Intentionally Blank
A21: Intentionally Blank
A22: Intentionally Blank
A23: Intentionally Blank
A24: Intentionally Blank
A25: End of Worksheet
A26: Go to "README" tab
A27: Go to "MODEL" tab

Sheet BLDG_DATA
A1: US-EPA
A2: Setting | B2: Foundation type | C2: Depth Below Grade to Base of Foundation | D2: Foundation Thickness | E2: Fraction of foundation area with cracks | F2: Enclosed Space Floor Area | G2: Enclosed Space Height | H2: Indoor Air Exchange Rate | I2: Building Ventilation Rate | K2: Average Vapor Flow Rate Into Bldg | L2: eta | M2: Abf | N2: Hb | O2: -Foundation Type
C3: Lb | D3: Lcrack | E3: eta | F3: Abf | G3: Hb | H3: ach | I3: Qbuilding | J3: Qsoil/Qbuilding | K3: Qsoil | L3: range | M3: range | N3: range
C4: (m) | D4: (m) | F4: (m2) | G4: (m) | H4: (1/hr) | I4: (m3/hr) | J4: (-) | K4: (m3/hr)
A5: Commercial (not applicable for this model) | B5: Basement w/ slab | C5: 2 | D5: 0.2 | E5: 0.001 | F5: 1500 | G5: 3 | H5: 1.5 | I5: 6750 | J5: 0.003 | K5: 20.25 | L5: 0.0001-0.001 | M5: 80-1500 | N5: 2.44 - 4.88 | O5: -Basement w/ slab
A6: Commercial (not applicable for this model) | B6: Basement w/ dirt floor | C6: 2 | D6: 0 | E6: 1 | F6: 1500 | G6: 3 | H6: 1.5 | I6: 6750 | J6: NA | K6: NA | L6: NA | M6: 80-1500 | N6: 2.44 - 4.88 | O6: -Basement w/ dirt floor
A7: Commercial (not applicable for this model) | B7: Closed crawl space w/ slab | C7: 1 | D7: 0.2 | E7: 0.001 | F7: 1500 | G7: 1.3 | H7: 1.5 | I7: 6750 | J7: 0.003 | K7: 20.25 | L7: 0.0001-0.001 | M7: 80-1500 | N7: 0.5 - 1.30 | O7: -Closed crawl space w/ slab
A8: Commercial (not applicable for this model) | B8: Closed crawl space w/ dirt floor | C8: 1 | D8: 0 | E8: 1 | F8: 1500 | G8: 1.3 | H8: 1.5 | I8: 6750 | J8: NA | K8: NA | L8: NA | M8: 80-1500 | N8: 0.5 - 1.30 | O8: -Closed crawl space w/ dirt floor
A9: Commercial (not applicable for this model) | B9: Slab-on-grade | C9: 0.2 | D9: 0.2 | E9: 0.001 | F9: 1500 | G9: 3 | H9: 1.5 | I9: 6750 | J9: 0.003 | K9: 20.25 | L9: 0.00019-0.0019 | M9: 80-1500 | N9: 2.13 - 3.05 | O9: -Slab-on-grade
A10: Residential | B10: Closed crawl space w/ slab | C10: 1 | D10: 0.1 | E10: 0.001 | F10: 150 | G10: 1.3 | H10: 0.45 | I10: 87.8 | J10: 0.003 | K10: 0.26 | L10: 0.0001-0.001 | M10: 80 - 200 | N10: 0.5 - 1.30 | O10: -Closed crawl space w/ slab
A11: Residential | B11: Closed crawl space w/ dirt floor | C11: 1 | D11: 0 | E11: 1 | F11: 150 | G11: 1.3 | H11: 0.45 | I11: 87.8 | J11: NA | K11: NA | L11: NA | M11: 80 - 200 | N11: 0.5 - 1.30 | O11: -Closed crawl space w/ dirt floor
A12: Residential | B12: Basement w/ slab | C12: 2 | D12: 0.1 | E12: 0.001 | F12: 150 | G12: 3.66 | H12: 0.45 | I12: 247.05 | J12: 0.003 | K12: 0.74115 | L12: 0.0001-0.001 | M12: 80 - 200 | N12: 2.44 - 4.88 | O12: -Basement w/ slab
A13: Residential | B13: Basement w/ dirt floor | C13: 2 | D13: 0 | E13: 1 | F13: 150 | G13: 3.66 | H13: 0.45 | I13: 247.05 | J13: NA | K13: NA | L13: NA | M13: 80 - 200 | N13: 2.44 - 4.88 | O13: -Basement w/ dirt floor
A14: Residential | B14: Slab-on-grade | C14: 0.1 | D14: 0.1 | E14: 0.001 | F14: 150 | G14: 2.44 | H14: 0.45 | I14: 164.7 | J14: 0.003 | K14: 0.4941 | L14: 0.00019-0.0019 | M14: 80 - 200 | N14: 2.13 - 3.05 | O14: -Slab-on-grade
A15: Intentionally Blank
A16: CalEPA-DTSC
A17: Setting | B17: Foundation type | C17: Depth Below Grade to Base of Foundation | D17: Foundation Thickness | E17: Fraction of foundation area with cracks | F17: Enclosed Space Floor Area | G17: Enclosed Space Height | H17: Indoor Air Exchange Rate | I17: Building Ventilation Rate | K17: Average Vapor Flow Rate Into Bldg | L17: eta | M17: Abf | N17: Hb | O17: -Foundation Type
C18: Lb | D18: Lcrack | E18: eta | F18: Abf | G18: Hb | H18: ach | I18: Qbuilding | J18: Qsoil/Qbuilding | K18: Qsoil | L18: range | M18: range | N18: range
C19: (m) | D19: (m) | F19: (m2) | G19: (m) | H19: (1/hr) | I19: (m3/hr) | J19: (-) | K19: (m3/hr)
A20: Commercial | B20: Basement w/ slab | C20: 2 | D20: 0.2 | E20: 0.005 | F20: 1500 | G20: 3 | H20: 1 | I20: 4500 | J20: 0.03 | K20: =J20*G20*F20*H20 -> 135 | L20: 0.0001-0.005 | M20: 80-1500 | N20: 2.44 - 4.88 | O20: -Basement w/ slab
A21: Commercial | B21: Basement w/ dirt floor | C21: 2 | D21: 0 | E21: 1 | F21: 1500 | G21: 3 | H21: 1 | I21: 4500 | J21: NA | K21: NA | L21: NA | M21: 80-1500 | N21: 2.44 - 4.88 | O21: -Basement w/ dirt floor
A22: Commercial | B22: Closed crawl space w/ slab | C22: 0.61 | D22: 0.2 | E22: 0.005 | F22: 1500 | G22: 3.61 | H22: 1 | I22: 5415 | J22: 0.03 | K22: =J22*G22*F22*H22 -> 162.45 | L22: 0.0001-0.005 | M22: 80-1500 | N22: 2.74 - 3.66 | O22: -Closed crawl space w/ slab
A23: Commercial | B23: Closed crawl space w/ dirt floor | C23: 0.61 | D23: 0 | E23: 1 | F23: 1500 | G23: 3.61 | H23: 1 | I23: 5415 | J23: NA | K23: NA | L23: NA | M23: 80-1500 | N23: 2.74 - 3.66 | O23: -Closed crawl space w/ dirt floor
A24: Commercial | B24: Slab-on-grade | C24: 0.2 | D24: 0.2 | E24: 0.005 | F24: 1500 | G24: 3 | H24: 1 | I24: 4500 | J24: 0.03 | K24: =J24*G24*F24*H24 -> 135 | L24: 0.00019-0.005 | M24: 80-1500 | N24: 2.13 - 3.05 | O24: -Slab-on-grade
A25: Residential | B25: Closed crawl space w/ slab | C25: 0.61 | D25: 0.1 | E25: 0.005 | F25: 100 | G25: 3.05 | H25: 0.45 | I25: 152.5 | J25: 0.03 | K25: 4.1175 | L25: 0.0001-0.005 | M25: 80 - 200 | N25: 2.9 - 3.75 | O25: -Closed crawl space w/ slab
A26: Residential | B26: Closed crawl space w/ dirt floor | C26: 0.61 | D26: 0 | E26: 1 | F26: 100 | G26: 3.05 | H26: 0.45 | I26: 152.5 | J26: NA | K26: NA | L26: NA | M26: 80 - 200 | N26: 2.9 - 3.75 | O26: -Closed crawl space w/ dirt floor
A27: Residential | B27: Basement w/ slab | C27: 2 | D27: 0.1 | E27: 0.005 | F27: 100 | G27: 3.66 | H27: 0.45 | I27: 183 | J27: 0.03 | K27: 4.941 | L27: 0.0001-0.005 | M27: 80 - 200 | N27: 2.44 - 4.88 | O27: -Basement w/ slab
A28: Residential | B28: Basement w/ dirt floor | C28: 2 | D28: 0 | E28: 1 | F28: 100 | G28: 3.66 | H28: 0.45 | I28: 183 | J28: NA | K28: NA | L28: NA | M28: 80 - 200 | N28: 2.44 - 4.88 | O28: -Basement w/ dirt floor
A29: Residential | B29: Slab-on-grade | C29: 0.1 | D29: 0.1 | E29: 0.005 | F29: 100 | G29: 2.44 | H29: 0.45 | I29: 122 | J29: 0.03 | K29: 3.294 | L29: 0.00019-0.005 | M29: 80 - 200 | N29: 2.13 - 3.05 | O29: -Slab-on-grade
A30: CalEPA-DTSC building parameters are based on the recommended values from 2011 DTSC Vapor Intrusion Guidance except for the following parameters: - Crawl Space dimensions are based on typical constructions in California; enclosed Space Height (Hb) reflects height of crawl space plus occupied space (not just crawl space height). - Residential Indoor Air Exchange Rate (ach) is the same as the USEPA recommended median value in the latest USEPA Exposure Factors Handbook (2018). - Qsoil/Qbuilding is based on the value recommended in the 2023 CalEPA Supplemental VI Guidance (see the DTSCJEM User's Guide for addittional information).
A31: End of Worksheet
A32: Go to "README" tab
A33: Go to "MODEL" tab

Sheet CHEM_DATA
A1: Intentionally Blank
A2: Intentionally Blank | Z2: US EPA values - May 2024 | AI2: CA EPA values
C3: Molecular Weight | E3: Vapor Pressure | G3: Saturated Vapor Conc. | I3: Pure Component Water Solubility | K3: Henry's Law Constant @25°C | M3: Henry's Law Constant @25°Cg | N3: Diffusivity in air m | P3: Diffusivity in water m | R3: Normal Boiling Point | T3: Critical Temperature | V3: Enthalpy of vaporization at the normal boiling point | X3: Organic Carbon Partition Coefficient m | Z3: Incremental Unit Risk | AB3: Reference conc. | AD3: Mutagen START HERE | AE3: Pet. HC Flag | AI3: Incremental Unit Risk | AK3: Reference conc. | AM3: Mutagen START HERE
C4: MW | E4: VP | G4: Vc | I4: S | K4: Hc25 | M4: H'25 | N4: Da | P4: Dw | R4: Tboil | T4: Tcrit | V4: DHv,b | X4: Koc | Z4: IUR | AB4: RfC | AI4: IUR | AK4: RfC
A5: Alphabetized List of Compounds | B5: CAS | C5: (g/mole) | D5: source | E5: (mm Hg) | F5: source | G5: (ug/m3) | H5: source | I5: (mg/L) | J5: source | K5: (atm-m3/mol) | L5: source | M5: (unitless) | N5: (cm2/s) | O5: source | P5: (cm2/s) | Q5: source | R5: (oK) | S5: source | T5: (oK) | U5: source | V5: (cal/mol) | W5: source | X5: (cm3/g) | Y5: source | Z5: (ug/m3)-1 | AA5: source | AB5: (mg/m3) | AC5: source | AD5: Yes/No | AE5: Yes/No | AF5: source | AG5: Alternative Chemical Name 1 | AH5: Alternative Chemical Name 2 | AI5: (ug/m3)-1 | AJ5: source | AK5: (mg/m3) | AL5: source | AM5: Yes/No
A6: Acenaphthene | B6: 83-32-9 | C6: 154.21 | D6: PHYSPROP | E6: 0.00215 | F6: PHYSPROP | G6: =E6/760*1000000000*C6/24.46 -> 17835.3219 | H6: Calculated | I6: 3.9 | J6: PHYSPROP | K6: 0.000184 | L6: PHYSPROP | M6: 0.0075225 | N6: 0.0506143 | O6: WATER9 (U.S. EPA, 2001) | P6: 8.33e-06 | Q6: WATER9 (U.S. EPA, 2001) | R6: 552 | S6: EPI | T6: 803.15 | U6: Weast | V6: 12155 | W6: Weast | X6: 5027 | Y6: EPI | Z6: Not Available | AB6: Not Available | AD6: No | AE6: No | AF6: w | AI6: Not Available | AK6: 0.24 | AL6: DTSC HHRA Note 10 (v 2019-02-25) | AM6: No
A7: Acetaldehyde | B7: 75-07-0 | C7: 44.054 | D7: PHYSPROP | E7: 902 | F7: PHYSPROP | G7: =E7/760*1000000000*C7/24.46 -> 2137577355 | H7: Calculated | I7: 1000000 | J7: PHYSPROP | K7: 6.67e-05 | L7: PHYSPROP | M7: 0.0027269 | N7: 0.1277026 | O7: WATER9 (U.S. EPA, 2001) | P7: 1.35e-05 | Q7: WATER9 (U.S. EPA, 2001) | R7: 293.1 | S7: EPI | T7: 466 | U7: CRC | V7: 6156.64 | W7: CRC | X7: 1 | Y7: EPI | Z7: 2.2e-06 | AA7: I | AB7: 0.009 | AC7: I | AD7: No | AE7: No | AF7: w | AI7: 2.7e-06 | AJ7: DTSC note 10 (v 2019-02-25) | AK7: 0.009 | AL7: DTSC HHRA Note 10 (v 2019-02-25) | AM7: No
A8: Acetone | B8: 67-64-1 | C8: 58.081 | D8: PHYSPROP | E8: 231.5 | F8: PHYSPROP | G8: =E8/760*1000000000*C8/24.46 -> 723294288.2 | H8: Calculated | I8: 1000000 | J8: PHYSPROP | K8: 3.5e-05 | L8: PHYSPROP | M8: 0.0014309 | N8: 0.1059215 | O8: WATER9 (U.S. EPA, 2001) | P8: 1.15e-05 | Q8: WATER9 (U.S. EPA, 2001) | R8: 328.5 | S8: EPI | T8: 508.1 | U8: Weast | V8: 6955 | W8: Weast | X8: 2.364 | Y8: EPI | Z8: Not Available | AB8: Not Available | AD8: No | AE8: No | AF8: w | AI8: Not Available | AK8: 30.9 | AL8: DTSC HHRA Note 10 (v 2019-02-25) | AM8: No
A9: Acetonitrile | B9: 75-05-8 | C9: 41.053 | D9: PHYSPROP | E9: 88.8 | F9: PHYSPROP | G9: 196104617.6 | H9: Calculated | I9: 1000000 | J9: PHYSPROP | K9: 3.45e-05 | L9: PHYSPROP | M9: 0.0014105 | N9: 0.1339939 | O9: WATER9 (U.S. EPA, 2001) | P9: 1.41e-05 | Q9: WATER9 (U.S. EPA, 2001) | R9: 332.6 | S9: EPI | T9: 545.5 | U9: CRC | V9: 7110.25 | W9: CRC | X9: 4.67 | Y9: EPI | Z9: Not Available | AB9: 0.06 | AC9: I | AD9: No | AE9: No | AF9: w | AI9: Not Available | AK9: 0.06 | AL9: DTSC HHRA Note 10 (v 2019-02-25) | AM9: No
A10: Acetophenone | B10: 98-86-2 | C10: 120.15 | D10: PHYSPROP | E10: 0.397 | F10: PHYSPROP | G10: 2565926.647 | H10: Calculated | I10: 6130 | J10: PHYSPROP | K10: 1.04e-05 | L10: PHYSPROP | M10: 0.0004252 | N10: 0.0652221 | O10: WATER9 (U.S. EPA, 2001) | P10: 8.7229e-06 | Q10: WATER9 (U.S. EPA, 2001) | R10: 475 | S10: EPI | T10: 709.5 | U10: CRC | V10: 11731.5 | W10: TOXNET | X10: 51.85 | Y10: EPI | Z10: Not Available | AB10: Not Available | AD10: No | AE10: No | AF10: w | AI10: Not Available | AK10: 0.4 | AL10: DTSC HHRA Note 10 (v 2019-02-25) | AM10: No
A11: Acrolein | B11: 107-02-8 | C11: 56.065 | D11: PHYSPROP | E11: 274.1 | F11: PHYSPROP | G11: 826667410.8 | H11: Calculated | I11: 212000 | J11: PHYSPROP | K11: 0.000122 | L11: PHYSPROP | M11: 0.0049877 | N11: 0.1116862 | O11: WATER9 (U.S. EPA, 2001) | P11: 1.22e-05 | Q11: WATER9 (U.S. EPA, 2001) | R11: 325.6 | S11: EPI | T11: 506 | U11: DECHEMA | V11: 6730.7658 | W11: TOXNET | X11: 1 | Y11: EPI | Z11: Not Available | AB11: 2e-05 | AC11: I | AD11: No | AE11: No | AF11: w | AI11: Not Available | AK11: 2e-05 | AL11: DTSC HHRA Note 10 (v 2019-02-25) | AM11: No
A12: Acrylic Acid | B12: 79-10-7 | C12: 72.064 | D12: PHYSPROP | E12: 3.97 | F12: PHYSPROP | G12: 15390007.32 | H12: Calculated | I12: 1000000 | J12: PHYSPROP | K12: 3.7e-07 | L12: EPI | M12: 1.51e-05 | N12: 0.1027173 | O12: WATER9 (U.S. EPA, 2001) | P12: 1.2e-05 | Q12: WATER9 (U.S. EPA, 2001) | R12: 414.35 | S12: EPI | T12: 615.15 | U12: TOXNET (converted) | V12: 10955.1 | W12: TOXNET (converted) | X12: 1.44 | Y12: EPI | Z12: Not Available | AB12: 0.0002 | AC12: P | AD12: No | AE12: No | AF12: w | AI12: Not Available | AK12: 0.001 | AL12: DTSC HHRA Note 10 (v 2019-02-25) | AM12: No
A13: Acrylonitrile | B13: 107-13-1 | C13: 53.064 | D13: PHYSPROP | E13: 108.5 | F13: PHYSPROP | G13: 309713173 | H13: Calculated | I13: 74500 | J13: PHYSPROP | K13: 0.000138 | L13: PHYSPROP | M13: 0.0056419 | N13: 0.1136836 | O13: WATER9 (U.S. EPA, 2001) | P13: 1.23e-05 | Q13: WATER9 (U.S. EPA, 2001) | R13: 350.3 | S13: EPI | T13: 519 | U13: TOXNET | V13: 7786 | W13: DECHEMA | X13: 8.511 | Y13: EPI | Z13: 6.8e-05 | AA13: I | AB13: 0.002 | AC13: I | AD13: No | AE13: No | AF13: w | AI13: 6.8e-05 | AJ13: DTSC note 10 (v 2019-02-25) | AK13: 0.002 | AL13: DTSC HHRA Note 10 (v 2019-02-25) | AM13: No
A14: Aldrin | B14: 309-00-2 | C14: 364.92 | D14: PHYSPROP | E14: 0.00012 | F14: PHYSPROP | G14: 2355.639713 | H14: Calculated | I14: 0.017 | J14: PHYSPROP | K14: 4.4e-05 | L14: PHYSPROP | M14: 0.0017989 | N14: 0.0228116 | O14: WATER9 (U.S. EPA, 2001) | P14: 5.8402e-06 | Q14: WATER9 (U.S. EPA, 2001) | R14: 418.15 | S14: EPI | T14: 627.225 | U14: Approx. from Tcrit=1.5xTBoil | V14: 15000 | W14: Weast | X14: 82020 | Y14: EPI | Z14: 0.0049 | AA14: I | AB14: Not Available | AD14: No | AE14: No | AF14: w | AI14: 0.0049 | AJ14: DTSC note 10 (v 2019-02-25) | AK14: 0.00012 | AL14: DTSC HHRA Note 10 (v 2019-02-25) | AM14: No
A15: Allyl Alcohol | B15: 107-18-6 | C15: 58.081 | D15: PHYSPROP | E15: 26.1 | F15: PHYSPROP | G15: 81546353.88 | H15: Calculated | I15: 1000000 | J15: PHYSPROP | K15: 4.99e-06 | L15: PHYSPROP | M15: 0.000204 | N15: 0.1097535 | O15: WATER9 (U.S. EPA, 2001) | P15: 1.21e-05 | Q15: WATER9 (U.S. EPA, 2001) | R15: 370.15 | S15: EPI | T15: 539.8 | U15: TOXNET | V15: 9553.84 | W15: TOXNET (converted) | X15: 1.904 | Y15: EPI | Z15: Not Available | AB15: 0.0001 | AC15: X | AD15: No | AE15: No | AF15: w | AI15: Not Available | AK15: 0.0001 | AL15: DTSC HHRA Note 10 (v 2019-02-25) | AM15: No
A16: Allyl Chloride | B16: 107-05-1 | C16: 76.526 | D16: PHYSPROP | E16: 367.9 | F16: PHYSPROP | G16: 1514498182 | H16: Calculated | I16: 3370 | J16: PHYSPROP | K16: 0.011 | L16: EPI | M16: 0.4497138 | N16: 0.093611 | O16: WATER9 (U.S. EPA, 2001) | P16: 1.08e-05 | Q16: WATER9 (U.S. EPA, 2001) | R16: 318.1 | S16: EPI (converted) | T16: 514.26 | U16: TOXNET (converted) | V16: 6936.08 | W16: TOXNET (converted) | X16: 39.6 | Y16: EPI | Z16: 6e-06 | AA16: C | AB16: 0.001 | AC16: I | AD16: No | AE16: No | AF16: w | AI16: 6e-06 | AJ16: DTSC note 10 (v 2019-02-25) | AK16: 0.001 | AL16: DTSC HHRA Note 10 (v 2019-02-25) | AM16: No
A17: Ammonia | B17: 7664-41-7 | C17: 17.031 | D17: PHYSPROP | E17: 7508 | F17: PHYSPROP | G17: 6878509920 | H17: Calculated | I17: 482000 | J17: PHYSPROP | K17: 1.61e-05 | L17: PHYSPROP | M17: 0.0006582 | N17: 0.2305471 | O17: WATER9 (U.S. EPA, 2001) | P17: 2.23e-05 | Q17: WATER9 (U.S. EPA, 2001) | R17: 239.8 | S17: TOXNET (converted) | T17: 405.55 | U17: TOXNET (converted) | V17: 5581 | W17: TOXNET | Z17: Not Available | AB17: 0.5 | AC17: I | AD17: No | AE17: No | AF17: w | AI17: Not Available | AK17: 0.2 | AL17: DTSC HHRA Note 10 (v 2019-02-25) | AM17: No
A18: Amyl Alcohol, tert- | B18: 75-85-4 | C18: 88.151 | D18: PHYSPROP | E18: 16.7 | F18: PHYSPROP | G18: 79190606.58 | H18: Calculated | I18: 110000 | J18: PHYSPROP | K18: 1.38e-05 | L18: PHYSPROP | M18: 0.0005642 | N18: 0.0785447 | O18: WATER9 (U.S. EPA, 2001) | P18: 9.1012e-06 | Q18: WATER9 (U.S. EPA, 2001) | R18: 375.55 | S18: EPI | T18: 545.15 | U18: TOXNET | V18: 9586.520076 | W18: TOXNET (converted) | X18: 4.138 | Y18: EPI | Z18: Not Available | AB18: 0.003 | AC18: X | AD18: No | AE18: No | AF18: w | AI18: Not Available | AK18: 0.003 | AL18: DTSC HHRA Note 10 (v 2019-02-25) | AM18: No
A19: Anthracene | B19: 120-12-7 | C19: 178.24 | D19: PHYSPROP | E19: 6.53e-06 | F19: EPI | G19: 62.61066403 | H19: Calculated | I19: 0.0434 | J19: PHYSPROP | K19: 5.56e-05 | L19: PHYSPROP | M19: 0.0022731 | N19: 0.0389732 | O19: WATER9 (U.S. EPA, 2001) | P19: 7.8523e-06 | Q19: WATER9 (U.S. EPA, 2001) | R19: 612.9 | S19: EPI | T19: 873 | U19: Weast | V19: 13121 | W19: Weast | X19: 16360 | Y19: EPI | Z19: Not Available | AB19: Not Available | AD19: No | AE19: No | AF19: w | AI19: Not Available | AK19: 1.2 | AL19: DTSC HHRA Note 10 (v 2019-02-25) | AM19: No
A20: Aroclor 1016 | B20: 12674-11-2 | C20: 549.54 | D20: PHYSPROP | E20: 0.0004 | F20: PHYSPROP | G20: =E20/760*1000000000*C20/24.46 -> 11824.67616 | H20: Calculated | I20: 0.42 | J20: PHYSPROP | K20: 0.0002 | L20: EPI | M20: 0.0081766 | N20: 0.0170997 | O20: WATER9 (U.S. EPA, 2001) | P20: 4.162e-06 | Q20: WATER9 (U.S. EPA, 2001) | R20: 596.15 | S20: TOXNET (range) | T20: 894.225 | U20: Approx. from Tcrit=1.5xTBoil | V20: No DHv,b | X20: 47700 | Y20: EPI | Z20: 2e-05 | AA20: G | AB20: Not Available | AD20: No | AE20: No | AF20: w | AI20: 2e-05 | AJ20: DTSC note 10 (v 2019-02-25) | AK20: 0.00028 | AL20: DTSC HHRA Note 10 (v 2019-02-25) | AM20: No
A21: Aroclor 1221 | B21: 11104-28-2 | C21: 188.66 | D21: PHYSPROP | E21: 0.0067 | F21: PHYSPROP | G21: =E21/760*1000000000*C21/24.46 -> 67996.19142 | H21: Calculated | I21: 15 | J21: PHYSPROP | K21: 0.000228 | L21: PHYSPROP | M21: 0.0093213 | N21: 0.0324579 | O21: WATER9 (U.S. EPA, 2001) | P21: 7.2276e-06 | Q21: WATER9 (U.S. EPA, 2001) | R21: 563.15 | S21: TOXNET (range) | T21: 844.725 | U21: Approx. from Tcrit=1.5xTBoil | V21: No DHv,b | X21: 8397 | Y21: EPI | Z21: 0.000571 | AA21: G | AB21: Not Available | AD21: No | AE21: No | AF21: w | AI21: 0.000571 | AJ21: DTSC note 10 (v 2019-02-25) | AK21: Not Available | AM21: No
A22: Aroclor 1232 | B22: 11141-16-5 | C22: 188.66 | D22: PHYSPROP | E22: 0.00406 | F22: PHYSPROP | G22: =E22/760*1000000000*C22/24.46 -> 41203.66226 | H22: Calculated | I22: 1.45 | J22: PHYSPROP | K22: 0.000736 | L22: EPI | M22: 0.0300899 | N22: 0.0334468 | O22: WATER9 (U.S. EPA, 2001) | P22: 7.5177e-06 | Q22: WATER9 (U.S. EPA, 2001) | R22: 563.15 | S22: TOXNET (range) | T22: 844.725 | U22: Approx. from Tcrit=1.5xTBoil | V22: No DHv,b | X22: 8397 | Y22: EPI | Z22: 0.000571 | AA22: G | AB22: Not Available | AD22: No | AE22: No | AF22: w | AI22: 0.000571 | AJ22: DTSC note 10 (v 2019-02-25) | AK22: Not Available | AM22: No
A23: Aroclor 1242 | B23: 53469-21-9 | C23: 291.99 | D23: PHYSPROP | E23: 8.63e-05 | F23: EPI | G23: 1355.528736 | H23: Calculated | I23: 0.277 | J23: PHYSPROP | K23: 0.000343 | L23: PHYSPROP | M23: 0.0140229 | N23: 0.0238564 | O23: WATER9 (U.S. EPA, 2001) | P23: 6.1091e-06 | Q23: WATER9 (U.S. EPA, 2001) | R23: 598.15 | S23: TOXNET (converted) (range) | T23: 897.225 | U23: Approx. from Tcrit=1.5xTBoil | V23: No DHv,b | X23: 78100 | Y23: EPI | Z23: 0.000571 | AA23: G | AB23: Not Available | AD23: No | AE23: No | AF23: w | AI23: 0.000571 | AJ23: DTSC note 10 (v 2019-02-25) | AK23: Not Available | AM23: No
A24: Aroclor 1248 | B24: 12672-29-6 | C24: 618.43 | D24: PHYSPROP | E24: 0.000494 | F24: PHYSPROP | G24: 16434.15781 | H24: Calculated | I24: 0.1 | J24: PHYSPROP | K24: 0.00044 | L24: PHYSPROP | M24: 0.0179886 | N24: 0.0162745 | O24: WATER9 (U.S. EPA, 2001) | P24: 3.9364e-06 | Q24: WATER9 (U.S. EPA, 2001) | R24: 613.15 | S24: EPI | T24: 919.725 | U24: Approx. from Tcrit=1.5xTBoil | V24: No DHv,b | X24: 76530 | Y24: EPI | Z24: 0.000571 | AA24: G | AB24: Not Available | AD24: No | AE24: No | AF24: w | AI24: 0.000571 | AJ24: DTSC note 10 (v 2019-02-25) | AK24: Not Available | AM24: No
A25: Aroclor 1254 | B25: 11097-69-1 | C25: 326.44 | D25: PHYSPROP | E25: 7.71e-05 | F25: PHYSPROP | G25: 1353.903473 | H25: Calculated | I25: 0.043 | J25: PHYSPROP | K25: 0.000283 | L25: PHYSPROP | M25: 0.0115699 | N25: 0.0237205 | O25: WATER9 (U.S. EPA, 2001) | P25: 6.1024e-06 | Q25: WATER9 (U.S. EPA, 2001) | R25: 638.15 | S25: TOXNET (converted) (range) | T25: 957.225 | U25: Approx. from Tcrit=1.5xTBoil | V25: No DHv,b | X25: 130500 | Y25: EPI | Z25: 0.000571 | AA25: G | AB25: Not Available | AD25: No | AE25: No | AF25: w | AI25: 0.00057 | AJ25: DTSC note 10 (v 2019-02-25) | AK25: 8e-05 | AL25: DTSC HHRA Note 10 (v 2019-02-25) | AM25: No
A26: Aroclor 1260 | B26: 11096-82-5 | C26: 395.33 | D26: PHYSPROP | E26: 4.05e-05 | F26: PHYSPROP | G26: 861.2807699 | H26: Calculated | I26: 0.0144 | J26: PHYSPROP | K26: 0.000336 | L26: PHYSPROP | M26: 0.0137367 | N26: 0.0220239 | O26: WATER9 (U.S. EPA, 2001) | P26: 5.608e-06 | Q26: WATER9 (U.S. EPA, 2001) | R26: 658.15 | S26: TOXNET (converted) (range) | T26: 987.225 | U26: Approx. from Tcrit=1.5xTBoil | V26: No DHv,b | X26: 349700 | Y26: EPI | Z26: 0.000571 | AA26: G | AB26: Not Available | AD26: No | AE26: No | AF26: w | AI26: 0.000571 | AJ26: DTSC note 10 (v 2019-02-25) | AK26: Not Available | AM26: No
A27: Aroclor 5460 | B27: 11126-42-4 | C27: 291.99 | D27: PHYSPROP | E27: 8.45e-06 | F27: PHYSPROP | G27: 132.7255831 | H27: Calculated | I27: 0.0532 | J27: PHYSPROP | K27: 0.000125 | L27: PHYSPROP | M27: 0.0051104 | N27: 0.0245765 | O27: WATER9 (U.S. EPA, 2001) | P27: 6.3451e-06 | Q27: WATER9 (U.S. EPA, 2001) | R27: 632.51 | S27: EPI | T27: No Tcrit | V27: No DHv,b | X27: 81320 | Y27: EPI | Z27: Not Available | AB27: Not Available | AD27: No | AE27: No | AF27: w | AI27: Not Available | AK27: 0.0024 | AL27: DTSC HHRA Note 10 (v 2019-02-25) | AM27: No
A28: Azobenzene | B28: 103-33-3 | C28: 182.23 | D28: PHYSPROP | E28: 0.000361 | F28: PHYSPROP | G28: 3538.808258 | H28: Calculated | I28: 6.4 | J28: PHYSPROP | K28: 1.35e-05 | L28: EPI | M28: 0.0005519 | N28: 0.0359085 | O28: WATER9 (U.S. EPA, 2001) | P28: 7.4655e-06 | Q28: WATER9 (U.S. EPA, 2001) | R28: 566 | S28: EPISUITE | T28: 849 | U28: Approx. from Tcrit=1.5xTBoil | V28: No DHv,b | X28: 3759 | Y28: EPI | Z28: 3.1e-05 | AA28: I | AB28: Not Available | AD28: No | AE28: No | AF28: w | AI28: 3.1e-05 | AJ28: DTSC note 10 (v 2019-02-25) | AK28: Not Available | AM28: No
A29: Benfluralin | B29: 1861-40-1 | C29: 335.29 | D29: PHYSPROP | E29: 6.53e-05 | F29: PHYSPROP | G29: 1177.778812 | H29: Calculated | I29: 0.1 | J29: PHYSPROP | K29: 0.000291 | L29: EPI | M29: 0.011897 | N29: 0.0218723 | O29: WATER9 (U.S. EPA, 2001) | P29: 5.5169e-06 | Q29: WATER9 (U.S. EPA, 2001) | R29: 643.15 | S29: EPI | T29: 964.725 | U29: Approx. from Tcrit=1.5xTBoil | V29: No DHv,b | X29: 16390 | Y29: EPI | Z29: Not Available | AB29: Not Available | AD29: No | AE29: No | AF29: w | AI29: Not Available | AK29: 0.02 | AL29: DTSC HHRA Note 10 (v 2019-02-25) | AM29: No
A30: Benz[a]anthracene | B30: 56-55-3 | C30: 228.3 | D30: PHYSPROP | E30: 2.1e-07 | F30: PHYSPROP | G30: 2.579022679 | H30: Calculated | I30: 0.0094 | J30: PHYSPROP | K30: 1.2e-05 | L30: PHYSPROP | M30: 0.0004906 | N30: 0.0261138 | O30: WATER9 (U.S. EPA, 2001) | P30: 6.7495e-06 | Q30: WATER9 (U.S. EPA, 2001) | R30: 710.75 | S30: EPI | T30: 1066.125 | U30: Approx. from Tcrit=1.5xTBoil | V30: 16000 | W30: Weast | X30: 176900 | Y30: EPI | Z30: 6e-05 | AA30: E | AB30: Not Available | AD30: Yes | AE30: No | AF30: w | AI30: 0.00011 | AJ30: DTSC note 10 (v 2019-02-25) | AK30: Not Available | AM30: Yes
A31: Benzaldehyde | B31: 100-52-7 | C31: 106.13 | D31: PHYSPROP | E31: 1.27 | F31: PHYSPROP | G31: 7250564.832 | H31: Calculated | I31: 6950 | J31: PHYSPROP | K31: 2.67e-05 | L31: PHYSPROP | M31: 0.0010916 | N31: 0.074393 | O31: WATER9 (U.S. EPA, 2001) | P31: 9.4627e-06 | Q31: WATER9 (U.S. EPA, 2001) | R31: 452 | S31: EPI | T31: 695 | U31: CRC | V31: 11657.8 | W31: TOXNET | X31: 11.09 | Y31: EPI | Z31: Not Available | AB31: Not Available | AD31: No | AE31: No | AF31: w | AI31: 1e-06 | AJ31: DTSC note 10 (v 2019-02-25) | AK31: 0.4 | AL31: DTSC HHRA Note 10 (v 2019-02-25) | AM31: No
A32: Benzene | B32: 71-43-2 | C32: 78.115 | D32: PHYSPROP | E32: 94.8 | F32: PHYSPROP | G32: 398357253.5 | H32: Calculated | I32: 1790 | J32: PHYSPROP | K32: 0.00555 | L32: PHYSPROP | M32: 0.2269011 | N32: 0.089534 | O32: WATER9 (U.S. EPA, 2001) | P32: 1.03e-05 | Q32: WATER9 (U.S. EPA, 2001) | R32: 353 | S32: EPI | T32: 562.16 | U32: Weast | V32: 7342 | W32: Weast | X32: 145.8 | Y32: EPI | Z32: 7.8e-06 | AA32: I | AB32: 0.03 | AC32: I | AD32: No | AE32: Yes | AF32: w | AI32: 2.9e-05 | AJ32: DTSC note 10 (v 2019-02-25) | AK32: 0.003 | AL32: DTSC HHRA Note 10 (v 2019-02-25) | AM32: No
A33: Benzenethiol | B33: 108-98-5 | C33: 110.18 | D33: PHYSPROP | E33: 1.93 | F33: PHYSPROP | G33: 11439051.94 | H33: Calculated | I33: 835 | J33: PHYSPROP | K33: 0.000335 | L33: EPI | M33: 0.0136958 | N33: 0.0728564 | O33: WATER9 (U.S. EPA, 2001) | P33: 9.4506e-06 | Q33: WATER9 (U.S. EPA, 2001) | R33: 442.1 | S33: EPI (converted) | T33: 663.15 | U33: Approx. from Tcrit=1.5xTBoil | V33: 11359.51 | W33: hhc | X33: 233.9 | Y33: EPI | Z33: Not Available | AB33: Not Available | AD33: No | AE33: No | AF33: w | AI33: Not Available | AK33: 0.004 | AL33: DTSC HHRA Note 10 (v 2019-02-25) | AM33: No
A34: Benzotrichloride | B34: 98-07-7 | C34: 195.48 | D34: PHYSPROP | E34: 0.414 | F34: EPI | G34: 4353440.633 | H34: Calculated | I34: 53 | J34: PHYSPROP | K34: 0.00026 | L34: PHYSPROP | M34: 0.0106296 | N34: 0.0312555 | O34: WATER9 (U.S. EPA, 2001) | P34: 7.746e-06 | Q34: WATER9 (U.S. EPA, 2001) | R34: 494 | S34: EPI (converted) | T34: 741 | U34: Approx. from Tcrit=1.5xTBoil | V34: No DHv,b | X34: 1001 | Y34: EPI | Z34: Not Available | AB34: Not Available | AD34: No | AE34: No | AF34: w | AI34: 0.00325 | AJ34: DTSC note 10 (v 2019-02-25) | AK34: Not Available | AM34: No
A35: Benzyl Chloride | B35: 100-44-7 | C35: 126.59 | D35: PHYSPROP | E35: 1.23 | F35: PHYSPROP | G35: 8375957.525 | H35: Calculated | I35: 525 | J35: PHYSPROP | K35: 0.000412 | L35: EPI | M35: 0.0168438 | N35: 0.0633618 | O35: WATER9 (U.S. EPA, 2001) | P35: 8.8057e-06 | Q35: WATER9 (U.S. EPA, 2001) | R35: 452 | S35: EPI | T35: 685 | U35: DECHEMA | V35: 8773.2598 | W35: TOXNET | X35: 446.1 | Y35: EPI | Z35: 4.9e-05 | AA35: C | AB35: 0.001 | AC35: P | AD35: No | AE35: No | AF35: w | AG35: Benzylchloride | AI35: 4.9e-05 | AJ35: DTSC note 10 (v 2019-02-25) | AK35: 0.001 | AL35: DTSC HHRA Note 10 (v 2019-02-25) | AM35: No
A36: Biphenyl, 1,1'- | B36: 92-52-4 | C36: 154.21 | D36: PHYSPROP | E36: 0.00893 | F36: PHYSPROP | G36: 74078.80213 | H36: Calculated | I36: 7.48 | J36: PHYSPROP | K36: 0.000308 | L36: PHYSPROP | M36: 0.012592 | N36: 0.0470592 | O36: WATER9 (U.S. EPA, 2001) | P36: 7.5618e-06 | Q36: WATER9 (U.S. EPA, 2001) | R36: 529.1 | S36: EPI | T36: 789 | U36: CRC | V36: 10890 | W36: DECHEMA | X36: 5129 | Y36: EPI | Z36: Not Available | AB36: 0.0004 | AC36: X | AD36: No | AE36: No | AF36: w | AG36: Biphenyl | AH36: 1,1'-Biphenyl | AI36: 2e-06 | AJ36: DTSC note 10 (v 2019-02-25) | AK36: 0.0004 | AL36: DTSC HHRA Note 10 (v 2019-02-25) | AM36: No
A37: Bis(2-chloro-1-methylethyl) ether | B37: 108-60-1 | C37: 171.07 | D37: PHYSPROP | E37: 0.56 | F37: PHYSPROP | G37: 5153376.081 | H37: Calculated | I37: 1700 | J37: PHYSPROP | K37: 7.42e-05 | L37: EPI | M37: 0.0030335 | N37: 0.0398891 | O37: WATER9 (U.S. EPA, 2001) | P37: 7.3606e-06 | Q37: WATER9 (U.S. EPA, 2001) | R37: 460 | S37: EPI | T37: 690 | U37: Approx. from Tcrit=1.5xTBoil | V37: 9694.9215 | W37: MSDS (converted) | X37: 82.92 | Y37: EPI | Z37: Not Available | AB37: Not Available | AD37: No | AE37: No | AF37: w | AG37: Bis(2-chloroisopropyl)ether | AI37: Not Available | AK37: 0.16 | AL37: DTSC HHRA Note 10 (v 2019-02-25) | AM37: No
A38: Bis(2-chloroethyl)ether | B38: 111-44-4 | C38: 143.01 | D38: PHYSPROP | E38: 1.55 | F38: PHYSPROP | G38: 11924167.28 | H38: Calculated | I38: 17200 | J38: PHYSPROP | K38: 1.7e-05 | L38: EPI | M38: 0.000695 | N38: 0.0567192 | O38: WATER9 (U.S. EPA, 2001) | P38: 8.707e-06 | Q38: WATER9 (U.S. EPA, 2001) | R38: 451.5 | S38: EPI | T38: 659.79 | U38: Weast | V38: 10803 | W38: Weast | X38: 32.21 | Y38: EPI | Z38: 0.00033 | AA38: I | AB38: Not Available | AD38: No | AE38: No | AF38: w | AI38: 0.00071 | AJ38: DTSC note 10 (v 2019-02-25) | AK38: Not Available | AM38: No
A39: Bis(chloromethyl)ether | B39: 542-88-1 | C39: 114.96 | D39: PHYSPROP | E39: 29.4 | F39: PHYSPROP | G39: 181812626.4 | H39: Calculated | I39: 22000 | J39: PHYSPROP | K39: 0.00436 | L39: EPI | M39: 0.1782502 | N39: 0.0763001 | O39: WATER9 (U.S. EPA, 2001) | P39: 1.04e-05 | Q39: WATER9 (U.S. EPA, 2001) | R39: 379 | S39: EPI | T39: 568.5 | U39: Approx. from Tcrit=1.5xTBoil | V39: No DHv,b | X39: 9.699 | Y39: EPI | Z39: 0.062 | AA39: I | AB39: Not Available | AD39: No | AE39: No | AF39: w | AI39: 0.062 | AJ39: DTSC note 10 (v 2019-02-25) | AK39: Not Available | AM39: No
A40: Boron Trichloride | B40: 10294-34-5 | C40: 117.17 | D40: PHYSPROP | E40: 1 | F40: PHYSPROP | G40: 6302986.616 | H40: Calculated | I40: No S | K40: 0.0183 | L40: PHYSPROP | M40: 0.748 | N40: 0.1245447 | O40: WATER9 (U.S. EPA, 2001) | P40: 2.23e-05 | Q40: WATER9 (U.S. EPA, 2001) | R40: 285.65 | S40: EPI | T40: 455 | U40: TOXNET | V40: 5677.36942 | W40: TOXNET (converted) | Z40: Not Available | AB40: 0.02 | AC40: P | AD40: No | AE40: No | AF40: w | AI40: Not Available | AK40: 0.02 | AL40: DTSC HHRA Note 10 (v 2019-02-25) | AM40: No
A41: Boron Trifluoride | B41: 7637-07-2 | C41: 67.806 | D41: PHYSPROP | E41: 36555 | F41: PHYSPROP | G41: 1.333352159e+11 | H41: Calculated | I41: 3320000 | J41: PHYSPROP | K41: No Hc25 | M41: No HLC | N41: 0.1563359 | O41: WATER9 (U.S. EPA, 2001) | P41: 2.23e-05 | Q41: WATER9 (U.S. EPA, 2001) | R41: 146.05 | S41: EPI | T41: 260.8 | U41: TOXNET | V41: 4616.89318 | W41: TOXNET (converted) | X41: No KoC | Z41: Not Available | AB41: 0.013 | AC41: C | AD41: No | AE41: No | AF41: w | AI41: Not Available | AK41: 0.013 | AL41: DTSC HHRA Note 10 (v 2019-02-25) | AM41: No
A42: Bromo-2-chloroethane, 1- | B42: 107-04-0 | C42: 143.41 | D42: PHYSPROP | E42: 33.1 | F42: PHYSPROP | G42: 255350895.1 | H42: Calculated | I42: 6900 | J42: PHYSPROP | K42: 0.000909 | L42: PHYSPROP | M42: 0.0371627 | N42: 0.0659248 | O42: WATER9 (U.S. EPA, 2001) | P42: 1.08e-05 | Q42: WATER9 (U.S. EPA, 2001) | R42: 380 | S42: EPI (converted) | T42: 570 | U42: Approx. from Tcrit=1.5xTBoil | V42: 9107.19 | W42: hhc | X42: 39.6 | Y42: EPI | Z42: Not Available | AB42: 6e-05 | AC42: X | AD42: No | AE42: No | AF42: w | AG42: 1-Bromo-2-chloroethane | AI42: 0.0006 | AJ42: DTSC note 10 (v 2019-02-25) | AK42: Not Available | AM42: No
A43: Bromobenzene | B43: 108-86-1 | C43: 157.01 | D43: PHYSPROP | E43: 4.182 | F43: PHYSPROP | G43: 35321675.56 | H43: Calculated | I43: 446 | J43: PHYSPROP | K43: 0.00247 | L43: PHYSPROP | M43: 0.1009812 | N43: 0.0537132 | O43: WATER9 (U.S. EPA, 2001) | P43: 9.3004e-06 | Q43: WATER9 (U.S. EPA, 2001) | R43: 429 | S43: EPI (converted) | T43: 670 | U43: TOXNET (converted) | V43: 10628.64 | W43: TOXNET (converted) | X43: 233.9 | Y43: EPI | Z43: Not Available | AB43: 0.06 | AC43: I | AD43: No | AE43: No | AF43: w | AI43: Not Available | AK43: 0.06 | AL43: DTSC HHRA Note 10 (v 2019-02-25) | AM43: No
A44: Bromochloromethane | B44: 74-97-5 | C44: 129.38 | D44: PHYSPROP | E44: 142.5 | F44: PHYSPROP | G44: 991772281.3 | H44: Calculated | I44: 16700 | J44: PHYSPROP | K44: 0.00146 | L44: EPI | M44: 0.0596893 | N44: 0.078692 | O44: WATER9 (U.S. EPA, 2001) | P44: 1.22e-05 | Q44: WATER9 (U.S. EPA, 2001) | R44: 341 | S44: EPI (converted) | T44: 511.5 | U44: Approx. from Tcrit=1.5xTBoil | V44: 7167.65 | W44: TOXNET (converted) | X44: 21.73 | Y44: EPI | Z44: Not Available | AB44: 0.04 | AC44: X | AD44: No | AE44: No | AF44: w | AI44: Not Available | AK44: 0.04 | AL44: DTSC HHRA Note 10 (v 2019-02-25) | AM44: No
A45: Bromodichloromethane | B45: 75-27-4 | C45: 163.83 | D45: PHYSPROP | E45: 50 | F45: PHYSPROP | G45: 440649610.5 | H45: Calculated | I45: 3032 | J45: PHYSPROP | K45: 0.00212 | L45: PHYSPROP | M45: 0.0866721 | N45: 0.0562629 | O45: WATER9 (U.S. EPA, 2001) | P45: 1.07e-05 | Q45: WATER9 (U.S. EPA, 2001) | R45: 363 | S45: EPI | T45: 585.85 | U45: Weast | V45: 7800 | W45: Weast | X45: 31.82 | Y45: EPI | Z45: 3.7e-05 | AA45: C | AB45: Not Available | AD45: No | AE45: No | AF45: w | AI45: 3.7e-05 | AJ45: DTSC note 10 (v 2019-02-25) | AK45: 0.08 | AL45: DTSC HHRA Note 10 (v 2019-02-25) | AM45: No
A46: Bromoform | B46: 75-25-2 | C46: 252.73 | D46: PHYSPROP | E46: 5.4 | F46: EPI | G46: 73414274.65 | H46: Calculated | I46: 3100 | J46: PHYSPROP | K46: 0.000535 | L46: PHYSPROP | M46: 0.0218724 | N46: 0.0357324 | O46: WATER9 (U.S. EPA, 2001) | P46: 1.04e-05 | Q46: WATER9 (U.S. EPA, 2001) | R46: 422.25 | S46: EPI | T46: 633.375 | U46: Approx. from Tcrit=1.5xTBoil | V46: 9472.63236 | W46: TOXNET (converted) | X46: 31.82 | Y46: EPI | Z46: 1.1e-06 | AA46: I | AB46: Not Available | AD46: No | AE46: No | AF46: w | AI46: 1.1e-06 | AJ46: DTSC note 10 (v 2019-02-25) | AK46: 0.08 | AL46: DTSC HHRA Note 10 (v 2019-02-25) | AM46: No
A47: Bromomethane | B47: 74-83-9 | C47: 94.939 | D47: PHYSPROP | E47: 1616 | F47: PHYSPROP | G47: 8253078280 | H47: Calculated | I47: 15200 | J47: PHYSPROP | K47: 0.00734 | L47: PHYSPROP | M47: 0.3000818 | N47: 0.1004976 | O47: WATER9 (U.S. EPA, 2001) | P47: 1.35e-05 | Q47: WATER9 (U.S. EPA, 2001) | R47: 276.5 | S47: EPI | T47: 467 | U47: Weast | V47: 5714 | W47: Weast | X47: 13.22 | Y47: EPI | Z47: Not Available | AB47: 0.005 | AC47: I | AD47: No | AE47: No | AF47: w | AG47: Methyl bromide | AI47: Not Available | AK47: 0.005 | AL47: DTSC HHRA Note 10 (v 2019-02-25) | AM47: No
A48: Bromophos | B48: 2104-96-3 | C48: 366 | D48: PHYSPROP | E48: 0.0001275 | F48: PHYSPROP | G48: 2510.274562 | H48: Calculated | I48: 0.3 | J48: PHYSPROP | K48: 0.000205 | L48: EPI | M48: 0.008381 | N48: 0.0234676 | O48: WATER9 (U.S. EPA, 2001) | P48: 6.0543e-06 | Q48: WATER9 (U.S. EPA, 2001) | R48: 414.15 | S48: EPI | T48: 621.225 | U48: Approx. from Tcrit=1.5xTBoil | V48: No DHv,b | X48: 2019 | Y48: EPI | Z48: Not Available | AB48: Not Available | AD48: No | AE48: No | AF48: w | AI48: Not Available | AK48: 0.02 | AL48: DTSC HHRA Note 10 (v 2019-02-25) | AM48: No
A49: Bromoxynil Octanoate | B49: 1689-99-2 | C49: 403.12 | D49: PHYSPROP | E49: 4.8e-06 | F49: PHYSPROP | G49: 104.0891681 | H49: Calculated | I49: 0.08 | J49: PHYSPROP | K49: 3.19e-05 | L49: EPI | M49: 0.0013042 | N49: 0.0212801 | O49: WATER9 (U.S. EPA, 2001) | P49: 5.3768e-06 | Q49: WATER9 (U.S. EPA, 2001) | R49: 689.69 | S49: EPI | T49: 1034.535 | U49: Approx. from Tcrit=1.5xTBoil | V49: No DHv,b | X49: 4252 | Y49: EPI | Z49: Not Available | AB49: Not Available | AD49: No | AE49: No | AF49: w | AI49: Not Available | AK49: 0.06 | AL49: DTSC HHRA Note 10 (v 2019-02-25) | AM49: No
A50: Butadiene, 1,3- | B50: 106-99-0 | C50: 54.092 | D50: PHYSPROP | E50: 2107 | F50: PHYSPROP | G50: 6130946551 | H50: Calculated | I50: 735 | J50: PHYSPROP | K50: 0.0736 | L50: EPI | M50: 3.0089943 | N50: 0.1003488 | O50: WATER9 (U.S. EPA, 2001) | P50: 1.03e-05 | Q50: WATER9 (U.S. EPA, 2001) | R50: 268.6 | S50: EPI | T50: 425 | U50: CRC | V50: 5370.33 | W50: CRC | X50: 39.6 | Y50: EPI | Z50: 3e-05 | AA50: I | AB50: 0.002 | AC50: I | AD50: No | AE50: No | AF50: w | AG50: 1,3-Butadiene | AI50: 0.00017 | AJ50: DTSC note 10 (v 2019-02-25) | AK50: 0.002 | AL50: DTSC HHRA Note 10 (v 2019-02-25) | AM50: No
A51: Butanol, N- | B51: 71-36-3 | C51: 74.124 | D51: PHYSPROP | E51: 6.7 | F51: PHYSPROP | G51: 26715518.35 | H51: Calculated | I51: 63200 | J51: PHYSPROP | K51: 8.81e-06 | L51: PHYSPROP | M51: 0.0003602 | N51: 0.0900387 | O51: WATER9 (U.S. EPA, 2001) | P51: 1.01e-05 | Q51: WATER9 (U.S. EPA, 2001) | R51: 390.85 | S51: EPI | T51: 586.275 | U51: Approx. from Tcrit=1.5xTBoil | V51: 134572.18 | W51: Perry | X51: 3.471 | Y51: EPI | Z51: Not Available | AB51: Not Available | AD51: No | AE51: No | AF51: w | AI51: Not Available | AK51: 0.4 | AL51: DTSC HHRA Note 10 (v 2019-02-25) | AM51: No
A52: Butyl alcohol, sec- | B52: 78-92-2 | C52: 74.124 | D52: PHYSPROP | E52: 18.33 | F52: PHYSPROP | G52: 73088873.35 | H52: Calculated | I52: 181000 | J52: PHYSPROP | K52: 9.06e-06 | L52: PHYSPROP | M52: 0.0003704 | N52: 0.0898848 | O52: WATER9 (U.S. EPA, 2001) | P52: 1.01e-05 | Q52: WATER9 (U.S. EPA, 2001) | R52: 372.65 | S52: EPI | T52: 536.2 | U52: TOXNET | V52: 11875.42312 | W52: TOXNET (converted) | X52: 2.919 | Y52: EPI | Z52: Not Available | AB52: 30 | AC52: P | AD52: No | AE52: No | AF52: w | AI52: Not Available | AK52: 30 | AL52: DTSC HHRA Note 10 (v 2019-02-25) | AM52: No
A53: Butylate | B53: 2008-41-5 | C53: 217.38 | D53: PHYSPROP | E53: 0.013 | F53: PHYSPROP | G53: 152017.257 | H53: Calculated | I53: 45 | J53: PHYSPROP | K53: 8.45e-05 | L53: EPI | M53: 0.0034546 | N53: 0.0232306 | O53: WATER9 (U.S. EPA, 2001) | P53: 5.7926e-06 | Q53: WATER9 (U.S. EPA, 2001) | R53: 411.15 | S53: EPI | T53: 616.725 | U53: Approx. from Tcrit=1.5xTBoil | V53: No DHv,b | X53: 385.7 | Y53: EPI | Z53: Not Available | AB53: Not Available | AD53: No | AE53: No | AF53: w | AI53: Not Available | AK53: 0.2 | AL53: DTSC HHRA Note 10 (v 2019-02-25) | AM53: No
A54: Butylbenzene, n- | B54: 104-51-8 | C54: 134.22 | D54: PHYSPROP | E54: 1.0641 | F54: PHYSPROP | G54: 7682978.762 | H54: Calculated | I54: 11.8 | J54: PHYSPROP | K54: 0.0159 | L54: EPI | M54: 0.6500409 | N54: 0.0527732 | O54: WATER9 (U.S. EPA, 2001) | P54: 7.3335e-06 | Q54: WATER9 (U.S. EPA, 2001) | R54: 456.3 | S54: EPI (converted) | T54: 720 | U54: TOXNET | V54: 12267.12 | W54: TOXNET (converted) | X54: 1482 | Y54: EPI | Z54: Not Available | AB54: Not Available | AD54: No | AE54: No | AF54: w | AI54: Not Available | AK54: 0.2 | AL54: DTSC HHRA Note 10 (v 2019-02-25) | AM54: No
A55: Butylbenzene, sec- | B55: 135-98-8 | C55: 134.22 | D55: PHYSPROP | E55: 1.752 | F55: PHYSPROP | G55: 12649731.03 | H55: Calculated | I55: 17.6 | J55: PHYSPROP | K55: 0.0176 | L55: EPI | M55: 0.7195421 | N55: 0.0527928 | O55: WATER9 (U.S. EPA, 2001) | P55: 7.3371e-06 | Q55: WATER9 (U.S. EPA, 2001) | R55: 451.5 | S55: EPI | T55: 677.25 | U55: Approx. from Tcrit=1.5xTBoil | V55: 11467.5 | W55: TOXNET (converted) | X55: 1331 | Y55: EPI | Z55: Not Available | AB55: Not Available | AD55: No | AE55: No | AF55: w | AI55: Not Available | AK55: 0.4 | AL55: DTSC HHRA Note 10 (v 2019-02-25) | AM55: No
A56: Butylbenzene, tert- | B56: 98-06-6 | C56: 134.22 | D56: PHYSPROP | E56: 2.2044 | F56: PHYSPROP | G56: 15916134.18 | H56: Calculated | I56: 29.5 | J56: PHYSPROP | K56: 0.0132 | L56: EPI | M56: 0.5396566 | N56: 0.0529525 | O56: WATER9 (U.S. EPA, 2001) | P56: 7.3662e-06 | Q56: WATER9 (U.S. EPA, 2001) | R56: 443.15 | S56: EPI | T56: 664.725 | U56: Approx. from Tcrit=1.5xTBoil | V56: 11405.35 | W56: NIST (converted) | X56: 1001 | Y56: EPI | Z56: Not Available | AB56: Not Available | AD56: No | AE56: No | AF56: w | AI56: Not Available | AK56: 0.4 | AL56: DTSC HHRA Note 10 (v 2019-02-25) | AM56: No
A57: Bromo-3-fluorobenzene, 1- | B57: 1073-06-9 | C57: 175 | D57: PHYSPROP | E57: 2.84 | F57: PHYSPROP | G57: 26735378.92 | H57: Calculated | I57: 378 | J57: PHYSPROP | K57: 0.0025 | L57: PHYSPROP | M57: 0.1022077 | N57: 0.0462007 | O57: WATER9 (U.S. EPA, 2001) | P57: 9.4397e-06 | Q57: WATER9 (U.S. EPA, 2001) | T57: No Tcrit | V57: No DHv,b | X57: 375.3 | Y57: EPI | Z57: Not Available | AB57: Not Available | AD57: No | AE57: No | AI57: Not Available | AK57: 0.0012 | AL57: DTSC HHRA Note 10 (v 2019-02-25) | AM57: No
A58: Bromo-4-fluorobenzene, 1- | B58: 460-00-4 | C58: 175 | D58: PHYSPROP | E58: 2.84 | F58: PHYSPROP | G58: 26735378.92 | H58: Calculated | I58: 136.4 | J58: PHYSPROP | K58: 0.0025 | L58: PHYSPROP | M58: 0.1022077 | N58: 0.0448069 | O58: WATER9 (U.S. EPA, 2001) | P58: 9.0527e-06 | Q58: WATER9 (U.S. EPA, 2001) | T58: No Tcrit | V58: No DHv,b | X58: 375.3 | Y58: EPI | Z58: Not Available | AB58: Not Available | AD58: No | AE58: No | AI58: Not Available | AK58: 0.0012 | AL58: DTSC HHRA Note 10 (v 2019-02-25) | AM58: No
A59: Bromopropane, 1- | B59: 106-94-5 | C59: 122.99 | D59: EPI | E59: 110.8 | F59: EPI | G59: 733059990.5 | H59: Calculated | I59: 2450 | J59: EPI | K59: 0.00732 | L59: EPI | M59: 0.29926 | N59: 0.0716934 | O59: WATER9 (U.S. EPA, 2001) | P59: 1.01e-05 | Q59: WATER9 (U.S. EPA, 2001) | T59: No Tcrit | V59: No DHv,b | X59: 39.6 | Y59: EPI | Z59: 3.7e-06 | AB59: 0.1 | AC59: A | AD59: No | AE59: No | AI59: Not Available | AK59: 0.1 | AL59: DTSC HHRA Note 10 (v 2019-02-25) | AM59: No
A60: Difluoropropane, 2,2- | B60: 420-45-1 | C60: 80.078 | D60: PHYSPROP | E60: 1800 | F60: PHYSPROP | G60: 7753819340 | H60: Calculated | I60: 159.2 | J60: PHYSPROP | K60: 0.514 | L60: PHYSPROP | M60: 21.0139 | N60: 0.0897024 | O60: WATER9 (U.S. EPA, 2001) | P60: 1.04e-05 | Q60: WATER9 (U.S. EPA, 2001) | T60: No Tcrit | V60: No DHv,b | X60: 43.89 | Y60: EPI | Z60: Not Available | AB60: 30 | AC60: X | AD60: No | AE60: No | AI60: Not Available | AK60: 30 | AL60: DTSC HHRA Note 10 (v 2019-02-25) | AM60: No
A61: Diphenyl Ether | B61: 101-84-8 | C61: 170.21 | D61: EPI | E61: 0.0225 | F61: EPI | G61: 206014.3844 | H61: Calculated | I61: 18 | J61: EPI | K61: 0.000279 | L61: EPI | M61: 0.0114064 | N61: 0.0396863 | O61: WATER9 (U.S. EPA, 2001) | P61: 7.2337e-06 | Q61: WATER9 (U.S. EPA, 2001) | T61: No Tcrit | V61: No DHv,b | X61: 1950 | Y61: PPRTV | Z61: Not Available | AB61: 0.0004 | AC61: X | AD61: No | AE61: No | AI61: Not Available | AK61: 0.0004 | AL61: DTSC HHRA Note 10 (v 2019-02-25) | AM61: No
A62: Heptanal, n- | B62: 111-71-7 | C62: 114.19 | D62: PHYSPROP | E62: 3.52 | F62: PHYSPROP | G62: 21622240.39 | H62: Calculated | I62: 1250 | J62: PHYSPROP | K62: 0.00027 | L62: PHYSPROP | M62: 0.0110384 | N62: 0.0619893 | O62: WATER9 (U.S. EPA, 2001) | P62: 7.8129e-06 | Q62: WATER9 (U.S. EPA, 2001) | T62: No Tcrit | V62: No DHv,b | X62: 10.85 | Y62: EPI | Z62: Not Available | AB62: 0.003 | AC62: X | AD62: No | AE62: No | AI62: Not Available | AK62: 0.003 | AL62: DTSC HHRA Note 10 (v 2019-02-25) | AM62: No
A63: Methyl-2-Pentanol, 4- | B63: 108-11-2 | C63: 102.18 | D63: PHYSPROP | E63: 5.3 | F63: PHYSPROP | G63: 29132095.37 | H63: Calculated | I63: 16400 | J63: PHYSPROP | K63: 4.45e-05 | L63: PHYSPROP | M63: 0.0018193 | N63: 0.0689273 | O63: WATER9 (U.S. EPA, 2001) | P63: 8.3164e-06 | Q63: WATER9 (U.S. EPA, 2001) | T63: No Tcrit | V63: No DHv,b | X63: 8.155 | Y63: EPI | Z63: Not Available | AB63: 3 | AC63: X | AD63: No | AE63: No | AI63: Not Available | AK63: 3 | AL63: DTSC HHRA Note 10 (v 2019-02-25) | AM63: No
A64: Carbon Disulfide | B64: 75-15-0 | C64: 76.139 | D64: PHYSPROP | E64: 359 | F64: PHYSPROP | G64: 1470386722 | H64: Calculated | I64: 2160 | J64: PHYSPROP | K64: 0.0144 | L64: PHYSPROP | M64: 0.5887163 | N64: 0.1064373 | O64: WATER9 (U.S. EPA, 2001) | P64: 1.3e-05 | Q64: WATER9 (U.S. EPA, 2001) | R64: 319 | S64: EPI | T64: 552 | U64: Weast | V64: 6391 | W64: Weast | X64: 21.73 | Y64: EPI | Z64: Not Available | AB64: 0.7 | AC64: I | AD64: No | AE64: No | AF64: w | AI64: Not Available | AK64: 0.7 | AL64: DTSC HHRA Note 10 (v 2019-02-25) | AM64: No
A65: Carbon Tetrachloride | B65: 56-23-5 | C65: 153.82 | D65: PHYSPROP | E65: 115 | F65: PHYSPROP | G65: 951569694.9 | H65: Calculated | I65: 793 | J65: PHYSPROP | K65: 0.0276 | L65: PHYSPROP | M65: 1.1283729 | N65: 0.0571435 | O65: WATER9 (U.S. EPA, 2001) | P65: 9.7849e-06 | Q65: WATER9 (U.S. EPA, 2001) | R65: 349.8 | S65: EPI | T65: 556.6 | U65: Weast | V65: 7127 | W65: Weast | X65: 43.89 | Y65: EPI | Z65: 6e-06 | AA65: I | AB65: 0.1 | AC65: I | AD65: No | AE65: No | AF65: w | AI65: 6e-06 | AJ65: DTSC note 10 (v 2019-02-25) | AK65: 0.04 | AL65: DTSC HHRA Note 10 (v 2019-02-25) | AM65: No
A66: Carbonyl Sulfide | B66: 463-58-1 | C66: 60.075 | D66: PHYSPROP | E66: 9412 | F66: PHYSPROP | G66: 3.041624887e+10 | H66: Calculated | I66: 1220 | J66: PHYSPROP | K66: 0.61 | L66: EPI | M66: 24.94 | N66: 0.1157542 | O66: WATER9 (U.S. EPA, 2001) | P66: 1.32e-05 | Q66: WATER9 (U.S. EPA, 2001) | R66: 223 | S66: PHYSPROP | T66: 378.15 | U66: NCBI | V66: 4.66 | W66: NIST | X66: 1 | Y66: EPI | Z66: Not Available | AB66: 0.1 | AC66: P | AD66: No | AE66: No | AF66: w | AI66: Not Available | AK66: 0.01 | AL66: DTSC HHRA Note 10 (v 2019-02-25) | AM66: No
A67: Chloral Hydrate | B67: 302-17-0 | C67: 165.4 | D67: PHYSPROP | E67: 14.999 | F67: PHYSPROP | G67: 133452823.1 | H67: Calculated | I67: 793000 | J67: PHYSPROP | K67: 5.71e-09 | L67: PHYSPROP | M67: 2.3344e-07 | N67: 0.0543991 | O67: WATER9 (U.S. EPA, 2001) | P67: 1.04e-05 | Q67: WATER9 (U.S. EPA, 2001) | R67: 371.15 | S67: EPI | T67: 556.725 | U67: Approx. from Tcrit=1.5xTBoil | V67: 7520.55 | W67: Perry | X67: 1 | Y67: EPI | Z67: Not Available | AB67: Not Available | AD67: No | AE67: No | AF67: w | AI67: Not Available | AK67: 0.4 | AL67: DTSC HHRA Note 10 (v 2019-02-25) | AM67: No
A68: Chlordane | B68: 12789-03-6 | C68: 409.78 | D68: PHYSPROP | E68: 9.98e-06 | F68: PHYSPROP | G68: 219.9942118 | H68: Calculated | I68: 0.056 | J68: EPI | K68: 4.86e-05 | L68: EPI | M68: 0.0019869 | N68: 0.021493 | O68: WATER9 (U.S. EPA, 2001) | P68: 5.4477e-06 | Q68: WATER9 (U.S. EPA, 2001) | R68: 448.15 | S68: EPI | T68: 672.225 | U68: Approx. from Tcrit=1.5xTBoil | V68: 14000 | W68: Weast | X68: 67540 | Y68: EPI | Z68: 0.0001 | AA68: I | AB68: 0.0007 | AC68: I | AD68: No | AE68: No | AF68: w | AI68: 0.0001 | AJ68: DTSC note 10 (v 2019-02-25) | AK68: 0.0007 | AL68: DTSC HHRA Note 10 (v 2019-02-25) | AM68: No
A69: Chlorine | B69: 7782-50-5 | C69: 70.906 | D69: PHYSPROP | E69: 5854 | F69: PHYSPROP | G69: 2.232881418e+10 | H69: Calculated | I69: 6300 | J69: PHYSPROP | K69: 0.0117 | L69: PHYSPROP | M69: 0.4783 | N69: 0.1542088 | O69: WATER9 (U.S. EPA, 2001) | P69: 2.23e-05 | Q69: WATER9 (U.S. EPA, 2001) | R69: 239.1 | S69: EPI | T69: 417.15 | U69: TOXNET (converted) | V69: 68572.6866 | W69: TOXNET (converted) | Z69: Not Available | AB69: 0.000145 | AC69: A | AD69: No | AE69: No | AF69: w | AI69: Not Available | AK69: 0.000145 | AL69: DTSC HHRA Note 10 (v 2019-02-25) | AM69: No
A70: Chlorine Dioxide | B70: 10049-04-4 | C70: 67.45 | D70: EPI | E70: 758 | F70: Toxnet HSDB | G70: 2750306623 | H70: Calculated | I70: No S | K70: 0.0401 | L70: Toxnet HSDB | M70: 1.64 | N70: 0.156579 | O70: WATER9 (U.S. EPA, 2001) | P70: 2.23e-05 | Q70: WATER9 (U.S. EPA, 2001) | R70: 284.15 | S70: WATER9 | T70: 426.225 | U70: Approx. from Tcrit=1.5xTBoil | V70: 7170.17 | W70: Perry | Z70: Not Available | AB70: 0.0002 | AC70: I | AD70: No | AE70: No | AF70: w | AI70: Not Available | AK70: 0.0002 | AL70: DTSC HHRA Note 10 (v 2019-02-25) | AM70: No
A71: Chloro-1,1-difluoroethane, 1- | B71: 75-68-3 | C71: 100.5 | D71: PHYSPROP | E71: 2544 | F71: PHYSPROP | G71: 1.375349658e+10 | H71: Calculated | I71: 1400 | J71: PHYSPROP | K71: 0.0588 | L71: PHYSPROP | M71: 2.4039248 | N71: 0.0803925 | O71: WATER9 (U.S. EPA, 2001) | P71: 1.01e-05 | Q71: WATER9 (U.S. EPA, 2001) | R71: 263.3 | S71: EPI (converted) | T71: 409.85 | U71: TOXNET (converted) | V71: 53298.46 | W71: TOXNET (converted) | X71: 43.89 | Y71: EPI | Z71: Not Available | AB71: 50 | AC71: I | AD71: No | AE71: No | AF71: w | AG71: 1-Chloro-1,1-difluoroethane | AI71: Not Available | AK71: 50 | AL71: DTSC HHRA Note 10 (v 2019-02-25) | AM71: No
A72: Chloro-1,3-butadiene, 2- | B72: 126-99-8 | C72: 88.537 | D72: PHYSPROP | E72: 215.5 | F72: PHYSPROP | G72: 1026365468 | H72: Calculated | I72: 874.9 | J72: PHYSPROP | K72: 0.0561 | L72: PHYSPROP | M72: 2.2935405 | N72: 0.0841489 | O72: WATER9 (U.S. EPA, 2001) | P72: 1e-05 | Q72: WATER9 (U.S. EPA, 2001) | R72: 332.4 | S72: EPI | T72: 525 | U72: DECHEMA | V72: 8074.848 | W72: Weiss | X72: 60.7 | Y72: EPI | Z72: 0.0003 | AA72: I | AB72: 0.02 | AC72: I | AD72: No | AE72: No | AF72: w | AG72: 2-Chloro-1,3-butadiene | AH72: Chloroprene | AI72: 0.0003 | AJ72: DTSC note 10 (v 2019-02-25) | AK72: 0.02 | AL72: DTSC HHRA Note 10 (v 2019-02-25) | AM72: No
A73: Chloroacetaldehyde, 2- | B73: 107-20-0 | C73: 78.499 | D73: PHYSPROP | E73: 64.266 | F73: PHYSPROP | G73: 271378444.6 | H73: Calculated | I73: 110700 | J73: PHYSPROP | K73: 2.39e-05 | L73: PHYSPROP | M73: 0.0009771 | N73: 0.101506 | O73: WATER9 (U.S. EPA, 2001) | P73: 1.23e-05 | Q73: WATER9 (U.S. EPA, 2001) | R73: 358.2 | S73: NIST | T73: 514.03 | U73: MSDS | V73: No DHv,b | X73: 1 | Y73: EPI | Z73: Not Available | AB73: Not Available | AD73: No | AE73: No | AF73: w | AI73: 6.75e-05 | AJ73: DTSC note 10 (v 2019-02-25) | AK73: Not Available | AM73: No
A74: Chlorobenzene | B74: 108-90-7 | C74: 112.56 | D74: PHYSPROP | E74: 11.97 | F74: PHYSPROP | G74: 72478331.97 | H74: Calculated | I74: 498 | J74: PHYSPROP | K74: 0.00311 | L74: PHYSPROP | M74: 0.1271464 | N74: 0.0721306 | O74: WATER9 (U.S. EPA, 2001) | P74: 9.4765e-06 | Q74: WATER9 (U.S. EPA, 2001) | R74: 404.7 | S74: EPI | T74: 632.4 | U74: Weast | V74: 8410 | W74: Weast | X74: 233.9 | Y74: EPI | Z74: Not Available | AB74: 0.05 | AC74: P | AD74: No | AE74: No | AF74: w | AI74: Not Available | AK74: 0.05 | AL74: DTSC HHRA Note 10 (v 2019-02-25) | AM74: No
A75: Chlorobenzotrifluoride, 4- | B75: 98-56-6 | C75: 180.56 | D75: PHYSPROP | E75: 7.63 | F75: PHYSPROP | G75: 74109867.88 | H75: Calculated | I75: 29 | J75: PHYSPROP | K75: 0.0347 | L75: PHYSPROP | M75: 1.4186427 | N75: 0.0384995 | O75: WATER9 (U.S. EPA, 2001) | P75: 7.9872e-06 | Q75: WATER9 (U.S. EPA, 2001) | R75: 411.5 | S75: EPI (converted) | T75: 617.25 | U75: Approx. from Tcrit=1.5xTBoil | V75: No DHv,b | X75: 1606 | Y75: EPI | Z75: 8.6e-06 | AA75: C | AB75: 0.3 | AC75: P | AD75: No | AE75: No | AF75: w | AG75: 4-Chlorobenzotrifluoride | AI75: Not Available | AK75: 0.3 | AL75: DTSC HHRA Note 10 (v 2019-02-25) | AM75: No
A76: Chlorobutane, 1- | B76: 109-69-3 | C76: 92.569 | D76: PHYSPROP | E76: 101.3 | F76: PHYSPROP | G76: 504434721.6 | H76: Calculated | I76: 1100 | J76: PHYSPROP | K76: 0.0167 | L76: PHYSPROP | M76: 0.6827473 | N76: 0.0784137 | O76: WATER9 (U.S. EPA, 2001) | P76: 9.3275e-06 | Q76: WATER9 (U.S. EPA, 2001) | R76: 351.6 | S76: EPI | T76: 542 | U76: TOXNET | V76: 7263.21 | W76: CRC | X76: 72.17 | Y76: EPI | Z76: Not Available | AB76: Not Available | AD76: No | AE76: No | AF76: w | AI76: Not Available | AK76: 0.16 | AL76: DTSC HHRA Note 10 (v 2019-02-25) | AM76: No
A77: Chlorodifluoromethane | B77: 75-45-6 | C77: 86.469 | D77: PHYSPROP | E77: 7252 | F77: PHYSPROP | G77: 3.373247343e+10 | H77: Calculated | I77: 2770 | J77: PHYSPROP | K77: 0.0406 | L77: PHYSPROP | M77: 1.6598528 | N77: 0.1033788 | O77: WATER9 (U.S. EPA, 2001) | P77: 1.33e-05 | Q77: WATER9 (U.S. EPA, 2001) | R77: 232.3 | S77: EPI | T77: 369.3 | U77: CRC | V77: 4835.92122 | W77: TOXNET | X77: 31.82 | Y77: EPI | Z77: Not Available | AB77: 50 | AC77: I | AD77: No | AE77: No | AF77: w | AI77: Not Available | AK77: 50 | AL77: DTSC HHRA Note 10 (v 2019-02-25) | AM77: No
A78: Chloroethanol, 2- | B78: 107-07-3 | C78: 80.515 | D78: PHYSPROP | E78: 7.18 | F78: PHYSPROP | G78: 31097909.58 | H78: Calculated | I78: 1000000 | J78: PHYSPROP | K78: 7.61e-07 | L78: EPI | M78: 3.11e-05 | N78: 0.0999813 | O78: WATER9 (U.S. EPA, 2001) | P78: 1.22e-05 | Q78: WATER9 (U.S. EPA, 2001) | R78: 401.75 | S78: EPI | T78: 602.625 | U78: Approx. from Tcrit=1.5xTBoil | V78: 9956.97 | W78: Perry | X78: 1.904 | Y78: EPI | Z78: Not Available | AB78: Not Available | AD78: No | AE78: No | AF78: w | AI78: Not Available | AK78: 0.08 | AL78: DTSC HHRA Note 10 (v 2019-02-25) | AM78: No
A79: Chloroform | B79: 67-66-3 | C79: 119.38 | D79: PHYSPROP | E79: 197 | F79: PHYSPROP | G79: 1265108448 | H79: Calculated | I79: 7950 | J79: PHYSPROP | K79: 0.00367 | L79: PHYSPROP | M79: 0.1500409 | N79: 0.0769197 | O79: WATER9 (U.S. EPA, 2001) | P79: 1.09e-05 | Q79: WATER9 (U.S. EPA, 2001) | R79: 334.1 | S79: EPI | T79: 536.4 | U79: Weast | V79: 6988 | W79: Weast | X79: 31.82 | Y79: EPI | Z79: 2.3e-05 | AA79: I | AB79: 0.00195 | AC79: A | AD79: No | AE79: No | AF79: w | AI79: 2.3e-05 | AJ79: DTSC note 10 (v 2019-02-25) | AK79: 0.098 | AL79: DTSC HHRA Note 10 (v 2019-02-25) | AM79: No
A80: Chloromethane | B80: 74-87-3 | C80: 50.488 | D80: PHYSPROP | E80: 4300 | F80: PHYSPROP | G80: 1.16784869e+10 | H80: Calculated | I80: 5320 | J80: PHYSPROP | K80: 0.00882 | L80: PHYSPROP | M80: 0.3605887 | N80: 0.1239651 | O80: WATER9 (U.S. EPA, 2001) | P80: 1.36e-05 | Q80: WATER9 (U.S. EPA, 2001) | R80: 249 | S80: EPI | T80: 416.25 | U80: CRC | V80: 5114.6 | W80: CRC | X80: 13.22 | Y80: EPI | Z80: Not Available | AB80: 0.09 | AC80: I | AD80: No | AE80: No | AF80: w | AG80: Methyl chloride | AI80: Not Available | AK80: 0.09 | AL80: DTSC HHRA Note 10 (v 2019-02-25) | AM80: No
A81: Chloromethyl Methyl Ether | B81: 107-30-2 | C81: 80.515 | D81: PHYSPROP | E81: 30 | F81: PHYSPROP | G81: 129935555.4 | H81: Calculated | I81: 69440 | J81: PHYSPROP | K81: 0.000304 | L81: PHYSPROP | M81: 0.0124285 | N81: 0.0949683 | O81: WATER9 (U.S. EPA, 2001) | P81: 1.13e-05 | Q81: WATER9 (U.S. EPA, 2001) | R81: 332.5 | S81: EPI (converted) | T81: 498.75 | U81: Approx. from Tcrit=1.5xTBoil | V81: No DHv,b | X81: 5.322 | Y81: EPI | Z81: 0.00069 | AA81: C | AB81: Not Available | AD81: No | AE81: No | AF81: w | AI81: 0.00069 | AJ81: DTSC note 10 (v 2019-02-25) | AK81: Not Available | AM81: No
A82: Chloronaphthalene, Beta- | B82: 91-58-7 | C82: 162.62 | D82: PHYSPROP | E82: 0.0122 | F82: EPI | G82: 106724.405 | H82: Calculated | I82: 11.7 | J82: PHYSPROP | K82: 0.00032 | L82: PHYSPROP | M82: 0.0130826 | N82: 0.0446914 | O82: WATER9 (U.S. EPA, 2001) | P82: 7.7301e-06 | Q82: WATER9 (U.S. EPA, 2001) | R82: 529 | S82: EPI | T82: 793.5 | U82: Approx. from Tcrit=1.5xTBoil | V82: 11311.936 | W82: MSDS (converted) | X82: 2478 | Y82: EPI | Z82: Not Available | AB82: Not Available | AD82: No | AE82: No | AF82: w | AI82: Not Available | AK82: 0.32 | AL82: DTSC HHRA Note 10 (v 2019-02-25) | AM82: No
A83: Chlorophenol, 2- | B83: 95-57-8 | C83: 128.56 | D83: PHYSPROP | E83: 2.53 | F83: PHYSPROP | G83: 17496707.84 | H83: Calculated | I83: 11300 | J83: PHYSPROP | K83: 1.12e-05 | L83: PHYSPROP | M83: 0.0004579 | N83: 0.0661175 | O83: WATER9 (U.S. EPA, 2001) | P83: 9.4784e-06 | Q83: WATER9 (U.S. EPA, 2001) | R83: 447.9 | S83: EPI | T83: 675 | U83: Weast | V83: 9572 | W83: Weast | X83: 388 | Y83: SSL | Z83: Not Available | AB83: Not Available | AD83: No | AE83: No | AF83: w | AI83: Not Available | AK83: 0.02 | AL83: DTSC HHRA Note 10 (v 2019-02-25) | AM83: No
A84: Chloropicrin | B84: 76-06-2 | C84: 164.38 | D84: PHYSPROP | E84: 24 | F84: PHYSPROP | G84: 212221887.5 | H84: Calculated | I84: 1620 | J84: PHYSPROP | K84: 0.00205 | L84: PHYSPROP | M84: 0.0838103 | N84: 0.0517637 | O84: WATER9 (U.S. EPA, 2001) | P84: 9.6198e-06 | Q84: WATER9 (U.S. EPA, 2001) | R84: 385 | S84: EPI (converted) | T84: 577.5 | U84: Approx. from Tcrit=1.5xTBoil | V84: No DHv,b | X84: 44.19 | Y84: EPI | Z84: Not Available | AB84: 0.0004 | AC84: C | AD84: No | AE84: No | AF84: w | AI84: Not Available | AK84: 0.0004 | AL84: DTSC HHRA Note 10 (v 2019-02-25) | AM84: No
A85: Chlorotoluene, o- | B85: 95-49-8 | C85: 126.59 | D85: PHYSPROP | E85: 3.43 | F85: PHYSPROP | G85: 23357344.97 | H85: Calculated | I85: 374 | J85: PHYSPROP | K85: 0.00357 | L85: PHYSPROP | M85: 0.1459526 | N85: 0.0629025 | O85: WATER9 (U.S. EPA, 2001) | P85: 8.7194e-06 | Q85: WATER9 (U.S. EPA, 2001) | R85: 432 | S85: EPI (converted) | T85: 654.1 | U85: TOXNET (converted) | V85: 9950.5 | W85: TOXNET (converted) | X85: 382.9 | Y85: EPI | Z85: Not Available | AB85: Not Available | AD85: No | AE85: No | AF85: w | AI85: Not Available | AK85: 0.08 | AL85: DTSC HHRA Note 10 (v 2019-02-25) | AM85: No
A86: Chlorotoluene, p- | B86: 106-43-4 | C86: 126.59 | D86: PHYSPROP | E86: 2.69 | F86: PHYSPROP | G86: =E86/760*1000000000*C86/24.46 -> 18318151.01 | H86: Calculated | I86: 106 | J86: PHYSPROP | K86: 0.00438 | L86: EPI | M86: 0.1790679 | N86: 0.062571 | O86: WATER9 (U.S. EPA, 2001) | P86: 8.6574e-06 | Q86: WATER9 (U.S. EPA, 2001) | R86: 435.4 | S86: EPI (converted) | T86: 658.7 | U86: TOXNET (converted) | V86: 10144.98 | W86: TOXNET (converted) | X86: 375.3 | Y86: EPI | Z86: Not Available | AB86: Not Available | AD86: No | AE86: No | AF86: w | AI86: Not Available | AK86: 0.08 | AL86: DTSC HHRA Note 10 (v 2019-02-25) | AM86: No
A87: Coke Oven Emissions | B87: 8007-45-2 | C87: No MW | E87: 95 | F87: Toxnet HSDB | H87: Calculated | I87: No S | K87: 0.011 | L87: Toxnet HSDB | M87: 0.45 | N87: 0.1039798 | O87: WATER9 (U.S. EPA, 2001) | P87: 1.21e-05 | Q87: WATER9 (U.S. EPA, 2001) | R87: 353.15 | S87: EPI | T87: 529.725 | U87: hc | V87: No DHv,b | X87: 16000 | Z87: 0.00062 | AA87: I | AB87: Not Available | AD87: Yes | AE87: No | AF87: w | AI87: 0.00062 | AJ87: DTSC note 10 (v 2019-02-25) | AK87: Not Available | AM87: Yes
A88: Crotonaldehyde, trans- | B88: 123-73-9 | C88: 70.092 | D88: PHYSPROP | E88: 30 | F88: PHYSPROP | G88: 113114859.9 | H88: Calculated | I88: 150000 | J88: PHYSPROP | K88: 1.94e-05 | L88: PHYSPROP | M88: 0.0007931 | N88: 0.0959235 | O88: WATER9 (U.S. EPA, 2001) | P88: 1.08e-05 | Q88: WATER9 (U.S. EPA, 2001) | R88: 377 | S88: EPI | T88: 568 | U88: Weiss | V88: 8.62 | W88: Merck | X88: 1.793 | Y88: EPI | Z88: Not Available | AB88: Not Available | AD88: No | AE88: No | AF88: w | AI88: 0.000475 | AJ88: DTSC note 10 (v 2019-02-25) | AK88: 0.004 | AL88: DTSC HHRA Note 10 (v 2019-02-25) | AM88: No
A89: Cumene | B89: 98-82-8 | C89: 120.2 | D89: PHYSPROP | E89: 4.5 | F89: PHYSPROP | G89: 29096914.4 | H89: Calculated | I89: 61.3 | J89: PHYSPROP | K89: 0.0115 | L89: PHYSPROP | M89: 0.4701554 | N89: 0.0603044 | O89: WATER9 (U.S. EPA, 2001) | P89: 7.8566e-06 | Q89: WATER9 (U.S. EPA, 2001) | R89: 425.4 | S89: EPI | T89: 631.1 | U89: CRC | V89: 10335.3 | W89: TOXNET | X89: 697.8 | Y89: EPI | Z89: Not Available | AB89: 0.4 | AC89: I | AD89: No | AE89: No | AF89: w | AI89: Not Available | AK89: 0.4 | AL89: DTSC HHRA Note 10 (v 2019-02-25) | AM89: No
A90: Cyanide (CN-) | B90: 57-12-5 | C90: 26.018 | D90: PHYSPROP | E90: 308 | F90: PHYSPROP | G90: 431076731.1 | H90: Calculated | I90: 95400 | J90: PHYSPROP | K90: 0.000101 | L90: Ma et al 2010 | M90: 0.00415 | N90: 0.2109549 | O90: WATER9 (U.S. EPA, 2001) | P90: 2.46e-05 | Q90: WATER9 (U.S. EPA, 2001) | R90: No Tboil | T90: No Tcrit | V90: No DHv,b | Z90: Not Available | AB90: 0.0008 | AC90: G | AD90: No | AE90: No | AF90: w | AI90: Not Available | AK90: 0.0008 | AL90: DTSC HHRA Note 10 (v 2019-02-25) | AM90: No
A91: Cyanogen | B91: 460-19-5 | C91: 52.036 | D91: PHYSPROP | E91: 4302 | F91: PHYSPROP | G91: 1.204215647e+10 | H91: Calculated | I91: 8000 | J91: CRC89 | K91: 0.0054 | L91: EPI | M91: 0.2207686 | N91: 0.1237533 | O91: WATER9 (U.S. EPA, 2001) | P91: 1.38e-05 | Q91: WATER9 (U.S. EPA, 2001) | R91: 251.9 | S91: EPI (converted) | T91: 401.3 | U91: TOXNET (converted) | V91: 5778 | W91: TOXNET | Z91: Not Available | AB91: Not Available | AD91: No | AE91: No | AF91: w | AI91: Not Available | AK91: 0.004 | AL91: DTSC HHRA Note 10 (v 2019-02-25) | AM91: No
A92: Cyanogen Bromide | B92: 506-68-3 | C92: 105.93 | D92: PHYSPROP | E92: 121.56 | F92: PHYSPROP | G92: 692691117.6 | H92: Calculated | I92: No S | K92: 0.0245 | L92: EPI | M92: 1 | N92: 0.0984065 | O92: WATER9 (U.S. EPA, 2001) | P92: 1.41e-05 | Q92: WATER9 (U.S. EPA, 2001) | R92: 334.5 | S92: EPI (converted) | T92: 501.75 | U92: Approx. from Tcrit=1.5xTBoil | V92: 8077.77 | W92: TOXNET (converted) | Z92: Not Available | AB92: Not Available | AD92: No | AE92: No | AF92: w | AI92: Not Available | AK92: 0.36 | AL92: DTSC HHRA Note 10 (v 2019-02-25) | AM92: No
A93: Cyanogen Chloride | B93: 506-77-4 | C93: 61.471 | D93: PHYSPROP | E93: 1225 | F93: PHYSPROP | G93: 4050758220 | H93: Calculated | I93: 60000 | J93: PHYSPROP | K93: 0.0019412 | L93: YAWS | M93: 0.0787186 | N93: 0.1207454 | O93: WATER9 (U.S. EPA, 2001) | P93: 1.42e-05 | Q93: WATER9 (U.S. EPA, 2001) | R93: 286 | S93: EPI (converted) | T93: 429 | U93: Approx. from Tcrit=1.5xTBoil | V93: 6389.13 | W93: TOXNET (converted) | Z93: Not Available | AB93: Not Available | AD93: No | AE93: No | AF93: w | AI93: Not Available | AK93: 0.2 | AL93: DTSC HHRA Note 10 (v 2019-02-25) | AM93: No
A94: Cyclohexane | B94: 110-82-7 | C94: 84.163 | D94: PHYSPROP | E94: 96.86 | F94: PHYSPROP | G94: 438526282.4 | H94: Calculated | I94: 55 | J94: PHYSPROP | K94: 0.15 | L94: PHYSPROP | M94: 6.1324612 | N94: 0.0799729 | O94: WATER9 (U.S. EPA, 2001) | P94: 9.1077e-06 | Q94: WATER9 (U.S. EPA, 2001) | R94: 353.7 | S94: EPI (converted) | T94: 553.4 | U94: TOXNET (converted) | V94: 7153.6 | W94: TOXNET (converted) | X94: 145.8 | Y94: EPI | Z94: Not Available | AB94: 6 | AC94: I | AD94: No | AE94: Yes | AF94: ww | AI94: Not Available | AK94: 6 | AL94: DTSC HHRA Note 10 (v 2019-02-25) | AM94: No
A95: Cyclohexanone | B95: 108-94-1 | C95: 98.146 | D95: PHYSPROP | E95: 4.33 | F95: PHYSPROP | G95: 22860749.02 | H95: Calculated | I95: 25000 | J95: PHYSPROP | K95: 9e-06 | L95: PHYSPROP | M95: 0.0003679 | N95: 0.0767599 | O95: WATER9 (U.S. EPA, 2001) | P95: 9.3795e-06 | Q95: WATER9 (U.S. EPA, 2001) | R95: 428.55 | S95: EPI | T95: 629 | U95: TOXNET | V95: 10762.40076 | W95: TOXNET (converted) | X95: 17.38 | Y95: EPI | Z95: Not Available | AB95: 0.7 | AC95: P | AD95: No | AE95: No | AF95: w | AI95: Not Available | AK95: 0.7 | AL95: DTSC HHRA Note 10 (v 2019-02-25) | AM95: No
A96: Cyclohexene | B96: 110-83-8 | C96: 82.147 | D96: PHYSPROP | E96: 89 | F96: PHYSPROP | G96: 393288882 | H96: Calculated | I96: 213 | J96: PHYSPROP | K96: 0.0455 | L96: PHYSPROP | M96: 1.8601799 | N96: 0.0831876 | O96: WATER9 (U.S. EPA, 2001) | P96: 9.4975e-06 | Q96: WATER9 (U.S. EPA, 2001) | R96: 356.15 | S96: TOXNET | T96: 560.55 | U96: TOXNET | V96: 7279.94 | W96: TOXNET (converted) | X96: 145.8 | Y96: EPI | Z96: Not Available | AB96: 1 | AC96: X | AD96: No | AE96: Yes | AF96: ww | AI96: Not Available | AK96: 1 | AL96: DTSC HHRA Note 10 (v 2019-02-25) | AM96: No
A97: Cyclohexylamine | B97: 108-91-8 | C97: 99.177 | D97: PHYSPROP | E97: 10.1 | F97: PHYSPROP | G97: 53884306.28 | H97: Calculated | I97: 1000000 | J97: PHYSPROP | K97: 4.16e-06 | L97: PHYSPROP | M97: 0.0001701 | N97: 0.0712945 | O97: WATER9 (U.S. EPA, 2001) | P97: 8.5394e-06 | Q97: WATER9 (U.S. EPA, 2001) | R97: 407.15 | S97: EPI | T97: 610.725 | U97: Approx. from Tcrit=1.5xTBoil | V97: 10444.55 | W97: NIST | X97: 32.17 | Y97: EPI | Z97: Not Available | AB97: Not Available | AD97: No | AE97: No | AF97: w | AI97: Not Available | AK97: 0.8 | AL97: DTSC HHRA Note 10 (v 2019-02-25) | AM97: No
A98: DDE, p,p'- | B98: 72-55-9 | C98: 318.03 | D98: PHYSPROP | E98: 6e-06 | F98: EPI | G98: 102.647717 | H98: Calculated | I98: 0.04 | J98: PHYSPROP | K98: 4.16e-05 | L98: PHYSPROP | M98: 0.0017007 | N98: 0.0229959 | O98: WATER9 (U.S. EPA, 2001) | P98: 5.8592e-06 | Q98: WATER9 (U.S. EPA, 2001) | R98: 609.15 | S98: EPI | T98: 913.725 | U98: Approx. from Tcrit=1.5xTBoil | V98: 15000 | W98: Weast | X98: 117500 | Y98: EPI | Z98: 9.7e-05 | AA98: C | AB98: Not Available | AD98: No | AE98: No | AF98: w | AI98: 9.7e-05 | AJ98: DTSC note 10 (v 2019-02-25) | AK98: 0.0012 | AL98: DTSC HHRA Note 10 (v 2019-02-25) | AM98: No
A99: Dibenzofuran | B99: 132-64-9 | C99: 168.2 | D99: PHYSPROP | E99: 0.00248 | F99: PHYSPROP | G99: 22439.21332 | H99: Calculated | I99: 3.1 | J99: PHYSPROP | K99: 0.000213 | L99: EPI | M99: 0.0087081 | N99: 0.0650663 | O99: WATER9 (U.S. EPA, 2001) | P99: 7.3773e-06 | Q99: WATER9 (U.S. EPA, 2001) | R99: 560 | S99: EPI | T99: 824 | U99: TOXNET | V99: 66400 | W99: TOXNET | X99: 9161 | Y99: EPI | Z99: Not Available | AB99: Not Available | AD99: No | AE99: No | AF99: w | AI99: Not Available | AK99: 0.004 | AL99: DTSC HHRA Note 10 (v 2019-02-25) | AM99: No
A100: Dibenzothiophene | B100: 132-65-0 | C100: 184.26 | D100: PHYSPROP | E100: 0.000205 | F100: EPI | G100: 2031.95873 | H100: Calculated | I100: 1.47 | J100: PHYSPROP | K100: 3.38e-05 | L100: EPI | M100: 0.0013818 | N100: 0.0355475 | O100: WATER9 (U.S. EPA, 2001) | P100: 7.5958e-06 | Q100: WATER9 (U.S. EPA, 2001) | R100: 605.65 | S100: EPI | T100: 908.475 | U100: TOXNET (converted) | V100: 22299.23518 | W100: NIST (converted) | X100: 9161 | Y100: EPI | Z100: Not Available | AB100: Not Available | AD100: No | AE100: No | AF100: w | AI100: Not Available | AK100: 0.04 | AL100: DTSC HHRA Note 10 (v 2019-02-25) | AM100: No
A101: Dibromo-3-chloropropane, 1,2- | B101: 96-12-8 | C101: 236.33 | D101: PHYSPROP | E101: 0.58 | F101: PHYSPROP | G101: 7373552.954 | H101: Calculated | I101: 1230 | J101: PHYSPROP | K101: 0.000147 | L101: EPI | M101: 0.0060098 | N101: 0.0321351 | O101: WATER9 (U.S. EPA, 2001) | P101: 8.9048e-06 | Q101: WATER9 (U.S. EPA, 2001) | R101: 469 | S101: EPI | T101: 703.5 | U101: Approx. from Tcrit=1.5xTBoil | V101: 9960.045 | W101: MSDS (converted) | X101: 115.8 | Y101: EPI | Z101: 0.006 | AA101: P | AB101: 0.0002 | AC101: I | AD101: Yes | AE101: No | AF101: w | AG101: 1,2-Dibromo-3-chloropropane | AI101: 0.006 | AJ101: DTSC note 10 (v 2019-02-25) | AK101: 0.0002 | AL101: DTSC HHRA Note 10 (v 2019-02-25) | AM101: Yes
A102: Dibromobenzene, 1,3- | B102: 108-36-1 | C102: 235.91 | D102: PHYSPROP | E102: 0.2686 | F102: PHYSPROP | G102: 3408649.245 | H102: Calculated | I102: 67.5 | J102: PHYSPROP | K102: 0.00124 | L102: EPI | M102: 0.0507 | N102: 0.0311854 | O102: WATER9 (U.S. EPA, 2001) | P102: 8.5498e-06 | Q102: WATER9 (U.S. EPA, 2001) | R102: 491.15 | S102: EPI | T102: 736.725 | U102: Approx. from Tcrit=1.5xTBoil | V102: No DHv,b | X102: 375.3 | Y102: EPI | Z102: Not Available | AB102: Not Available | AD102: No | AE102: No | AF102: w | AI102: Not Available | AK102: 0.0016 | AL102: DTSC HHRA Note 10 (v 2019-02-25) | AM102: No
A103: Dibromobenzene, 1,4- | B103: 106-37-6 | C103: 235.91 | D103: PHYSPROP | E103: 0.0575 | F103: PHYSPROP | G103: 729699.6708 | H103: Calculated | I103: 20 | J103: PHYSPROP | K103: 0.000893 | L103: EPI | M103: 0.0365086 | N103: 0.0332755 | O103: WATER9 (U.S. EPA, 2001) | P103: 9.3369e-06 | Q103: WATER9 (U.S. EPA, 2001) | R103: 491.65 | S103: EPI | T103: 737.475 | U103: Approx. from Tcrit=1.5xTBoil | V103: No DHv,b | X103: 375.3 | Y103: EPI | Z103: Not Available | AB103: Not Available | AD103: No | AE103: No | AF103: w | AI103: Not Available | AK103: 0.04 | AL103: DTSC HHRA Note 10 (v 2019-02-25) | AM103: No
A104: Dibromochloromethane | B104: 124-48-1 | C104: 208.28 | D104: PHYSPROP | E104: 5.54 | F104: PHYSPROP | G104: 62070792.27 | H104: Calculated | I104: 2700 | J104: PHYSPROP | K104: 0.000783 | L104: PHYSPROP | M104: 0.0320114 | N104: 0.0366356 | O104: WATER9 (U.S. EPA, 2001) | P104: 1.06e-05 | Q104: WATER9 (U.S. EPA, 2001) | R104: 393 | S104: EPI | T104: 678.2 | U104: Weast | V104: 5900 | W104: Weast | X104: 31.82 | Y104: EPI | Z104: Not Available | AB104: Not Available | AD104: No | AE104: No | AF104: w | AG104: Chlorodibromomethane | AI104: 2.1e-05 | AJ104: DTSC note 10 (v 2019-02-25) | AK104: 0.08 | AL104: DTSC HHRA Note 10 (v 2019-02-25) | AM104: No
A105: Dibromoethane, 1,2- | B105: 106-93-4 | C105: 187.86 | D105: PHYSPROP | E105: 11.2 | F105: PHYSPROP | G105: 113183285.3 | H105: Calculated | I105: 3910 | J105: PHYSPROP | K105: 0.00065 | L105: PHYSPROP | M105: 0.026574 | N105: 0.0430348 | O105: WATER9 (U.S. EPA, 2001) | P105: 1.04e-05 | Q105: WATER9 (U.S. EPA, 2001) | R105: 404.6 | S105: EPI | T105: 583 | U105: CRC | V105: 8310.03 | W105: CRC | X105: 39.6 | Y105: EPI | Z105: 0.0006 | AA105: I | AB105: 0.009 | AC105: I | AD105: No | AE105: No | AF105: w | AG105: 1,2-Dibromoethane | AH105: Ethylene dibromide | AI105: 0.0006 | AJ105: DTSC note 10 (v 2019-02-25) | AK105: 0.0008 | AL105: DTSC HHRA Note 10 (v 2019-02-25) | AM105: No
A106: Dibromomethane (Methylene Bromide) | B106: 74-95-3 | C106: 173.84 | D106: PHYSPROP | E106: 44.4 | F106: PHYSPROP | G106: 415205060.9 | H106: Calculated | I106: 11900 | J106: PHYSPROP | K106: 0.000822 | L106: PHYSPROP | M106: 0.0336059 | N106: 0.0551373 | O106: WATER9 (U.S. EPA, 2001) | P106: 1.19e-05 | Q106: WATER9 (U.S. EPA, 2001) | R106: 370 | S106: EPI | T106: 583 | U106: TOXNET | V106: 7867.88 | W106: CRC | X106: 21.73 | Y106: EPI | Z106: Not Available | AB106: 0.004 | AC106: X | AD106: No | AE106: No | AF106: w | AG106: Methylene bromide | AI106: Not Available | AK106: 0.004 | AL106: DTSC HHRA Note 10 (v 2019-02-25) | AM106: No
A107: Dichloro-2-butene, 1,4- | B107: 764-41-0 | C107: 125 | D107: PHYSPROP | E107: 3 | F107: EPI | G107: 20172569.61 | H107: Calculated | I107: 580 | J107: PHYSPROP | K107: 0.00851 | L107: PHYSPROP | M107: 0.347915 | N107: 0.0665047 | O107: WATER9 (U.S. EPA, 2001) | P107: 9.29e-06 | Q107: WATER9 (U.S. EPA, 2001) | R107: 431 | S107: TOXNET (converted) | T107: 646.5 | U107: Approx. from Tcrit=1.5xTBoil | V107: No DHv,b | X107: 131.5 | Y107: EPI | Z107: 0.0042 | AA107: P | AB107: Not Available | AD107: No | AE107: No | AF107: w | AG107: 1,4-Dichloro-2-butene | AI107: 0.0042 | AJ107: DTSC note 10 (v 2019-02-25) | AK107: Not Available | AM107: No
A108: Dichloro-2-butene, cis-1,4- | B108: 1476-11-5 | C108: 125 | D108: PHYSPROP | E108: 4.094 | F108: PHYSPROP | G108: 27528833.33 | H108: Calculated | I108: 580.2 | J108: PHYSPROP | K108: 0.000664 | L108: EPI | M108: 0.0271464 | N108: 0.0665047 | O108: WATER9 (U.S. EPA, 2001) | P108: 9.29e-06 | Q108: WATER9 (U.S. EPA, 2001) | R108: 425.5 | S108: EPI (converted) | T108: 640 | U108: TOXNET | V108: 9125 | W108: TOXNET (converted) | X108: 131.5 | Y108: EPI | Z108: 0.0042 | AA108: P | AB108: Not Available | AD108: No | AE108: No | AF108: w | AG108: cis-1,4-Dichloro-2-butene | AI108: 0.0042 | AJ108: DTSC note 10 (v 2019-02-25) | AK108: Not Available | AM108: No
A109: Dichloro-2-butene, trans-1,4- | B109: 110-57-6 | C109: 125 | D109: PHYSPROP | E109: 3.43 | F109: PHYSPROP | G109: 23063971.25 | H109: Calculated | I109: 850 | J109: PHYSPROP | K109: 0.000664 | L109: EPI | M109: 0.0271464 | N109: 0.0663818 | O109: WATER9 (U.S. EPA, 2001) | P109: 9.2665e-06 | Q109: WATER9 (U.S. EPA, 2001) | R109: 428.4 | S109: EPI (converted) | T109: 646 | U109: TOXNET | V109: 9125 | W109: TOXNET (converted) | X109: 131.5 | Y109: EPI | Z109: 0.0042 | AA109: P | AB109: Not Available | AD109: No | AE109: No | AF109: w | AG109: trans-1,4-Dichloro-2-butene | AI109: 0.0042 | AJ109: DTSC note 10 (v 2019-02-25) | AK109: Not Available | AM109: No
A110: Dichlorobenzene, 1,2- | B110: 95-50-1 | C110: 147 | D110: PHYSPROP | E110: 1.36 | F110: PHYSPROP | G110: 10754400.31 | H110: Calculated | I110: 156 | J110: PHYSPROP | K110: 0.00192 | L110: PHYSPROP | M110: 0.0784955 | N110: 0.0561703 | O110: WATER9 (U.S. EPA, 2001) | P110: 8.9213e-06 | Q110: WATER9 (U.S. EPA, 2001) | R110: 453 | S110: EPI | T110: 705 | U110: Weast | V110: 9700 | W110: Weast | X110: 382.9 | Y110: EPI | Z110: Not Available | AB110: 0.2 | AC110: H | AD110: No | AE110: No | AF110: w | AG110: 1,2-Dichlorobenzene | AI110: Not Available | AK110: 0.2 | AL110: DTSC HHRA Note 10 (v 2019-02-25) | AM110: No
A111: Dichlorobenzene, 1,4- | B111: 106-46-7 | C111: 147 | D111: PHYSPROP | E111: 1.74 | F111: PHYSPROP | G111: 13759306.28 | H111: Calculated | I111: 81.3 | J111: PHYSPROP | K111: 0.00241 | L111: PHYSPROP | M111: 0.0985282 | N111: 0.0550429 | O111: WATER9 (U.S. EPA, 2001) | P111: 8.6797e-06 | Q111: WATER9 (U.S. EPA, 2001) | R111: 447 | S111: EPI | T111: 684.75 | U111: Weast | V111: 9271 | W111: Weast | X111: 375.3 | Y111: EPI | Z111: 1.1e-05 | AA111: C | AB111: 0.8 | AC111: I | AD111: No | AE111: No | AF111: w | AG111: 1,4-Dichlorobenzene | AI111: 1.1e-05 | AJ111: DTSC note 10 (v 2019-02-25) | AK111: 0.8 | AL111: DTSC HHRA Note 10 (v 2019-02-25) | AM111: No
A112: Dichlorodifluoromethane | B112: 75-71-8 | C112: 120.91 | D112: PHYSPROP | E112: 4848 | F112: PHYSPROP | G112: 3.153223738e+10 | H112: Calculated | I112: 280 | J112: PHYSPROP | K112: 0.343 | L112: PHYSPROP | M112: 14.022895 | N112: 0.0760293 | O112: WATER9 (U.S. EPA, 2001) | P112: 1.08e-05 | Q112: WATER9 (U.S. EPA, 2001) | R112: 243.2 | S112: EPI | T112: 384.95 | U112: CRC | V112: 9421.36088 | W112: TOXNET | X112: 43.89 | Y112: EPI | Z112: Not Available | AB112: 0.1 | AC112: X | AD112: No | AE112: No | AF112: w | AI112: Not Available | AK112: 0.1 | AL112: DTSC HHRA Note 10 (v 2019-02-25) | AM112: No
A113: Dichloroethane, 1,1- | B113: 75-34-3 | C113: 98.96 | D113: PHYSPROP | E113: 227.3 | F113: PHYSPROP | G113: 1210010328 | H113: Calculated | I113: 5040 | J113: PHYSPROP | K113: 0.00562 | L113: PHYSPROP | M113: 0.2297629 | N113: 0.0836446 | O113: WATER9 (U.S. EPA, 2001) | P113: 1.06e-05 | Q113: WATER9 (U.S. EPA, 2001) | R113: 330.4 | S113: EPI | T113: 523 | U113: Weast | V113: 6895 | W113: Weast | X113: 31.82 | Y113: EPI | Z113: 1.6e-06 | AA113: C | AB113: Not Available | AD113: No | AE113: No | AF113: w | AG113: 1,1-Dichloroethane | AI113: 1.6e-06 | AJ113: DTSC note 10 (v 2019-02-25) | AK113: 0.8 | AL113: DTSC HHRA Note 10 (v 2019-02-25) | AM113: No
A114: Dichloroethane, 1,2- | B114: 107-06-2 | C114: 98.96 | D114: PHYSPROP | E114: 78.9 | F114: PHYSPROP | G114: 420016783.6 | H114: Calculated | I114: 8600 | J114: PHYSPROP | K114: 0.00118 | L114: PHYSPROP | M114: 0.048242 | N114: 0.0857221 | O114: WATER9 (U.S. EPA, 2001) | P114: 1.1e-05 | Q114: WATER9 (U.S. EPA, 2001) | R114: 356.5 | S114: EPI | T114: 561 | U114: Weast | V114: 7643 | W114: Weast | X114: 39.6 | Y114: EPI | Z114: 2.6e-05 | AA114: I | AB114: 0.007 | AC114: P | AD114: No | AE114: No | AF114: w | AG114: 1,2-Dichloroethane | AI114: 2.6e-05 | AJ114: DTSC note 10 (v 2019-02-25) | AK114: 0.007 | AL114: DTSC HHRA Note 10 (v 2019-02-25) | AM114: No
A115: Dichloroethylene, 1,1- | B115: 75-35-4 | C115: 96.944 | D115: PHYSPROP | E115: 600 | F115: PHYSPROP | G115: 3128975341 | H115: Calculated | I115: 2420 | J115: PHYSPROP | K115: 0.0261 | L115: PHYSPROP | M115: 1.0670482 | N115: 0.0863107 | O115: WATER9 (U.S. EPA, 2001) | P115: 1.1e-05 | Q115: WATER9 (U.S. EPA, 2001) | R115: 304.6 | S115: EPI | T115: 576.05 | U115: Weast | V115: 6247 | W115: Weast | X115: 31.82 | Y115: EPI | Z115: Not Available | AB115: 0.2 | AC115: I | AD115: No | AE115: No | AF115: w | AG115: 1,1-Dichloroethylene | AI115: Not Available | AK115: 0.07 | AL115: DTSC HHRA Note 10 (v 2019-02-25) | AM115: No
A116: Dichloroethylene, 1,2-cis- | B116: 156-59-2 | C116: 96.944 | D116: PHYSPROP | E116: 200 | F116: PHYSPROP | G116: 1042991780 | H116: Calculated | I116: 6410 | J116: PHYSPROP | K116: 0.00408 | L116: PHYSPROP | M116: 0.1668029 | N116: 0.0884056 | O116: WATER9 (U.S. EPA, 2001) | P116: 1.13e-05 | Q116: WATER9 (U.S. EPA, 2001) | R116: 328 | S116: EPI | T116: 544 | U116: Weast | V116: 7192 | W116: Weast | X116: 39.6 | Y116: EPI | Z116: Not Available | AB116: 0.04 | AC116: X | AD116: No | AE116: No | AF116: w | AI116: Not Available | AK116: 0.04 | AL116: PPRTV Screening Level (approved by HERO Supervising Toxicologist per DTSC HHRA Note 10) | AM116: No
A117: Dichloroethylene, 1,2-trans- | B117: 156-60-5 | C117: 96.944 | D117: PHYSPROP | E117: 331 | F117: EPI | G117: 1726151396 | H117: Calculated | I117: 4520 | J117: PHYSPROP | K117: 0.00938 | L117: PHYSPROP | M117: 0.3834832 | N117: 0.0876094 | O117: WATER9 (U.S. EPA, 2001) | P117: 1.12e-05 | Q117: WATER9 (U.S. EPA, 2001) | R117: 328 | S117: EPI | T117: 516.5 | U117: Weast | V117: 6717 | W117: Weast | X117: 39.6 | Y117: EPI | Z117: Not Available | AB117: 0.04 | AC117: X | AD117: No | AE117: No | AF117: w | AG117: trans-1,2-Dichloroethylene | AI117: Not Available | AK117: 0.04 | AL117: PPRTV Screening Level (approved by HERO Supervising Toxicologist per DTSC HHRA Note 10) | AM117: No
A118: Dichloropropane, 1,2- | B118: 78-87-5 | C118: 112.99 | D118: PHYSPROP | E118: 53.3 | F118: PHYSPROP | G118: 323964313.4 | H118: Calculated | I118: 2800 | J118: PHYSPROP | K118: 0.00282 | L118: PHYSPROP | M118: 0.1152903 | N118: 0.0733402 | O118: WATER9 (U.S. EPA, 2001) | P118: 9.7252e-06 | Q118: WATER9 (U.S. EPA, 2001) | R118: 368.5 | S118: EPI | T118: 572 | U118: Weast | V118: 7590 | W118: Weast | X118: 60.7 | Y118: EPI | Z118: 3.7e-06 | AA118: P | AB118: 0.004 | AC118: I | AD118: No | AE118: No | AF118: w | AG118: 1,2-Dichloropropane | AI118: 3.7e-06 | AJ118: DTSC note 10 (v 2019-02-25) | AK118: 0.004 | AL118: DTSC HHRA Note 10 (v 2019-02-25) | AM118: No
A119: Dichloropropane, 1,3- | B119: 142-28-9 | C119: 112.99 | D119: PHYSPROP | E119: 18.16 | F119: PHYSPROP | G119: 110378835.5 | H119: Calculated | I119: 2750 | J119: PHYSPROP | K119: 0.000976 | L119: PHYSPROP | M119: 0.0399019 | N119: 0.0738738 | O119: WATER9 (U.S. EPA, 2001) | P119: 9.823e-06 | Q119: WATER9 (U.S. EPA, 2001) | R119: 393.9 | S119: EPI (converted) | T119: 590.85 | U119: Approx. from Tcrit=1.5xTBoil | V119: 8102.51 | W119: TOXNET (converted) | X119: 72.17 | Y119: EPI | Z119: Not Available | AB119: Not Available | AD119: No | AE119: No | AF119: w | AI119: Not Available | AK119: 0.08 | AL119: DTSC HHRA Note 10 (v 2019-02-25) | AM119: No
A120: Dichloropropene, 1,3- | B120: 542-75-6 | C120: 110.97 | D120: PHYSPROP | E120: 34 | F120: PHYSPROP | G120: 202961871.2 | H120: Calculated | I120: 2800 | J120: PHYSPROP | K120: 0.00355 | L120: PHYSPROP | M120: 0.1451349 | N120: 0.0762725 | O120: WATER9 (U.S. EPA, 2001) | P120: 1.01e-05 | Q120: WATER9 (U.S. EPA, 2001) | R120: 385 | S120: EPI | T120: 587.38 | U120: Weast | V120: 7900 | W120: Weast | X120: 72.17 | Y120: EPI | Z120: 4e-06 | AA120: I | AB120: 0.02 | AC120: I | AD120: No | AE120: No | AF120: w | AG120: 1,3-Dichloropropene | AI120: 4e-06 | AJ120: DTSC note 10 (v 2019-02-25) | AK120: 0.02 | AL120: DTSC HHRA Note 10 (v 2019-02-25) | AM120: No
A121: Dicyclopentadiene | B121: 77-73-6 | C121: 132.21 | D121: PHYSPROP | E121: 2.29 | F121: EPI | G121: 16286574.21 | H121: Calculated | I121: 26.47 | J121: PHYSPROP | K121: 0.0625 | L121: PHYSPROP | M121: 2.5551922 | N121: 0.0557455 | O121: WATER9 (U.S. EPA, 2001) | P121: 7.7554e-06 | Q121: WATER9 (U.S. EPA, 2001) | R121: 443 | S121: EPI (converted) | T121: 664.5 | U121: Approx. from Tcrit=1.5xTBoil | V121: 2197.38 | W121: TOXNET (converted) | X121: 1513 | Y121: EPI | Z121: Not Available | AB121: 0.0003 | AC121: X | AD121: No | AE121: Yes | AF121: w | AI121: Not Available | AK121: 0.0003 | AL121: DTSC HHRA Note 10 (v 2019-02-25) | AM121: No
A122: Diethylformamide | B122: 617-84-5 | C122: 101.15 | D122: PHYSPROP | E122: 1.21 | F122: EPI | G122: 6583869.475 | H122: Calculated | I122: 1000000 | J122: PHYSPROP | K122: 1.3e-07 | L122: PHYSPROP | M122: 5.3148e-06 | N122: 0.073301 | O122: WATER9 (U.S. EPA, 2001) | P122: 8.9773e-06 | Q122: WATER9 (U.S. EPA, 2001) | R122: 450.65 | S122: EPI | T122: 675.975 | U122: Approx. from Tcrit=1.5xTBoil | V122: 11687.38 | W122: NIST | X122: 2.06 | Y122: EPI | Z122: Not Available | AB122: Not Available | AD122: No | AE122: No | AF122: w | AI122: Not Available | AK122: 0.004 | AL122: DTSC HHRA Note 10 (v 2019-02-25) | AM122: No
A123: Difluoroethane, 1,1- | B123: 75-37-6 | C123: 66.051 | D123: PHYSPROP | E123: 4550 | F123: PHYSPROP | G123: 1.616667653e+10 | H123: Calculated | I123: 3200 | J123: PHYSPROP | K123: 0.0203 | L123: PHYSPROP | M123: 0.8299264 | N123: 0.1023145 | O123: WATER9 (U.S. EPA, 2001) | P123: 1.15e-05 | Q123: WATER9 (U.S. EPA, 2001) | R123: 248.1 | S123: EPI (converted) | T123: 372.15 | U123: Approx. from Tcrit=1.5xTBoil | V123: 5153.88 | W123: TOXNET (converted) | X123: 31.82 | Y123: EPI | Z123: Not Available | AB123: 40 | AC123: I | AD123: No | AE123: No | AF123: w | AG123: 1,1-Difluoroethane | AI123: Not Available | AK123: 40 | AL123: DTSC HHRA Note 10 (v 2019-02-25) | AM123: No
A124: Dihydrosafrole | B124: 94-58-6 | C124: 164.21 | D124: PHYSPROP | E124: 0.056 | F124: PHYSPROP | G124: 494672.2899 | H124: Calculated | I124: 56.87 | J124: PHYSPROP | K124: 1.22e-05 | L124: PHYSPROP | M124: 0.0004988 | N124: 0.0425858 | O124: WATER9 (U.S. EPA, 2001) | P124: 7.3866e-06 | Q124: WATER9 (U.S. EPA, 2001) | R124: 387.5 | S124: NIST | T124: 751.36 | U124: MSDS | V124: No DHv,b | X124: 207.2 | Y124: EPI | Z124: 1.3e-05 | AA124: C | AB124: Not Available | AD124: No | AE124: No | AF124: w | AI124: 1.3e-05 | AJ124: DTSC note 10 (v 2019-02-25) | AK124: Not Available | AM124: No
A125: Diisopropyl Ether | B125: 108-20-3 | C125: 102.18 | D125: PHYSPROP | E125: 149 | F125: PHYSPROP | G125: 818996643.3 | H125: Calculated | I125: 8800 | J125: PHYSPROP | K125: 0.00256 | L125: PHYSPROP | M125: 0.1046607 | N125: 0.0654226 | O125: WATER9 (U.S. EPA, 2001) | P125: 7.7582e-06 | Q125: WATER9 (U.S. EPA, 2001) | R125: 341.5 | S125: EPI (converted) | T125: 499.9 | U125: TOXNET (converted) | V125: No DHv,b | X125: 22.79 | Y125: EPI | Z125: Not Available | AB125: 0.7 | AC125: P | AD125: No | AE125: No | AF125: w | AI125: Not Available | AK125: 0.7 | AL125: DTSC HHRA Note 10 (v 2019-02-25) | AM125: No
A126: Diisopropyl Methylphosphonate | B126: 1445-75-6 | C126: 180.19 | D126: PHYSPROP | E126: 0.228 | F126: PHYSPROP | G126: 2210016.353 | H126: Calculated | I126: 1500 | J126: PHYSPROP | K126: 4.38e-05 | L126: EPI | M126: 0.0017907 | N126: 0.0335275 | O126: WATER9 (U.S. EPA, 2001) | P126: 6.6298e-06 | Q126: WATER9 (U.S. EPA, 2001) | R126: 394.05 | S126: EPI (converted) | T126: 591.075 | U126: Approx. from Tcrit=1.5xTBoil | V126: No DHv,b | X126: 42.2 | Y126: EPI | Z126: Not Available | AB126: Not Available | AD126: No | AE126: No | AF126: w | AI126: Not Available | AK126: 0.32 | AL126: DTSC HHRA Note 10 (v 2019-02-25) | AM126: No
A127: Dimethylaniline, N,N- | B127: 121-69-7 | C127: 121.18 | D127: PHYSPROP | E127: 0.7 | F127: PHYSPROP | G127: 4563089.039 | H127: Calculated | I127: 1450 | J127: PHYSPROP | K127: 5.68e-05 | L127: EPI | M127: 0.0023222 | N127: 0.0625411 | O127: WATER9 (U.S. EPA, 2001) | P127: 8.3063e-06 | Q127: WATER9 (U.S. EPA, 2001) | R127: 466.45 | S127: EPI (converted) | T127: 687 | U127: TOXNET (converted) | V127: 12276.68 | W127: TOXNET (converted) | X127: 78.67 | Y127: EPI | Z127: Not Available | AB127: Not Available | AD127: No | AE127: No | AF127: w | AI127: 6.75e-06 | AJ127: DTSC note 10 (v 2019-02-25) | AK127: 0.008 | AL127: DTSC HHRA Note 10 (v 2019-02-25) | AM127: No
A128: Dimethylformamide | B128: 68-12-2 | C128: 73.095 | D128: PHYSPROP | E128: 3.87 | F128: PHYSPROP | G128: 15216984.23 | H128: Calculated | I128: 1000000 | J128: PHYSPROP | K128: 7.39e-08 | L128: PHYSPROP | M128: 3.0213e-06 | N128: 0.0971846 | O128: WATER9 (U.S. EPA, 2001) | P128: 1.12e-05 | Q128: WATER9 (U.S. EPA, 2001) | R128: 426.15 | S128: EPI | T128: 647.15 | U128: TOXNET (converted) | V128: 11369.0696 | W128: TOXNET (converted) | X128: 1 | Y128: EPI | Z128: Not Available | AB128: 0.03 | AC128: I | AD128: No | AE128: No | AF128: w | AI128: Not Available | AK128: 0.03 | AL128: DTSC HHRA Note 10 (v 2019-02-25) | AM128: No
A129: Dimethylhydrazine, 1,1- | B129: 57-14-7 | C129: 60.099 | D129: PHYSPROP | E129: 163 | F129: PHYSPROP | G129: 526968681.4 | H129: Calculated | I129: 1000000 | J129: PHYSPROP | K129: 1.29e-05 | L129: PHYSPROP | M129: 0.0005274 | N129: 0.1037857 | O129: WATER9 (U.S. EPA, 2001) | P129: 1.13e-05 | Q129: WATER9 (U.S. EPA, 2001) | R129: 337.05 | S129: EPI | T129: 523.15 | U129: TOXNET (converted) | V129: 7791.873058 | W129: TOXNET (converted) | X129: 11.95 | Y129: EPI | Z129: Not Available | AB129: 2e-06 | AC129: X | AD129: No | AE129: No | AF129: w | AI129: Not Available | AK129: 2e-06 | AL129: DTSC HHRA Note 10 (v 2019-02-25) | AM129: No
A130: Dimethylhydrazine, 1,2- | B130: 540-73-8 | C130: 60.099 | D130: PHYSPROP | E130: 69.9 | F130: PHYSPROP | G130: 225982275 | H130: Calculated | I130: 1000000 | J130: PHYSPROP | K130: 6.95e-08 | L130: PHYSPROP | M130: 2.8414e-06 | N130: 0.1057704 | O130: WATER9 (U.S. EPA, 2001) | P130: 1.16e-05 | Q130: WATER9 (U.S. EPA, 2001) | R130: 354.15 | S130: EPI | T130: 531.225 | U130: Approx. from Tcrit=1.5xTBoil | V130: No DHv,b | X130: 14.87 | Y130: EPI | Z130: 0.16 | AA130: C | AB130: Not Available | AD130: No | AE130: No | AF130: w | AI130: 0.16 | AJ130: DTSC note 10 (v 2019-02-25) | AK130: Not Available | AM130: No
A131: Dimethylterephthalate | B131: 120-61-6 | C131: 194.19 | D131: PHYSPROP | E131: 0.01 | F131: PHYSPROP | G131: 104461.6345 | H131: Calculated | I131: 19 | J131: PHYSPROP | K131: 0.000134 | L131: EPI | M131: 0.0054783 | N131: 0.0285329 | O131: WATER9 (U.S. EPA, 2001) | P131: 6.7171e-06 | Q131: WATER9 (U.S. EPA, 2001) | R131: 561 | S131: EPI (converted) | T131: 841.5 | U131: Approx. from Tcrit=1.5xTBoil | V131: No DHv,b | X131: 30.96 | Y131: EPI | Z131: Not Available | AB131: Not Available | AD131: No | AE131: No | AF131: w | AI131: Not Available | AK131: 0.4 | AL131: DTSC HHRA Note 10 (v 2019-02-25) | AM131: No
A132: Dimethylvinylchloride | B132: 513-37-1 | C132: 90.553 | D132: PHYSPROP | E132: 212 | F132: PHYSPROP | G132: 1032686879 | H132: Calculated | I132: 1000 | J132: PHYSPROP | K132: 0.0011843 | L132: CRC89 | M132: 0.048417 | N132: 0.0811716 | O132: WATER9 (U.S. EPA, 2001) | P132: 9.6606e-06 | Q132: WATER9 (U.S. EPA, 2001) | R132: 341.2 | S132: NIST | T132: 518.49 | U132: MSDS | V132: No DHv,b | X132: 60.7 | Y132: EPI | Z132: 1.3e-05 | AA132: C | AB132: Not Available | AD132: No | AE132: No | AF132: w | AI132: 1.3e-05 | AJ132: DTSC note 10 (v 2019-02-25) | AK132: Not Available | AM132: No
A133: Dioxane, 1,4- | B133: 123-91-1 | C133: 88.107 | D133: PHYSPROP | E133: 38.09 | F133: PHYSPROP | G133: 180530814.5 | H133: Calculated | I133: 1000000 | J133: PHYSPROP | K133: 4.8e-06 | L133: PHYSPROP | M133: 0.0001962 | N133: 0.0873739 | O133: WATER9 (U.S. EPA, 2001) | P133: 1.05e-05 | Q133: WATER9 (U.S. EPA, 2001) | R133: 374.65 | S133: EPI | T133: 585.15 | U133: TOXNET (converted) | V133: 8687.3502 | W133: TOXNET (converted) | X133: 2.633 | Y133: EPI | Z133: 5e-06 | AA133: I | AB133: 0.03 | AC133: I | AD133: No | AE133: No | AF133: w | AI133: 5e-06 | AJ133: DTSC note 10 (v 2019-02-25) | AK133: 0.03 | AL133: DTSC HHRA Note 10 (v 2019-02-25) | AM133: No
A134: Dithiane, 1,4- | B134: 505-29-3 | C134: 120.24 | D134: PHYSPROP | E134: 0.0795 | F134: PHYSPROP | G134: 514216.5512 | H134: Calculated | I134: 3000 | J134: PHYSPROP | K134: 4.2e-05 | L134: EPI | M134: 0.0017171 | N134: 0.0682093 | O134: WATER9 (U.S. EPA, 2001) | P134: 9.2765e-06 | Q134: WATER9 (U.S. EPA, 2001) | R134: 472.7 | S134: NIST | T134: 657.97 | U134: Approx. from Tcrit=1.5xTBoil | V134: No DHv,b | X134: 145.8 | Y134: EPI | Z134: Not Available | AB134: Not Available | AD134: No | AE134: No | AF134: w | AI134: Not Available | AK134: 0.04 | AL134: DTSC HHRA Note 10 (v 2019-02-25) | AM134: No
A135: Endosulfan | B135: 115-29-7 | C135: 406.93 | D135: PHYSPROP | E135: 1.73e-07 | F135: PHYSPROP | G135: 3.787004024 | H135: Calculated | I135: 0.325 | J135: PHYSPROP | K135: 6.5e-05 | L135: PHYSPROP | M135: 0.0026574 | N135: 0.0224845 | O135: WATER9 (U.S. EPA, 2001) | P135: 5.7628e-06 | Q135: WATER9 (U.S. EPA, 2001) | R135: 674.28 | S135: EPI | T135: 1011.42 | U135: Approx. from Tcrit=1.5xTBoil | V135: No DHv,b | X135: 6761 | Y135: EPI | Z135: Not Available | AB135: Not Available | AD135: No | AE135: No | AF135: w | AI135: Not Available | AK135: 0.024 | AL135: DTSC HHRA Note 10 (v 2019-02-25) | AM135: No
A136: Epichlorohydrin | B136: 106-89-8 | C136: 92.526 | D136: PHYSPROP | E136: 16.44 | F136: PHYSPROP | G136: 81826797.78 | H136: Calculated | I136: 65900 | J136: PHYSPROP | K136: 3.04e-05 | L136: EPI | M136: 0.0012428 | N136: 0.0888682 | O136: WATER9 (U.S. EPA, 2001) | P136: 1.11e-05 | Q136: WATER9 (U.S. EPA, 2001) | R136: 390 | S136: EPI | T136: 600 | U136: MSDS | V136: 10.1 | W136: MSDS | X136: 9.907 | Y136: EPI | Z136: 1.2e-06 | AA136: I | AB136: 0.001 | AC136: I | AD136: No | AE136: No | AF136: w | AI136: 2.3e-05 | AJ136: DTSC note 10 (v 2019-02-25) | AK136: 0.001 | AL136: DTSC HHRA Note 10 (v 2019-02-25) | AM136: No
A137: Epoxybutane, 1,2- | B137: 106-88-7 | C137: 72.108 | D137: PHYSPROP | E137: 180 | F137: PHYSPROP | G137: 698209751.7 | H137: Calculated | I137: 95000 | J137: PHYSPROP | K137: 0.00018 | L137: EPI | M137: 0.007359 | N137: 0.0928958 | O137: WATER9 (U.S. EPA, 2001) | P137: 1.04e-05 | Q137: WATER9 (U.S. EPA, 2001) | R137: 336.3 | S137: EPI (converted) | T137: 516 | U137: jc | V137: 7211 | W137: TOXNET (converted) | X137: 9.907 | Y137: EPI | Z137: Not Available | AB137: 0.02 | AC137: I | AD137: No | AE137: No | AF137: w | AG137: 1,2-Epoxybutane | AI137: Not Available | AK137: 0.02 | AL137: DTSC HHRA Note 10 (v 2019-02-25) | AM137: No
A138: EPTC | B138: 759-94-4 | C138: 189.32 | D138: PHYSPROP | E138: 0.024 | F138: PHYSPROP | G138: 244420.5362 | H138: Calculated | I138: 375 | J138: PHYSPROP | K138: 1.59e-05 | L138: EPI | M138: 0.00065 | N138: 0.0291262 | O138: WATER9 (U.S. EPA, 2001) | P138: 6.3511e-06 | Q138: WATER9 (U.S. EPA, 2001) | R138: 400 | S138: EPI (converted) | T138: 600 | U138: Approx. from Tcrit=1.5xTBoil | V138: No DHv,b | X138: 164.1 | Y138: EPI | Z138: Not Available | AB138: Not Available | AD138: No | AE138: No | AF138: w | AI138: Not Available | AK138: 0.2 | AL138: DTSC HHRA Note 10 (v 2019-02-25) | AM138: No
A139: Ethoxyethanol Acetate, 2- | B139: 111-15-9 | C139: 132.16 | D139: PHYSPROP | E139: 2 | F139: PHYSPROP | G139: 14218702.93 | H139: Calculated | I139: 187000 | J139: PHYSPROP | K139: 3.2e-06 | L139: PHYSPROP | M139: 0.0001308 | N139: 0.0569504 | O139: WATER9 (U.S. EPA, 2001) | P139: 7.9753e-06 | Q139: WATER9 (U.S. EPA, 2001) | R139: 429.55 | S139: EPI | T139: 607 | U139: TOXNET | V139: 9779.84 | W139: TOXNET (converted) | X139: 4.542 | Y139: EPI | Z139: Not Available | AB139: 0.06 | AC139: P | AD139: No | AE139: No | AF139: w | AI139: Not Available | AK139: 0.06 | AL139: DTSC HHRA Note 10 (v 2019-02-25) | AM139: No
A140: Ethoxyethanol, 2- | B140: 110-80-5 | C140: 90.123 | D140: PHYSPROP | E140: 5.31 | F140: PHYSPROP | G140: 25743056.87 | H140: Calculated | I140: 1000000 | J140: PHYSPROP | K140: 4.7e-07 | L140: PHYSPROP | M140: 1.92e-05 | N140: 0.0817537 | O140: WATER9 (U.S. EPA, 2001) | P140: 9.7306e-06 | Q140: WATER9 (U.S. EPA, 2001) | R140: 408.15 | S140: EPI | T140: 612.225 | U140: Approx. from Tcrit=1.5xTBoil | V140: 9680.42838 | W140: TOXNET (converted) | X140: 1 | Y140: EPI | Z140: Not Available | AB140: 0.04 | AC140: P | AD140: No | AE140: No | AF140: w | AI140: Not Available | AK140: 0.2 | AL140: DTSC HHRA Note 10 (v 2019-02-25) | AM140: No
A141: Ethyl Acetate | B141: 141-78-6 | C141: 88.107 | D141: PHYSPROP | E141: 93.2 | F141: PHYSPROP | G141: 441729375.6 | H141: Calculated | I141: 80000 | J141: PHYSPROP | K141: 0.000134 | L141: PHYSPROP | M141: 0.0054783 | N141: 0.0823158 | O141: WATER9 (U.S. EPA, 2001) | P141: 9.7028e-06 | Q141: WATER9 (U.S. EPA, 2001) | R141: 350.1 | S141: EPI | T141: 523.3 | U141: CRC | V141: 7633.66 | W141: CRC | X141: 5.583 | Y141: EPI | Z141: Not Available | AB141: 0.07 | AC141: P | AD141: No | AE141: No | AF141: w | AI141: Not Available | AK141: 0.07 | AL141: DTSC HHRA Note 10 (v 2019-02-25) | AM141: No
A142: Ethyl Acrylate | B142: 140-88-5 | C142: 100.12 | D142: PHYSPROP | E142: 38.6 | F142: PHYSPROP | G142: 207892154.8 | H142: Calculated | I142: 15000 | J142: PHYSPROP | K142: 0.000339 | L142: EPI | M142: 0.0138594 | N142: 0.0745392 | O142: WATER9 (U.S. EPA, 2001) | P142: 9.1242e-06 | Q142: WATER9 (U.S. EPA, 2001) | R142: 372.4 | S142: EPI (converted) | T142: 558.6 | U142: Approx. from Tcrit=1.5xTBoil | V142: 9362.76 | W142: hhc | X142: 10.65 | Y142: EPI | Z142: Not Available | AB142: 0.008 | AC142: P | AD142: No | AE142: No | AF142: w | AI142: Not Available | AK142: 0.008 | AL142: DTSC HHRA Note 10 (v 2019-02-25) | AM142: No
A143: Ethyl Chloride (Chloroethane) | B143: 75-00-3 | C143: 64.515 | D143: PHYSPROP | E143: 1008 | F143: PHYSPROP | G143: 3498252787 | H143: Calculated | I143: 6710 | J143: PHYSPROP | K143: 0.0111 | L143: PHYSPROP | M143: 0.4538021 | N143: 0.1037597 | O143: WATER9 (U.S. EPA, 2001) | P143: 1.16e-05 | Q143: WATER9 (U.S. EPA, 2001) | R143: 285.3 | S143: EPI | T143: 460.4 | U143: CRC | V143: 5879.4 | W143: CRC | X143: 21.73 | Y143: EPI | Z143: Not Available | AB143: 4 | AC143: P | AD143: No | AE143: No | AF143: w | AG143: Chloroethane | AI143: Not Available | AK143: 10 | AL143: DTSC HHRA Note 10 (v 2019-02-25) | AM143: No
A144: Ethyl Ether | B144: 60-29-7 | C144: 74.124 | D144: PHYSPROP | E144: 538 | F144: PHYSPROP | G144: 2145216250 | H144: Calculated | I144: 60400 | J144: PHYSPROP | K144: 0.00123 | L144: PHYSPROP | M144: 0.0502862 | N144: 0.0852446 | O144: WATER9 (U.S. EPA, 2001) | P144: 9.3636e-06 | Q144: WATER9 (U.S. EPA, 2001) | R144: 307.6 | S144: EPI | T144: 461.4 | U144: Approx. from Tcrit=1.5xTBoil | V144: No DHv,b | X144: 9.699 | Y144: EPI | Z144: Not Available | AB144: Not Available | AD144: No | AE144: No | AF144: w | AI144: Not Available | AK144: 0.8 | AL144: DTSC HHRA Note 10 (v 2019-02-25) | AM144: No
A145: Ethyl Methacrylate | B145: 97-63-2 | C145: 114.15 | D145: PHYSPROP | E145: 20.59 | F145: PHYSPROP | G145: 126433516.6 | H145: Calculated | I145: 5400 | J145: PHYSPROP | K145: 0.000573 | L145: EPI | M145: 0.023426 | N145: 0.0653441 | O145: WATER9 (U.S. EPA, 2001) | P145: 8.3794e-06 | Q145: WATER9 (U.S. EPA, 2001) | R145: 390 | S145: EPI | T145: 571 | U145: DECHEMA | V145: 10957.44 | W145: TOXNET | X145: 16.66 | Y145: EPI | Z145: Not Available | AB145: 0.3 | AC145: P | AD145: No | AE145: No | AF145: w | AG145: Ethylmethacrylate | AI145: Not Available | AK145: 0.3 | AL145: DTSC HHRA Note 10 (v 2019-02-25) | AM145: No
A146: Ethylbenzene | B146: 100-41-4 | C146: 106.17 | D146: PHYSPROP | E146: 9.6 | F146: PHYSPROP | G146: 54828075.91 | H146: Calculated | I146: 169 | J146: PHYSPROP | K146: 0.00788 | L146: PHYSPROP | M146: 0.3221586 | N146: 0.0684652 | O146: WATER9 (U.S. EPA, 2001) | P146: 8.4558e-06 | Q146: WATER9 (U.S. EPA, 2001) | R146: 409.1 | S146: EPI | T146: 617.2 | U146: Weast | V146: 8501 | W146: Weast | X146: 446.1 | Y146: EPI | Z146: 2.5e-06 | AA146: C | AB146: 1 | AC146: I | AD146: No | AE146: Yes | AF146: w | AI146: 2.5e-06 | AJ146: DTSC note 10 (v 2019-02-25) | AK146: 1 | AL146: DTSC HHRA Note 10 (v 2019-02-25) | AM146: No
A147: Ethylene Diamine | B147: 107-15-3 | C147: 60.099 | D147: PHYSPROP | E147: 12 | F147: PHYSPROP | G147: 38795240.35 | H147: Calculated | I147: 1000000 | J147: PHYSPROP | K147: 1.73e-09 | L147: PHYSPROP | M147: 7.0728e-08 | N147: 0.109446 | O147: WATER9 (U.S. EPA, 2001) | P147: 1.22e-05 | Q147: WATER9 (U.S. EPA, 2001) | R147: 390.15 | S147: EPI | T147: 585.225 | U147: Approx. from Tcrit=1.5xTBoil | V147: 9562.61 | W147: Perry | X147: 14.87 | Y147: EPI | Z147: Not Available | AB147: Not Available | AD147: No | AE147: No | AF147: w | AI147: Not Available | AK147: 0.36 | AL147: DTSC HHRA Note 10 (v 2019-02-25) | AM147: No
A148: Ethylene Oxide | B148: 75-21-8 | C148: 44.054 | D148: PHYSPROP | E148: 1314 | F148: PHYSPROP | G148: 3113943065 | H148: Calculated | I148: 1000000 | J148: PHYSPROP | K148: 0.000148 | L148: PHYSPROP | M148: 0.0060507 | N148: 0.1339638 | O148: WATER9 (U.S. EPA, 2001) | P148: 1.45e-05 | Q148: WATER9 (U.S. EPA, 2001) | R148: 283.6 | S148: EPI | T148: 469 | U148: CRC | V148: 6104.06 | W148: CRC | X148: 3.237 | Y148: EPI | Z148: 0.003 | AA148: I | AB148: 0.03 | AC148: C | AD148: Yes | AE148: No | AF148: w | AI148: 0.003 | AJ148: DTSC note 10 (v 2019-02-25) | AK148: 0.03 | AL148: DTSC HHRA Note 10 (v 2019-02-25) | AM148: Yes
A149: Ethyleneimine | B149: 151-56-4 | C149: 43.069 | D149: PHYSPROP | E149: 213 | F149: PHYSPROP | G149: 493485443.5 | H149: Calculated | I149: 1000000 | J149: PHYSPROP | K149: 1.21e-05 | L149: EPI | M149: 0.0004947 | N149: 0.1328293 | O149: WATER9 (U.S. EPA, 2001) | P149: 1.42e-05 | Q149: WATER9 (U.S. EPA, 2001) | R149: 328.65 | S149: NIST | T149: 524 | U149: MSDS | V149: No DHv,b | X149: 9.043 | Y149: EPI | Z149: 0.019 | AA149: C | AB149: Not Available | AD149: No | AE149: No | AF149: w | AI149: 0.019 | AJ149: DTSC note 10 (v 2019-02-25) | AK149: Not Available | AM149: No
A150: Fluorene | B150: 86-73-7 | C150: 166.22 | D150: PHYSPROP | E150: 0.0006 | F150: PHYSPROP | G150: =E150/760*1000000000*C150/24.46 -> 5364.935233 | H150: Calculated | I150: 1.69 | J150: PHYSPROP | K150: 9.62e-05 | L150: PHYSPROP | M150: 0.003933 | N150: 0.0439743 | O150: WATER9 (U.S. EPA, 2001) | P150: 7.889e-06 | Q150: WATER9 (U.S. EPA, 2001) | R150: 568 | S150: EPI | T150: 870 | U150: Weast | V150: 12666 | W150: Weast | X150: 9160 | Y150: EPI | Z150: Not Available | AB150: Not Available | AD150: No | AE150: No | AF150: w | AI150: Not Available | AK150: 0.16 | AL150: DTSC HHRA Note 10 (v 2019-02-25) | AM150: No
A151: Formaldehyde | B151: 50-00-0 | C151: 30.026 | D151: PHYSPROP | E151: 3890 | F151: EPI | G151: 6283144339 | H151: Calculated | I151: 400000 | J151: PHYSPROP | K151: 3.37e-07 | L151: PHYSPROP | M151: 1.38e-05 | N151: 0.1670871 | O151: WATER9 (U.S. EPA, 2001) | P151: 1.74e-05 | Q151: WATER9 (U.S. EPA, 2001) | R151: 254.05 | S151: EPI | T151: 412.35 | U151: TOXNET (converted) | V151: 5919.9 | W151: TOXNET | X151: 1 | Y151: EPI | Z151: 1.3e-05 | AA151: I | AB151: 0.00982 | AC151: A | AD151: No | AE151: No | AF151: w | AI151: 1.3e-05 | AJ151: DTSC note 10 (v 2019-02-25) | AK151: 0.009 | AL151: DTSC HHRA Note 10 (v 2019-02-25) | AM151: No
A152: Formic Acid | B152: 64-18-6 | C152: 46.026 | D152: PHYSPROP | E152: 42.59 | F152: PHYSPROP | G152: 105448602.4 | H152: Calculated | I152: 1000000 | J152: PHYSPROP | K152: 1.67e-07 | L152: PHYSPROP | M152: 6.8275e-06 | N152: 0.1478701 | O152: WATER9 (U.S. EPA, 2001) | P152: 1.72e-05 | Q152: WATER9 (U.S. EPA, 2001) | R152: 374.15 | S152: EPI | T152: 588 | U152: TOXNET | V152: 4800.8046 | W152: TOXNET (converted) | X152: 1 | Y152: EPI | Z152: Not Available | AB152: 0.0003 | AC152: X | AD152: No | AE152: No | AF152: w | AI152: Not Available | AK152: 0.0003 | AL152: DTSC HHRA Note 10 (v 2019-02-25) | AM152: No
A153: Furan | B153: 110-00-9 | C153: 68.076 | D153: PHYSPROP | E153: 600 | F153: PHYSPROP | G153: 2197228558 | H153: Calculated | I153: 10000 | J153: PHYSPROP | K153: 0.0054 | L153: EPI | M153: 0.2207686 | N153: 0.1022757 | O153: WATER9 (U.S. EPA, 2001) | P153: 1.17e-05 | Q153: WATER9 (U.S. EPA, 2001) | R153: 304.5 | S153: EPI | T153: 490.2 | U153: CRC | V153: 6476.9 | W153: CRC | X153: 79.99 | Y153: EPI | Z153: Not Available | AB153: Not Available | AD153: No | AE153: No | AF153: w | AI153: Not Available | AK153: 0.004 | AL153: DTSC HHRA Note 10 (v 2019-02-25) | AM153: No
A154: Furfural | B154: 98-01-1 | C154: 96.086 | D154: PHYSPROP | E154: 2.21 | F154: PHYSPROP | G154: 11423056.98 | H154: Calculated | I154: 74100 | J154: PHYSPROP | K154: 3.77e-06 | L154: EPI | M154: 0.0001541 | N154: 0.0853213 | O154: WATER9 (U.S. EPA, 2001) | P154: 1.07e-05 | Q154: WATER9 (U.S. EPA, 2001) | R154: 434.85 | S154: EPI | T154: 670 | U154: TOXNET | V154: 9219.4556 | W154: TOXNET (converted) | X154: 6.083 | Y154: EPI | Z154: Not Available | AB154: 0.05 | AC154: H | AD154: No | AE154: No | AF154: w | AI154: Not Available | AK154: 0.05 | AL154: DTSC HHRA Note 10 (v 2019-02-25) | AM154: No
A155: Glycidyl | B155: 765-34-4 | C155: 72.064 | D155: PHYSPROP | E155: 45.3 | F155: PHYSPROP | G155: 175608899.6 | H155: Calculated | I155: 1000000 | J155: PHYSPROP | K155: 5.11e-07 | L155: PHYSPROP | M155: 2.09e-05 | N155: 0.1062469 | O155: WATER9 (U.S. EPA, 2001) | P155: 1.26e-05 | Q155: WATER9 (U.S. EPA, 2001) | R155: 385.65 | S155: EPI | T155: 578.475 | U155: Approx. from Tcrit=1.5xTBoil | V155: No DHv,b | X155: 1 | Y155: EPI | Z155: Not Available | AB155: 0.001 | AC155: X | AD155: No | AE155: No | AF155: w | AI155: Not Available | AK155: 0.001 | AL155: DTSC HHRA Note 10 (v 2019-02-25) | AM155: No
A156: Guanidine | B156: 113-00-8 | C156: 59.071 | D156: PHYSPROP | E156: 2.21 | F156: PHYSPROP | G156: 7022577.678 | H156: Calculated | I156: 1840 | J156: PHYSPROP | K156: 2.34e-11 | L156: PHYSPROP | M156: 9.567e-10 | N156: 0.1378194 | O156: WATER9 (U.S. EPA, 2001) | P156: 1.71e-05 | Q156: WATER9 (U.S. EPA, 2001) | R156: No Tboil | S156: TOXNET | T156: No Tcrit | U156: TOXNET | V156: 46606 | W156: Perry | X156: 11.95 | Y156: EPI | Z156: Not Available | AB156: Not Available | AD156: No | AE156: No | AF156: w | AI156: Not Available | AK156: 0.04 | AL156: DTSC HHRA Note 10 (v 2019-02-25) | AM156: No
A157: Heptachlor | B157: 76-44-8 | C157: 373.32 | D157: PHYSPROP | E157: 0.0004 | F157: PHYSPROP | G157: 8032.878599 | H157: Calculated | I157: 0.18 | J157: PHYSPROP | K157: 0.000294 | L157: PHYSPROP | M157: 0.0120196 | N157: 0.0223441 | O157: WATER9 (U.S. EPA, 2001) | P157: 5.6959e-06 | Q157: WATER9 (U.S. EPA, 2001) | R157: 583.15 | S157: EPI | T157: 874.725 | U157: Approx. from Tcrit=1.5xTBoil | V157: 13000 | W157: Weast | X157: 41260 | Y157: EPI | Z157: 0.0013 | AA157: I | AB157: Not Available | AD157: No | AE157: No | AF157: w | AI157: 0.0013 | AJ157: DTSC note 10 (v 2019-02-25) | AK157: 0.002 | AL157: DTSC HHRA Note 10 (v 2019-02-25) | AM157: No
A158: Heptachlor Epoxide | B158: 1024-57-3 | C158: 389.32 | D158: PHYSPROP | E158: 1.95e-05 | F158: PHYSPROP | G158: 408.3864096 | H158: Calculated | I158: 0.2 | J158: PHYSPROP | K158: 2.1e-05 | L158: PHYSPROP | M158: 0.0008585 | N158: 0.0240006 | O158: WATER9 (U.S. EPA, 2001) | P158: 6.2475e-06 | Q158: WATER9 (U.S. EPA, 2001) | R158: 613.96 | S158: EPI | T158: 920.94 | U158: Approx. from Tcrit=1.5xTBoil | V158: 16000 | W158: Weast | X158: 10110 | Y158: EPI | Z158: 0.0026 | AA158: I | AB158: Not Available | AD158: No | AE158: No | AF158: w | AI158: 0.0026 | AJ158: DTSC note 10 (v 2019-02-25) | AK158: 5.2e-05 | AL158: DTSC HHRA Note 10 (v 2019-02-25) | AM158: No
A159: Heptachlorobiphenyl, 2,3,3',4,4',5,5'- (PCB 189) | B159: 39635-31-9 | C159: 395.33 | D159: PHYSPROP | E159: 1.3e-07 | F159: PHYSPROP | G159: 2.76460494 | H159: Calculated | I159: 0.000753 | J159: PHYSPROP | K159: 5.07e-05 | L159: PHYSPROP | M159: 0.0020728 | N159: 0.0424414 | O159: WATER9 (U.S. EPA, 2001) | P159: 5.6865e-06 | Q159: WATER9 (U.S. EPA, 2001) | R159: 688.75 | S159: EPI | T159: 1033.125 | U159: Approx. from Tcrit=1.5xTBoil | V159: No DHv,b | X159: 349700 | Y159: EPI | Z159: 0.00114 | AA159: W | AB159: 0.00133 | AC159: W | AD159: No | AE159: No | AF159: w | AI159: 0.0011 | AJ159: DTSC note 10 (v 2019-02-25) | AK159: 0.0013 | AL159: DTSC HHRA Note 10 (v 2019-02-25) | AM159: No
A160: Hexabromobenzene | B160: 87-82-1 | C160: 551.49 | D160: PHYSPROP | E160: 1.63e-08 | F160: PHYSPROP | G160: 0.4835653806 | H160: Calculated | I160: 0.00016 | J160: PHYSPROP | K160: 2.81e-05 | L160: PHYSPROP | M160: 0.0011488 | N160: 0.0247568 | O160: WATER9 (U.S. EPA, 2001) | P160: 6.5883e-06 | Q160: WATER9 (U.S. EPA, 2001) | R160: 643.7 | S160: EPI | T160: No Tcrit | V160: No DHv,b | X160: 2807 | Y160: EPI | Z160: Not Available | AB160: Not Available | AD160: No | AE160: No | AF160: w | AI160: Not Available | AK160: 0.008 | AL160: DTSC HHRA Note 10 (v 2019-02-25) | AM160: No
A161: Hexachlorobenzene | B161: 118-74-1 | C161: 284.78 | D161: PHYSPROP | E161: 1.8e-05 | F161: PHYSPROP | G161: 275.7477299 | H161: Calculated | I161: 0.0062 | J161: PHYSPROP | K161: 0.0017 | L161: PHYSPROP | M161: 0.0695012 | N161: 0.0289745 | O161: WATER9 (U.S. EPA, 2001) | P161: 7.8497e-06 | Q161: WATER9 (U.S. EPA, 2001) | R161: 598.15 | S161: EPI | T161: 897.225 | U161: Approx. from Tcrit=1.5xTBoil | V161: 11703.454 | W161: TOXNET (converted) | X161: 6195 | Y161: EPI | Z161: 0.00046 | AA161: I | AB161: Not Available | AD161: No | AE161: No | AF161: w | AI161: 0.00051 | AJ161: DTSC note 10 (v 2019-02-25) | AK161: 0.0032 | AL161: DTSC HHRA Note 10 (v 2019-02-25) | AM161: No
A162: Hexachlorobiphenyl, 2,3,3',4,4',5- (PCB 156) | B162: 38380-08-4 | C162: 360.88 | D162: PHYSPROP | E162: 1.61e-06 | F162: PHYSPROP | G162: 31.25493825 | H162: Calculated | I162: 0.00533 | J162: PHYSPROP | K162: 0.000143 | L162: EPI | M162: 0.0058463 | N162: 0.044421 | O162: WATER9 (U.S. EPA, 2001) | P162: 5.8639e-06 | Q162: WATER9 (U.S. EPA, 2001) | R162: 670.05 | S162: EPI | T162: 1005.075 | U162: Approx. from Tcrit=1.5xTBoil | V162: No DHv,b | X162: 213600 | Y162: EPI | Z162: 0.00114 | AA162: W | AB162: 0.00133 | AC162: W | AD162: No | AE162: No | AF162: w | AI162: 0.0011 | AJ162: DTSC note 10 (v 2019-02-25) | AK162: 0.0013 | AL162: DTSC HHRA Note 10 (v 2019-02-25) | AM162: No
A163: Hexachlorobiphenyl, 2,3,3',4,4',5'- (PCB 157) | B163: 69782-90-7 | C163: 360.88 | D163: PHYSPROP | E163: 5.81e-07 | F163: EPI | G163: 11.27895598 | H163: Calculated | I163: 0.0016469 | J163: EPI | K163: 0.000162 | L163: EPI | M163: 0.0066231 | N163: 0.044421 | O163: WATER9 (U.S. EPA, 2001) | P163: 5.8639e-06 | Q163: WATER9 (U.S. EPA, 2001) | R163: 670.05 | S163: EPI | T163: 1005.075 | U163: Approx. from Tcrit=1.5xTBoil | V163: No DHv,b | X163: 213600 | Y163: EPI | Z163: 0.00114 | AA163: W | AB163: 0.00133 | AC163: W | AD163: No | AE163: No | AF163: w | AI163: 0.0011 | AJ163: DTSC note 10 (v 2019-02-25) | AK163: 0.0013 | AL163: DTSC HHRA Note 10 (v 2019-02-25) | AM163: No
A164: Hexachlorobiphenyl, 2,3',4,4',5,5'- (PCB 167) | B164: 52663-72-6 | C164: 360.88 | D164: PHYSPROP | E164: 5.81e-07 | F164: PHYSPROP | G164: 11.27895598 | H164: Calculated | I164: 0.002225 | J164: PHYSPROP | K164: 6.85e-05 | L164: PHYSPROP | M164: 0.0028005 | N164: 0.044421 | O164: WATER9 (U.S. EPA, 2001) | P164: 5.8639e-06 | Q164: WATER9 (U.S. EPA, 2001) | R164: 670.05 | S164: EPI | T164: 1005.075 | U164: Approx. from Tcrit=1.5xTBoil | V164: No DHv,b | X164: 209300 | Y164: EPI | Z164: 0.00114 | AA164: W | AB164: 0.00133 | AC164: W | AD164: No | AE164: No | AF164: w | AI164: 0.0011 | AJ164: DTSC note 10 (v 2019-02-25) | AK164: 0.0013 | AL164: DTSC HHRA Note 10 (v 2019-02-25) | AM164: No
A165: Hexachlorobiphenyl, 3,3',4,4',5,5'- (PCB 169) | B165: 32774-16-6 | C165: 360.88 | D165: PHYSPROP | E165: 5.81e-07 | F165: PHYSPROP | G165: 11.27895598 | H165: Calculated | I165: 0.00051 | J165: PHYSPROP | K165: 6.85e-05 | L165: PHYSPROP | M165: 0.0028005 | N165: 0.044421 | O165: WATER9 (U.S. EPA, 2001) | P165: 5.8639e-06 | Q165: WATER9 (U.S. EPA, 2001) | R165: 670.05 | S165: EPI | T165: 1005.075 | U165: Approx. from Tcrit=1.5xTBoil | V165: No DHv,b | X165: 209300 | Y165: EPI | Z165: 1.14 | AA165: W | AB165: 1.33e-06 | AC165: W | AD165: No | AE165: No | AF165: w | AI165: 1.1 | AJ165: DTSC note 10 (v 2019-02-25) | AK165: 1.3e-06 | AL165: DTSC HHRA Note 10 (v 2019-02-25) | AM165: No
A166: Hexachlorobutadiene | B166: 87-68-3 | C166: 260.76 | D166: PHYSPROP | E166: 0.22 | F166: PHYSPROP | G166: 3085983.561 | H166: Calculated | I166: 3.2 | J166: PHYSPROP | K166: 0.0103 | L166: PHYSPROP | M166: 0.4210957 | N166: 0.0267445 | O166: WATER9 (U.S. EPA, 2001) | P166: 7.0264e-06 | Q166: WATER9 (U.S. EPA, 2001) | R166: 488.15 | S166: EPI | T166: 732.225 | U166: Approx. from Tcrit=1.5xTBoil | V166: 10206 | W166: Weast | X166: 845.2 | Y166: EPI | Z166: 2.2e-05 | AA166: I | AB166: Not Available | AD166: No | AE166: No | AF166: w | AI166: 2.2e-05 | AJ166: DTSC note 10 (v 2019-02-25) | AK166: 0.004 | AL166: DTSC HHRA Note 10 (v 2019-02-25) | AM166: No
A167: Hexachlorocyclopentadiene | B167: 77-47-4 | C167: 272.77 | D167: PHYSPROP | E167: 0.06 | F167: PHYSPROP | G167: 880395.49 | H167: Calculated | I167: 1.8 | J167: PHYSPROP | K167: 0.027 | L167: PHYSPROP | M167: 1.103843 | N167: 0.0272382 | O167: WATER9 (U.S. EPA, 2001) | P167: 7.217e-06 | Q167: WATER9 (U.S. EPA, 2001) | R167: 512.15 | S167: EPI | T167: 768.225 | U167: Approx. from Tcrit=1.5xTBoil | V167: 42992.28 | W167: TOXNET (converted) | X167: 1404 | Y167: EPI | Z167: Not Available | AB167: 0.0002 | AC167: I | AD167: No | AE167: No | AF167: w | AI167: Not Available | AK167: 0.0002 | AL167: DTSC HHRA Note 10 (v 2019-02-25) | AM167: No
A168: Hexachloroethane | B168: 67-72-1 | C168: 236.74 | D168: PHYSPROP | E168: 0.21 | F168: PHYSPROP | G168: 2674366.312 | H168: Calculated | I168: 50 | J168: PHYSPROP | K168: 0.00389 | L168: PHYSPROP | M168: 0.1590352 | N168: 0.0320938 | O168: WATER9 (U.S. EPA, 2001) | P168: 8.8904e-06 | Q168: WATER9 (U.S. EPA, 2001) | R168: 427.6 | S168: EPI | T168: 641.4 | U168: Approx. from Tcrit=1.5xTBoil | V168: 11711.3 | W168: TOXNET | X168: 196.8 | Y168: EPI | Z168: 1.1e-05 | AA168: C | AB168: 0.03 | AC168: I | AD168: No | AE168: No | AF168: w | AI168: 1.1e-05 | AJ168: DTSC note 10 (v 2019-02-25) | AK168: 0.03 | AL168: DTSC HHRA Note 10 (v 2019-02-25) | AM168: No
A169: Hexamethylene Diisocyanate, 1,6- | B169: 822-06-0 | C169: 168.2 | D169: PHYSPROP | E169: 0.03 | F169: PHYSPROP | G169: 271442.0967 | H169: Calculated | I169: 117 | J169: PHYSPROP | K169: 4.8e-05 | L169: PHYSPROP | M169: 0.0019624 | N169: 0.0404255 | O169: WATER9 (U.S. EPA, 2001) | P169: 7.2308e-06 | Q169: WATER9 (U.S. EPA, 2001) | R169: 528 | S169: EPI (converted) | T169: 792 | U169: Approx. from Tcrit=1.5xTBoil | V169: No DHv,b | X169: 4818 | Y169: EPI | Z169: Not Available | AB169: 1e-05 | AC169: I | AD169: No | AE169: No | AF169: w | AG169: 1,6-Hexamethylene Diisocyanate | AI169: Not Available | AK169: 1e-05 | AL169: DTSC HHRA Note 10 (v 2019-02-25) | AM169: No
A170: Hexane, N- | B170: 110-54-3 | C170: 86.178 | D170: PHYSPROP | E170: 151.3 | F170: PHYSPROP | G170: 701399244.7 | H170: Calculated | I170: 9.5 | J170: PHYSPROP | K170: 1.8 | L170: EPI | M170: 73.589534 | N170: 0.0731078 | O170: WATER9 (U.S. EPA, 2001) | P170: 8.1658e-06 | Q170: WATER9 (U.S. EPA, 2001) | R170: 341.7 | S170: EPI | T170: 508 | U170: CRC | V170: 6895.15 | W170: CRC | X170: 131.5 | Y170: EPI | Z170: Not Available | AB170: 0.7 | AC170: I | AD170: No | AE170: Yes | AF170: w | AG170: Hexane | AI170: Not Available | AK170: 0.7 | AL170: DTSC HHRA Note 10 (v 2019-02-25) | AM170: No
A171: Hexanone, 2- | B171: 591-78-6 | C171: 100.16 | D171: PHYSPROP | E171: 11.6 | F171: PHYSPROP | G171: 62500322.76 | H171: Calculated | I171: 17200 | J171: PHYSPROP | K171: 9.32e-05 | L171: EPI | M171: 0.0038103 | N171: 0.0703564 | O171: WATER9 (U.S. EPA, 2001) | P171: 8.4404e-06 | Q171: WATER9 (U.S. EPA, 2001) | R171: 400.6 | S171: EPI (converted) | T171: 600.9 | U171: Approx. from Tcrit=1.5xTBoil | V171: 8610.39 | W171: TOXNET (converted) | X171: 14.98 | Y171: EPI | Z171: Not Available | AB171: 0.03 | AC171: I | AD171: No | AE171: No | AF171: w | AG171: 2-Hexanone | AI171: Not Available | AK171: 0.03 | AL171: DTSC HHRA Note 10 (v 2019-02-25) | AM171: No
A172: Hydrazine | B172: 302-01-2 | C172: 32.045 | D172: PHYSPROP | E172: 14.38 | F172: PHYSPROP | G172: 24788435.47 | H172: Calculated | I172: 1000000 | J172: PHYSPROP | K172: 6.1e-07 | L172: PubChem | M172: 2.5e-05 | N172: 0.1733034 | O172: WATER9 (U.S. EPA, 2001) | P172: 1.9e-05 | Q172: WATER9 (U.S. EPA, 2001) | R172: 386.65 | S172: EPI | T172: 653.15 | U172: TOXNET (converted) | V172: 10812.55842 | W172: TOXNET (converted) | Z172: 0.0049 | AA172: I | AB172: 3e-05 | AC172: P | AD172: No | AE172: No | AF172: w | AI172: 0.0049 | AJ172: DTSC note 10 (v 2019-02-25) | AK172: 3e-05 | AL172: DTSC HHRA Note 10 (v 2019-02-25) | AM172: No
A173: Hydrogen Chloride | B173: 7647-01-0 | C173: 35.45 | D173: EPI | E173: 32452 | F173: PubChem | G173: 6.188532298e+10 | H173: Calculated | I173: 673000 | J173: Toxnet HSDB | K173: 2040000 | L173: Toxnet HSDB | M173: 83401472 | N173: 0.1879912 | O173: WATER9 (U.S. EPA, 2001) | P173: 2.27e-05 | Q173: WATER9 (U.S. EPA, 2001) | R173: 188.1 | S173: TOXNET (converted) | T173: 324.55 | U173: TOXNET (converted) | V173: 3855.476017 | W173: TOXNET (converted) | Z173: Not Available | AB173: 0.02 | AC173: I | AD173: No | AE173: No | AF173: w | AI173: Not Available | AK173: 0.009 | AL173: DTSC HHRA Note 10 (v 2019-02-25) | AM173: No
A174: Hydrogen Cyanide | B174: 74-90-8 | C174: 27.026 | D174: PHYSPROP | E174: 741.9 | F174: PHYSPROP | G174: 1078591761 | H174: Calculated | I174: 1000000 | J174: PHYSPROP | K174: 0.000133 | L174: PHYSPROP | M174: 0.0054374 | N174: 0.1678036 | O174: WATER9 (U.S. EPA, 2001) | P174: 1.68e-05 | Q174: WATER9 (U.S. EPA, 2001) | R174: 298.6 | S174: EPI | T174: 456.7 | U174: CRC | V174: 6676.41 | W174: Weiss | Z174: Not Available | AB174: 0.0008 | AC174: I | AD174: No | AE174: No | AF174: w | AI174: Not Available | AK174: 0.0008 | AL174: DTSC HHRA Note 10 (v 2019-02-25) | AM174: No
A175: Hydrogen Fluoride | B175: 7664-39-3 | C175: 20.006 | D175: PHYSPROP | E175: 917.2 | F175: PHYSPROP | G175: 987084348.2 | H175: Calculated | I175: 1000000 | J175: PHYSPROP | K175: 0.000104 | L175: PHYSPROP | M175: 0.0042518 | N175: 0.2190996 | O175: WATER9 (U.S. EPA, 2001) | P175: 2.23e-05 | Q175: WATER9 (U.S. EPA, 2001) | R175: 292.66 | S175: TOXNET (converted) | T175: 461.15 | U175: TOXNET (converted) | V175: 1789.673078 | W175: TOXNET (converted) | Z175: Not Available | AB175: 0.014 | AC175: C | AD175: No | AE175: No | AF175: w | AI175: Not Available | AK175: 0.014 | AL175: DTSC HHRA Note 10 (v 2019-02-25) | AM175: No
A176: Hydrogen Sulfide | B176: 7783-06-4 | C176: 34.08 | D176: PHYSPROP | E176: 15640 | F176: PHYSPROP | G176: 2.867254809e+10 | H176: Calculated | I176: 3740 | J176: PHYSPROP | K176: 0.00856 | L176: PhysProp | M176: 0.35 | N176: 0.1880669 | O176: WATER9 (U.S. EPA, 2001) | P176: 2.23e-05 | Q176: WATER9 (U.S. EPA, 2001) | R176: 212.82 | S176: TOXNET (converted) | T176: 373.1 | U176: TOXNET | V176: 4459.25482 | W176: TOXNET (converted) | Z176: Not Available | AB176: 0.002 | AC176: I | AD176: No | AE176: No | AF176: w | AI176: Not Available | AK176: 0.002 | AL176: DTSC HHRA Note 10 (v 2019-02-25) | AM176: No
A177: Isobutyl Alcohol | B177: 78-83-1 | C177: 74.124 | D177: PHYSPROP | E177: 10.45 | F177: PHYSPROP | G177: 41668233.85 | H177: Calculated | I177: 85000 | J177: PHYSPROP | K177: 9.78e-06 | L177: PHYSPROP | M177: 0.0003998 | N177: 0.0896677 | O177: WATER9 (U.S. EPA, 2001) | P177: 1e-05 | Q177: WATER9 (U.S. EPA, 2001) | R177: 380.95 | S177: EPI | T177: 547.78 | U177: TOXNET | V177: 103496.65 | W177: Perry | X177: 2.919 | Y177: EPI | Z177: Not Available | AB177: 0.4 | AD177: No | AE177: No | AF177: w | AI177: Not Available | AK177: 1.2 | AL177: DTSC HHRA Note 10 (v 2019-02-25) | AM177: No
A178: Isopropalin | B178: 33820-53-0 | C178: 309.37 | D178: PHYSPROP | E178: 3e-05 | F178: PHYSPROP | G178: 499.2630288 | H178: Calculated | I178: 0.11 | J178: PHYSPROP | K178: 0.000111 | L178: EPI | M178: 0.004538 | N178: 0.021279 | O178: WATER9 (U.S. EPA, 2001) | P178: 5.3087e-06 | Q178: WATER9 (U.S. EPA, 2001) | R178: 679.57 | S178: EPI | T178: No Tcrit | V178: No DHv,b | X178: 11430 | Y178: EPI | Z178: Not Available | AB178: Not Available | AD178: No | AE178: No | AF178: w | AI178: Not Available | AK178: 0.06 | AL178: DTSC HHRA Note 10 (v 2019-02-25) | AM178: No
A179: Isopropanol | B179: 67-63-0 | C179: 60.097 | D179: PHYSPROP | E179: 45.42 | F179: PHYSPROP | G179: 146835098.1 | H179: Calculated | I179: 1000000 | J179: PHYSPROP | K179: 8.1e-06 | L179: PHYSPROP | M179: 0.0003312 | N179: 0.1032261 | O179: WATER9 (U.S. EPA, 2001) | P179: 1.12e-05 | Q179: WATER9 (U.S. EPA, 2001) | R179: 355.45 | S179: EPI | T179: 508.3 | U179: TOXNET | V179: 10841.21994 | W179: TOXNET (converted) | X179: 1.53 | Y179: EPI | Z179: Not Available | AB179: 0.2 | AC179: P | AD179: No | AE179: No | AF179: w | AI179: Not Available | AK179: 0.2 | AL179: DTSC HHRA Note 10 (v 2019-02-25) | AM179: No
A180: Lewisite | B180: 541-25-3 | C180: 207.32 | D180: PHYSPROP | E180: 0.58 | F180: PHYSPROP | G180: 6468433.963 | H180: Calculated | I180: 500 | J180: PHYSPROP | K180: 0.000218 | L180: EPI | M180: 0.00891 | N180: 0.0327841 | O180: WATER9 (U.S. EPA, 2001) | P180: 9.055e-06 | Q180: WATER9 (U.S. EPA, 2001) | R180: 463.15 | S180: PHYSPROP | T180: 694.725 | U180: Approx. from Tcrit=1.5xTBoil | V180: No DHv,b | X180: 110.6 | Y180: EPI | Z180: Not Available | AB180: Not Available | AD180: No | AE180: No | AF180: w | AI180: Not Available | AK180: 2e-05 | AL180: DTSC HHRA Note 10 (v 2019-02-25) | AM180: No
A181: Mercury (elemental) | B181: 7439-97-6 | C181: 200.59 | D181: PHYSPROP | E181: 0.001958 | F181: PHYSPROP | G181: 21127.68537 | H181: Calculated | I181: 0.06 | J181: PHYSPROP | K181: 0.008622 | L181: PHYSPROP VP/S | M181: 0.352 | N181: 0.0307 | O181: WATER9 (U.S. EPA, 2001) | P181: 6.3e-06 | Q181: WATER9 (U.S. EPA, 2001) | R181: 356.6 | S181: EPISUITE | T181: 1750 | U181: Weast | V181: 14127 | W181: Weast | Z181: Not Available | AB181: 0.0003 | AC181: I | AD181: No | AE181: No | AF181: w | AI181: Not Available | AK181: 3e-05 | AL181: DTSC HHRA Note 10 (v 2019-02-25) | AM181: No
A182: Merphos | B182: 150-50-5 | C182: 298.51 | D182: PHYSPROP | E182: 2e-05 | F182: PHYSPROP | G182: 321.1580669 | H182: Calculated | I182: 0.0035 | J182: PHYSPROP | K182: 2.27e-05 | L182: PHYSPROP | M182: 0.000928 | N182: 0.0204 | O182: WATER9 (U.S. EPA, 2001) | P182: 5.0287e-06 | Q182: WATER9 (U.S. EPA, 2001) | R182: 424.15 | S182: EPI | T182: No Tcrit | V182: No DHv,b | X182: 48970 | Y182: EPI | Z182: Not Available | AB182: Not Available | AD182: No | AE182: No | AF182: w | AI182: Not Available | AK182: 0.00012 | AL182: DTSC HHRA Note 10 (v 2019-02-25) | AM182: No
A183: Methacrylonitrile | B183: 126-98-7 | C183: 67.091 | D183: PHYSPROP | E183: 71.2 | F183: PHYSPROP | G183: 256965141.8 | H183: Calculated | I183: 25400 | J183: PHYSPROP | K183: 0.000247 | L183: EPI | M183: 0.0100981 | N183: 0.0964299 | O183: WATER9 (U.S. EPA, 2001) | P183: 1.06e-05 | Q183: WATER9 (U.S. EPA, 2001) | R183: 363.3 | S183: EPI | T183: 554 | U183: DECHEMA | V183: 7600.2 | W183: TOXNET | X183: 13.05 | Y183: EPI | Z183: Not Available | AB183: 0.03 | AC183: P | AD183: No | AE183: No | AF183: w | AI183: Not Available | AK183: 0.03 | AL183: DTSC HHRA Note 10 (v 2019-02-25) | AM183: No
A184: Methanol | B184: 67-56-1 | C184: 32.042 | D184: PHYSPROP | E184: 127 | F184: PHYSPROP | G184: 218903795.7 | H184: Calculated | I184: 1000000 | J184: PHYSPROP | K184: 4.55e-06 | L184: PHYSPROP | M184: 0.000186 | N184: 0.1582741 | O184: WATER9 (U.S. EPA, 2001) | P184: 1.65e-05 | Q184: WATER9 (U.S. EPA, 2001) | R184: 337.85 | S184: EPI | T184: 513.15 | U184: TOXNET (converted) | V184: 8918.50964 | W184: TOXNET (converted) | X184: 1 | Y184: EPI | Z184: Not Available | AB184: 20 | AC184: I | AD184: No | AE184: No | AF184: w | AI184: Not Available | AK184: 20 | AL184: DTSC HHRA Note 10 (v 2019-02-25) | AM184: No
A185: Methoxyethanol Acetate, 2- | B185: 110-49-6 | C185: 118.13 | D185: PHYSPROP | E185: 7 | F185: PHYSPROP | G185: 44482398.76 | H185: Calculated | I185: 1000000 | J185: PHYSPROP | K185: 3.11e-07 | L185: EPI | M185: 1.27e-05 | N185: 0.0658347 | O185: WATER9 (U.S. EPA, 2001) | P185: 8.7052e-06 | Q185: WATER9 (U.S. EPA, 2001) | R185: 416.15 | S185: EPI | T185: 624.225 | U185: Approx. from Tcrit=1.5xTBoil | V185: 10485.3394 | W185: TOXNET (converted) | X185: 2.492 | Y185: EPI | Z185: Not Available | AB185: 0.001 | AC185: P | AD185: No | AE185: No | AF185: w | AI185: Not Available | AK185: 0.001 | AL185: DTSC HHRA Note 10 (v 2019-02-25) | AM185: No
A186: Methoxyethanol, 2- | B186: 109-86-4 | C186: 76.096 | D186: PHYSPROP | E186: 9.5 | F186: PHYSPROP | G186: 38887980.38 | H186: Calculated | I186: 1000000 | J186: PHYSPROP | K186: 3.3e-07 | L186: PHYSPROP | M186: 1.35e-05 | N186: 0.0951557 | O186: WATER9 (U.S. EPA, 2001) | P186: 1.1e-05 | Q186: WATER9 (U.S. EPA, 2001) | R186: 397.25 | S186: EPI | T186: 597.6 | U186: TOXNET | V186: 8966.27884 | W186: TOXNET (converted) | X186: 1 | Y186: EPI | Z186: Not Available | AB186: 0.007 | AC186: P | AD186: No | AE186: No | AF186: w | AI186: Not Available | AK186: 0.02 | AL186: DTSC HHRA Note 10 (v 2019-02-25) | AM186: No
A187: Methyl Acetate | B187: 79-20-9 | C187: 74.08 | D187: PHYSPROP | E187: 216.2 | F187: PHYSPROP | G187: 861562163.8 | H187: Calculated | I187: 243000 | J187: PHYSPROP | K187: 0.000115 | L187: PHYSPROP | M187: 0.0047016 | N187: 0.0957763 | O187: WATER9 (U.S. EPA, 2001) | P187: 1.1e-05 | Q187: WATER9 (U.S. EPA, 2001) | R187: 365 | S187: EPI | T187: 506.7 | U187: TOXNET | V187: 7260.0791 | W187: TOXNET | X187: 3.064 | Y187: EPI | Z187: Not Available | AB187: Not Available | AD187: No | AE187: No | AF187: w | AI187: Not Available | AK187: 4 | AL187: DTSC HHRA Note 10 (v 2019-02-25) | AM187: No
A188: Methyl Acrylate | B188: 96-33-3 | C188: 86.091 | D188: PHYSPROP | E188: 86.56 | F188: PHYSPROP | G188: 400871291.5 | H188: Calculated | I188: 49400 | J188: PHYSPROP | K188: 0.000199 | L188: EPI | M188: 0.0081357 | N188: 0.0859972 | O188: WATER9 (U.S. EPA, 2001) | P188: 1.02e-05 | Q188: WATER9 (U.S. EPA, 2001) | R188: 353.2 | S188: EPI | T188: 536 | U188: Weiss | V188: 7749 | W188: Weiss | X188: 5.844 | Y188: EPI | Z188: Not Available | AB188: 0.02 | AC188: P | AD188: No | AE188: No | AF188: w | AI188: Not Available | AK188: 0.02 | AL188: DTSC HHRA Note 10 (v 2019-02-25) | AM188: No
A189: Methyl Ethyl Ketone (2-Butanone) | B189: 78-93-3 | C189: 72.108 | D189: PHYSPROP | E189: 90.6 | F189: PHYSPROP | G189: 351432241.7 | H189: Calculated | I189: 223000 | J189: PHYSPROP | K189: 5.69e-05 | L189: PHYSPROP | M189: 0.0023262 | N189: 0.0914462 | O189: WATER9 (U.S. EPA, 2001) | P189: 1.02e-05 | Q189: WATER9 (U.S. EPA, 2001) | R189: 352.5 | S189: EPI | T189: 536.78 | U189: CRC | V189: 7480.7 | W189: CRC | X189: 4.51 | Y189: EPI | Z189: Not Available | AB189: 5 | AC189: I | AD189: No | AE189: No | AF189: w | AG189: 2-Butanone | AI189: Not Available | AK189: 5 | AL189: DTSC HHRA Note 10 (v 2019-02-25) | AM189: No
A190: Methyl Hydrazine | B190: 60-34-4 | C190: 46.072 | D190: PHYSPROP | E190: 50 | F190: PHYSPROP | G190: 123918750.3 | H190: Calculated | I190: 1000000 | J190: PHYSPROP | K190: 3.031e-06 | L190: PHYSPROP | M190: 0.0001239 | N190: 0.1290894 | O190: WATER9 (U.S. EPA, 2001) | P190: 1.4e-05 | Q190: WATER9 (U.S. EPA, 2001) | R190: 360.65 | S190: EPI | T190: 585.15 | U190: TOXNET (converted) | V190: 8887.937352 | W190: TOXNET (converted) | X190: 13.31 | Y190: EPI | Z190: 0.001 | AA190: X | AB190: 2e-05 | AC190: X | AD190: No | AE190: No | AF190: w | AI190: 0.001 | AJ190: DTSC note 10 (v 2019-02-25) | AK190: 2e-05 | AL190: DTSC HHRA Note 10 (v 2019-02-25) | AM190: No
A191: Methyl Isobutyl Ketone (4-methyl-2-pentanone) | B191: 108-10-1 | C191: 100.16 | D191: PHYSPROP | E191: 19.86 | F191: PHYSPROP | G191: 107004862.9 | H191: Calculated | I191: 19000 | J191: PHYSPROP | K191: 0.000138 | L191: EPI | M191: 0.0056419 | N191: 0.0697797 | O191: WATER9 (U.S. EPA, 2001) | P191: 8.3477e-06 | Q191: WATER9 (U.S. EPA, 2001) | R191: 389.5 | S191: EPI | T191: 571 | U191: CRC | V191: 8243.11 | W191: CRC | X191: 12.6 | Y191: EPI | Z191: Not Available | AB191: 3 | AC191: I | AD191: No | AE191: No | AF191: w | AG191: 4-Methyl-2-pentanone | AI191: Not Available | AK191: 3 | AL191: DTSC HHRA Note 10 (v 2019-02-25) | AM191: No
A192: Methyl Isocyanate | B192: 624-83-9 | C192: 57.052 | D192: PHYSPROP | E192: 348 | F192: PHYSPROP | G192: 1068021690 | H192: Calculated | I192: 29200 | J192: PHYSPROP | K192: 0.000926 | L192: PHYSPROP | M192: 0.0378577 | N192: 0.1165494 | O192: WATER9 (U.S. EPA, 2001) | P192: 1.31e-05 | Q192: WATER9 (U.S. EPA, 2001) | R192: 312.25 | S192: NIST | T192: 491 | U192: MSDS | V192: No DHv,b | X192: 39.6 | Y192: EPI | Z192: Not Available | AB192: 0.001 | AC192: C | AD192: No | AE192: No | AF192: w | AI192: Not Available | AK192: 0.001 | AL192: DTSC HHRA Note 10 (v 2019-02-25) | AM192: No
A193: Methyl Methacrylate | B193: 80-62-6 | C193: 100.12 | D193: PHYSPROP | E193: 38.5 | F193: PHYSPROP | G193: 207353574 | H193: Calculated | I193: 15000 | J193: PHYSPROP | K193: 0.000319 | L193: EPI | M193: 0.0130417 | N193: 0.0750447 | O193: WATER9 (U.S. EPA, 2001) | P193: 9.2087e-06 | Q193: WATER9 (U.S. EPA, 2001) | R193: 373.5 | S193: EPI | T193: 567 | U193: TOXNET | V193: 8974.9 | W193: TOXNET | X193: 9.14 | Y193: EPI | Z193: Not Available | AB193: 0.7 | AC193: I | AD193: No | AE193: No | AF193: w | AG193: Methylmethacrylate | AI193: Not Available | AK193: 0.7 | AL193: DTSC HHRA Note 10 (v 2019-02-25) | AM193: No
A194: Methyl Styrene (Mixed Isomers) | B194: 25013-15-4 | C194: 354.54 | D194: PHYSPROP | E194: 1.5 | F194: PHYSPROP | G194: 28607931.32 | H194: Calculated | I194: 89 | J194: PHYSPROP | K194: 0.00262 | L194: PHYSPROP | M194: 0.1071137 | N194: 0.017397 | O194: WATER9 (U.S. EPA, 2001) | P194: 4.1793e-06 | Q194: WATER9 (U.S. EPA, 2001) | R194: 437.65 | S194: TOXNET | T194: 655 | U194: TOXNET (converted) | V194: 12027.44 | W194: TOXNET (converted) | X194: 715.8 | Y194: EPI | Z194: Not Available | AB194: 0.04 | AC194: H | AD194: No | AE194: No | AF194: w | AI194: Not Available | AK194: 0.04 | AL194: DTSC HHRA Note 10 (v 2019-02-25) | AM194: No
A195: Methyl tert-Butyl Ether (MTBE) | B195: 1634-04-4 | C195: 88.151 | D195: PHYSPROP | E195: 250 | F195: PHYSPROP | G195: 1185488122 | H195: Calculated | I195: 51000 | J195: PHYSPROP | K195: 0.000587 | L195: PHYSPROP | M195: 0.0239984 | N195: 0.0752672 | O195: WATER9 (U.S. EPA, 2001) | P195: 8.5904e-06 | Q195: WATER9 (U.S. EPA, 2001) | R195: 328.2 | S195: EPI | T195: 497.1 | U195: CRC | V195: 6677.66 | W195: CRC | X195: 11.56 | Y195: EPI | Z195: 2.6e-07 | AA195: C | AB195: 3 | AC195: I | AD195: No | AE195: No | AF195: w | AG195: MTBE | AI195: 2.6e-07 | AJ195: DTSC note 10 (v 2019-02-25) | AK195: 3 | AL195: DTSC HHRA Note 10 (v 2019-02-25) | AM195: No
A196: Methylene Chloride | B196: 75-09-2 | C196: 84.933 | D196: PHYSPROP | E196: 435 | F196: PHYSPROP | G196: 1987447551 | H196: Calculated | I196: 13000 | J196: PHYSPROP | K196: 0.00325 | L196: PHYSPROP | M196: 0.13287 | N196: 0.0999362 | O196: WATER9 (U.S. EPA, 2001) | P196: 1.25e-05 | Q196: WATER9 (U.S. EPA, 2001) | R196: 313 | S196: EPI | T196: 510 | U196: Weast | V196: 6706 | W196: Weast | X196: 21.73 | Y196: EPI | Z196: 1e-08 | AA196: I | AB196: 0.6 | AC196: I | AD196: Yes | AE196: No | AF196: w | AI196: 1e-06 | AJ196: DTSC note 10 (v 2019-02-25) | AK196: 0.4 | AL196: DTSC HHRA Note 10 (v 2019-02-25) | AM196: Yes
A197: Methylnaphthalene, 1- | B197: 90-12-0 | C197: 142.2 | D197: PHYSPROP | E197: 0.067 | F197: PHYSPROP | G197: 512512.3725 | H197: Calculated | I197: 25.8 | J197: PHYSPROP | K197: 0.000514 | L197: PHYSPROP | M197: 0.0210139 | N197: 0.0527705 | O197: WATER9 (U.S. EPA, 2001) | P197: 7.8477e-06 | Q197: WATER9 (U.S. EPA, 2001) | R197: 517.7 | S197: EPI (converted) | T197: 771.8 | U197: jc | V197: 13690.65 | W197: hhc | X197: 2528 | Y197: EPI | Z197: Not Available | AB197: 3e-06 | AD197: No | AE197: No | AF197: w | AI197: 7.25e-06 | AJ197: DTSC note 10 (v 2019-02-25) | AK197: 0.28 | AL197: DTSC HHRA Note 10 (v 2019-02-25) | AM197: No
A198: Methylnaphthalene, 2- | B198: 91-57-6 | C198: 142.2 | D198: PHYSPROP | E198: 0.055 | F198: PHYSPROP | G198: 420719.1118 | H198: Calculated | I198: 24.6 | J198: PHYSPROP | K198: 0.000518 | L198: PHYSPROP | M198: 0.0211774 | N198: 0.0524319 | O198: WATER9 (U.S. EPA, 2001) | P198: 7.7811e-06 | Q198: WATER9 (U.S. EPA, 2001) | R198: 514.1 | S198: EPI | T198: 761 | U198: CRC | V198: 12600 | W198: DECHEMA | X198: 2478 | Y198: EPI | Z198: Not Available | AB198: Not Available | AD198: No | AE198: No | AF198: w | AI198: Not Available | AK198: 0.016 | AL198: DTSC HHRA Note 10 (v 2019-02-25) | AM198: No
A199: Methylstyrene, Alpha- | B199: 98-83-9 | C199: 118.18 | D199: PHYSPROP | E199: 1.9 | F199: EPI | G199: 12078904.33 | H199: Calculated | I199: 116 | J199: PHYSPROP | K199: 0.00255 | L199: EPI | M199: 0.1042518 | N199: 0.062902 | O199: WATER9 (U.S. EPA, 2001) | P199: 8.1911e-06 | Q199: WATER9 (U.S. EPA, 2001) | R199: 438.4 | S199: EPI (converted) | T199: 657 | U199: TOXNET (converted) | V199: 11419.16 | W199: TOXNET (converted) | X199: 697.8 | Y199: EPI | Z199: Not Available | AB199: Not Available | AD199: No | AE199: No | AF199: w | AI199: Not Available | AK199: 0.28 | AL199: DTSC HHRA Note 10 (v 2019-02-25) | AM199: No
A200: Mineral oils | B200: 8012-95-1 | C200: 170.34 | D200: EPI | E200: 0.135 | F200: EPI | G200: 1237030.383 | H200: Calculated | I200: 0.0037 | J200: EPI | K200: 8.18 | L200: EPI | M200: 334.42355 | N200: 0.036194 | O200: WATER9 (U.S. EPA, 2001) | P200: 6.431e-06 | Q200: WATER9 (U.S. EPA, 2001) | R200: No Tboil | T200: No Tcrit | V200: No DHv,b | X200: 4818 | Y200: EPI | Z200: Not Available | AB200: Not Available | AD200: No | AE200: No | AF200: w | AI200: Not Available | AK200: 12 | AL200: DTSC HHRA Note 10 (v 2019-02-25) | AM200: No
... 91 more rows

Sheet EXPOSURE_DATA
A1: Exposure Parameter | C1: Scenario | D1: Residential | E1: Commercial
A2: Averaging time for carcinogens | B2: (yrs) | C2: ATc | D2: 70 | E2: 70
A3: Averaging time for non-carcinogens | B3: (yrs) | C3: ATnc | D3: 26 | E3: 25
A4: Exposure duration | B4: (yrs) | C4: ED | D4: 26 | E4: 25
A5: Exposure frequency | B5: (days/yr) | C5: EF | D5: 350 | E5: 250
A6: Exposure time | B6: (hrs/24 hrs) | C6: ET | D6: 24 | E6: 8
A7: Mutagenic mode-of-action factor | B7: (yrs) | C7: MMOAF | D7: 72
A8: End of Worksheet
A9: Go to "README" tab
A10: Go to "MODEL" tab

Sheet SOIL_DATA
A1: 1 | B1: 2 | C1: 3 | D1: 4 | E1: 5 | F1: 6 | G1: 7 | H1: 8 | I1: 9 | J1: 10 | K1: 11 | L1: 12 | M1: 13 | N1: 14 | O1: 15
C2: Total porosity | D2: Water-filled porosity | E2: Bulk Density | G2: Capillary zone water filled porosity | H2: Capillary zone height | M2: Mean Grain Diameter (cm) | N2: nw_range
C3: n | D3: nw | E3: rho | F3: Ks | G3: n,cz | H3: h,cz | I3: a1 | J3: N | K3: M | L3: qr | N3: Range
A4: SCS Soil Name | B4: SCS Symbol | C4: (cm3/cm3) | D4: (cm3/cm3) | E4: (g/cm3) | F4: (cm/h) | G4: (cm3/cm3) | H4: (cm) | I4: (1/cm) | J4: (-) | K4: (-) | L4: (cm3/cm3) | M4: (cm) | N4: (cm3/cm3) | O4: -SCS Soil Name
A5: Not Present | O5: -Not Present
A6: Clay | B6: C | C6: 0.459 | D6: 0.215 | E6: 1.43 | F6: 0.61 | G6: =L6+(C6-L6)/(2^K6) -> 0.4118551402 | H6: =0.15/(M6*0.2) -> 81.52173913 | I6: 0.01496 | J6: 1.253 | K6: 0.2019 | L6: 0.098 | M6: 0.0092 | N6: 0.098 - 0.33 | O6: -Clay
A7: Clay Loam | B7: CL | C7: 0.442 | D7: 0.168 | E7: 1.48 | F7: 0.34 | G7: =L7+(C7-L7)/(2^K7) -> 0.3751174578 | H7: =0.15/(M7*0.2) -> 46.875 | I7: 0.01581 | J7: 1.416 | K7: 0.2938 | L7: 0.079 | M7: 0.016 | N7: 0.079 - 0.26 | O7: -Clay Loam
A8: Loam | B8: L | C8: 0.399 | D8: 0.148 | E8: 1.59 | F8: 0.5 | G8: 0.3316302761 | H8: 37.5 | I8: 0.01112 | J8: 1.472 | K8: 0.3207 | L8: 0.061 | M8: 0.02 | N8: 0.061 - 0.24 | O8: -Loam
A9: Loamy Sand | B9: LS | C9: 0.39 | D9: 0.076 | E9: 1.62 | F9: 4.38 | G9: 0.3025854094 | H9: 18.75 | I9: 0.03475 | J9: 1.746 | K9: 0.4273 | L9: 0.049 | M9: 0.04 | N9: 0.049 - 0.1 | O9: -Loamy Sand
A10: Sand | B10: S | C10: 0.375 | D10: 0.054 | E10: 1.66 | F10: 26.78 | G10: 0.2532581126 | H10: 17.04545455 | I10: 0.03524 | J10: 3.177 | K10: 0.6852 | L10: 0.053 | M10: 0.044 | N10: 0.053 - 0.055 | O10: -Sand
A11: Sandy Clay | B11: SC | C11: 0.385 | D11: 0.197 | E11: 1.63 | F11: 0.47 | G11: 0.3548468635 | H11: 30 | I11: 0.03342 | J11: 1.208 | K11: 0.1722 | L11: 0.117 | M11: 0.025 | N11: 0.117 - 0.28 | O11: -Sandy Clay
A12: Sandy Clay Loam | B12: SCL | C12: 0.384 | D12: 0.146 | E12: 1.63 | F12: 0.55 | G12: 0.3332834728 | H12: 25.86206897 | I12: 0.02109 | J12: 1.33 | K12: 0.2481 | L12: 0.063 | M12: 0.029 | N12: 0.063 - 0.23 | O12: -Sandy Clay Loam
A13: Sandy Loam | B13: SL | C13: 0.387 | D13: 0.103 | E13: 1.62 | F13: 1.6 | G13: 0.3197307903 | H13: 25 | I13: 0.02667 | J13: 1.449 | K13: 0.3099 | L13: 0.039 | M13: 0.03 | N13: 0.039 - 0.17 | O13: -Sandy Loam
A14: Silt | B14: SI | C14: 0.489 | D14: 0.167 | E14: 1.35 | F14: 1.82 | G14: 0.3816866484 | H14: 163.0434783 | I14: 0.00658 | J14: 1.679 | K14: 0.4044 | L14: 0.05 | M14: 0.0046 | N14: 0.05 - 0.28 | O14: -Silt
A15: Silt Loam | B15: SIL | C15: 0.439 | D15: 0.18 | E15: 1.49 | F15: 0.76 | G15: 0.3486945175 | H15: 68.18181818 | I15: 0.00506 | J15: 1.663 | K15: 0.3987 | L15: 0.065 | M15: 0.011 | N15: 0.065 - 0.3 | O15: -Silt Loam
A16: Silty Clay | B16: SIC | C16: 0.481 | D16: 0.216 | E16: 1.38 | F16: 0.4 | G16: 0.4236449622 | H16: 192.3076923 | I16: 0.01622 | J16: 1.321 | K16: 0.243 | L16: 0.111 | M16: 0.0039 | N16: 0.11 - 0.32 | O16: -Silty Clay
A17: Silty Clay Loam | B17: SICL | C17: 0.482 | D17: 0.198 | E17: 1.37 | F17: 0.46 | G17: 0.3991599964 | H17: 133.9285714 | I17: 0.00839 | J17: 1.521 | K17: 0.3425 | L17: 0.09 | M17: 0.0056 | N17: 0.09 - 0.31 | O17: -Silty Clay Loam
A18: Intentionally Blank
A19: Intentionally Blank
B20: Notes:
B21: a1 | C21: van Genuchten parameter - Point of inflection in the water retention curve where dn/dh is maximal, with n equal to the water filled porosity in the capillary zone and h equal to air-entry pressure head (cm).
B22: N | C22: van Genuchten curve shape parameter (dimensionless)
B23: M | C23: van Genuchten parameter = 1/(1-N)
B24: qr | C24: Residual water content (Van Genuchten soil water retention parameter)
B25: Ks | C25: Saturated hydraulic conductivity (class average)
A26: Intentionally Blank
B27: The van Genuchten water retention curve parameters are discussed in the User’s Guide
A28: End of Worksheet
A29: Go to "README" tab
A30: Go to "MODEL" tab

Sheet Target_IA_intermediate (hidden)
B1: Tox values | C1: =IF(MODEL!$F$19=1,"USEPA toxicity values used","CalEPA toxicity values used.") -> USEPA toxicity values used
B2: Chemical | C2: =Chem -> Trichloroethylene
B3: Scenario | C3: =Scenario -> Residential
B7: Target_IA_c | C7: =IF(URF="Not Available", "No IUR", IF(Scenario<>"Residential", Target_CR/(URF*ED*EF*ET/(ATc*365*24)), IF(Chem="Trichloroethylene", Target_CR/(URF*(0.756*ED+0.244*MMOAF)*EF*ET/(ATc*365*24)), IF(Chem="Vinyl Chloride",Target_CR/(URF +URF*ED*EF*ET/(ATc*365*24)), IF(MUT="YES", Target_CR/(URF*MMOAF*EF*ET/(ATc*365*24)), Target_CR/(URF*ED*EF*ET/(ATc*365*24))))))) -> 0.4783171623 | D7: (ug/m3) | G7: =IF(URF="Not Available", "No IUR", IF(Scenario<>"Residential", Target_CR/(URF*ED*EF*ET/(ATc*365*24)), IF(Chem="Trichloroethylene", Target_CR/(URF*(0.756*ED+0.244*MMOAF)*EF*ET/(ATc*365*24)), IF(Chem="Vinyl Chloride",Target_CR/(URF +URF*ED*EF*ET/(ATc*365*24)), IF(MUT="YES", Target_CR/(URF*MMOAF*EF*ET/(ATc*365*24)), Target_CR/(URF*ED*EF*ET/(ATc*365*24))))))) -> 0.4783171623
B8: Target_IA_nc | C8: =IF(RfC="Not Available", “No RfC”, Target_HQ*ATnc*365*24*RfC*1000/(EF*ED*ET)) -> 2.085714286 | D8: (ug/m3)
